{"text_format":"1","workbook":"xlsx","n_sheets":14,"sheets":["Hoofdmenu","Toelichting","Voorblad","Mededelingen","NAW_gegevens","Kostenverzamelstaat","Specifieke informatie A","Specifieke informatie B","Specifieke informatie C","Contractinformatie","Wanbetalers","Controleoverzicht","Blad1","Parameters"],"not_rendered":{"charts":0,"images":1,"macros":1,"external_links":0,"defined_names":1044,"comments":0,"pivot_tables":0},"unopened":[],"bounds":{"document_bytes":16777216,"sheet_cells":100000,"rows_first":2000,"rows_last":500,"rows_between":2000,"halvings":0,"cell_chars":16384,"cell_head_chars":4096},"cells_cut":0,"cells_raw":0,"read":"whole","date_system":"1900"}

{"sheet":"Hoofdmenu","index":0,"n_rows":3,"n_cols":2,"rows_kept":3,"cut":false,"hidden":false,"merged":[[0,0,0,1],[1,0,1,1]]}
[" "]
[{"$f":"CONCATENATE(\"KWARTAALSTAAT ZVW \", jaar_id)","v":"KWARTAALSTAAT ZVW 2023"}]
["Navigatie","Afdrukken"]

{"sheet":"Toelichting","index":1,"n_rows":4,"n_cols":2,"rows_kept":4,"cut":false,"hidden":false,"merged":[]}
[]
[]
[]
[null,{"$f":"CONCATENATE(\" KWARTAALSTAAT ZVW \",jaar_id,\" \",\"(VERSIE: \",revisie_id,\")\")","v":" KWARTAALSTAAT ZVW 2023 (VERSIE: C)"}]

{"sheet":"Voorblad","index":2,"n_rows":38,"n_cols":4,"rows_kept":38,"cut":false,"hidden":false,"merged":[[15,3,16,11],[13,3,14,11],[17,3,18,11]]}
[null,null,"VOORBLAD"]
[]
[]
[]
[]
["Pagina 1",null,null," "]
[]
[]
[]
[]
[]
[]
[]
[null,null,null,{"$f":"CONCATENATE(\"KWARTAALSTAAT ZVW \",jaar_id)","v":"KWARTAALSTAAT ZVW 2023"}]
[]
[]
[]
[null,null,null,"SPECIFIEKE INFORMATIE"]
[]
[]
[]
[null,null,null,"    KOSTENVERZAMELSTAAT (SPECIFIEKE INFORMATIE A)"]
[null,null,null,"     ● Informatie risicoverevening (pagina 1 t/m 4)"]
[]
[null,null,null,"    SPECIFIEKE INFORMATIE A"]
[null,null,null,"     ● Informatie risicoverevening (pagina 1 t/m 2)"]
[]
[null,null,null,"    CATASTROFESCHADELAST (SPECIFIEKE INFORMATIE B)"]
[null,null,null,"     ● Informatie risicoverevening (pagina 1 t/m 4)"]
[]
[null,null,null,"    SPECIFIEKE INFORMATIE C"]
[null,null,null,"     ● Specificaties van kosten en productie (pagina 1 t/m 2)"]
[]
[null,null,null,"    CONTRACTINFORMATIE (SPECIFIEKE INFORMATIE C)"]
[null,null,null,"     ● Specificaties van kosten en productie (pagina 1 & 2)"]
[]
[null,null,null,"    WANBETALERS (SPECIFIEKE INFORMATIE C)"]
[null,null,null,"     ● Specificaties van aantallen (pagina 1)"]

{"sheet":"Mededelingen","index":3,"n_rows":49,"n_cols":12,"rows_kept":49,"cut":false,"hidden":false,"merged":[[48,3,48,4]]}
[]
[]
[]
[]
[]
["Pagina 1",null,null,{"$f":"CONCATENATE(\"KWARTAALSTAAT ZVW \", jaar_id)","v":"KWARTAALSTAAT ZVW 2023"}]
[null,null,null,{"$f":"IF(naw_uzovi_zorgverzekeraar<>\"0000\",CONCATENATE(UPPER(naw_naam_zorgverzekeraar),\", \",UPPER(naw_plaats_zorgverzekeraar)),\"\")","v":""},null,null,null,null,null,null,null,{"$f":"CONCATENATE(\"UZOVI: \",naw_uzovi_zorgverzekeraar)","v":"UZOVI: 0000"}]
[null,null,null,"MEDEDELINGEN :"]
[]
[]
[]
[]
[]
[]
[]
[]
[]
[]
[]
[]
[]
[]
[]
[]
[]
[]
[]
[]
[]
[]
[]
[]
[]
[]
[]
[]
[]
[]
[]
[]
[]
[]
[]
[]
[]
[]
[]
[]
[null,null,null,{"$f":"NOW()","v":"2023-03-30T09:44:40.860"},null,null,null,null,null,null,null,{"$f":"CONCATENATE(\"Mededelingen \",LOWER(A6))","v":"Mededelingen pagina 1"}]

{"sheet":"NAW_gegevens","index":4,"n_rows":36,"n_cols":6,"rows_kept":36,"cut":false,"hidden":false,"merged":[[2,1,2,2],[3,1,3,2]]}
[]
[]
[null,"NAW-GEGEVENS"]
[null,{"$f":"CONCATENATE(\"KWARTAALSTAAT ZVW \", jaar_id)","v":"KWARTAALSTAAT ZVW 2023"}]
[null," Selecteer uw nummer:","0000 KIES UW UZOVI-NUMMER"]
[null," Uzovi-nummer:",{"$f":"MID(keuze_uzovi_nummer,1,4)","v":"0000"}]
[null," Zorgverzekeraar:"]
[null," Plaats:"]
[null," Contactpersoon:"]
[null," Telefoonnummer:"]
[null," E-mail:"]
[]
[null,"Let op dat u het goede UZOVI-nummer invult, zie onderstaand overzicht:"]
[]
[null,"UZOVI","NAAM",null,null,"PLAATS"]
[null,"0101","N.V. UNIVÉ ZORG",null,null,"ARNHEM"]
[null,"0104","CENTRALE ZORGVERZEKERINGEN NZV N.V.",null,null,"TILBURG"]
[null,"0201","OHRA ZORGVERZEKERINGEN N.V.",null,null,"TILBURG"]
[null,"0403","ASR BASIS ZIEKTENKOSTENVERZEKERINGEN N.V. ",null,null,"UTRECHT"]
[null,"0699","IZA ZORGVERZEKERAAR N.V.",null,null,"ARNHEM"]
[null,"0736","N.V. ZORGVERZEKERAAR UMC",null,null,"ARNHEM"]
[null,"3311","ZILVEREN KRUIS ACHMEA ZORGVERZEKERINGEN N.V.",null,null,"UTRECHT"]
[null,"3313","INTERPOLIS ZORGVERZEKERINGEN N.V.",null,null,"UTRECHT"]
[null,3332,"MENZIS ZORGVERZEKERAAR NV",null,null,"WAGENINGEN"]
[null,3333,"ANDERZORG NV",null,null,"WAGENINGEN"]
[null,3343,"ONVZ ZIEKTEKOSTENVERZEKERAAR N.V.",null,null,"HOUTEN"]
[null,3347,"SALLAND ZORGVERZEKERAAR N.V.",null,null,"DEVENTER"]
[null,3351,"FBTO ZORGVERZEKERINGEN N.V.",null,null,"LEEUWARDEN"]
[null,3352,"IPTIQ LIFE S.A.",null,null,"AMSTELVEEN"]
[null,3358,"DE FRIESLAND ZORGVERZEKERAAR N.V.",null,null,"LEEUWARDEN"]
[null,3359,"EUCARE INSURANCE PCC LTD",null,null,"TA' XBIEX"]
[null,"7029","OWM ZORGVERZEKERAAR 'DSW' U.A.",null,null,"SCHIEDAM"]
[null,"7037","STAD HOLLAND ZORGVERZEKERAAR OWM U.A.",null,null,"SCHIEDAM"]
[null,"7085","OWM ZORGVERZEKERAAR ZORG EN ZEKERHEID U.A.",null,null,"LEIDEN"]
[null,"7095","VGZ ZORGVERZEKERAAR N.V.",null,null,"ARNHEM"]
[null,"7119","CZ ZORGVERZEKERINGEN N.V.",null,null,"TILBURG"]

{"sheet":"Kostenverzamelstaat","index":5,"n_rows":171,"n_cols":17,"rows_kept":171,"cut":false,"hidden":false,"merged":[[10,10,11,11],[101,13,102,13],[65,3,65,6],[87,3,87,6],[101,8,102,8],[101,9,102,9],[101,10,102,10],[101,11,102,11],[101,12,102,12],[54,8,54,9],[54,10,54,11],[54,12,54,13],[100,8,100,9],[100,10,100,11],[100,12,100,13],[61,3,61,6],[0,2,0,14],[10,3,10,7],[12,13,13,13],[55,8,56,8],[55,9,56,9],[55,10,56,10],[55,11,56,11],[55,12,56,12],[55,13,56,13],[12,8,13,8],[12,9,13,9],[12,10,13,10],[12,11,13,11],[12,12,13,12],[10,12,11,13],[10,8,11,9],[121,3,121,6],[161,13,162,13],[155,3,155,11],[155,12,156,12],[155,13,156,13],[156,3,156,11],[157,3,157,11],[158,3,158,11],[161,8,162,8],[161,9,162,9],[161,10,162,10],[161,11,162,11],[161,12,162,12]]}
[null,null,"INVULSPECIFICATIES SPECIFIEKE INFORMATIE A"]
[]
[]
[]
[]
["Pagina 1",null,null,{"$f":"CONCATENATE(\"KWARTAALSTAAT ZVW \", jaar_id)","v":"KWARTAALSTAAT ZVW 2023"}]
[null,null,null,"KOSTENVERZAMELSTAAT (SPECIFIEKE INFORMATIE A)"]
[null,null,null,{"$f":"IF(naw_uzovi_zorgverzekeraar<>\"0000\",CONCATENATE(UPPER(naw_naam_zorgverzekeraar),\", \",UPPER(naw_plaats_zorgverzekeraar)),\"\")","v":""},null,null,null,null,null,null,null,null,null,{"$f":"CONCATENATE(\"UZOVI: \",naw_uzovi_zorgverzekeraar)","v":"UZOVI: 0000"}]
[null,null,null,"SPECIFICATIES INFORMATIE RISICOVEREVENING"]
[null,null,null,"KOSTENVERZAMELSTAAT"]
[null,null,null,null,null,null,null,null,{"$f":"CONCATENATE(\"LASTEN \", jaar_id)","v":"LASTEN 2023"},null,{"$f":"CONCATENATE(\"LASTEN \", jaar_id-1)","v":"LASTEN 2022"},null,{"$f":"CONCATENATE(\"LASTEN \", jaar_id-2,\" \nEN OUDER ^\")","v":"LASTEN 2021 \nEN OUDER ^"}]
[]
[null,null,null,null,null,null,null,null,{"$f":"CONCATENATE(\"LASTEN \", jaar_id,\" inclusief balanspost \")","v":"LASTEN 2023 inclusief balanspost "},{"$f":"CONCATENATE(\"Ontvangen en geaccepteerde declaraties m.b.t. \", jaar_id)","v":"Ontvangen en geaccepteerde declaraties m.b.t. 2023"},{"$f":"CONCATENATE(\"LASTEN \", jaar_id-1,\" inclusief balanspost \")","v":"LASTEN 2022 inclusief balanspost "},{"$f":"CONCATENATE(\"Ontvangen en geaccepteerde declaraties m.b.t. \", jaar_id-1)","v":"Ontvangen en geaccepteerde declaraties m.b.t. 2022"},{"$f":"CONCATENATE(\"LASTEN \", \" inclusief balanspost m.b.t. \",jaar_id-2, \"^ en ouder\")","v":"LASTEN  inclusief balanspost m.b.t. 2021^ en ouder"},{"$f":"CONCATENATE(\"Ontvangen en geaccepteerde declaraties m.b.t. \", jaar_id-2, \"^ en ouder\")","v":"Ontvangen en geaccepteerde declaraties m.b.t. 2021^ en ouder"}]
[null,null,null," KOSTENRUBRIEK",null,null,null,"code"]
[null,null,null," 01  HUISARTSENZORG en MDZ"]
[null,null,null," Bijzondere betalingen",null,null,null,"503   ",null,null,null,null,null,null,null,null,{"$f":"IF(OR((I16-J16)/IF(I16=0,1,I16)<-10%,(K16-L16)/IF(K16=0,1,K16)<-10%,(M16-N16)/IF(M16=0,1,M16)<-10%),\"De balans is < -10%, als dit plausibel is dan vragen wij u dit nader toe te lichten bij de opmerkingen, zo niet dan dient u uw raming aan te scherpen.\",\"\")","v":""}]
[null,null,null," Avond-, nacht- en weekenddiensten",null,null,null,"504   ",null,null,null,null,null,null,null,null,{"$f":"IF(OR((I17-J17)/IF(I17=0,1,I17)<-10%,(K17-L17)/IF(K17=0,1,K17)<-10%,(M17-N17)/IF(M17=0,1,M17)<-10%),\"De balans is < -10%, als dit plausibel is dan vragen wij u dit nader toe te lichten bij de opmerkingen, zo niet dan dient u uw raming aan te scherpen.\",\"\")","v":""}]
[null,null,null," Inschrijftarieven",null,null,null,"505   ",null,null,null,null,null,null,null,null,""]
[null,null,null," Consulttarieven",null,null,null,"506   ",null,null,null,null,null,null,null,null,""]
[null,null,null," Overige tarieven",null,null,null,"507   ",null,null,null,null,null,null,null,null,""]
[null,null,null," Multidisciplinaire zorg",null,null,null,"510   ",null,null,null,null,null,null,null,null,""]
[null,null,null," Resultaatbeloning en zorgvernieuwing huisartsen",null,null,null,"515   ",null,null,null,null,null,null,null,null,""]
[null,null,null," Resultaatbeloning en zorgvernieuwing MDZ",null,null,null,"516   ",null,null,null,null,null,null,null,null,""]
[null,null,null," Netto continuïteitsbijdrage COVID (basisverzekering)",null,null,null,"821   ",null,null,null,null,null,null,null,null,""]
[null,null,null," TOTAAL RUBRIEK 01",null,null,null,null,{"$f":"SUM(I16:I24)","v":0},0,0,0,0,0]
[null,null,null," 02 FARMACEUTISCHE ZORG"]
[null,null,null," Farmaceutische zorg",null,null,null,"520   ",null,null,null,null,null,null,null,null,{"$f":"IF(OR((I27-J27)/IF(I27=0,1,I27)<-10%,(K27-L27)/IF(K27=0,1,K27)<-10%,(M27-N27)/IF(M27=0,1,M27)<-10%),\"De balans is < -10%, als dit plausibel is dan vragen wij u dit nader toe te lichten bij de opmerkingen, zo niet dan dient u uw raming aan te scherpen.\",\"\")","v":""}]
[null,null,null," Netto continuïteitsbijdrage COVID (basisverzekering)",null,null,null,"822   ",null,null,null,null,null,null,null,null,{"$f":"IF(OR((I28-J28)/IF(I28=0,1,I28)<-10%,(K28-L28)/IF(K28=0,1,K28)<-10%,(M28-N28)/IF(M28=0,1,M28)<-10%),\"De balans is < -10%, als dit plausibel is dan vragen wij u dit nader toe te lichten bij de opmerkingen, zo niet dan dient u uw raming aan te scherpen.\",\"\")","v":""}]
[null,null,null," TOTAAL RUBRIEK 02",null,null,null,null,{"$f":"SUM(I27:I28)","v":0},0,0,0,0,0]
[null,null,null," 03 VERPLEGING EN VERZORGING ",null,null,null,null,null,null,null,null,null,null,null,null,""]
[null,null,null," Kosten van verpleging en verzorging ",null,null,null,"530   ",null,null,null,null,null,null,null,null,""]
[null,null,null," Meerkosten COVID-19, indirect",null,null,null,"803.1   ",null,null,null,null,null,null,null,null,""]
[null,null,null," Netto continuïteitsbijdrage COVID (basisverzekering)",null,null,null,"823   ",null,null,null,null,null,null,null,null,""]
[null,null,null," TOTAAL RUBRIEK 03",null,null,null,null,{"$f":"SUM(I31:I33)","v":0},0,0,0,0,0]
[null,null,null," 04  MONDZORG"]
[null,null,null," Kosten mondzorg volwassen verzekerden",null,null,null,"560.1",null,null,null,null,null,null,null,null,{"$f":"IF(OR((I36-J36)/IF(I36=0,1,I36)<-10%,(K36-L36)/IF(K36=0,1,K36)<-10%,(M36-N36)/IF(M36=0,1,M36)<-10%),\"De balans is < -10%, als dit plausibel is dan vragen wij u dit nader toe te lichten bij de opmerkingen, zo niet dan dient u uw raming aan te scherpen.\",\"\")","v":""}]
[null,null,null," Kosten mondzorg jeugdige verzekerden",null,null,null,"560.2",null,null,null,null,null,null,null,null,""]
[null,null,null," Kosten gebitsprothesen",null,null,null,"561   ",null,null,null,null,null,null,null,null,""]
[null,null,null," Netto continuïteitsbijdrage COVID (basisverzekering)",null,null,null,"824   ",null,null,null,null,null,null,null,null,""]
[null,null,null," TOTAAL RUBRIEK 04",null,null,null,null,{"$f":"SUM(I36:I39)","v":0},0,0,0,0,0]
[null,null,null," 05  VERLOSKUNDIGE ZORG"]
[null,null,null," Kosten verloskundige zorg door verloskundigen",null,null,null,"580   ",null,null,null,null,null,null,null,null,{"$f":"IF(OR((I42-J42)/IF(I42=0,1,I42)<-10%,(K42-L42)/IF(K42=0,1,K42)<-10%,(M42-N42)/IF(M42=0,1,M42)<-10%),\"De balans is < -10%, als dit plausibel is dan vragen wij u dit nader toe te lichten bij de opmerkingen, zo niet dan dient u uw raming aan te scherpen.\",\"\")","v":""}]
[null,null,null," Kosten Integrale geboortezorg ",null,null,null,"582   ",null,null,null,null,null,null,null,null,""]
[null,null,null," Netto continuïteitsbijdrage COVID (basisverzekering)",null,null,null,"825   ",null,null,null,null,null,null,null,null,""]
[null,null,null," TOTAAL RUBRIEK 05",null,null,null,null,{"$f":"SUM(I42:I44)","v":0},0,0,0,0,0]
[null,null,null,"^ jaarlaag 2021 is exclusief COVID-19-kosten"]
[]
[null,null,null,{"$f":"NOW()","v":"2023-03-30T09:44:40.860"},null,null,null,null,null,null,null,null,null,{"$f":"CONCATENATE(\"Kostenverzamelstaat 2023, \",LOWER(A6))","v":"Kostenverzamelstaat 2023, pagina 1"}]
[]
["Pagina 2",null,null,{"$f":"CONCATENATE(\"KWARTAALSTAAT ZVW \", jaar_id)","v":"KWARTAALSTAAT ZVW 2023"}]
[null,null,null,"KOSTENVERZAMELSTAAT (SPECIFIEKE INFORMATIE A)"]
[null,null,null,{"$f":"IF(naw_uzovi_zorgverzekeraar<>\"0000\",CONCATENATE(UPPER(naw_naam_zorgverzekeraar),\", \",UPPER(naw_plaats_zorgverzekeraar)),\"\")","v":""},null,null,null,null,null,null,null,null,null,{"$f":"CONCATENATE(\"UZOVI: \",naw_uzovi_zorgverzekeraar)","v":"UZOVI: 0000"}]
[null,null,null,"SPECIFICATIES INFORMATIE RISICOVEREVENING"]
[null,null,null,"KOSTENVERZAMELSTAAT - vervolg"]
[null,null,null,null,null,null,null,null,{"$f":"I$11","v":"LASTEN 2023"},null,{"$f":"K$11","v":"LASTEN 2022"},null,{"$f":"M$11","v":"LASTEN 2021 \nEN OUDER ^"}]
[null,null,null,null,null,null,null,null,{"$f":"I$13","v":"LASTEN 2023 inclusief balanspost "},{"$f":"J$13","v":"Ontvangen en geaccepteerde declaraties m.b.t. 2023"},"LASTEN 2022 inclusief balanspost ","Ontvangen en geaccepteerde declaraties m.b.t. 2022","LASTEN  inclusief balanspost m.b.t. 2021^ en ouder",{"$f":"N$13","v":"Ontvangen en geaccepteerde declaraties m.b.t. 2021^ en ouder"}]
[null,null,null," KOSTENRUBRIEK",null,null,null,"code"]
[null,null,null," 06  MEDISCH SPECIALISTISCHE ZORG",null,null,null,null,null,null,null,null,null,null,null,null,{"$f":"IF(OR((I58-J58)/IF(I58=0,1,I58)<-10%,(K58-L58)/IF(K58=0,1,K58)<-10%,(M58-N58)/IF(M58=0,1,M58)<-10%),\"De balans is < -10%, als dit plausibel is dan vragen wij u dit nader toe te lichten bij de opmerkingen, zo niet dan dient u uw raming aan te scherpen.\",\"\")","v":""}]
[null,null,null," Kosten specialisten mondziekten en kaakchirurgie",null,null,null,"545   ",null,null,null,null,null,null,null,null,""]
[null,null,null," Overige kosten ziekenhuiszorg en curatieve zorg",null,null,null,"610   ",null,null,null,null,null,null,null,null,""]
[null,null,null," NTS",null,null,null,"  610.1   "]
[null,null,null," Eerstelijnsdiagnostiek aangevraagd door eerstelijnszorg-aanbieders geleverd door huisartsenlaboratoria en Trombosediensten",null,null,null,"  610.2   "]
[null,null,null," Overige zorgproducten",null,null,null,"611   ",null,null,null,null,null,null,null,null,""]
[null,null,null," Kosten add-ons - Dure geneesmiddelen",null,null,null,"612.1",null,null,null,null,null,null,null,null,""]
[null,null,null," Kosten add-ons - IC",null,null,null,"612.2",null,null,null,null,null,null,null,null,""]
[null,null,null," Integrale kosten van DBC-zorgproduct \n gereguleerde segment  ",null,null,null,"613.1",null,null,null,null,null,null,null,null,""]
[null,null,null," Integrale kosten DBC-zorgproduct vrije segment",null,null,null,"615.1",null,null,null,null,null,null,null,null,""]
[null,null,null," Integrale kosten extramuraal werkende \n specialisten",null,null,null,"619   ",null,null,null,null,null,null,null,null,""]
[null,null,null," Meerkosten COVID-19, indirect",null,null,null,"806.1   ",null,null,null,null,null,null,null,null,""]
[null,null,null," Meerkosten COVID-19, toeslagen",null,null,null,"806.2   ",null,null,null,null,null,null,null,null,""]
[null,null,null," Netto continuïteitsbijdrage COVID (basisverzekering)",null,null,null,"826   ",null,null,null,null,null,null,null,null,""]
[null,null,null," TOTAAL RUBRIEK 06",null,null,null,null,{"$f":"SUM(I59:I71)","v":0},0,0,0,0,0]
[null,null,null," 07  PARAMEDISCHE ZORG"]
[null,null,null," Kosten fysiotherapie",null,null,null,"620   ",null,null,null,null,null,null,null,null,{"$f":"IF(OR((I74-J74)/IF(I74=0,1,I74)<-10%,(K74-L74)/IF(K74=0,1,K74)<-10%,(M74-N74)/IF(M74=0,1,M74)<-10%),\"De balans is < -10%, als dit plausibel is dan vragen wij u dit nader toe te lichten bij de opmerkingen, zo niet dan dient u uw raming aan te scherpen.\",\"\")","v":""}]
[null,null,null," Kosten oefentherapie Mensendieck/Cesar",null,null,null,"621   ",null,null,null,null,null,null,null,null,""]
[null,null,null," Kosten logopedie",null,null,null,"623   ",null,null,null,null,null,null,null,null,""]
[null,null,null," Kosten ergotherapie",null,null,null,"624   ",null,null,null,null,null,null,null,null,""]
[null,null,null," Kosten dieetadvisering",null,null,null,"625   ",null,null,null,null,null,null,null,null,""]
[null,null,null," Gecombineerde Leefstijl Interventie (GLI)",null,null,null,"626   ",null,null,null,null,null,null,null,null,""]
[null,null,null," Netto continuïteitsbijdrage COVID (basisverzekering)",null,null,null,"827   ",null,null,null,null,null,null,null,null,""]
[null,null,null," TOTAAL RUBRIEK 07",null,null,null,null,{"$f":"SUM(I74:I80)","v":0},0,0,0,0,0]
[null,null,null," 08  HULPMIDDELENZORG"]
[null,null,null," Hulpmiddelenzorg ",null,null,null,"640   ",null,null,null,null,null,null,null,null,{"$f":"IF(OR((I83-J83)/IF(I83=0,1,I83)<-10%,(K83-L83)/IF(K83=0,1,K83)<-10%,(M83-N83)/IF(M83=0,1,M83)<-10%),\"De balans is < -10%, als dit plausibel is dan vragen wij u dit nader toe te lichten bij de opmerkingen, zo niet dan dient u uw raming aan te scherpen.\",\"\")","v":""}]
[null,null,null," Netto continuïteitsbijdrage COVID (basisverzekering)",null,null,null,"828   ",null,null,null,null,null,null,null,null,""]
[null,null,null," TOTAAL RUBRIEK 08",null,null,null,null,{"$f":"SUM(I83:I84)","v":0},0,0,0,0,0]
[null,null,null," 09  ZIEKENVERVOER"]
[null,null,null," Kosten vervoer per ambulance/helikopter",null,null,null,"650   ",null,null,null,null,null,null,null,null,{"$f":"IF(OR((I87-J87)/IF(I87=0,1,I87)<-10%,(K87-L87)/IF(K87=0,1,K87)<-10%,(M87-N87)/IF(M87=0,1,M87)<-10%),\"De balans is < -10%, als dit plausibel is dan vragen wij u dit nader toe te lichten bij de opmerkingen, zo niet dan dient u uw raming aan te scherpen.\",\"\")","v":""}]
[null,null,null," Opbrengstenverrekeningen regionale ambulance-\n voorzieningen",null,null,null,"650.1",null,null,null,null,null,null,null,null,""]
[null,null,null," Kosten vervoer per openbaar vervoer, taxi \n en eigen auto",null,null,null,"651   ",null,null,null,null,null,null,null,null,""]
[null,null,null," Netto continuïteitsbijdrage COVID (basisverzekering)",null,null,null,"829   ",null,null,null,null,null,null,null,null,""]
[null,null,null," TOTAAL RUBRIEK 09",null,null,null,null,{"$f":"SUM(I87:I90)","v":0},0,0,0,0,0]
[null,null,null,"^ jaarlaag 2021 is exclusief COVID-19-kosten"]
[]
[null,null,null,{"$f":"NOW()","v":"2023-03-30T09:44:40.860"},null,null,null,null,null,null,null,null,null,{"$f":"CONCATENATE(\"Kostenverzamelstaat 2023, \",LOWER(A50))","v":"Kostenverzamelstaat 2023, pagina 2"}]
[]
["Pagina 3",null,null,{"$f":"CONCATENATE(\"KWARTAALSTAAT ZVW \", jaar_id)","v":"KWARTAALSTAAT ZVW 2023"}]
[null,null,null,"KOSTENVERZAMELSTAAT (SPECIFIEKE INFORMATIE A)"]
[null,null,null,{"$f":"IF(naw_uzovi_zorgverzekeraar<>\"0000\",CONCATENATE(UPPER(naw_naam_zorgverzekeraar),\", \",UPPER(naw_plaats_zorgverzekeraar)),\"\")","v":""},null,null,null,null,null,null,null,null,null,{"$f":"CONCATENATE(\"UZOVI: \",naw_uzovi_zorgverzekeraar)","v":"UZOVI: 0000"}]
[null,null,null,"SPECIFICATIES INFORMATIE RISICOVEREVENING"]
[null,null,null,"KOSTENVERZAMELSTAAT - vervolg"]
[null,null,null,null,null,null,null,null,{"$f":"I$11","v":"LASTEN 2023"},null,{"$f":"K$11","v":"LASTEN 2022"},null,{"$f":"M$11","v":"LASTEN 2021 \nEN OUDER ^"}]
[null,null,null,null,null,null,null,null,{"$f":"I$13","v":"LASTEN 2023 inclusief balanspost "},{"$f":"J$13","v":"Ontvangen en geaccepteerde declaraties m.b.t. 2023"},"LASTEN 2022 inclusief balanspost ","Ontvangen en geaccepteerde declaraties m.b.t. 2022","LASTEN  inclusief balanspost m.b.t. 2021^ en ouder","Ontvangen en geaccepteerde declaraties m.b.t. 2021^ en ouder"]
[null,null,null," KOSTENRUBRIEK",null,null,null,"code"]
[null,null,null," 10 GENEESKUNDIGE GEESTELIJKE GEZONDHEIDSZORG"]
[null,null,null," Kosten specialistische GGZ met verblijf",null,null,null,"661   ",null,null,null,null,null,null,null,null,{"$f":"IF(OR((I105-J105)/IF(I105=0,1,I105)<-10%,(K105-L105)/IF(K105=0,1,K105)<-10%,(M105-N105)/IF(M105=0,1,M105)<-10%),\"De balans is < -10%, als dit plausibel is dan vragen wij u dit nader toe te lichten bij de opmerkingen, zo niet dan dient u uw raming aan te scherpen.\",\"\")","v":""}]
[null,null,null," Kosten LGGZ (langdurige GGZ, jaar 2 en 3)",null,null,null,"661.1",null,null,null,null,null,null,null,null,""]
[null,null,null," Kosten specialistische GGZ zonder verblijf",null,null,null,"662   ",null,null,null,null,null,null,null,null,""]
[null,null,null," Generalistische basis GGZ",null,null,null,"665   ",null,null,null,null,null,null,null,null,""]
[null,null,null," Kosten consulten GGZ",null,null,null,"666   "]
[null,null,null," Kosten intramuraal verblijf GGZ",null,null,null,"667   "]
[null,null,null," Kosten overige prestaties GGZ",null,null,null,"668   "]
[null,null,null," Meerkosten COVID-19, indirect",null,null,null,"810.1   ",null,null,null,null,null,null,null,null,""]
[null,null,null," Netto continuïteitsbijdrage COVID (basisverzekering)",null,null,null,"830   ",null,null,null,null,null,null,null,null,""]
[null,null,null," TOTAAL RUBRIEK 10",null,null,null,null,{"$f":"SUM(I105:I113)","v":0},0,0,0,0,0]
[null,null,null," 11  GRZ, ELV EN GZSP"]
[null,null,null," Geriatrische Revalidatiezorg (GRZ)",null,null,null,"670   "]
[null,null,null," Netto continuïteitsbijdrage COVID (basisverzekering)",null,null,null,"831.1",null,null,null,null,null,null,null,null,{"$f":"IF(OR((I117-J117)/IF(I117=0,1,I117)<-10%,(K117-L117)/IF(K117=0,1,K117)<-10%,(M117-N117)/IF(M117=0,1,M117)<-10%),\"De balans is < -10%, als dit plausibel is dan vragen wij u dit nader toe te lichten bij de opmerkingen, zo niet dan dient u uw raming aan te scherpen.\",\"\")","v":""}]
[null,null,null," Meerkosten COVID-19, indirect GRZ",null,null,null,"811.1.1"]
[null,null,null," Eerstelijnsverblijf (ELV)",null,null,null,"671   ",null,null,null,null,null,null,null,null,""]
[null,null,null," Netto continuïteitsbijdrage COVID (basisverzekering)",null,null,null,"831.2",null,null,null,null,null,null,null,null,""]
[null,null,null," Meerkosten COVID-19, indirect ELV",null,null,null,"811.2.1"]
[null,null,null," Generalistische Geneeskundige  Zorg Specifieke Patiëntgroepen (GZSP)",null,null,null,"672   ",null,null,null,null,null,null,null,null,""]
[null,null,null," Netto continuïteitsbijdrage COVID (basisverzekering)",null,null,null,"831.3",null,null,null,null,null,null,null,null,""]
[null,null,null," Meerkosten COVID-19, indirect GZSP",null,null,null,"811.3.1"]
[null,null,null," TOTAAL RUBRIEK 11",null,null,null,null,{"$f":"SUM(I116:I124)","v":0},{"$f":"SUM(J116:J124)","v":0},0,0,0,0]
[null,null,null," 12  KRAAMZORG"]
[null,null,null," Kraamzorg",null,null,null,"680   ",null,null,null,null,null,null,null,null,{"$f":"IF(OR((I127-J127)/IF(I127=0,1,I127)<-10%,(K127-L127)/IF(K127=0,1,K127)<-10%,(M127-N127)/IF(M127=0,1,M127)<-10%),\"De balans is < -10%, als dit plausibel is dan vragen wij u dit nader toe te lichten bij de opmerkingen, zo niet dan dient u uw raming aan te scherpen.\",\"\")","v":""}]
[null,null,null," Meerkosten COVID-19, indirect",null,null,null,"812.1   ",null,null,null,null,null,null,null,null,""]
[null,null,null," Netto continuïteitsbijdrage COVID (basisverzekering)",null,null,null,"832   ",null,null,null,null,null,null,null,null,""]
[null,null,null," TOTAAL RUBRIEK 12",null,null,null,null,{"$f":"SUM(I127:I129)","v":0},0,0,0,0,0]
[null,null,null," 13  DIVERSE OVERIGE KOSTEN"]
[null,null,null," Overige kosten",null,null,null,"700   ",null,null,null,null,null,null,null,null,{"$f":"IF(OR((I132-J132)/IF(I132=0,1,I132)<-10%,(K132-L132)/IF(K132=0,1,K132)<-10%,(M132-N132)/IF(M132=0,1,M132)<-10%),\"De balans is < -10%, als dit plausibel is dan vragen wij u dit nader toe te lichten bij de opmerkingen, zo niet dan dient u uw raming aan te scherpen.\",\"\")","v":""}]
[null,null,null," Overige geneeskundige zorg",null,null,null,"701   ",null,null,null,null,null,null,null,null,""]
[null,null,null," Kosten van zorg zintuiglijk gehandicapten ",null,null,null,"702   ",null,null,null,null,null,null,null,null,""]
[null,null,null," Transformatiemiddelen IZA",null,null,null,"703   "]
[null,null,null," Meerkosten COVID-19, indirect",null,null,null,"813.1   ",null,null,null,null,null,null,null,null,{"$f":"IF(OR((I136-J136)/IF(I136=0,1,I136)<-10%,(K136-L136)/IF(K136=0,1,K136)<-10%,(M136-N136)/IF(M136=0,1,M136)<-10%),\"De balans is < -10%, als dit plausibel is dan vragen wij u dit nader toe te lichten bij de opmerkingen, zo niet dan dient u uw raming aan te scherpen.\",\"\")","v":""}]
[null,null,null," Netto continuïteitsbijdrage COVID (basisverzekering)",null,null,null,"833   ",null,null,null,null,null,null,null,null,""]
[null,null,null," TOTAAL RUBRIEK 13",null,null,null,null,{"$f":"SUM(I132:I137)","v":0},0,0,0,0,0]
[null,null,null," 15  GRENSOVERSCHRIJDENDE ZORG"]
[null,null,null," Kosten via verzekeraar",null,null,null,"720   ",null,null,null,null,null,null,null,null,{"$f":"IF(OR((I140-J140)/IF(I140=0,1,I140)<-10%,(K140-L140)/IF(K140=0,1,K140)<-10%,(M140-N140)/IF(M140=0,1,M140)<-10%),\"De balans is < -10%, als dit plausibel is dan vragen wij u dit nader toe te lichten bij de opmerkingen, zo niet dan dient u uw raming aan te scherpen.\",\"\")","v":""}]
[null,null,null," Kosten via verbindingsorgaan",null,null,null,"721   ",null,null,null,null,null,null,null,null,""]
[null,null,null," TOTAAL RUBRIEK 15",null,null,null,null,{"$f":"SUM(I140:I141)","v":0},0,0,0,0,0]
[null,null,null," 16  KWALITEITSGELDEN"]
[null,null,null," Kwaliteitsgelden",null,null,null,"730   ",null,null,null,null,null,null,null,null,{"$f":"IF(OR((I144-J144)/IF(I144=0,1,I144)<-10%,(K144-L144)/IF(K144=0,1,K144)<-10%,(M144-N144)/IF(M144=0,1,M144)<-10%),\"De balans is < -10%, als dit plausibel is dan vragen wij u dit nader toe te lichten bij de opmerkingen, zo niet dan dient u uw raming aan te scherpen.\",\"\")","v":""}]
[null,null,null," TOTAAL RUBRIEK 16",null,null,null,null,{"$f":"SUM(I144:I144)","v":0},{"$f":"SUM(J144:J144)","v":0},0,0,0,0]
[null,null,null," TOTAAL LASTEN   (bruto-schade, definitie ZIN)",null,null,null,null,{"$f":"SUM(I25,I29,I34,I40,I45,I72,I81,I85,I91,I114,I125,I130,I138,I142,I145)","v":0},0,0,0,0,0]
[null,null,null,"^ jaarlaag 2021 is exclusief COVID-19-kosten"]
[null,null,null,{"$f":"NOW()","v":"2023-03-30T09:44:40.860"},null,null,null,null,null,null,null,null,null,{"$f":"CONCATENATE(\"Kostenverzamelstaat 2023, \",LOWER(A96))","v":"Kostenverzamelstaat 2023, pagina 3"}]
[]
["Pagina 4",null,null,{"$f":"CONCATENATE(\"KWARTAALSTAAT ZVW \", jaar_id)","v":"KWARTAALSTAAT ZVW 2023"}]
[null,null,null,"KOSTENVERZAMELSTAAT (SPECIFIEKE INFORMATIE A)"]
[null,null,null,{"$f":"IF(naw_uzovi_zorgverzekeraar<>\"0000\",CONCATENATE(UPPER(naw_naam_zorgverzekeraar),\", \",UPPER(naw_plaats_zorgverzekeraar)),\"\")","v":""},null,null,null,null,null,null,null,null,null,{"$f":"CONCATENATE(\"UZOVI: \",naw_uzovi_zorgverzekeraar)","v":"UZOVI: 0000"}]
[null,null,null,"SPECIFICATIES INFORMATIE RISICOVEREVENING"]
[null,null,null,"KOSTENVERZAMELSTAAT - vervolg"]
[]
[null,null,null,null,null,null,null,null,null,null,null,null,{"$f":"CONCATENATE(\"Overloop van LASTEN \",\" inclusief balanspost m.b.t. 2020 \")","v":"Overloop van LASTEN  inclusief balanspost m.b.t. 2020 "},{"$f":"CONCATENATE(\"Overloop van ontvangen en geaccepteerde declaraties m.b.t. \",\"2020\")","v":"Overloop van ontvangen en geaccepteerde declaraties m.b.t. 2020"}]
[]
[null,null,null,"TOTAAL NETTO CONTINUITEITSBIJDRAGE COVID (BASISVERZEKERING), VARIABEL"]
[null,null,null,"TOTAAL NETTO CONTINUITEITSBIJDRAGE COVID (BASISVERZEKERING), GGZ"]
[]
[]
[null,null,null,null,null,null,null,null,{"$f":"CONCATENATE(\"Totale baten\",\" \",jaar_id,\" \",\"inclusief balanspost\")","v":"Totale baten 2023 inclusief balanspost"},{"$f":"CONCATENATE(\"waarvan\",\" \",\"ontvangen\",\" \",\"m.b.t.\",jaar_id)","v":"waarvan ontvangen m.b.t.2023"},{"$f":"CONCATENATE(\"Totale baten\",\" \",jaar_id-1,\" \",\"inclusief balanspost\")","v":"Totale baten 2022 inclusief balanspost"},{"$f":"CONCATENATE(\"waarvan\",\" \",\"ontvangen\",\" \",\"m.b.t.\",jaar_id-1)","v":"waarvan ontvangen m.b.t.2022"},{"$f":"CONCATENATE(\"Totale baten\",\" \",jaar_id-2,\" \",\"inclusief balanspost\")","v":"Totale baten 2021 inclusief balanspost"},{"$f":"CONCATENATE(\"waarvan\",\" \",\"ontvangen\",\" \",\"m.b.t.\",jaar_id-2)","v":"waarvan ontvangen m.b.t.2021"}]
[null,null,null," BATEN ZVW",null,null,null,"code"]
[null,null,null," OPBRENGSTEN VERHAAL",null,null,null,"890.1",null,null,null,null,null,null,null,null,{"$f":"IF(OR((I164-J164)/IF(I164=0,1,I164)<-10%,(K164-L164)/IF(K164=0,1,K164)<-10%,(M164-N164)/IF(M164=0,1,M164)<-10%),\"De balans is < -10%, als dit plausibel is dan vragen wij u dit nader toe te lichten bij de opmerkingen, zo niet dan dient u uw raming aan te scherpen.\",\"\")","v":""}]
[null,null,null," SCHADE T.L.V. HET VRIJWILLIG EIGEN RISICO",null,null,null,"910   ",null,null,null,null,null,null,null,null,""]
[null,null,null," SCHADE T.L.V. HET VERPLICHT EIGEN RISICO",null,null,null,"915   ",null,null,null,null,null,null,null,null,""]
[null,null,null," GEBOEKTE NETTO PREMIES",null,null,null,"940   ",null,null,null,null,null,null,null,null,""]
[null,null,null,"^ jaarlaag 2021 is exclusief COVID-19-kosten"]
[]
[]
[null,null,null,{"$f":"NOW()","v":"2023-03-30T09:44:40.860"},null,null,null,null,null,null,null,null,null,{"$f":"CONCATENATE(\"Kostenverzamelstaat 2023, \",LOWER(A150))","v":"Kostenverzamelstaat 2023, pagina 4"}]

{"sheet":"Specifieke informatie A","index":6,"n_rows":183,"n_cols":12,"rows_kept":183,"cut":false,"hidden":false,"merged":[[11,10,12,10],[11,3,12,9],[13,3,13,9],[14,3,14,9],[92,3,92,4],[86,9,88,11],[47,3,47,4],[56,11,57,11],[56,8,56,10],[56,4,57,4],[101,4,102,4],[101,8,101,10],[101,11,102,11],[131,9,133,11],[137,3,137,4],[146,4,147,4],[146,8,146,10],[146,11,147,11],[176,9,178,11],[182,3,182,4]]}
[null,null,"INVULSPECIFICATIES SPECIFIEKE INFORMATIE A"]
[]
[]
[]
[]
["Pagina 1",null,null,{"$f":"CONCATENATE(\"KWARTAALSTAAT ZVW \", jaar_id)","v":"KWARTAALSTAAT ZVW 2023"}]
[null,null,null,"SPECIFIEKE INFORMATIE A"]
[null,null,null,{"$f":"IF(naw_uzovi_zorgverzekeraar<>\"0000\",CONCATENATE(UPPER(naw_naam_zorgverzekeraar),\", \",UPPER(naw_plaats_zorgverzekeraar)),\"\")","v":""},null,null,null,null,null,null,null,{"$f":"CONCATENATE(\"UZOVI: \",naw_uzovi_zorgverzekeraar)","v":"UZOVI: 0000"}]
[]
[null,null,null,"SPECIFICATIES INFORMATIE RISICOVEREVENING"]
[null,null,null,"KOSTEN NAAR DEELBIJDRAGE"]
[null,null,null," KOSTEN NAAR DEELBIJDRAGE",null,null,null,null,null,null,{"$f":"CONCATENATE(\"LASTEN \", jaar_id,\" inclusief balanspost \")","v":"LASTEN 2023 inclusief balanspost "}]
[]
[null,null,null," Variabele zorgkosten "]
[null,null,null," Vaste zorgkosten"]
[null,null,null," Kosten geneeskundige geestelijke gezondheidszorg "]
[null,null,null," TOTAAL lasten (bruto-schade, definitie ZIN)",null,null,null,null,null,null,{"$f":"SUM(K14:K16)","v":0}]
[]
[]
[]
[]
[]
[]
[]
[]
[]
[]
[]
[]
[]
[]
[]
[]
[]
[]
[]
[]
[]
[]
[]
[]
[]
[]
[]
[]
[]
[]
[null,null,null,{"$f":"NOW()","v":"2023-03-30T09:44:40.860"},null,null,null,null,null,null,null,{"$f":"CONCATENATE(\"Specifieke informatie A, \",LOWER(A6))","v":"Specifieke informatie A, pagina 1"}]
[]
["Pagina 2",null,null,{"$f":"CONCATENATE(\"KWARTAALSTAAT ZVW \", jaar_id,\" \",kwartaal_id,\"E KWARTAAL\")","v":"KWARTAALSTAAT ZVW 2023 2E KWARTAAL"}]
[null,null,null,"SPECIFIEKE INFORMATIE A"]
[null,null,null,{"$f":"IF(naw_uzovi_zorgverzekeraar<>\"0000\",CONCATENATE(UPPER(naw_naam_zorgverzekeraar),\", \",UPPER(naw_plaats_zorgverzekeraar)),\"\")","v":""},null,null,null,null,null,null,null,{"$f":"CONCATENATE(\"UZOVI: \",naw_uzovi_zorgverzekeraar)","v":"UZOVI: 0000"}]
[]
[null,null,null,"SPECIFICATIES INFORMATIE RISICOVEREVENING"]
[null,null,null,"VERZEKERDENSTAND NAAR RISICOKLASSE",null,null,null,null,null,null,null,"Peildatum: datum van nominale premieprolongatie"]
[null,null,null,null,null,null,null,null,null,null,null,"voor de maand AUGUSTUS 2023"]
[null,null,null,null,"LEEFTIJD",null,null,null,"AANTAL NAAR GESLACHT",null,null,"TOTAAL \nAANTAL"]
[null,null,null,null,null,null,null,null,"MAN","VROUW","ONBEPAALD"]
[null,null,null,"  1a.   0  t/m   1",null,null,null,null,null,null,null,{"$f":"SUM(I59:K59)","v":0}]
[null,null,null,"  1b.   2  t/m   4",null,null,null,null,null,null,null,{"$f":"SUM(I60:K60)","v":0}]
[null,null,null,"  2.     5  t/m   9",null,null,null,null,null,null,null,0]
[null,null,null,"  3.   10  t/m 14",null,null,null,null,null,null,null,0]
[null,null,null,"  4.   15  t/m 19",null,null,null,null,null,null,null,0]
[null,null,null,"  5.   20  t/m 24",null,null,null,null,null,null,null,0]
[null,null,null,"  6.   25  t/m 29",null,null,null,null,null,null,null,0]
[null,null,null,"  7.   30  t/m 34",null,null,null,null,null,null,null,0]
[null,null,null,"  8.   35  t/m 39",null,null,null,null,null,null,null,0]
[null,null,null,"  9.   40  t/m 44",null,null,null,null,null,null,null,0]
[null,null,null," 10.  45  t/m 49",null,null,null,null,null,null,null,0]
[null,null,null," 11.  50  t/m 54",null,null,null,null,null,null,null,0]
[null,null,null," 12.  55  t/m 59",null,null,null,null,null,null,null,0]
[null,null,null," 13.  60  t/m 64",null,null,null,null,null,null,null,0]
[null,null,null," 14.  65  t/m 69",null,null,null,null,null,null,null,0]
[null,null,null," 15.  70  t/m 74",null,null,null,null,null,null,null,0]
[null,null,null," 16.  75  t/m 79",null,null,null,null,null,null,null,0]
[null,null,null," 17.  80  t/m 84",null,null,null,null,null,null,null,0]
[null,null,null," 18.  85  t/m 89",null,null,null,null,null,null,null,0]
[null,null,null," 19.  90 en ouder",null,null,null,null,null,null,null,0]
[null,null,null," TOTAAL",null,null,null,null,{"$f":"SUM(I59:I78)","v":0},{"$f":"SUM(J59:J78)","v":0},{"$f":"SUM(K59:K78)","v":0},0]
[]
[null,null,null,"VERZEKERDENSTAND NAAR NOMINALE PREMIE",null,null,null,null,null,null,null,"Peildatum: datum van nominale premieprolongatie"]
[null,null,null,null,null,null,null,null,null,null,null,"voor de maand AUGUSTUS 2023"]
[null,null,null,null,null,null,null,null,null,null,null,"AANTAL"]
[null,null,null," Verzekerden met nominale premie Zvw"]
[null,null,null," Verzekerden zonder nominale premie Zvw"]
[null,null,null," TOTAAL",null,null,null,null,null,null,null,{"$f":"SUM(L84:L85)","v":0}]
[null,null,null,null,null,null,null,null,null,{"$f":"IF(AND(ISBLANK(K78)=FALSE,ISBLANK(L84)=FALSE),IF(L84<SUM(L64:L78),\"ATTENTIE: is het juist dat het aantal verzekerden \nmet nominale premie kleiner is dan het totaal\naantal verzekerden van 20 jaar en ouder?\",\"\"),\"\")","v":""}]
[]
[]
[]
[]
[]
[null,null,null,{"$f":"NOW()","v":"2023-03-30T09:44:40.860"},null,null,null,null,null,null,null,{"$f":"CONCATENATE(\"Specifieke informatie A, \",LOWER(A50))","v":"Specifieke informatie A, pagina 2"}]
[]
["Pagina 3",null,null,{"$f":"CONCATENATE(\"KWARTAALSTAAT ZVW \", jaar_id,\" \",kwartaal_id,\"E KWARTAAL\")","v":"KWARTAALSTAAT ZVW 2023 2E KWARTAAL"}]
[null,null,null,"SPECIFIEKE INFORMATIE A"]
[null,null,null,{"$f":"IF(naw_uzovi_zorgverzekeraar<>\"0000\",CONCATENATE(UPPER(naw_naam_zorgverzekeraar),\", \",UPPER(naw_plaats_zorgverzekeraar)),\"\")","v":""},null,null,null,null,null,null,null,{"$f":"CONCATENATE(\"UZOVI: \",naw_uzovi_zorgverzekeraar)","v":"UZOVI: 0000"}]
[]
[null,null,null,"SPECIFICATIES INFORMATIE RISICOVEREVENING"]
[null,null,null,"VERZEKERDENSTAND NAAR RISICOKLASSE",null,null,null,null,null,null,null,"Peildatum: datum van nominale premieprolongatie"]
[null,null,null,null,null,null,null,null,null,null,null,"voor de maand SEPTEMBER 2023"]
[null,null,null,null,"LEEFTIJD",null,null,null,"AANTAL NAAR GESLACHT",null,null,"TOTAAL \nAANTAL"]
[null,null,null,null,null,null,null,null,"MAN","VROUW","ONBEPAALD"]
[null,null,null,"  1a.   0  t/m   1",null,null,null,null,null,null,null,{"$f":"SUM(I104:K104)","v":0}]
[null,null,null,"  1b.   2  t/m   4",null,null,null,null,null,null,null,{"$f":"SUM(I105:K105)","v":0}]
[null,null,null,"  2.     5  t/m   9",null,null,null,null,null,null,null,0]
[null,null,null,"  3.   10  t/m 14",null,null,null,null,null,null,null,0]
[null,null,null,"  4.   15  t/m 19",null,null,null,null,null,null,null,0]
[null,null,null,"  5.   20  t/m 24",null,null,null,null,null,null,null,0]
[null,null,null,"  6.   25  t/m 29",null,null,null,null,null,null,null,0]
[null,null,null,"  7.   30  t/m 34",null,null,null,null,null,null,null,0]
[null,null,null,"  8.   35  t/m 39",null,null,null,null,null,null,null,0]
[null,null,null,"  9.   40  t/m 44",null,null,null,null,null,null,null,0]
[null,null,null," 10.  45  t/m 49",null,null,null,null,null,null,null,0]
[null,null,null," 11.  50  t/m 54",null,null,null,null,null,null,null,0]
[null,null,null," 12.  55  t/m 59",null,null,null,null,null,null,null,0]
[null,null,null," 13.  60  t/m 64",null,null,null,null,null,null,null,0]
[null,null,null," 14.  65  t/m 69",null,null,null,null,null,null,null,0]
[null,null,null," 15.  70  t/m 74",null,null,null,null,null,null,null,0]
[null,null,null," 16.  75  t/m 79",null,null,null,null,null,null,null,0]
[null,null,null," 17.  80  t/m 84",null,null,null,null,null,null,null,0]
[null,null,null," 18.  85  t/m 89",null,null,null,null,null,null,null,0]
[null,null,null," 19.  90 en ouder",null,null,null,null,null,null,null,0]
[null,null,null," TOTAAL",null,null,null,null,{"$f":"SUM(I104:I123)","v":0},{"$f":"SUM(J104:J123)","v":0},{"$f":"SUM(K104:K123)","v":0},0]
[]
[null,null,null,"VERZEKERDENSTAND NAAR NOMINALE PREMIE",null,null,null,null,null,null,null,"Peildatum: datum van nominale premieprolongatie"]
[null,null,null,null,null,null,null,null,null,null,null,"voor de maand SEPTEMBER 2023"]
[null,null,null,null,null,null,null,null,null,null,null,"AANTAL"]
[null,null,null," Verzekerden met nominale premie Zvw"]
[null,null,null," Verzekerden zonder nominale premie Zvw"]
[null,null,null," TOTAAL",null,null,null,null,null,null,null,{"$f":"SUM(L129:L130)","v":0}]
[null,null,null,null,null,null,null,null,null,{"$f":"IF(AND(ISBLANK(K123)=FALSE,ISBLANK(L129)=FALSE),IF(L129<SUM(L109:L123),\"ATTENTIE: is het juist dat het aantal verzekerden \nmet nominale premie kleiner is dan het totaal\naantal verzekerden van 20 jaar en ouder?\",\"\"),\"\")","v":""}]
[]
[]
[]
[]
[]
[null,null,null,{"$f":"NOW()","v":"2023-03-30T09:44:40.860"},null,null,null,null,null,null,null,{"$f":"CONCATENATE(\"Specifieke informatie A, \",LOWER(A95))","v":"Specifieke informatie A, pagina 3"}]
[]
["Pagina 4",null,null,{"$f":"CONCATENATE(\"KWARTAALSTAAT ZVW \", jaar_id,\" \",kwartaal_id,\"E KWARTAAL\")","v":"KWARTAALSTAAT ZVW 2023 2E KWARTAAL"}]
[null,null,null,"SPECIFIEKE INFORMATIE A"]
[null,null,null,{"$f":"IF(naw_uzovi_zorgverzekeraar<>\"0000\",CONCATENATE(UPPER(naw_naam_zorgverzekeraar),\", \",UPPER(naw_plaats_zorgverzekeraar)),\"\")","v":""},null,null,null,null,null,null,null,{"$f":"CONCATENATE(\"UZOVI: \",naw_uzovi_zorgverzekeraar)","v":"UZOVI: 0000"}]
[]
[null,null,null,"SPECIFICATIES INFORMATIE RISICOVEREVENING"]
[null,null,null,"VERZEKERDENSTAND NAAR RISICOKLASSE",null,null,null,null,null,null,null,"Peildatum: datum van nominale premieprolongatie"]
[null,null,null,null,null,null,null,null,null,null,null,"voor de maand OKTOBER 2023"]
[null,null,null,null,"LEEFTIJD",null,null,null,"AANTAL NAAR GESLACHT",null,null,"TOTAAL \nAANTAL"]
[null,null,null,null,null,null,null,null,"MAN","VROUW","ONBEPAALD"]
[null,null,null,"  1a.   0  t/m   1",null,null,null,null,null,null,null,{"$f":"SUM(I149:K149)","v":0}]
[null,null,null,"  1b.   2  t/m   4",null,null,null,null,null,null,null,{"$f":"SUM(I150:K150)","v":0}]
[null,null,null,"  2.     5  t/m   9",null,null,null,null,null,null,null,0]
[null,null,null,"  3.   10  t/m 14",null,null,null,null,null,null,null,0]
[null,null,null,"  4.   15  t/m 19",null,null,null,null,null,null,null,0]
[null,null,null,"  5.   20  t/m 24",null,null,null,null,null,null,null,0]
[null,null,null,"  6.   25  t/m 29",null,null,null,null,null,null,null,0]
[null,null,null,"  7.   30  t/m 34",null,null,null,null,null,null,null,0]
[null,null,null,"  8.   35  t/m 39",null,null,null,null,null,null,null,0]
[null,null,null,"  9.   40  t/m 44",null,null,null,null,null,null,null,0]
[null,null,null," 10.  45  t/m 49",null,null,null,null,null,null,null,0]
[null,null,null," 11.  50  t/m 54",null,null,null,null,null,null,null,0]
[null,null,null," 12.  55  t/m 59",null,null,null,null,null,null,null,0]
[null,null,null," 13.  60  t/m 64",null,null,null,null,null,null,null,0]
[null,null,null," 14.  65  t/m 69",null,null,null,null,null,null,null,0]
[null,null,null," 15.  70  t/m 74",null,null,null,null,null,null,null,0]
[null,null,null," 16.  75  t/m 79",null,null,null,null,null,null,null,0]
[null,null,null," 17.  80  t/m 84",null,null,null,null,null,null,null,0]
[null,null,null," 18.  85  t/m 89",null,null,null,null,null,null,null,0]
[null,null,null," 19.  90 en ouder",null,null,null,null,null,null,null,0]
[null,null,null," TOTAAL",null,null,null,null,{"$f":"SUM(I149:I168)","v":0},{"$f":"SUM(J149:J168)","v":0},{"$f":"SUM(K149:K168)","v":0},0]
[]
[null,null,null,"VERZEKERDENSTAND NAAR NOMINALE PREMIE",null,null,null,null,null,null,null,"Peildatum: datum van nominale premieprolongatie"]
[null,null,null,null,null,null,null,null,null,null,null,"voor de maand OKTOBER 2023"]
[null,null,null,null,null,null,null,null,null,null,null,"AANTAL"]
[null,null,null," Verzekerden met nominale premie Zvw"]
[null,null,null," Verzekerden zonder nominale premie Zvw"]
[null,null,null," TOTAAL",null,null,null,null,null,null,null,{"$f":"SUM(L174:L175)","v":0}]
[null,null,null,null,null,null,null,null,null,{"$f":"IF(AND(ISBLANK(K168)=FALSE,ISBLANK(L174)=FALSE),IF(L174<SUM(L154:L168),\"ATTENTIE: is het juist dat het aantal verzekerden \nmet nominale premie kleiner is dan het totaal\naantal verzekerden van 20 jaar en ouder?\",\"\"),\"\")","v":""}]
[]
[]
[]
[]
[]
[null,null,null,{"$f":"NOW()","v":"2023-03-30T09:44:40.860"},null,null,null,null,null,null,null,{"$f":"CONCATENATE(\"Specifieke informatie A, \",LOWER(A140))","v":"Specifieke informatie A, pagina 4"}]

{"sheet":"Specifieke informatie B","index":7,"n_rows":122,"n_cols":14,"rows_kept":122,"cut":false,"hidden":false,"merged":[[89,3,89,7],[79,3,79,7],[81,3,81,7],[82,3,82,7],[88,3,88,7],[86,3,86,6],[87,3,87,6],[60,3,60,7],[61,3,61,7],[62,3,62,6],[63,3,63,7],[85,3,85,6],[67,3,67,6],[80,3,80,6],[64,3,64,7],[83,3,83,6],[84,3,84,6],[65,3,65,6],[66,3,66,6],[69,3,69,4],[50,3,50,6],[51,3,51,6],[20,3,20,7],[21,3,21,7],[24,3,24,7],[25,3,25,6],[34,3,34,7],[36,3,36,4],[48,3,48,6],[49,3,49,6],[46,3,46,7],[47,3,47,6],[23,3,23,6],[33,3,33,6],[30,3,30,6],[32,3,32,7],[54,3,54,6],[55,3,55,6],[56,3,56,6],[57,3,57,6],[58,3,58,6],[59,3,59,6],[19,3,19,6],[22,3,22,6],[10,8,10,13],[11,10,12,10],[11,11,12,11],[11,12,12,12],[11,13,12,13],[11,7,12,7],[18,3,18,6],[11,9,12,9],[11,8,12,8],[16,3,16,6],[15,3,15,6],[17,3,17,6],[13,3,13,7],[14,3,14,6],[43,8,43,13],[44,7,45,7],[44,8,45,8],[44,9,45,9],[44,10,45,10],[44,11,45,11],[44,12,45,12],[44,13,45,13],[29,3,29,6],[26,3,26,6],[27,3,27,7],[28,3,28,7],[31,3,31,7],[76,8,76,13],[77,7,78,7],[77,8,78,8],[77,9,78,9],[77,10,78,10],[77,11,78,11],[77,12,78,12],[77,13,78,13],[108,8,108,13],[109,3,109,7],[109,8,110,8],[109,9,110,9],[109,10,110,10],[109,11,110,11],[109,12,110,12],[109,13,110,13],[110,3,110,6],[111,3,111,6],[121,3,121,4],[90,3,90,6],[91,3,91,7],[92,3,92,7],[94,3,94,7],[99,3,99,7],[101,3,101,4],[93,3,93,6],[96,3,96,7]]}
[null,null,"INVULSPECIFICATIES SPECIFIEKE INFORMATIE B"]
[]
[]
[]
[]
["Pagina 1",null,null,{"$f":"CONCATENATE(\"KWARTAALSTAAT ZVW \", jaar_id)","v":"KWARTAALSTAAT ZVW 2023"}]
[null,null,null,"KOSTENVERZAMELSTAAT CATASTROFESCHADELAST (SPECIFIEKE INFORMATIE B)"]
[null,null,null,{"$f":"IF(naw_uzovi_zorgverzekeraar<>\"0000\",CONCATENATE(UPPER(naw_naam_zorgverzekeraar),\", \",UPPER(naw_plaats_zorgverzekeraar)),\"\")","v":""},null,null,null,null,null,null,null,null,null,{"$f":"CONCATENATE(\"UZOVI: \",naw_uzovi_zorgverzekeraar)","v":"UZOVI: 0000"}]
[null,null,null,"SPECIFICATIES INFORMATIE RISICOVEREVENING"]
[null,null,null,"KOSTENVERZAMELSTAAT CATASTROFESCHADELAST"]
[null,null,null,null,null,null,null,null,"COVID-19-kosten voor verzekerde zorg "]
[null,null,null,null,null,null,null,"\ncode","LASTEN 2021 inclusief balanspost ","Ontvangen en geaccepteerde declaraties m.b.t. 2021","LASTEN 2020 inclusief balanspost ","Ontvangen en geaccepteerde declaraties m.b.t. 2020","TOTAAL LASTEN 2020 en 2021 inclusief balanspost ","TOTAAL ontvangen en geaccepteerde declaraties 2020 en 2021"]
[null,null,null," KOSTENRUBRIEK"]
[null,null,null," 01  HUISARTSENZORG en MDZ"]
[null,null,null," Avond-, nacht- en weekenddiensten",null,null,null,"504   ",null,null,null,null,{"$f":"I15+K15","v":0},0]
[null,null,null," Consulttarieven",null,null,null,"506   ",null,null,null,null,0,0]
[null,null,null," Overige tarieven",null,null,null,"507   ",null,null,null,null,0,0]
[null,null,null," Resultaatbeloning en zorgvernieuwing huisartsen",null,null,null,"515   ",null,null,null,null,0,0]
[null,null,null," Meerkosten COVID-19, indirect",null,null,null,"801.1   ",null,null,null,null,0,0]
[null,null,null," Meerkosten COVID-19, toeslagen",null,null,null,"801.2   ",null,null,null,null,0,0]
[null,null,null," TOTAAL RUBRIEK 01",null,null,null,null,{"$f":"SUM(I15:I20)","v":0},0,0,0,0,0]
[null,null,null," 02 FARMACEUTISCHE ZORG"]
[null,null,null," Meerkosten COVID-19, indirect",null,null,null,"802.1   ",null,null,null,null,{"$f":"I23+K23","v":0},{"$f":"J23+L23","v":0}]
[null,null,null," TOTAAL RUBRIEK 02",null,null,null,null,{"$f":"SUM(I23:I23)","v":0},0,0,0,0,0]
[null,null,null," 03 VERPLEGING EN VERZORGING "]
[null,null,null," Kosten van verpleging en verzorging ",null,null,null,"530   ",null,null,null,null,{"$f":"I26+K26","v":0},{"$f":"J26+L26","v":0}]
[null,null,null," Meerkosten COVID-19, indirect",null,null,null,"803.1   ",null,null,null,null,{"$f":"I27+K27","v":0},{"$f":"J27+L27","v":0}]
[null,null,null," TOTAAL RUBRIEK 03",null,null,null,null,{"$f":"SUM(I26:I27)","v":0},0,0,0,0,0]
[null,null,null," 04  MONDZORG"]
[null,null,null," Meerkosten COVID-19, indirect",null,null,null,"804.1   ",null,null,null,null,{"$f":"K30","v":0},{"$f":"L30","v":0}]
[null,null,null," Meerkosten COVID-19, toeslagen",null,null,null,"804.2   ",null,null,null,null,{"$f":"K31","v":0},{"$f":"L31","v":0}]
[null,null,null," TOTAAL RUBRIEK 04",null,null,null,null,{"$f":"SUM(I30:I31)","v":0},0,0,0,0,0]
[null,null,null," 05  VERLOSKUNDIGE ZORG"]
[null,null,null," Meerkosten COVID-19, indirect",null,null,null,"805.1   ",null,null,null,null,{"$f":"K34","v":0},{"$f":"L34","v":0}]
[null,null,null," TOTAAL RUBRIEK 05",null,null,null,null,{"$f":"SUM(I34:I34)","v":0},0,0,0,0,0]
[]
[null,null,null,{"$f":"NOW()","v":"2023-03-30T09:44:40.860"},null,null,null,null,null,null,null,null,{"$f":"CONCATENATE(\"Specifieke informatie B, \",LOWER(A6))","v":"Specifieke informatie B, pagina 1"}]
[]
["Pagina 2",null,null,{"$f":"D6","v":"KWARTAALSTAAT ZVW 2023"}]
[null,null,null,"KOSTENVERZAMELSTAAT CATASTROFESCHADELAST (SPECIFIEKE INFORMATIE B)"]
[null,null,null,{"$f":"IF(naw_uzovi_zorgverzekeraar<>\"0000\",CONCATENATE(UPPER(naw_naam_zorgverzekeraar),\", \",UPPER(naw_plaats_zorgverzekeraar)),\"\")","v":""},null,null,null,null,null,null,null,null,null,{"$f":"CONCATENATE(\"UZOVI: \",naw_uzovi_zorgverzekeraar)","v":"UZOVI: 0000"}]
[null,null,null,"SPECIFICATIES INFORMATIE RISICOVEREVENING"]
[null,null,null,"KOSTENVERZAMELSTAAT CATASTROFESCHADELAST - vervolg"]
[null,null,null,null,null,null,null,null,"COVID-19-kosten voor verzekerde zorg "]
[null,null,null,null,null,null,null,"\ncode","LASTEN 2021 inclusief balanspost ","Ontvangen en geaccepteerde declaraties m.b.t. 2021","LASTEN 2020 inclusief balanspost ","Ontvangen en geaccepteerde declaraties m.b.t. 2020","TOTAAL LASTEN 2020 en 2021 inclusief balanspost ","TOTAAL ontvangen en geaccepteerde declaraties 2020 en 2021"]
[null,null,null," KOSTENRUBRIEK"]
[null,null,null," 06  MEDISCH SPECIALISTISCHE ZORG"]
[null,null,null," Kosten add-ons - IC",null,null,null,"612.2",null,null,null,null,{"$f":"I48+K48","v":0},0]
[null,null,null," Integrale kosten van DBC-zorgproduct \n gereguleerde segment  ",null,null,null,"613.1",null,null,null,null,0,0]
[null,null,null," Integrale kosten DBC-zorgproduct vrije segment",null,null,null,"615.1",null,null,null,null,0,0]
[null,null,null," Meerkosten COVID-19, indirect",null,null,null,"806.1   ",null,null,null,null,{"$f":"I51+K51","v":0},{"$f":"J51+L51","v":0}]
[null,null,null," Meerkosten COVID-19, toeslagen",null,null,null,"806.2   ",null,null,null,null,{"$f":"I52","v":0},{"$f":"J52","v":0}]
[null,null,null," TOTAAL RUBRIEK 06",null,null,null,null,{"$f":"SUM(I48:I52)","v":0},0,0,0,0,0]
[null,null,null," 07  PARAMEDISCHE ZORG"]
[null,null,null," Kosten fysiotherapie",null,null,null,"620   ",null,null,null,null,{"$f":"I55+K55","v":0},0]
[null,null,null," Kosten oefentherapie Mensendieck/Cesar",null,null,null,"621   ",null,null,null,null,0,0]
[null,null,null," Kosten logopedie",null,null,null,"623   ",null,null,null,null,0,0]
[null,null,null," Kosten ergotherapie",null,null,null,"624   ",null,null,null,null,0,0]
[null,null,null," Kosten dieetadvisering",null,null,null,"625   ",null,null,null,null,0,0]
[null,null,null," Meerkosten COVID-19, indirect",null,null,null,"807.1   ",null,null,null,null,{"$f":"K60","v":0},{"$f":"L60","v":0}]
[null,null,null," TOTAAL RUBRIEK 07",null,null,null,null,{"$f":"SUM(I55:I60)","v":0},0,0,0,0,0]
[null,null,null," 08  HULPMIDDELENZORG"]
[null,null,null," Meerkosten COVID-19, indirect",null,null,null,"808.1   ",null,null,null,null,{"$f":"I63+K63","v":0},{"$f":"J63+L63","v":0}]
[null,null,null," TOTAAL RUBRIEK 08",null,null,null,null,{"$f":"SUM(I63:I63)","v":0},0,0,0,0,0]
[null,null,null," 09  ZIEKENVERVOER"]
[null,null,null," Kosten vervoer per ambulance/helikopter",null,null,null,"650   ",null,null,null,null,{"$f":"I66+K66","v":0},{"$f":"J66+L66","v":0}]
[null,null,null," Meerkosten COVID-19, indirect",null,null,null,"809.1   ",null,null,null,null,{"$f":"I67+K67","v":0},{"$f":"J67+L67","v":0}]
[null,null,null," TOTAAL RUBRIEK 09",null,null,null,null,{"$f":"SUM(I66:I67)","v":0},0,0,0,0,0]
[]
[null,null,null,{"$f":"NOW()","v":"2023-03-30T09:44:40.860"},null,null,null,null,null,null,null,null,{"$f":"CONCATENATE(\"Specifieke informatie B, \",LOWER(A39))","v":"Specifieke informatie B, pagina 2"}]
[]
["Pagina 3",null,null,{"$f":"D39","v":"KWARTAALSTAAT ZVW 2023"}]
[null,null,null,"KOSTENVERZAMELSTAAT CATASTROFESCHADELAST (SPECIFIEKE INFORMATIE B)"]
[null,null,null,{"$f":"IF(naw_uzovi_zorgverzekeraar<>\"0000\",CONCATENATE(UPPER(naw_naam_zorgverzekeraar),\", \",UPPER(naw_plaats_zorgverzekeraar)),\"\")","v":""},null,null,null,null,null,null,null,null,null,{"$f":"CONCATENATE(\"UZOVI: \",naw_uzovi_zorgverzekeraar)","v":"UZOVI: 0000"}]
[null,null,null,"SPECIFICATIES INFORMATIE RISICOVEREVENING"]
[null,null,null,"KOSTENVERZAMELSTAAT CATASTROFESCHADELAST - vervolg"]
[null,null,null,null,null,null,null,null,"COVID-19-kosten voor verzekerde zorg "]
[null,null,null,null,null,null,null,"\ncode","LASTEN 2021 inclusief balanspost ","Ontvangen en geaccepteerde declaraties m.b.t. 2021","LASTEN 2020 inclusief balanspost ","Ontvangen en geaccepteerde declaraties m.b.t. 2020","TOTAAL LASTEN 2020 en 2021 inclusief balanspost ","TOTAAL ontvangen en geaccepteerde declaraties 2020 en 2021"]
[null,null,null," KOSTENRUBRIEK"]
[null,null,null," 10 GENEESKUNDIGE GEESTELIJKE GEZONDHEIDSZORG"]
[null,null,null," Meerkosten COVID-19, indirect",null,null,null,"810.1   ",null,null,null,null,{"$f":"I81+K81","v":0},{"$f":"J81+L81","v":0}]
[null,null,null," TOTAAL RUBRIEK 10",null,null,null,null,{"$f":"SUM(I81:I81)","v":0},0,0,0,0,0]
[null,null,null," 11  GRZ, ELV EN GZSP"]
[null,null,null," Geriatrische Revalidatiezorg (GRZ)",null,null,null,"670   ",null,null,null,null,{"$f":"I84+K84","v":0},0]
[null,null,null," Eerstelijnsverblijf (ELV)",null,null,null,"671   ",null,null,null,null,0,0]
[null,null,null," Meerkosten COVID-19, indirect GRZ",null,null,null,"811.1.1",null,null,null,null,0,0]
[null,null,null," Meerkosten COVID-19, indirect ELV",null,null,null,"811.2.1",null,null,null,null,{"$f":"I87+K87","v":0},{"$f":"J87+L87","v":0}]
[null,null,null," Meerkosten COVID-19, indirect GZSP",null,null,null,"811.3.1",null,null,null,null,{"$f":"I88+K88","v":0},{"$f":"J88+L88","v":0}]
[null,null,null," TOTAAL RUBRIEK 11",null,null,null,null,{"$f":"SUM(I84:I88)","v":0},{"$f":"SUM(J84:J88)","v":0},0,0,0,0]
[null,null,null," 12  KRAAMZORG"]
[null,null,null," Meerkosten COVID-19, indirect",null,null,null,"812.1   ",null,null,null,null,{"$f":"K91","v":0},{"$f":"L91","v":0}]
[null,null,null," TOTAAL RUBRIEK 12",null,null,null,null,{"$f":"SUM(I91:I91)","v":0},0,0,0,0,0]
[null,null,null," 13  DIVERSE OVERIGE KOSTEN"]
[null,null,null," Meerkosten COVID-19, indirect",null,null,null,"813.1   ",null,null,null,null,{"$f":"K94","v":0},{"$f":"L94","v":0}]
[null,null,null," TOTAAL RUBRIEK 13",null,null,null,null,{"$f":"SUM(I94:I94)","v":0},0,0,0,0,0]
[]
[null,null,null,"TOTAAL DIRECTE KOSTEN VOOR COVID-ZORG VOOR COVID-PATIËNTEN",null,null,null,null,{"$f":"SUM(I15:I18,I26,I48:I50,I55:I59,I66:I66,I84,I85)","v":0},{"$f":"SUM(J15:J18,J26,J48:J50,J55:J59,J66:J66,J84,J85)","v":0},0,0,0,{"$f":"SUM(N15:N18,N26,N48:N50,N55:N59,N66:N66,N84,N85)","v":0}]
[null,null,null,"TOTAAL MEERKOSTEN COVID-19, INDIRECT",null,null,null,null,{"$f":"SUM(I19,I23,I27,I30,I34,I51,I60,I63,I67,I81,I86,I87,I88,I91,I94)","v":0},{"$f":"SUM(J19,J23,J27,J30,J34,J51,J60,J63,J67,J81,J86,J87,J88,J91,J94)","v":0},0,0,0,0]
[null,null,null,"TOTAAL MEERKOSTEN COVID-19, TOESLAGEN",null,null,null,null,{"$f":"SUM(I20,I31,I52)","v":0},{"$f":"SUM(J20,J31,J52)","v":0},0,0,0,0]
[null,null,null," TOTAAL LASTEN   (bruto-schade, definitie ZIN)",null,null,null,null,{"$f":"SUM(I21,I24,I28,I32,I35,I53,I61,I64,I68,I82,I89,I92,I95)","v":0},{"$f":"SUM(J21,J24,J28,J32,J35,J53,J61,J64,J68,J82,J89,J92,J95)","v":0},0,0,0,0]
[]
[null,null,null,{"$f":"NOW()","v":"2023-03-30T09:44:40.860"},null,null,null,null,null,null,null,null,{"$f":"CONCATENATE(\"Specifieke informatie B, \",LOWER(A72))","v":"Specifieke informatie B, pagina 3"}]
[]
["Pagina 4",null,null,{"$f":"D72","v":"KWARTAALSTAAT ZVW 2023"}]
[null,null,null,"KOSTENVERZAMELSTAAT CATASTROFESCHADELAST (SPECIFIEKE INFORMATIE B)"]
[null,null,null,{"$f":"IF(naw_uzovi_zorgverzekeraar<>\"0000\",CONCATENATE(UPPER(naw_naam_zorgverzekeraar),\", \",UPPER(naw_plaats_zorgverzekeraar)),\"\")","v":""},null,null,null,null,null,null,null,null,null,{"$f":"CONCATENATE(\"UZOVI: \",naw_uzovi_zorgverzekeraar)","v":"UZOVI: 0000"}]
[null,null,null,"SPECIFICATIES INFORMATIE RISICOVEREVENING"]
[null,null,null,"KOSTENVERZAMELSTAAT CATASTROFESCHADELAST - vervolg"]
[null,null,null,null,null,null,null,null,"COVID-baten voor verzekerde zorg "]
[null,null,null,null,null,null,null,null,"Totale baten 2021 inclusief balanspost ","Baten ontvangen m.b.t. 2021","Totale baten 2020 inclusief balanspost ","Baten ontvangen m.b.t. 2020","Totale baten 2020 en 2021 inclusief balanspost ","TOTAAL ontvangen baten 2020 en 2021"]
[null,null,null," BATEN ZVW",null,null,null,"code"]
[null,null,null," SCHADE T.L.V. HET VERPLICHT EIGEN RISICO",null,null,null,"915   ",null,null,null,null,{"$f":"I112+K112","v":0},{"$f":"J112+L112","v":0}]
[]
[]
[]
[]
[]
[]
[]
[]
[]
[null,null,null,{"$f":"NOW()","v":"2023-03-30T09:44:40.860"},null,null,null,null,null,null,null,null,{"$f":"CONCATENATE(\"Specifieke informatie B, \",LOWER(A104))","v":"Specifieke informatie B, pagina 4"}]

{"sheet":"Specifieke informatie C","index":8,"n_rows":99,"n_cols":12,"rows_kept":99,"cut":false,"hidden":false,"merged":[[91,11,92,11],[80,11,81,11],[98,3,98,4],[68,3,68,5],[72,9,73,9],[71,10,71,11],[72,11,73,11],[76,3,76,5],[77,3,77,5],[78,3,78,5],[71,6,71,7],[71,3,73,5],[74,3,74,5],[75,3,75,5],[69,3,69,5],[72,10,73,10],[72,6,73,6],[72,8,73,8],[71,8,71,9],[72,7,73,7],[91,3,92,10],[83,3,83,10],[82,3,82,10],[93,3,93,10],[94,3,94,10],[95,3,95,10],[84,3,84,10],[85,3,85,10],[88,3,88,10],[30,3,30,5],[31,3,31,5],[32,3,32,5],[33,3,33,5],[41,3,41,5],[42,3,42,5],[57,3,57,5],[58,3,58,5],[59,3,59,5],[60,3,60,5],[56,3,56,5],[39,3,39,5],[43,3,43,5],[36,3,38,5],[28,10,29,10],[53,6,53,7],[86,3,86,10],[87,3,87,10],[89,3,89,10],[67,3,67,5],[53,3,55,5],[80,3,81,10],[37,11,38,11],[63,11,64,11],[46,3,46,4],[62,3,64,5],[62,6,62,7],[62,8,62,9],[62,10,62,11],[63,6,64,6],[63,7,64,7],[63,8,64,8],[63,9,64,9],[63,10,64,10],[54,11,55,11],[66,3,66,5],[34,3,34,5],[40,3,40,5],[28,11,29,11],[28,7,29,7],[28,6,29,6],[16,3,16,5],[12,7,13,7],[27,10,27,11],[65,3,65,5],[53,8,53,9],[53,10,53,11],[36,6,36,7],[36,8,36,9],[36,10,36,11],[37,6,38,6],[37,7,38,7],[37,8,38,8],[37,9,38,9],[37,10,38,10],[54,6,55,6],[54,7,55,7],[54,8,55,8],[54,9,55,9],[54,10,55,10],[21,7,22,7],[21,8,22,8],[27,8,27,9],[27,3,29,5],[27,6,27,7],[28,9,29,9],[11,3,13,5],[15,3,15,5],[14,3,14,5],[11,6,11,7],[17,3,17,5],[28,8,29,8],[23,3,23,5],[25,3,25,5],[24,3,24,5],[20,3,22,5],[20,6,20,7],[21,6,22,6],[21,9,22,9],[21,10,22,10],[21,11,22,11],[20,8,20,9],[11,8,11,9],[12,6,13,6],[12,9,13,9],[11,10,11,11],[12,10,13,10],[12,8,13,8],[12,11,13,11],[20,10,20,11]]}
[" ",null,"INVULSPECIFICATIES SPECIFIEKE INFORMATIE C"]
[]
[]
[]
[]
["Pagina 1",null,null,{"$f":"CONCATENATE(\"KWARTAALSTAAT ZVW \", jaar_id)","v":"KWARTAALSTAAT ZVW 2023"}]
[null,null,null,"SPECIFIEKE INFORMATIE C "]
[null,null,null,{"$f":"IF(naw_uzovi_zorgverzekeraar<>\"0000\",CONCATENATE(UPPER(naw_naam_zorgverzekeraar),\", \",UPPER(naw_plaats_zorgverzekeraar)),\"\")","v":""},null,null,null,null,null,null,null,{"$f":"CONCATENATE(\"UZOVI: \",naw_uzovi_zorgverzekeraar)","v":"UZOVI: 0000"}]
[null,null,null,"SPECIFICATIES VAN KOSTEN EN PRODUCTIE"]
[]
[null,null,null,"RUBRIEK 06 MEDISCH SPECIALISTISCHE ZORG"]
[null,null,null," CODE 610 - OVERIGE KOSTEN \n ZIEKENHUISZORG EN CURATIEVE ZORG",null,null,{"$f":"CONCATENATE(\"LASTEN \", jaar_id)","v":"LASTEN 2023"},null,{"$f":"CONCATENATE(\"LASTEN \", jaar_id-1)","v":"LASTEN 2022"},null,{"$f":"CONCATENATE(\"LASTEN \", jaar_id-2)","v":"LASTEN 2021"}]
[null,null,null,null,null,null,{"$f":"CONCATENATE(\"LASTEN \", jaar_id,\" inclusief balanspost \")","v":"LASTEN 2023 inclusief balanspost "},{"$f":"CONCATENATE(\"Ontvangen en geaccepteerde declaraties m.b.t. \", jaar_id)","v":"Ontvangen en geaccepteerde declaraties m.b.t. 2023"},{"$f":"CONCATENATE(\"LASTEN \", jaar_id-1,\" inclusief balanspost \")","v":"LASTEN 2022 inclusief balanspost "},{"$f":"CONCATENATE(\"Ontvangen en geaccepteerde declaraties m.b.t. \", jaar_id-1)","v":"Ontvangen en geaccepteerde declaraties m.b.t. 2022"},{"$f":"CONCATENATE(\"LASTEN \", \" inclusief balanspost m.b.t. \",jaar_id-2, \" en ouder\")","v":"LASTEN  inclusief balanspost m.b.t. 2021 en ouder"},{"$f":"CONCATENATE(\"Ontvangen en geaccepteerde declaraties m.b.t. \", jaar_id-2, \" en ouder\")","v":"Ontvangen en geaccepteerde declaraties m.b.t. 2021 en ouder"}]
[]
[null,null,null," Kosten van eerstelijnsdiagnostiek \n aangevraagd door eerstelijnszorg-\n aanbieders geleverd door \n huisartsenlaboratoria "]
[null,null,null," Trombosediensten "]
[null,null,null," SKION en NTS"]
[null,null,null," TOTAAL code 610",null,null,{"$f":"SUM(G15:G17)","v":0},0,0,0,0,0]
[]
[]
[null,null,null," CODE 610.2 \n",null,null,{"$f":"CONCATENATE(\"LASTEN \", jaar_id)","v":"LASTEN 2023"},null,{"$f":"CONCATENATE(\"LASTEN \", jaar_id-1)","v":"LASTEN 2022"},null,{"$f":"CONCATENATE(\"LASTEN \", jaar_id-2)","v":"LASTEN 2021"}]
[null,null,null,null,null,null,{"$f":"CONCATENATE(\"LASTEN \", jaar_id,\" inclusief balanspost \")","v":"LASTEN 2023 inclusief balanspost "},{"$f":"CONCATENATE(\"Ontvangen en geaccepteerde declaraties m.b.t. \", jaar_id)","v":"Ontvangen en geaccepteerde declaraties m.b.t. 2023"},{"$f":"CONCATENATE(\"LASTEN \", jaar_id-1,\" inclusief balanspost \")","v":"LASTEN 2022 inclusief balanspost "},{"$f":"CONCATENATE(\"Ontvangen en geaccepteerde declaraties m.b.t. \", jaar_id-1)","v":"Ontvangen en geaccepteerde declaraties m.b.t. 2022"},{"$f":"CONCATENATE(\"LASTEN \", \" inclusief balanspost m.b.t. \",jaar_id-2, \" en ouder\")","v":"LASTEN  inclusief balanspost m.b.t. 2021 en ouder"},{"$f":"CONCATENATE(\"Ontvangen en geaccepteerde declaraties m.b.t. \", jaar_id-2, \" en ouder\")","v":"Ontvangen en geaccepteerde declaraties m.b.t. 2021 en ouder"}]
[]
[null,null,null,"Eerstelijnsdiagnostiek aangevraagd door eerstelijnszorg-aanbieders geleverd door huisartsenlaboratoria"]
[null,null,null,"Trombosediensten"]
[null,null,null," TOTAAL code 610",null,null,{"$f":"SUM(G24:G24)","v":0},0,0,0,0,0]
[]
[null,null,null," CODE 611 - OVERIGE ZORGPRODUCTEN NAAR INSTELLING",null,null,{"$f":"G12","v":"LASTEN 2023"},null,{"$f":"I12","v":"LASTEN 2022"},null,{"$f":"K12","v":"LASTEN 2021"}]
[null,null,null,null,null,null,{"$f":"G13","v":"LASTEN 2023 inclusief balanspost "},{"$f":"H13","v":"Ontvangen en geaccepteerde declaraties m.b.t. 2023"},{"$f":"I13","v":"LASTEN 2022 inclusief balanspost "},{"$f":"J13","v":"Ontvangen en geaccepteerde declaraties m.b.t. 2022"},{"$f":"K13","v":"LASTEN  inclusief balanspost m.b.t. 2021 en ouder"},{"$f":"L13","v":"Ontvangen en geaccepteerde declaraties m.b.t. 2021 en ouder"}]
[null,null,null,null,null,null,null,null,"Ontvangen en geaccepteerde declaraties mbt jaar T","Ontvangen en geaccepteerde declaraties mbt jaar T","Ontvangen en geaccepteerde declaraties mbt jaar T","Ontvangen en geaccepteerde declaraties mbt jaar T"]
[null,null,null," Academische ziekenhuizen"]
[null,null,null," Algemene ziekenhuizen"]
[null,null,null," Zelfstandige behandelcentra"]
[null,null,null," Overige zorgaanbieders"]
[null,null,null," TOTAAL code 611",null,null,{"$f":"SUM(G31:G34)","v":0},0,0,0,0,0]
[]
[null,null,null," CODE 612.1 - KOSTEN ADD-ONS DURE \n GENEESMIDDELEN NAAR INSTELLING",null,null,{"$f":"G12","v":"LASTEN 2023"},null,{"$f":"I28","v":"LASTEN 2022"},null,{"$f":"K28","v":"LASTEN 2021"}]
[null,null,null,null,null,null,{"$f":"G29","v":"LASTEN 2023 inclusief balanspost "},{"$f":"H29","v":"Ontvangen en geaccepteerde declaraties m.b.t. 2023"},{"$f":"I29","v":"LASTEN 2022 inclusief balanspost "},{"$f":"J29","v":"Ontvangen en geaccepteerde declaraties m.b.t. 2022"},{"$f":"K29","v":"LASTEN  inclusief balanspost m.b.t. 2021 en ouder"},{"$f":"L29","v":"Ontvangen en geaccepteerde declaraties m.b.t. 2021 en ouder"}]
[null,null,null,null,null,null,null,null,"Ontvangen en geaccepteerde declaraties mbt jaar T","Ontvangen en geaccepteerde declaraties mbt jaar T","Ontvangen en geaccepteerde declaraties mbt jaar T","Ontvangen en geaccepteerde declaraties mbt jaar T"]
[null,null,null," Academische ziekenhuizen"]
[null,null,null," Algemene ziekenhuizen"]
[null,null,null," Zelfstandige behandelcentra"]
[null,null,null," Overige zorgaanbieders"]
[null,null,null," TOTAAL code 612.1",null,null,{"$f":"SUM(G40:G43)","v":0},{"$f":"SUM(H40:H43)","v":0},0,0,0,0]
[]
[]
[null,null,null,{"$f":"NOW()","v":"2023-03-30T09:44:40.860"},null,null,null,null,null,null,null,{"$f":"CONCATENATE(\"Specifieke informatie C, \",LOWER(A6))","v":"Specifieke informatie C, pagina 1"}]
[]
["Pagina 2",null,null,{"$f":"CONCATENATE(\"KWARTAALSTAAT ZVW \", jaar_id,\" \",kwartaal_id,\"E KWARTAAL\")","v":"KWARTAALSTAAT ZVW 2023 2E KWARTAAL"}]
[null,null,null,"SPECIFIEKE INFORMATIE C "]
[null,null,null,{"$f":"IF(naw_uzovi_zorgverzekeraar<>\"0000\",CONCATENATE(UPPER(naw_naam_zorgverzekeraar),\", \",UPPER(naw_plaats_zorgverzekeraar)),\"\")","v":""},null,null,null,null,null,null,null,{"$f":"CONCATENATE(\"UZOVI: \",naw_uzovi_zorgverzekeraar)","v":"UZOVI: 0000"}]
[null,null,null,"SPECIFICATIES VAN KOSTEN EN PRODUCTIE"]
[null,null,null,"RUBRIEK 06 MEDISCH SPECIALISTISCHE ZORG - vervolg"]
[null,null,null," CODE 612.2 - KOSTEN ADD-ONS IC  \n NAAR INSTELLING",null,null,{"$f":"G37","v":"LASTEN 2023"},null,{"$f":"I37","v":"LASTEN 2022"},null,{"$f":"K37","v":"LASTEN 2021"}]
[null,null,null,null,null,null,{"$f":"G38","v":"LASTEN 2023 inclusief balanspost "},{"$f":"H38","v":"Ontvangen en geaccepteerde declaraties m.b.t. 2023"},{"$f":"I38","v":"LASTEN 2022 inclusief balanspost "},{"$f":"J38","v":"Ontvangen en geaccepteerde declaraties m.b.t. 2022"},{"$f":"K38","v":"LASTEN  inclusief balanspost m.b.t. 2021 en ouder"},{"$f":"L38","v":"Ontvangen en geaccepteerde declaraties m.b.t. 2021 en ouder"}]
[null,null,null,null,null,null,null,null,"Ontvangen en geaccepteerde declaraties mbt jaar T","Ontvangen en geaccepteerde declaraties mbt jaar T","Ontvangen en geaccepteerde declaraties mbt jaar T","Ontvangen en geaccepteerde declaraties mbt jaar T"]
[null,null,null," Academische ziekenhuizen"]
[null,null,null," Algemene ziekenhuizen"]
[null,null,null," Zelfstandige behandelcentra"]
[null,null,null," Overige zorgaanbieders"]
[null,null,null," TOTAAL code 612.2",null,null,{"$f":"SUM(G57:G60)","v":0},{"$f":"SUM(H57:H60)","v":0},0,0,0,0]
[]
[null,null,null,"  CODE 613.1 - INTEGRALE KOSTEN VAN \n  DBC-ZORGPRODUCTEN GEREGULEERDE \n  SEGMENT NAAR \n  INSTELLING",null,null,{"$f":"G54","v":"LASTEN 2023"},null,{"$f":"I54","v":"LASTEN 2022"},null,{"$f":"K54","v":"LASTEN 2021"}]
[null,null,null,null,null,null,{"$f":"G55","v":"LASTEN 2023 inclusief balanspost "},{"$f":"H55","v":"Ontvangen en geaccepteerde declaraties m.b.t. 2023"},{"$f":"I55","v":"LASTEN 2022 inclusief balanspost "},{"$f":"J55","v":"Ontvangen en geaccepteerde declaraties m.b.t. 2022"},{"$f":"K55","v":"LASTEN  inclusief balanspost m.b.t. 2021 en ouder"},{"$f":"L55","v":"Ontvangen en geaccepteerde declaraties m.b.t. 2021 en ouder"}]
[null,null,null,null,null,"code"]
[null,null,null," Academische ziekenhuizen"]
[null,null,null," Algemene ziekenhuizen"]
[null,null,null," Zelfstandige behandelcentra"]
[null,null,null," Overige zorgaanbieders"]
[null,null,null," TOTAAL code 613.1",null,null,{"$f":"SUM(G66:G69)","v":0},{"$f":"SUM(H66:H69)","v":0},{"$f":"SUM(I66:I69)","v":0},0,0,0]
[]
[null,null,null,"  CODE 615.1 - INTEGRALE KOSTEN VAN\n  DBC-ZORGPRODUCTEN VRIJE SEGMENT\n  NAAR INSTELLING",null,null,{"$f":"G63","v":"LASTEN 2023"},null,{"$f":"I63","v":"LASTEN 2022"},null,{"$f":"K63","v":"LASTEN 2021"}]
[null,null,null,null,null,null,{"$f":"G64","v":"LASTEN 2023 inclusief balanspost "},{"$f":"H64","v":"Ontvangen en geaccepteerde declaraties m.b.t. 2023"},"LASTEN 2022 inclusief balanspost ","Ontvangen en geaccepteerde declaraties m.b.t. 2022","LASTEN  inclusief balanspost m.b.t. 2021 en ouder","Ontvangen en geaccepteerde declaraties m.b.t. 2021 en ouder"]
[null,null,null,null,null,"code"]
[null,null,null," Academische ziekenhuizen"]
[null,null,null," Algemene ziekenhuizen"]
[null,null,null," Zelfstandige behandelcentra"]
[null,null,null," Overige zorgaanbieders"]
[null,null,null," TOTAAL code 615.1",null,null,{"$f":"SUM(G75:G78)","v":0},0,0,0,0,0]
[]
[null,null,null," CODE 701 - OVERIGE GENEESKUNDIGE ZORG",null,null,null,null,null,null,null,"Ontvangen en geaccepteerde declaraties m.b.t. 2023"]
[null,null,null,null,null,null,null,null,null,null,null,"Ontvangen en geaccepteerde declaraties mbt jaar T"]
[null,null,null," Geneeskundige individuele zorg bij tuberculose en infectieziekten door GGD'en"]
[null,null,null," Orthoptie"]
[null,null,null," Optometrie"]
[null,null,null," Kosten voetzorg bij Diabetes Mellitus type 2"]
[null,null,null," Koemelkallergietest (niet horend bij Multidisciplinaire Zorg) "]
[null,null,null," Regiefunctie complexe wondzorg"]
[null,null,null," ADZ-Parkinsonzorg"]
[null,null,null," TOTAAL code 701",null,null,null,null,null,null,null,{"$f":"SUM(L83:L88)","v":0}]
[]
[null,null,null," CODE 702 - ZINTUIGLIJK GEHANDICAPTEN",null,null,null,null,null,null,null,{"$f":"L81","v":"Ontvangen en geaccepteerde declaraties m.b.t. 2023"}]
[null,null,null,null,null,null,null,null,null,null,null,"Ontvangen en geaccepteerde declaraties mbt jaar T"]
[null,null,null," Kosten van zorg ivm visuele beperking"]
[null,null,null," Kosten van zorg ivm auditieve en communicatieve beperking"]
[null,null,null," TOTAAL code 702",null,null,null,null,null,null,null,{"$f":"SUM(L94:L95)","v":0}]
[]
[]
[null,null,null,{"$f":"NOW()","v":"2023-03-30T09:44:40.860"},null,null,null,null,null,null,null,{"$f":"CONCATENATE(\"Specifieke informatie C, \",LOWER(A49))","v":"Specifieke informatie C, pagina 2"}]

{"sheet":"Contractinformatie","index":9,"n_rows":93,"n_cols":11,"rows_kept":93,"cut":false,"hidden":false,"merged":[[69,3,69,9],[68,3,68,9],[70,3,70,9],[67,3,67,9],[54,3,54,9],[74,3,74,9],[73,3,73,10],[90,3,90,9],[76,3,76,9],[77,3,77,9],[78,3,78,9],[79,3,79,9],[81,3,81,9],[85,3,85,10],[80,3,80,10],[82,3,82,9],[83,3,83,9],[84,3,84,9],[89,3,89,9],[92,3,92,4],[47,3,47,4],[75,3,75,10],[86,3,86,9],[87,3,87,9],[88,3,88,9],[55,3,55,9],[56,3,56,9],[57,3,57,9],[58,3,58,9],[59,3,59,9],[60,3,60,9],[61,3,61,9],[63,3,63,9],[64,3,64,9],[71,3,71,9],[10,3,10,10],[9,3,9,9],[11,3,11,9],[12,3,12,9],[13,3,13,9],[14,3,14,9],[16,3,16,9],[17,3,17,9],[18,3,18,9],[15,3,15,10],[19,3,19,9],[21,3,21,9],[24,3,24,9],[25,3,25,9],[26,3,26,9],[20,3,20,10],[27,3,27,9],[28,3,28,9],[29,3,29,9],[32,3,32,9],[53,3,53,9],[33,3,33,9],[34,3,34,9],[35,3,35,9],[36,3,36,9],[37,3,37,9],[38,3,38,9],[39,3,39,9],[40,3,40,9],[42,3,42,9],[43,3,43,9]]}
[null,null,"INVULSPECIFICATIES SPECIFIEKE INFORMATIE C"]
[]
[]
[]
[]
["Pagina 1",null,null,{"$f":"CONCATENATE(\"KWARTAALSTAAT ZVW \", jaar_id)","v":"KWARTAALSTAAT ZVW 2023"}]
[null,null,null,"SPECIFIEKE INFORMATIE C - CONTRACTINFORMATIE"]
[null,null,null,{"$f":"IF(naw_uzovi_zorgverzekeraar<>\"0000\",CONCATENATE(UPPER(naw_naam_zorgverzekeraar),\", \",UPPER(naw_plaats_zorgverzekeraar)),\"\")","v":""},null,null,null,null,null,null,{"$f":"CONCATENATE(\"UZOVI: \",naw_uzovi_zorgverzekeraar)","v":"UZOVI: 0000"}]
[null,null,null," CONTRACTINFORMATIE HUISARTSENZORG EN MULTIDISCIPLINAIRE ZORG, rubriek 01"]
[null,null,null,null,null,null,null,null,null,null,{"$f":"CONCATENATE(\"LASTEN \", jaar_id,\" inclusief balanspost \")","v":"LASTEN 2023 inclusief balanspost "}]
[null,null,null," Huisartsenzorg, codes 503, 504, 505, 506, 507, 515"]
[null,null,null," Gecontracteerde zorg"]
[null,null,null," Lopende onderhandelingen"]
[null,null,null," Niet gecontracteerde zorg"]
[null,null,null," Subtotaal huisartsenzorg",null,null,null,null,null,{"$f":"SUM(J12:J14)","v":0},{"$f":"SUM(K12:K14)","v":0}]
[null,null,null," Multidisciplinaire zorg, codes 510 en 516"]
[null,null,null," Gecontracteerde zorg"]
[null,null,null," Lopende onderhandelingen"]
[null,null,null," Niet gecontracteerde zorg"]
[null,null,null," Subtotaal multidisciplinaire zorg",null,null,null,null,null,{"$f":"SUM(J17:J19)","v":0},{"$f":"SUM(K17:K19)","v":0}]
[null,null,null," Huisartsenzorg en multidisciplinaire zorg"]
[null,null,null," TOTAAL RUBRIEK 01 ",null,null,null,null,null,null,{"$f":"SUM(K15+K20)","v":0}]
[]
[null,null,null," CONTRACTINFORMATIE VERPLEGING EN VERZORGING, rubriek 03"]
[null,null,null,null,null,null,null,null,null,null,{"$f":"K$10","v":"LASTEN 2023 inclusief balanspost "}]
[null,null,null," Gecontracteerde zorg"]
[null,null,null," Lopende onderhandelingen"]
[null,null,null," Niet gecontracteerde zorg"]
[null,null,null," PGB"]
[null,null,null," TOTAAL RUBRIEK 03",null,null,null,null,null,{"$f":"SUM(J26:J28)","v":0},{"$f":"SUM(K26:K29)","v":0}]
[]
[null,null,null," CONTRACTINFORMATIE MEDISCH SPECIALISTISCHE ZORG, rubriek 06"]
[null,null,null,null,null,null,null,null,null,null,{"$f":"K$10","v":"LASTEN 2023 inclusief balanspost "}]
[null,null,null," Gecontracteerde zorg: aanneemsom"]
[null,null,null," Gecontracteerde zorg: plafond"]
[null,null,null," Gecontracteerde zorg: nacalculatie bij aanneemsommen en plafondcontracten"]
[null,null,null," Gecontracteerde zorg: open einde contract"]
[null,null,null," Subtotaal gecontracteerde zorg",null,null,null,null,null,{"$f":"SUM(J34:J37)","v":0},{"$f":"SUM(K34:K37)","v":0}]
[null,null,null," Lopende onderhandelingen"]
[null,null,null," Niet gecontracteerde zorg"]
[null,null,null," TOTAAL RUBRIEK 06 ",null,null,null,null,null,{"$f":"SUM(J38:J40)","v":0},{"$f":"SUM(K38:K40)","v":0}]
[]
[null,null,null,null,null,null,null,null,null,2020,{"$f":"jaar_id","v":2023}]
[null,null,null," Totaal afgesproken maximumomzet plafondcontracten"]
[]
[]
[]
[null,null,null,{"$f":"NOW()","v":"2023-03-30T09:44:40.860"},null,null,null,null,null,null,{"$f":"CONCATENATE(\"Specifieke informatie C - Contractinformatie, \",LOWER(A6))","v":"Specifieke informatie C - Contractinformatie, pagina 1"}]
[]
["Pagina 2",null,null,{"$f":"CONCATENATE(\"KWARTAALSTAAT ZVW \", jaar_id,\" \",kwartaal_id,\"E KWARTAAL\")","v":"KWARTAALSTAAT ZVW 2023 2E KWARTAAL"}]
[null,null,null,"SPECIFIEKE INFORMATIE C - CONTRACTINFORMATIE"]
[null,null,null,{"$f":"IF(naw_uzovi_zorgverzekeraar<>\"0000\",CONCATENATE(UPPER(naw_naam_zorgverzekeraar),\", \",UPPER(naw_plaats_zorgverzekeraar)),\"\")","v":""},null,null,null,null,null,null,{"$f":"CONCATENATE(\"UZOVI: \",naw_uzovi_zorgverzekeraar)","v":"UZOVI: 0000"}]
[null,null,null," CONTRACTINFORMATIE GENEESKUNDIGE GEESTELIJKE GEZONDHEIDSZORG, rubriek 10"]
[null,null,null,null,null,null,null,null,null,"Lasten inclusief \nbalanspost \n2020",{"$f":"K$10","v":"LASTEN 2023 inclusief balanspost "}]
[null,null,null," Gecontracteerde zorg: aanneemsom"]
[null,null,null," Gecontracteerde zorg: plafond"]
[null,null,null," Gecontracteerde zorg: nacalculatie bij aanneemsommen en plafondcontracten"]
[null,null,null," Gecontracteerde zorg: open einde contract"]
[null,null,null," Subtotaal gecontracteerde zorg",null,null,null,null,null,{"$f":"SUM(J55:J58)","v":0},{"$f":"SUM(K55:K58)","v":0}]
[null,null,null," Lopende onderhandelingen"]
[null,null,null," Niet gecontracteerde zorg"]
[null,null,null," TOTAAL RUBRIEK 10 ",null,null,null,null,null,{"$f":"SUM(J59:J61)","v":0},{"$f":"SUM(K59:K61)","v":0}]
[]
[null,null,null,null,null,null,null,null,null,2020,{"$f":"K43","v":2023}]
[null,null,null," Totaal afgesproken maximumomzet plafondcontracten"]
[]
[null,null,null," CONTRACTINFORMATIE ZINTUIGLIJK GEHANDICAPTEN, code 702 "]
[null,null,null,null,null,null,null,null,null,"Lasten inclusief \nbalanspost \n2020",{"$f":"K$10","v":"LASTEN 2023 inclusief balanspost "}]
[null,null,null," Gecontracteerde zorg"]
[null,null,null," Lopende onderhandelingen"]
[null,null,null," Niet gecontracteerde zorg"]
[null,null,null," TOTAAL CODE 702",null,null,null,null,null,{"$f":"SUM(J69:J71)","v":0},{"$f":"SUM(K69:K71)","v":0}]
[]
[null,null,null," CONTRACTINFORMATIE GERIATRISCHE REVALIDATIE, EERSTELIJNSVERBLIJF EN GENEESKUNDIGE ZORG       SPECIFIEKE PATIENTGROEPEN, rubriek 11"]
[null,null,null,null,null,null,null,null,null,"Lasten inclusief \nbalanspost \n2020",{"$f":"K$10","v":"LASTEN 2023 inclusief balanspost "}]
[null,null,null," Geriatrische Revalidatie, code 670"]
[null,null,null," Gecontracteerde zorg"]
[null,null,null," Lopende onderhandelingen"]
[null,null,null," Niet gecontracteerde zorg"]
[null,null,null," Subtotaal Geriatrische Revalidatie zorg",null,null,null,null,null,{"$f":"SUM(J77:J79)","v":0},{"$f":"SUM(K77:K79)","v":0}]
[null,null,null," Eerstelijnsverblijf, code 671"]
[null,null,null," Gecontracteerde zorg"]
[null,null,null," Lopende onderhandelingen"]
[null,null,null," Niet gecontracteerde zorg"]
[null,null,null," Subtotaal Eerstelijnsverblijf ",null,null,null,null,null,{"$f":"SUM(J82:J84)","v":0},{"$f":"SUM(K82:K84)","v":0}]
[null,null,null," Geneeskundige Zorg Specifieke Patiëntgroepen, code 672"]
[null,null,null," Gecontracteerde zorg"]
[null,null,null," Lopende onderhandelingen"]
[null,null,null," Niet gecontracteerde zorg"]
[null,null,null," Subtotaal Geneeskundige Zorg Specifieke Patiëntgroepen",null,null,null,null,null,null,{"$f":"SUM(K87:K89)","v":0}]
[null,null,null," TOTAAL RUBRIEK 11 ",null,null,null,null,null,{"$f":"SUM(J80+J85+#REF!)","v":{"$error":"#REF!"}},{"$f":"SUM(K80+K85+K90)","v":0}]
[]
[null,null,null,{"$f":"NOW()","v":"2023-03-30T09:44:40.860"},null,null,null,null,null,null,{"$f":"CONCATENATE(\"Specifieke informatie C - Contractinformatie, \",LOWER(A50))","v":"Specifieke informatie C - Contractinformatie, pagina 2"}]

{"sheet":"Wanbetalers","index":10,"n_rows":48,"n_cols":11,"rows_kept":48,"cut":false,"hidden":false,"merged":[[26,3,26,7],[47,3,47,4],[27,3,27,7],[17,3,17,7],[19,3,19,7],[20,3,20,7],[21,3,21,7],[22,3,22,7],[24,3,24,7],[25,3,25,7],[15,3,15,7],[16,3,16,7],[10,3,10,7],[11,3,11,7],[12,3,12,7],[13,3,13,7]]}
[null,null,"INVULSPECIFICATIES SPECIFIEKE INFORMATIE C"]
[]
[]
[]
[]
["Pagina 1",null,null,{"$f":"CONCATENATE(\"KWARTAALSTAAT ZVW \", jaar_id)","v":"KWARTAALSTAAT ZVW 2023"}]
[null,null,null,"SPECIFIEKE INFORMATIE C - WANBETALERS"]
[null,null,null,{"$f":"IF(naw_uzovi_zorgverzekeraar<>\"0000\",CONCATENATE(UPPER(naw_naam_zorgverzekeraar),\", \",UPPER(naw_plaats_zorgverzekeraar)),\"\")","v":""},null,null,null,null,null,null,{"$f":"CONCATENATE(\"UZOVI: \",naw_uzovi_zorgverzekeraar)","v":"UZOVI: 0000"}]
[]
[null,null,null,"SPECIFICATIES VAN WANBETALERS"]
[null,null,null,null,null,null,null,null,"AANTAL \njuli","AANTAL \naugustus","AANTAL \nseptember"]
[null,null,null," Verzekeringnemers die een achterstand in de premiebetaling hebben van \n twee of meer, maar minder dan vier volle maandpremies."]
[null,null,null," Verzekeringnemers die een achterstand in de premiebetaling hebben van \n vier of meer, maar minder dan zes volle maandpremies."]
[null,null,null," Verzekeringnemers die een achterstand in de premiebetaling hebben van \n zes of meer volle maandpremies."]
[]
[null,null,null,null,null,null,null,null,"AANTAL \njuli","AANTAL \naugustus","AANTAL \nseptember"]
[null,null,null," Verstuurde tweedemaandsbrieven"]
[null,null,null," Verstuurde vierdemaandsbrieven"]
[]
[null,null,null,null,null,null,null,null,"AANTAL \njuli","AANTAL \naugustus","AANTAL \nseptember"]
[null,null,null," Debiteuren met een interne betalingsregeling, al dan niet uitsluitend \n voor premiebetaling."]
[null,null,null," Debiteuren met een externe betalingsregeling, al dan niet uitsluitend \n voor premiebetaling."]
[null,null,null," Actieve stabilisatieovereenkomsten voor premiebetaling."]
[]
[null,null,null,null,null,null,null,null,"AANTAL \njuli","AANTAL \naugustus","AANTAL \nseptember"]
[null,null,null," Wanbetalers bij CAK aangemeld met een betalingsachterstand van minder \n dan € 250."]
[null,null,null," Wanbetalers bij CAK aangemeld met een betalingsachterstand van \n meer dan € 250, maar minder dan € 750."]
[null,null,null," Wanbetalers bij CAK aangemeld met een betalingsachterstand van meer \n dan € 750."]
[]
[]
[]
[]
[]
[]
[]
[]
[]
[]
[]
[]
[]
[]
[]
[]
[]
[]
[]
[null,null,null,{"$f":"NOW()","v":"2023-03-30T09:44:40.860"},null,null,null,null,null,null,{"$f":"CONCATENATE(\"Specifieke informatie C - Wanbetalers, \",LOWER(A6))","v":"Specifieke informatie C - Wanbetalers, pagina 1"}]

{"sheet":"Controleoverzicht","index":11,"n_rows":200,"n_cols":12,"rows_kept":200,"cut":false,"hidden":false,"merged":[[104,3,104,8],[102,3,102,8],[86,3,86,8],[98,3,98,8],[100,3,100,8],[96,3,96,8],[95,3,95,8],[82,3,82,8],[80,3,80,8],[92,3,92,8],[81,3,81,8],[97,3,97,8],[91,3,91,8],[99,3,99,8],[88,3,88,8],[112,11,113,11],[128,9,129,9],[137,3,137,8],[112,9,113,9],[119,3,119,8],[112,10,113,10],[128,3,129,8],[128,10,129,10],[117,3,117,8],[133,3,134,8],[114,3,114,8],[135,3,135,8],[116,3,116,8],[131,3,131,8],[130,3,130,8],[168,9,169,9],[187,3,187,10],[168,3,169,8],[186,3,186,10],[191,11,192,11],[168,11,169,11],[168,10,169,10],[179,3,179,8],[159,10,160,10],[165,3,165,8],[162,3,162,8],[161,3,161,8],[191,9,192,9],[191,10,192,10],[163,3,163,8],[164,3,164,8],[188,3,188,11],[173,3,173,8],[159,11,160,11],[177,11,178,11],[177,10,178,10],[177,9,178,9],[180,3,180,8],[15,11,16,11],[15,9,16,9],[15,10,16,10],[43,3,43,8],[47,3,47,8],[139,3,139,8],[159,9,160,9],[133,9,134,9],[89,3,89,8],[112,3,113,8],[133,11,134,11],[133,10,134,10],[159,3,160,8],[138,3,138,8],[74,3,74,8],[75,3,75,8],[77,3,77,8],[140,3,140,8],[128,11,129,11],[68,11,69,11],[51,3,51,8],[70,3,70,8],[72,3,72,8],[73,3,73,8],[9,3,10,8],[11,3,11,8],[15,3,16,8],[12,3,12,8],[13,3,13,8],[30,3,30,8],[32,3,32,8],[28,3,28,8],[24,3,24,8],[26,3,26,8],[23,3,23,8],[25,3,25,8],[17,3,17,8],[19,3,20,8],[27,3,27,8],[22,3,22,8],[31,3,31,8],[9,10,10,10],[9,11,10,11],[136,3,136,8],[115,3,115,8],[107,3,107,8],[101,3,101,8],[103,3,103,8],[94,3,94,8],[93,3,93,8],[19,11,20,11],[19,9,20,9],[19,10,20,10],[21,3,21,8],[68,10,69,10],[68,9,69,9],[37,3,37,8],[46,3,46,8],[76,3,76,8],[38,3,38,8],[71,3,71,8],[40,3,40,8],[35,3,35,8],[36,3,36,8],[9,9,10,9],[33,3,33,8],[34,3,34,8],[29,3,29,8],[197,3,197,8],[108,3,108,8],[177,3,178,8],[191,3,192,8],[183,3,183,8],[172,3,172,8],[175,3,175,8],[174,3,174,8],[171,3,171,8],[170,3,170,8],[184,3,184,8],[181,3,181,8],[109,3,109,8],[118,3,118,8],[195,3,195,8],[182,3,182,8],[166,3,166,8],[78,3,78,8],[90,3,90,8],[42,3,42,8],[105,3,105,8],[193,3,193,8],[194,3,194,8],[196,3,196,8],[198,3,198,8],[39,3,39,8],[52,3,52,8],[53,3,53,8],[54,3,54,8],[68,3,69,8],[48,3,48,8],[56,3,56,8],[57,3,57,8],[55,3,55,8],[41,3,41,8],[49,3,49,8],[50,3,50,8],[45,3,45,8],[44,3,44,8],[79,3,79,8],[83,3,83,8],[84,3,84,8],[85,3,85,8],[87,3,87,8],[106,3,106,8],[149,3,149,8],[142,3,143,8],[142,9,143,9],[142,10,143,10],[142,11,143,11],[144,3,144,8],[145,3,145,8],[146,3,146,8],[147,3,147,8],[148,3,148,8]]}
[null,null,"CONTROLEOVERZICHT"]
[]
[]
[]
[]
["Pagina 1",null,null,{"$f":"CONCATENATE(\"KWARTAALSTAAT ZVW \", jaar_id)","v":"KWARTAALSTAAT ZVW 2023"}]
[null,null,null,"CONTROLEOVERZICHT"]
[null,null,null,{"$f":"IF(naw_uzovi_zorgverzekeraar<>\"0000\",CONCATENATE(UPPER(naw_naam_zorgverzekeraar),\", \",UPPER(naw_plaats_zorgverzekeraar)),\"\")","v":""},null,null,null,null,null,null,null,{"$f":"CONCATENATE(\"UZOVI: \",naw_uzovi_zorgverzekeraar)","v":"UZOVI: 0000"}]
[null,null,null,"SPECIFIEKE INFORMATIE A"]
[null,null,null," VERZEKERDENSTANDEN",null,null,null,null,null,"AUGUSTUS","SEPTEMBER","OKTOBER"]
[]
[null,null,null," Verzekerdenstand naar risicoklasse",null,null,null,null,null,{"$f":"'Specifieke informatie A'!L79","v":0},{"$f":"'Specifieke informatie A'!L124","v":0},{"$f":"'Specifieke informatie A'!L169","v":0}]
[null,null,null," Verzekerdenstand naar nominale premie",null,null,null,null,null,{"$f":"'Specifieke informatie A'!L86","v":0},{"$f":"'Specifieke informatie A'!L131","v":0},{"$f":"'Specifieke informatie A'!L176","v":0}]
[null,null,null," Verschil",null,null,null,null,null,{"$f":"IF(J12<>J13,J12-J13,\"\")","v":""},{"$f":"IF(K12<>K13,K12-K13,\"\")","v":""},{"$f":"IF(L12<>L13,L12-L13,\"\")","v":""}]
[]
[null,null,null," KOSTENSPECIFICATIES",null,null,null,null,null,"VOLGENS\nKOSTENVER- \nZAMELSTAAT","VOLGENS\nDETAIL- \nSPECIFICATIE ","VERSCHIL"]
[]
[null,null,null," Totaal kosten t.l.v. deelbijdragen (totaal lasten t/m rubriek 16)\n - inclusief balanspost",null,null,null,null,null,{"$f":"Kostenverzamelstaat!I146","v":0},{"$f":"'Specifieke informatie A'!K17","v":0},{"$f":"IF(J18<>K18,J18-K18,\"\")","v":""}]
[]
[null,null,null," KOSTENVERZAMELSTAAT",null,null,null,null,null,{"$f":"CONCATENATE(\"Kosten balanspost  \", jaar_id-2)","v":"Kosten balanspost  2021"},{"$f":"CONCATENATE(\"Kosten balanspost  \", jaar_id-1)","v":"Kosten balanspost  2022"},{"$f":"CONCATENATE(\"Kosten balanspost  \", jaar_id)","v":"Kosten balanspost  2023"}]
[]
[null,null,null," 503 Bijzondere betalingen",null,null,null,null,null,{"$f":"Kostenverzamelstaat!M16-Kostenverzamelstaat!N16","v":0},{"$f":"Kostenverzamelstaat!K16-Kostenverzamelstaat!L16","v":0},{"$f":"Kostenverzamelstaat!I16-Kostenverzamelstaat!J16","v":0}]
[null,null,null," 504 Avond-, nacht- en weekenddiensten",null,null,null,null,null,{"$f":"(Kostenverzamelstaat!M17+'Specifieke informatie B'!I15)-(Kostenverzamelstaat!N17+'Specifieke informatie B'!J15)","v":0},{"$f":"Kostenverzamelstaat!K17-Kostenverzamelstaat!L17","v":0},{"$f":"Kostenverzamelstaat!I17-Kostenverzamelstaat!J17","v":0}]
[null,null,null," 505 Inschrijftarieven",null,null,null,null,null,{"$f":"Kostenverzamelstaat!M18-Kostenverzamelstaat!N18","v":0},{"$f":"Kostenverzamelstaat!K18-Kostenverzamelstaat!L18","v":0},{"$f":"Kostenverzamelstaat!I18-Kostenverzamelstaat!J18","v":0}]
[null,null,null," 506 Consulttarieven",null,null,null,null,null,{"$f":"(Kostenverzamelstaat!M19+'Specifieke informatie B'!I16)-(Kostenverzamelstaat!N19+'Specifieke informatie B'!J16)","v":0},{"$f":"Kostenverzamelstaat!K19-Kostenverzamelstaat!L19","v":0},{"$f":"Kostenverzamelstaat!I19-Kostenverzamelstaat!J19","v":0}]
[null,null,null," 507 Overige tarieven",null,null,null,null,null,{"$f":"(Kostenverzamelstaat!M20+'Specifieke informatie B'!I17)-(Kostenverzamelstaat!N20+'Specifieke informatie B'!J17)","v":0},{"$f":"Kostenverzamelstaat!K20-Kostenverzamelstaat!L20","v":0},{"$f":"Kostenverzamelstaat!I20-Kostenverzamelstaat!J20","v":0}]
[null,null,null," 510 Multidisciplinaire zorg",null,null,null,null,null,{"$f":"Kostenverzamelstaat!M21-Kostenverzamelstaat!N21","v":0},{"$f":"Kostenverzamelstaat!K21-Kostenverzamelstaat!L21","v":0},{"$f":"Kostenverzamelstaat!I21-Kostenverzamelstaat!J21","v":0}]
[null,null,null," 515 Resultaatbeloning en zorgvernieuwing huisartsen",null,null,null,null,null,{"$f":"(Kostenverzamelstaat!M22+'Specifieke informatie B'!I18)-(Kostenverzamelstaat!N22+'Specifieke informatie B'!J18)","v":0},{"$f":"Kostenverzamelstaat!K22-Kostenverzamelstaat!L22","v":0},{"$f":"Kostenverzamelstaat!I22-Kostenverzamelstaat!J22","v":0}]
[null,null,null," 516 Resultaatbeloning en zorgvernieuwing MDZ",null,null,null,null,null,{"$f":"Kostenverzamelstaat!M23-Kostenverzamelstaat!N23","v":0},{"$f":"Kostenverzamelstaat!K23-Kostenverzamelstaat!L23","v":0},{"$f":"Kostenverzamelstaat!I23-Kostenverzamelstaat!J23","v":0}]
[null,null,null," 821 Netto continuïteitsbijdrage COVID (basisverzekering)",null,null,null,null,null,{"$f":"Kostenverzamelstaat!M24-Kostenverzamelstaat!N24","v":0}]
[null,null,null," 520 Farmaceutische zorg",null,null,null,null,null,{"$f":"Kostenverzamelstaat!M27-Kostenverzamelstaat!N27","v":0},{"$f":"Kostenverzamelstaat!K27-Kostenverzamelstaat!L27","v":0},{"$f":"Kostenverzamelstaat!I27-Kostenverzamelstaat!J27","v":0}]
[null,null,null," 822 Netto continuïteitsbijdrage COVID (basisverzekering)",null,null,null,null,null,{"$f":"Kostenverzamelstaat!M28-Kostenverzamelstaat!N28","v":0}]
[null,null,null," 530 Kosten van verpleging en verzorging",null,null,null,null,null,{"$f":"(Kostenverzamelstaat!M31+'Specifieke informatie B'!I26)-(Kostenverzamelstaat!N31+'Specifieke informatie B'!J26)","v":0},{"$f":"Kostenverzamelstaat!K31-Kostenverzamelstaat!L31","v":0},{"$f":"Kostenverzamelstaat!I31-Kostenverzamelstaat!J31","v":0}]
[null,null,null," 803.1 Meerkosten COVID-19, indirect",null,null,null,null,null,null,{"$f":"Kostenverzamelstaat!K32-Kostenverzamelstaat!L32","v":0}]
[null,null,null," 823 Netto continuïteitsbijdrage COVID (basisverzekering)",null,null,null,null,null,{"$f":"Kostenverzamelstaat!M33-Kostenverzamelstaat!N33","v":0}]
[null,null,null," 545 Kosten specialisten mondziekten en kaakchirurgie",null,null,null,null,null,{"$f":"Kostenverzamelstaat!M59-Kostenverzamelstaat!N59","v":0},{"$f":"Kostenverzamelstaat!K59-Kostenverzamelstaat!L59","v":0},{"$f":"Kostenverzamelstaat!I59-Kostenverzamelstaat!J59","v":0}]
[null,null,null," 560.1 Kosten mondzorg volwassen verzekerden",null,null,null,null,null,{"$f":"Kostenverzamelstaat!M36-Kostenverzamelstaat!N36","v":0},{"$f":"Kostenverzamelstaat!K36-Kostenverzamelstaat!L36","v":0},{"$f":"Kostenverzamelstaat!I36-Kostenverzamelstaat!J36","v":0}]
[null,null,null," 560.2 Kosten mondzorg jeugdige verzekerden",null,null,null,null,null,{"$f":"Kostenverzamelstaat!M37-Kostenverzamelstaat!N37","v":0},{"$f":"Kostenverzamelstaat!K37-Kostenverzamelstaat!L37","v":0},{"$f":"Kostenverzamelstaat!I37-Kostenverzamelstaat!J37","v":0}]
[null,null,null," 561 Kosten gebitsprothesen",null,null,null,null,null,{"$f":"Kostenverzamelstaat!M38-Kostenverzamelstaat!N38","v":0},{"$f":"Kostenverzamelstaat!K38-Kostenverzamelstaat!L38","v":0},{"$f":"Kostenverzamelstaat!I38-Kostenverzamelstaat!J38","v":0}]
[null,null,null," 824 Netto continuïteitsbijdrage COVID (basisverzekering)",null,null,null,null,null,{"$f":"Kostenverzamelstaat!M39-Kostenverzamelstaat!N39","v":0}]
[null,null,null," 580 Kosten verloskundige zorg door verloskundigen",null,null,null,null,null,{"$f":"Kostenverzamelstaat!M42-Kostenverzamelstaat!N42","v":0},{"$f":"Kostenverzamelstaat!K42-Kostenverzamelstaat!L42","v":0},{"$f":"Kostenverzamelstaat!I42-Kostenverzamelstaat!J42","v":0}]
[null,null,null," 582 Kosten Integrale geboortezorg ",null,null,null,null,null,{"$f":"Kostenverzamelstaat!M43-Kostenverzamelstaat!N43","v":0},{"$f":"Kostenverzamelstaat!K43-Kostenverzamelstaat!L43","v":0},{"$f":"Kostenverzamelstaat!I43-Kostenverzamelstaat!J43","v":0}]
[null,null,null," 825 Netto continuïteitsbijdrage COVID (basisverzekering)",null,null,null,null,null,{"$f":"Kostenverzamelstaat!M44-Kostenverzamelstaat!N44","v":0}]
[null,null,null," 610 Overige kosten ziekenhuiszorg en curatieve zorg",null,null,null,null,null,{"$f":"Kostenverzamelstaat!M60-Kostenverzamelstaat!N60","v":0},{"$f":"Kostenverzamelstaat!K60-Kostenverzamelstaat!L60","v":0}]
[null,null,null," 610.1  NTS",null,null,null,null,null,null,null,{"$f":"Kostenverzamelstaat!I61-Kostenverzamelstaat!J61","v":0}]
[null,null,null," 610.2  Eerstelijnsdiagnostiek aangevraagd door eerstelijnszorg-aanbieders geleverd door huisartsenlaboratoria en Trombosediensten",null,null,null,null,null,null,null,{"$f":"Kostenverzamelstaat!I62-Kostenverzamelstaat!J62","v":0}]
[null,null,null," 611 Overige zorgproducten",null,null,null,null,null,{"$f":"Kostenverzamelstaat!M63-Kostenverzamelstaat!N63","v":0},{"$f":"Kostenverzamelstaat!K63-Kostenverzamelstaat!L63","v":0},{"$f":"Kostenverzamelstaat!I63-Kostenverzamelstaat!J63","v":0}]
[null,null,null," 612.1 Kosten add-ons - Dure geneesmiddelen",null,null,null,null,null,{"$f":"Kostenverzamelstaat!M64-Kostenverzamelstaat!N64","v":0},{"$f":"Kostenverzamelstaat!K64-Kostenverzamelstaat!L64","v":0},{"$f":"Kostenverzamelstaat!I64-Kostenverzamelstaat!J64","v":0}]
[null,null,null," 612.2 Kosten add-ons - IC",null,null,null,null,null,{"$f":"(Kostenverzamelstaat!M65+'Specifieke informatie B'!I48)-(Kostenverzamelstaat!N65+'Specifieke informatie B'!J48)","v":0},{"$f":"Kostenverzamelstaat!K65-Kostenverzamelstaat!L65","v":0},{"$f":"Kostenverzamelstaat!I65-Kostenverzamelstaat!J65","v":0}]
[null,null,null," 613.1 Integrale kosten van DBC-zorgproduct gereguleerde segment ",null,null,null,null,null,{"$f":"(Kostenverzamelstaat!M66+'Specifieke informatie B'!I49)-(Kostenverzamelstaat!N66+'Specifieke informatie B'!J49)","v":0},{"$f":"Kostenverzamelstaat!K66-Kostenverzamelstaat!L66","v":0},{"$f":"Kostenverzamelstaat!I66-Kostenverzamelstaat!J66","v":0}]
[null,null,null," 615.1 Integrale kosten van DBC-zorgproduct vrije segment",null,null,null,null,null,{"$f":"(Kostenverzamelstaat!M67+'Specifieke informatie B'!I50)-(Kostenverzamelstaat!N67+'Specifieke informatie B'!J50)","v":0},{"$f":"Kostenverzamelstaat!K67-Kostenverzamelstaat!L67","v":0},{"$f":"Kostenverzamelstaat!I67-Kostenverzamelstaat!J67","v":0}]
[null,null,null," 619 Integrale kosten extramuraal werkende specialisten",null,null,null,null,null,{"$f":"Kostenverzamelstaat!M68-Kostenverzamelstaat!N68","v":0},{"$f":"Kostenverzamelstaat!K68-Kostenverzamelstaat!L68","v":0},{"$f":"Kostenverzamelstaat!I68-Kostenverzamelstaat!J68","v":0}]
[null,null,null," 806.1 Meerkosten COVID-19, indirect",null,null,null,null,null,null,{"$f":"(Kostenverzamelstaat!K69+'Specifieke informatie B'!K51)-(Kostenverzamelstaat!L69+'Specifieke informatie B'!L51)","v":0}]
[null,null,null," 806.2 Meerkosten COVID-19, toeslagen",null,null,null,null,null,null,{"$f":"Kostenverzamelstaat!K70-Kostenverzamelstaat!L70","v":0},{"$f":"Kostenverzamelstaat!I70-Kostenverzamelstaat!J70","v":0}]
[null,null,null," 826 Netto continuïteitsbijdrage COVID (basisverzekering)",null,null,null,null,null,{"$f":"Kostenverzamelstaat!M71-Kostenverzamelstaat!N71","v":0}]
[null,null,null," 620 Kosten fysiotherapie",null,null,null,null,null,{"$f":"(Kostenverzamelstaat!M74+'Specifieke informatie B'!I55)-(Kostenverzamelstaat!N74+'Specifieke informatie B'!J55)","v":0},{"$f":"Kostenverzamelstaat!K74-Kostenverzamelstaat!L74","v":0},{"$f":"Kostenverzamelstaat!I74-Kostenverzamelstaat!J74","v":0}]
[null,null,null," 621 Kosten oefentherapie Mensendieck/Cesar",null,null,null,null,null,{"$f":"(Kostenverzamelstaat!M75+'Specifieke informatie B'!I56)-(Kostenverzamelstaat!N75+'Specifieke informatie B'!J56)","v":0},{"$f":"Kostenverzamelstaat!K75-Kostenverzamelstaat!L75","v":0},{"$f":"Kostenverzamelstaat!I75-Kostenverzamelstaat!J75","v":0}]
[null,null,null," 623 Kosten logopedie",null,null,null,null,null,{"$f":"(Kostenverzamelstaat!M76+'Specifieke informatie B'!I57)-(Kostenverzamelstaat!N76+'Specifieke informatie B'!J57)","v":0},{"$f":"Kostenverzamelstaat!K76-Kostenverzamelstaat!L76","v":0},{"$f":"Kostenverzamelstaat!I76-Kostenverzamelstaat!J76","v":0}]
[]
[]
[]
[]
[null,null,null,{"$f":"NOW()","v":"2023-03-30T09:44:40.860"},null,null,null,null,null,null,null,{"$f":"CONCATENATE(\"Controleoverzicht \",LOWER(A6))","v":"Controleoverzicht pagina 1"}]
[]
["Pagina 2",null,null,{"$f":"CONCATENATE(\"KWARTAALSTAAT ZVW \", jaar_id,\" \",kwartaal_id,\"E KWARTAAL\")","v":"KWARTAALSTAAT ZVW 2023 2E KWARTAAL"}]
[null,null,null,"CONTROLEOVERZICHT"]
[null,null,null,{"$f":"IF(naw_uzovi_zorgverzekeraar<>\"0000\",CONCATENATE(UPPER(naw_naam_zorgverzekeraar),\", \",UPPER(naw_plaats_zorgverzekeraar)),\"\")","v":""},null,null,null,null,null,null,null,{"$f":"CONCATENATE(\"UZOVI: \",naw_uzovi_zorgverzekeraar)","v":"UZOVI: 0000"}]
[null,null,null,"SPECIFIEKE INFORMATIE A - vervolg"]
[null,null,null," KOSTENVERZAMELSTAAT",null,null,null,null,null,{"$f":"CONCATENATE(\"Kosten balanspost  \", jaar_id-2)","v":"Kosten balanspost  2021"},{"$f":"CONCATENATE(\"Kosten balanspost  \", jaar_id-1)","v":"Kosten balanspost  2022"},{"$f":"CONCATENATE(\"Kosten balanspost  \", jaar_id)","v":"Kosten balanspost  2023"}]
[]
[null,null,null," 624 Kosten ergotherapie",null,null,null,null,null,{"$f":"(Kostenverzamelstaat!M77+'Specifieke informatie B'!I58)-(Kostenverzamelstaat!N77+'Specifieke informatie B'!J58)","v":0},{"$f":"Kostenverzamelstaat!K77-Kostenverzamelstaat!L77","v":0},{"$f":"Kostenverzamelstaat!I77-Kostenverzamelstaat!J77","v":0}]
[null,null,null," 625 Kosten dieetadvisering ",null,null,null,null,null,{"$f":"(Kostenverzamelstaat!M78+'Specifieke informatie B'!I59)-(Kostenverzamelstaat!N78+'Specifieke informatie B'!J59)","v":0},{"$f":"Kostenverzamelstaat!K78-Kostenverzamelstaat!L78","v":0},{"$f":"Kostenverzamelstaat!I78-Kostenverzamelstaat!J78","v":0}]
[null,null,null," 626 Gecombineerde Leefstijl Interventie (GLI)",null,null,null,null,null,{"$f":"Kostenverzamelstaat!M79-Kostenverzamelstaat!N79","v":0},{"$f":"Kostenverzamelstaat!K79-Kostenverzamelstaat!L79","v":0},{"$f":"Kostenverzamelstaat!I79-Kostenverzamelstaat!J79","v":0}]
[null,null,null," 827 Netto continuïteitsbijdrage COVID (basisverzekering)",null,null,null,null,null,{"$f":"Kostenverzamelstaat!M80-Kostenverzamelstaat!N80","v":0}]
[null,null,null," 640 Hulpmiddelenzorg",null,null,null,null,null,{"$f":"Kostenverzamelstaat!M83-Kostenverzamelstaat!N83","v":0},{"$f":"Kostenverzamelstaat!K83-Kostenverzamelstaat!L83","v":0},{"$f":"Kostenverzamelstaat!I83-Kostenverzamelstaat!J83","v":0}]
[null,null,null," 828 Netto continuïteitsbijdrage COVID (basisverzekering)",null,null,null,null,null,{"$f":"Kostenverzamelstaat!M84-Kostenverzamelstaat!N84","v":0}]
[null,null,null," 650 Kosten vervoer per ambulance/helikopter",null,null,null,null,null,{"$f":"(Kostenverzamelstaat!M87+'Specifieke informatie B'!I66)-(Kostenverzamelstaat!N87+'Specifieke informatie B'!J66)","v":0},{"$f":"Kostenverzamelstaat!K87-Kostenverzamelstaat!L87","v":0},{"$f":"Kostenverzamelstaat!I87-Kostenverzamelstaat!J87","v":0}]
[null,null,null," 650.1 Opbrengstenverrekeningen regionale ambulancevoorzieningen",null,null,null,null,null,{"$f":"Kostenverzamelstaat!M88-Kostenverzamelstaat!N88","v":0},{"$f":"Kostenverzamelstaat!K88-Kostenverzamelstaat!L88","v":0},{"$f":"Kostenverzamelstaat!I88-Kostenverzamelstaat!J88","v":0}]
[null,null,null," 651 Kosten vervoer per openbaar vervoer, taxi en eigen auto",null,null,null,null,null,{"$f":"Kostenverzamelstaat!M89-Kostenverzamelstaat!N89","v":0},{"$f":"Kostenverzamelstaat!K89-Kostenverzamelstaat!L89","v":0},{"$f":"Kostenverzamelstaat!I89-Kostenverzamelstaat!J89","v":0}]
[null,null,null," 829 Netto continuïteitsbijdrage COVID (basisverzekering)",null,null,null,null,null,{"$f":"Kostenverzamelstaat!M90-Kostenverzamelstaat!N90","v":0}]
[null,null,null," 661 Kosten specialistische GGZ met verblijf",null,null,null,null,null,{"$f":"Kostenverzamelstaat!M105-Kostenverzamelstaat!N105","v":0}]
[null,null,null," 661.1 Kosten LGGZ (langdurige GGZ, jaar 2 en 3)",null,null,null,null,null,{"$f":"Kostenverzamelstaat!M106-Kostenverzamelstaat!N106","v":0}]
[null,null,null," 662 Kosten specialistische GGZ zonder verblijf",null,null,null,null,null,{"$f":"Kostenverzamelstaat!M107-Kostenverzamelstaat!N107","v":0}]
[null,null,null," 665 Generalistische basis GGZ",null,null,null,null,null,{"$f":"Kostenverzamelstaat!M108-Kostenverzamelstaat!N108","v":0}]
[null,null,null," 666 1.1 Kosten consulten GGZ",null,null,null,null,null,null,{"$f":"Kostenverzamelstaat!K109-Kostenverzamelstaat!L109","v":0},{"$f":"Kostenverzamelstaat!I109-Kostenverzamelstaat!J109","v":0}]
[null,null,null," 667 Kosten intramuraal verblijf GGZ",null,null,null,null,null,null,{"$f":"Kostenverzamelstaat!K110-Kostenverzamelstaat!L110","v":0},{"$f":"Kostenverzamelstaat!I110-Kostenverzamelstaat!J110","v":0}]
[null,null,null," 668 overige prestaties GGZ",null,null,null,null,null,null,{"$f":"Kostenverzamelstaat!K111-Kostenverzamelstaat!L111","v":0},{"$f":"Kostenverzamelstaat!I111-Kostenverzamelstaat!J111","v":0}]
[null,null,null," 810.1 Meerkosten COVID-19, indirect",null,null,null,null,null,null,{"$f":"Kostenverzamelstaat!K112-Kostenverzamelstaat!L112","v":0}]
[null,null,null," 830 Netto continuïteitsbijdrage COVID (basisverzekering)",null,null,null,null,null,{"$f":"Kostenverzamelstaat!M113-Kostenverzamelstaat!N113","v":0}]
[null,null,null," 670 Geriatrische revalidatiezorg",null,null,null,null,null,{"$f":"(Kostenverzamelstaat!M116+'Specifieke informatie B'!I84)-(Kostenverzamelstaat!N116+'Specifieke informatie B'!J84)","v":0},{"$f":"Kostenverzamelstaat!K116-Kostenverzamelstaat!L116","v":0},{"$f":"Kostenverzamelstaat!I116-Kostenverzamelstaat!J116","v":0}]
[null,null,null," 831.1 Netto continuïteitsbijdrage COVID (basisverzekering)",null,null,null,null,null,{"$f":"Kostenverzamelstaat!M117-Kostenverzamelstaat!N117","v":0}]
[null,null,null," 811.1.1 Meerkosten COVID-19 indirect GRZ",null,null,null,null,null,null,{"$f":"Kostenverzamelstaat!K118-Kostenverzamelstaat!L118","v":0}]
[null,null,null," 671 Eerstelijnsverblijf (ELV)",null,null,null,null,null,{"$f":"(Kostenverzamelstaat!M119+'Specifieke informatie B'!I85)-(Kostenverzamelstaat!N119+'Specifieke informatie B'!J85)","v":0},{"$f":"Kostenverzamelstaat!K119-Kostenverzamelstaat!L119","v":0},{"$f":"Kostenverzamelstaat!I119-Kostenverzamelstaat!J119","v":0}]
[null,null,null," 831.2 Netto continuïteitsbijdrage COVID (basisverzekering)",null,null,null,null,null,{"$f":"Kostenverzamelstaat!M120-Kostenverzamelstaat!N120","v":0}]
[null,null,null," 811.2.1 Meerkosten COVID-19 indirect ELV",null,null,null,null,null,null,{"$f":"Kostenverzamelstaat!K121-Kostenverzamelstaat!L121","v":0}]
[null,null,null," 672 Geneeskundige  Zorg Specifieke Patiëntgroepen (GZSP)",null,null,null,null,null,{"$f":"Kostenverzamelstaat!M122-Kostenverzamelstaat!N122","v":0},{"$f":"Kostenverzamelstaat!K122-Kostenverzamelstaat!L122","v":0},{"$f":"Kostenverzamelstaat!I122-Kostenverzamelstaat!J122","v":0}]
[null,null,null," 831.3 Netto continuïteitsbijdrage COVID (basisverzekering)",null,null,null,null,null,{"$f":"Kostenverzamelstaat!M123-Kostenverzamelstaat!N123","v":0}]
[null,null,null," 811.3.1 Meerkosten COVID-19 indirect en toeslagen",null,null,null,null,null,null,{"$f":"Kostenverzamelstaat!K124-Kostenverzamelstaat!L124","v":0}]
[null,null,null," 680 Kraamzorg",null,null,null,null,null,{"$f":"Kostenverzamelstaat!M127-Kostenverzamelstaat!N127","v":0},{"$f":"Kostenverzamelstaat!K127-Kostenverzamelstaat!L127","v":0},{"$f":"Kostenverzamelstaat!I127-Kostenverzamelstaat!J127","v":0}]
[null,null,null," 812.1 Meerkosten COVID-19, indirect",null,null,null,null,null,null,{"$f":"Kostenverzamelstaat!K128-Kostenverzamelstaat!L128","v":0}]
[null,null,null," 832 Netto continuïteitsbijdrage COVID (basisverzekering)",null,null,null,null,null,{"$f":"Kostenverzamelstaat!M129-Kostenverzamelstaat!N129","v":0}]
[null,null,null," 700 Overige kosten",null,null,null,null,null,{"$f":"Kostenverzamelstaat!M132-Kostenverzamelstaat!N132","v":0},{"$f":"Kostenverzamelstaat!K132-Kostenverzamelstaat!L132","v":0},{"$f":"Kostenverzamelstaat!I132-Kostenverzamelstaat!J132","v":0}]
[null,null,null," 701 Overige geneeskundige zorg",null,null,null,null,null,{"$f":"Kostenverzamelstaat!M133-Kostenverzamelstaat!N133","v":0},{"$f":"Kostenverzamelstaat!K133-Kostenverzamelstaat!L133","v":0},{"$f":"Kostenverzamelstaat!I133-Kostenverzamelstaat!J133","v":0}]
[null,null,null," 702 Kosten van zorg zintuiglijk gehandicapten ",null,null,null,null,null,{"$f":"Kostenverzamelstaat!M134-Kostenverzamelstaat!N134","v":0},{"$f":"Kostenverzamelstaat!K134-Kostenverzamelstaat!L134","v":0},{"$f":"Kostenverzamelstaat!I134-Kostenverzamelstaat!J134","v":0}]
[null,null,null," 703 Transformatiemiddelen IZA",null,null,null,null,null,null,null,{"$f":"Kostenverzamelstaat!I135-Kostenverzamelstaat!J135","v":0}]
[null,null,null," 813.1 Meerkosten COVID-19, indirect",null,null,null,null,null,null,{"$f":"Kostenverzamelstaat!K136-Kostenverzamelstaat!L136","v":0}]
[null,null,null," 833 Netto continuïteitsbijdrage COVID (basisverzekering)",null,null,null,null,null,{"$f":"Kostenverzamelstaat!M137-Kostenverzamelstaat!N137","v":0}]
[null,null,null," 720 Kosten via verzekeraar",null,null,null,null,null,{"$f":"Kostenverzamelstaat!M140-Kostenverzamelstaat!N140","v":0},{"$f":"Kostenverzamelstaat!K140-Kostenverzamelstaat!L140","v":0},{"$f":"Kostenverzamelstaat!I140-Kostenverzamelstaat!J140","v":0}]
[null,null,null," 721 Kosten via verbindingsorgaan",null,null,null,null,null,{"$f":"Kostenverzamelstaat!M141-Kostenverzamelstaat!N141","v":0},{"$f":"Kostenverzamelstaat!K141-Kostenverzamelstaat!L141","v":0},{"$f":"Kostenverzamelstaat!I141-Kostenverzamelstaat!J141","v":0}]
[null,null,null," 730 Kwaliteitsgelden",null,null,null,null,null,{"$f":"Kostenverzamelstaat!M144-Kostenverzamelstaat!N144","v":0},{"$f":"Kostenverzamelstaat!K144-Kostenverzamelstaat!L144","v":0},{"$f":"Kostenverzamelstaat!I144-Kostenverzamelstaat!J144","v":0}]
[]
[null,null,null,"VERGELIJKING SPECIFIEKE INFORMATIE A EN C"]
[null,null,null,"KOSTEN PER CODENUMMER\n(ONTVANGEN EN GEACCEPTEERDE DECLARATIES \nT/M 2e kwartaal 2023)",null,null,null,null,null,"Spec. inform. A\nkostenver-\nzamelstaat","Spec. inform. C\ndetail-\ninformatie","VERSCHIL"]
[]
[null,null,null," 610.2 Eerstelijnsdiagnostiek aangevraagd door eerstelijnszorg-aanbieders geleverd door huisartsenlaboratoria en Trombosediensten",null,null,null,null,null,{"$f":"Kostenverzamelstaat!J62","v":0},{"$f":"'Specifieke informatie C'!H$26","v":0},{"$f":"J115-K115","v":0}]
[null,null,null," 611 Overige zorgproducten (naar instelling)",null,null,null,null,null,{"$f":"Kostenverzamelstaat!J63","v":0},{"$f":"'Specifieke informatie C'!H$35","v":0},{"$f":"J116-K116","v":0}]
[null,null,null," 612.1 Kosten add-ons - Dure geneesmiddelen",null,null,null,null,null,{"$f":"Kostenverzamelstaat!J64","v":0},{"$f":"'Specifieke informatie C'!H$44","v":0},0]
[null,null,null," 612.2  Kosten add-ons - IC",null,null,null,null,null,{"$f":"Kostenverzamelstaat!J65","v":0},{"$f":"'Specifieke informatie C'!H$61","v":0},0]
[null,null,null," 613.1 Integrale kosten DBC-zorgproduct gereguleerd segment",null,null,null,null,null,{"$f":"Kostenverzamelstaat!J66","v":0},{"$f":"'Specifieke informatie C'!H$70","v":0},0]
[null,null,null," 615.1 Integrale kosten DBC-zorgproduct vrije segment",null,null,null,null,null,{"$f":"Kostenverzamelstaat!J67","v":0},{"$f":"'Specifieke informatie C'!H$79","v":0},0]
[]
[null,null,null,{"$f":"NOW()","v":"2023-03-30T09:44:40.860"},null,null,null,null,null,null,null,{"$f":"CONCATENATE(\"Controleoverzicht \",LOWER(A65))","v":"Controleoverzicht pagina 2"}]
[]
["Pagina 3",null,null,{"$f":"CONCATENATE(\"KWARTAALSTAAT ZVW \", jaar_id,\" \",kwartaal_id,\"E KWARTAAL\")","v":"KWARTAALSTAAT ZVW 2023 2E KWARTAAL"}]
[null,null,null,"CONTROLEOVERZICHT"]
[null,null,null,{"$f":"IF(naw_uzovi_zorgverzekeraar<>\"0000\",CONCATENATE(UPPER(naw_naam_zorgverzekeraar),\", \",UPPER(naw_plaats_zorgverzekeraar)),\"\")","v":""},null,null,null,null,null,null,null,{"$f":"CONCATENATE(\"UZOVI: \",naw_uzovi_zorgverzekeraar)","v":"UZOVI: 0000"}]
[]
[null,null,null,"VERGELIJKING SPECIFIEKE INFORMATIE A EN C - vervolg"]
[null,null,null,"KOSTEN PER CODENUMMER \n(ONTVANGEN EN GEACCEPTEERDE DECLARATIES) 2023 \n ",null,null,null,null,null,"Spec. inform. A\nkostenver-\nzamelstaat","Spec. inform. C\ndetail-\ninformatie","VERSCHIL"]
[]
[null,null,null," 701 Overige geneeskundige zorg",null,null,null,null,null,{"$f":"Kostenverzamelstaat!J133","v":0},{"$f":"'Specifieke informatie C'!L90","v":0},{"$f":"J131-K131","v":0}]
[null,null,null," 702 Kosten van zorg zintuiglijk gehandicapten ",null,null,null,null,null,{"$f":"Kostenverzamelstaat!J134","v":0},{"$f":"'Specifieke informatie C'!L96","v":0},{"$f":"J132-K132","v":0}]
[]
[null,null,null," KOSTEN PER CODENUMMER (KOSTEN INCLUSIEF BALANSPOST) 2023",null,null,null,null,null,"Spec. inform. A\nkostenver-\nzamelstaat","Spec. inform. C\ndetail-\ninformatie","VERSCHIL"]
[]
[null,null,null," 610.2 Eerstelijnsdiagnostiek aangevraagd door eerstelijnszorg-aanbieders geleverd door huisartsenlaboratoria en Trombosediensten",null,null,null,null,null,{"$f":"Kostenverzamelstaat!I62","v":0},{"$f":"'Specifieke informatie C'!G$26","v":0},{"$f":"J136-K136","v":0}]
[null,null,null," 611 Overige zorgproducten (naar instelling)",null,null,null,null,null,{"$f":"Kostenverzamelstaat!I63","v":0},{"$f":"'Specifieke informatie C'!G$35","v":0},{"$f":"J137-K137","v":0}]
[null,null,null," 612.1 Kosten add-ons - Dure geneesmiddelen",null,null,null,null,null,{"$f":"Kostenverzamelstaat!I64","v":0},{"$f":"'Specifieke informatie C'!G$44","v":0},0]
[null,null,null," 612.2  Kosten add-ons - IC",null,null,null,null,null,{"$f":"Kostenverzamelstaat!I65","v":0},{"$f":"'Specifieke informatie C'!G$61","v":0},0]
[null,null,null," 613.1 Integrale kosten DBC-zorgproduct gereguleerd segment",null,null,null,null,null,{"$f":"Kostenverzamelstaat!I66","v":0},{"$f":"'Specifieke informatie C'!G$70","v":0},0]
[null,null,null," 615.1 Integrale kosten DBC-zorgproduct vrije segment",null,null,null,null,null,{"$f":"Kostenverzamelstaat!I67","v":0},{"$f":"'Specifieke informatie C'!G$79","v":0},0]
[]
[null,null,null,"KOSTEN PER CODENUMMER \n(ONTVANGEN EN GEACCEPTEERDE DECLARATIES) 2022",null,null,null,null,null,"Spec. inform. A\nkostenver-\nzamelstaat","Spec. inform. C\ndetail-\ninformatie","VERSCHIL"]
[]
[null,null,null," 610 Overige kosten ziekenhuiszorg en curatieve zorg",null,null,null,null,null,{"$f":"Kostenverzamelstaat!L60","v":0},{"$f":"'Specifieke informatie C'!J$18","v":0},{"$f":"J145-K145","v":0}]
[null,null,null," 611 Overige zorgproducten (naar instelling)",null,null,null,null,null,{"$f":"Kostenverzamelstaat!L63","v":0},{"$f":"'Specifieke informatie C'!J$35","v":0},{"$f":"J146-K146","v":0}]
[null,null,null," 612.1 Kosten add-ons - Dure geneesmiddelen",null,null,null,null,null,{"$f":"Kostenverzamelstaat!L64","v":0},{"$f":"'Specifieke informatie C'!J$44","v":0},0]
[null,null,null," 612.2  Kosten add-ons - IC",null,null,null,null,null,{"$f":"Kostenverzamelstaat!L65","v":0},{"$f":"'Specifieke informatie C'!J$61","v":0},0]
[null,null,null," 613.1 Integrale kosten DBC-zorgproduct gereguleerd segment",null,null,null,null,null,{"$f":"Kostenverzamelstaat!L66","v":0},{"$f":"'Specifieke informatie C'!J$70","v":0},0]
[null,null,null," 615.1 Integrale kosten DBC-zorgproduct vrije segment",null,null,null,null,null,{"$f":"Kostenverzamelstaat!L67","v":0},{"$f":"'Specifieke informatie C'!J$79","v":0},0]
[]
[null,null,null,{"$f":"NOW()","v":"2023-03-30T09:44:40.860"},null,null,null,null,null,null,null,{"$f":"CONCATENATE(\"Controleoverzicht \",LOWER(A124))","v":"Controleoverzicht pagina 3"}]
[]
["Pagina 4",null,null,{"$f":"CONCATENATE(\"KWARTAALSTAAT ZVW \", jaar_id,\" \",kwartaal_id,\"E KWARTAAL\")","v":"KWARTAALSTAAT ZVW 2023 2E KWARTAAL"}]
[null,null,null,"CONTROLEOVERZICHT"]
[null,null,null,{"$f":"IF(naw_uzovi_zorgverzekeraar<>\"0000\",CONCATENATE(UPPER(naw_naam_zorgverzekeraar),\", \",UPPER(naw_plaats_zorgverzekeraar)),\"\")","v":""},null,null,null,null,null,null,null,{"$f":"CONCATENATE(\"UZOVI: \",naw_uzovi_zorgverzekeraar)","v":"UZOVI: 0000"}]
[]
[]
[null,null,null,"VERGELIJKING SPECIFIEKE INFORMATIE A EN C - vervolg"]
[null,null,null," KOSTEN PER CODENUMMER (KOSTEN INCLUSIEF BALANSPOST) 2022",null,null,null,null,null,"Spec. inform. A\nkostenver-\nzamelstaat","Spec. inform. C\ndetail-\ninformatie","VERSCHIL"]
[]
[null,null,null," 610 Overige kosten ziekenhuiszorg en curatieve zorg",null,null,null,null,null,{"$f":"Kostenverzamelstaat!K60","v":0},{"$f":"'Specifieke informatie C'!I$18","v":0},{"$f":"J162-K162","v":0}]
[null,null,null," 611 Overige zorgproducten (naar instelling)",null,null,null,null,null,{"$f":"Kostenverzamelstaat!K63","v":0},{"$f":"'Specifieke informatie C'!I$35","v":0},{"$f":"J163-K163","v":0}]
[null,null,null," 612.1 Kosten add-ons - Dure geneesmiddelen",null,null,null,null,null,{"$f":"Kostenverzamelstaat!K64","v":0},{"$f":"'Specifieke informatie C'!I$44","v":0},0]
[null,null,null," 612.2  Kosten add-ons - IC",null,null,null,null,null,{"$f":"Kostenverzamelstaat!K65","v":0},{"$f":"'Specifieke informatie C'!I$61","v":0},0]
[null,null,null," 613.1 Integrale kosten DBC-zorgproduct gereguleerd segment",null,null,null,null,null,{"$f":"Kostenverzamelstaat!K66","v":0},{"$f":"'Specifieke informatie C'!I$70","v":0},0]
[null,null,null," 615.1 Integrale kosten DBC-zorgproduct vrije segment",null,null,null,null,null,{"$f":"Kostenverzamelstaat!K67","v":0},{"$f":"'Specifieke informatie C'!I$79","v":0},0]
[]
[null,null,null,"KOSTEN PER CODENUMMER \n(ONTVANGEN EN GEACCEPTEERDE DECLARATIES \n M.B.T. 2021 EN OUDER)",null,null,null,null,null,"Spec. inform. A\nkostenver-\nzamelstaat","Spec. inform. C\ndetail-\ninformatie","VERSCHIL"]
[]
[null,null,null," 610 Overige kosten ziekenhuiszorg en curatieve zorg",null,null,null,null,null,{"$f":"Kostenverzamelstaat!N60","v":0},{"$f":"'Specifieke informatie C'!L$18","v":0},{"$f":"J171-K171","v":0}]
[null,null,null," 611 Overige zorgproducten (naar instelling)",null,null,null,null,null,{"$f":"Kostenverzamelstaat!N63","v":0},{"$f":"'Specifieke informatie C'!L$35","v":0},{"$f":"J172-K172","v":0}]
[null,null,null," 612.1 Kosten add-ons - Dure geneesmiddelen",null,null,null,null,null,{"$f":"Kostenverzamelstaat!N64","v":0},{"$f":"'Specifieke informatie C'!L$44","v":0},0]
[null,null,null," 612.2  Kosten add-ons - IC",null,null,null,null,null,{"$f":"Kostenverzamelstaat!N65+'Specifieke informatie B'!J48","v":0},{"$f":"'Specifieke informatie C'!L$61","v":0},0]
[null,null,null," 613.1 Integrale kosten DBC-zorgproduct gereguleerd segment",null,null,null,null,null,{"$f":"Kostenverzamelstaat!N66+'Specifieke informatie B'!J49","v":0},{"$f":"'Specifieke informatie C'!L$70","v":0},0]
[null,null,null," 615.1 Integrale kosten DBC-zorgproduct vrije segment",null,null,null,null,null,{"$f":"Kostenverzamelstaat!N67+'Specifieke informatie B'!J50","v":0},{"$f":"'Specifieke informatie C'!L$79","v":0},0]
[]
[null,null,null," KOSTEN PER CODENUMMER \n (KOSTEN INCLUSIEF BALANSPOST) 2021 EN OUDER",null,null,null,null,null,"Spec. inform. A\nkostenver-\nzamelstaat","Spec. inform. C\ndetail-\ninformatie","VERSCHIL"]
[]
[null,null,null," 610 Overige kosten ziekenhuiszorg en curatieve zorg",null,null,null,null,null,{"$f":"Kostenverzamelstaat!M60","v":0},{"$f":"'Specifieke informatie C'!K$18","v":0},{"$f":"J180-K180","v":0}]
[null,null,null," 611 Overige zorgproducten (naar instelling)",null,null,null,null,null,{"$f":"Kostenverzamelstaat!M63","v":0},{"$f":"'Specifieke informatie C'!K$35","v":0},{"$f":"J181-K181","v":0}]
[null,null,null," 612.1 Kosten add-ons - Dure geneesmiddelen",null,null,null,null,null,{"$f":"Kostenverzamelstaat!M64","v":0},{"$f":"'Specifieke informatie C'!K$44","v":0},0]
[null,null,null," 612.2  Kosten add-ons - IC",null,null,null,null,null,{"$f":"Kostenverzamelstaat!M65+'Specifieke informatie B'!I48","v":0},{"$f":"'Specifieke informatie C'!K$61","v":0},0]
[null,null,null," 613.1 Integrale kosten DBC-zorgproduct gereguleerd segment",null,null,null,null,null,{"$f":"Kostenverzamelstaat!M66+'Specifieke informatie B'!I49","v":0},{"$f":"'Specifieke informatie C'!K$70","v":0},0]
[null,null,null," 615.1 Integrale kosten DBC-zorgproduct vrije segment",null,null,null,null,null,{"$f":"Kostenverzamelstaat!M67+'Specifieke informatie B'!I50","v":0},{"$f":"'Specifieke informatie C'!K$79","v":0},0]
[]
[null,null,null," Controle code 505 kostenverzamelstaat",null,null,null,null,null,null,null,{"$f":"Kostenverzamelstaat!I18","v":0}]
[null,null,null," Kosten per verzekerde o.b.v. laatst bekende verzekerdenstand (in hele euro's)",null,null,null,null,null,null,null,{"$f":"IF(L187<>0,(L187/L12),0)","v":0}]
[null,null,null,{"$f":"IF(OR(L188>kwartaal_id*112),\"Attentiebericht: Kosten per verzekerde liggen buiten het verwachte bereik. Controleer de kostenverzamelstaat!\",\"\")","v":""}]
[]
[null,null,null,"VERGELIJKING SPECIFIEKE INFORMATIE A EN C (Contractinformatie)"]
[null,null,null," KOSTEN PER RUBRIEK OF CODENUMMER \n (KOSTEN INCLUSIEF BALANSPOST) 2023",null,null,null,null,null,"Spec. inform. A\nkostenver-\nzamelstaat","Spec. inform. C\ncontract-\ninformatie","VERSCHIL"]
[]
[null,null,null," Huisartsenzorg en Multidisciplinaire Zorg, rubriek 01"]
[null,null,null," Verpleging en Verzorging, rubriek 03"]
[null,null,null," Medisch Specialistische zorg, rubriek 06"]
[null,null,null," Geneeskundige Geestelijke Gezondheidszorg, rubriek 10"]
[null,null,null," Zintuiglijk Gehandicapten, code 702"]
[null,null,null,"Geriatrische Revalidatie, Eerstelijnsverblijf en Geneeskundige zorg specifieke patinetgroepen, rubriek 11"]
[null,null,null,{"$f":"NOW()","v":"2023-03-30T09:44:40.860"},null,null,null,null,null,null,null,{"$f":"CONCATENATE(\"Controleoverzicht \",LOWER(A154))","v":"Controleoverzicht pagina 4"}]

{"sheet":"Blad1","index":12,"n_rows":1058,"n_cols":17,"rows_kept":1058,"cut":false,"hidden":true,"merged":[]}
[]
[]
[]
[]
[]
[]
[]
[]
[]
[]
[]
[null,null,null,null,"vcd_spec_idvar","vcd_waarde_flt","vcd_waarde_txt","vcd_toelichting_txt","vcd_spec1_idvar","vcd_spec2_idvar","vcd_spec3_idvar","vcd_attrib_idvar","vcd_eenheid_txt","vcd_dsnorder_flt","vcd_datatype_txt","vcd_format_txt","vcd_eenheid_flt"]
[null,null,null,null,"xstaat_kdrwet_id_","*=0","ZVQ2","Excel numeriek om te zetten sleutel kdrwet via waarden","xstaat","kdrwet","id","","",null,"C",""]
[null,null,null,null,"xstaat_kdrwet_idjmd_","*=0",20230630,"Excel numeriek om te zetten sleutel kdrwet periode","xstaat","kdrwet","idjmd","","",null,"C",""]
[null,null,null,null,"xstaat_uzovi_filename_","*=0","*=CEL(\"bestandsnaam\")","Excel numeriek filenaam bevat ook sleutels","xstaat","uzovi","filename","","",null,"C",""]
[null,null,null,null,"xstaat_uzovi_id_","*=0","*=NUMERIEKE.WAARDE(NAW_gegevens!$C$6)","Excel numeriek om te zetten sleutel uzovi","xstaat","uzovi","id","","",null,"C",""]
[null,null,null,null,"xstaat_uzovi_idvrs_","*=0","01","Excel numeriek om te zetten sleutel uzovi versie levering","xstaat","uzovi","idvrs","","",null,"C",""]
[null,null,null,null,"zvkx01_c503__TY0V01","*=Kostenverzamelstaat!$I$16","","Huisartsen- bijz betalingen- incl balans","zvkx01","c503","","TY0V01","Euro's",null,"N","",1]
[null,null,null,null,"zvkx01_a503__TY0V01","*=Kostenverzamelstaat!$J$16","","Huisartsen- bijz betalingen- geaccepteerd","zvkx01","a503","","TY0V01","Euro's",null,"N","",1]
[null,null,null,null,"zvkx01_c503__TY1V01","*=Kostenverzamelstaat!$K$16","","Huisartsen- bijz betalingen- incl balans","zvkx01","c503","","TY1V01","Euro's",null,"N","",1]
[null,null,null,null,"zvkx01_a503__TY1V01","*=Kostenverzamelstaat!$L$16","","Huisartsen- bijz betalingen- geaccepteerd","zvkx01","a503","","TY1V01","Euro's",null,"N","",1]
[null,null,null,null,"zvkx01_c503__TY2V01","*=Kostenverzamelstaat!$M$16","","Huisartsen- bijz betalingen- incl balans","zvkx01","c503","","TY2V01","Euro's",null,"N","",1]
[null,null,null,null,"zvkx01_a503__TY2V01","*=Kostenverzamelstaat!$N$16","","Huisartsen- bijz betalingen- geaccepteerd","zvkx01","a503","","TY2V01","Euro's",null,"N","",1]
[null,null,null,null,"zvkx01_c504__TY0V01","*=Kostenverzamelstaat!$I$17","","Huisartsen- bijz diensttijden- incl balans","zvkx01","c504","","TY0V01","Euro's",null,"N","",1]
[null,null,null,null,"zvkx01_a504__TY0V01","*=Kostenverzamelstaat!$J$17","","Huisartsen- bijz diensttijden- geaccepteerd","zvkx01","a504","","TY0V01","Euro's",null,"N","",1]
[null,null,null,null,"zvkx01_c504__TY1V01","*=Kostenverzamelstaat!$K$17","","Huisartsen- bijz diensttijden- incl balans","zvkx01","c504","","TY1V01","Euro's",null,"N","",1]
[null,null,null,null,"zvkx01_a504__TY1V01","*=Kostenverzamelstaat!$L$17","","Huisartsen- bijz diensttijden- geaccepteerd","zvkx01","a504","","TY1V01","Euro's",null,"N","",1]
[null,null,null,null,"zvkx01_c504__TY2V01","*=Kostenverzamelstaat!$M$17","","Huisartsen- bijz diensttijden- incl balans","zvkx01","c504","","TY2V01","Euro's",null,"N","",1]
[null,null,null,null,"zvkx01_a504__TY2V01","*=Kostenverzamelstaat!$N$17","","Huisartsen- bijz diensttijden- geaccepteerd","zvkx01","a504","","TY2V01","Euro's",null,"N","",1]
[null,null,null,null,"zvkx01_c505__TY0V01","*=Kostenverzamelstaat!$I$18","","Huisartsen- Inschrijvingen- incl balans","zvkx01","c505","","TY0V01","Euro's",null,"N","",1]
[null,null,null,null,"zvkx01_a505__TY0V01","*=Kostenverzamelstaat!$J$18","","Huisartsen- Inschrijvingen- geaccepteerd","zvkx01","a505","","TY0V01","Euro's",null,"N","",1]
[null,null,null,null,"zvkx01_c505__TY1V01","*=Kostenverzamelstaat!$K$18","","Huisartsen- Inschrijvingen- incl balans","zvkx01","c505","","TY1V01","Euro's",null,"N","",1]
[null,null,null,null,"zvkx01_a505__TY1V01","*=Kostenverzamelstaat!$L$18","","Huisartsen- Inschrijvingen- geaccepteerd","zvkx01","a505","","TY1V01","Euro's",null,"N","",1]
[null,null,null,null,"zvkx01_c505__TY2V01","*=Kostenverzamelstaat!$M$18","","Huisartsen- Inschrijvingen- incl balans","zvkx01","c505","","TY2V01","Euro's",null,"N","",1]
[null,null,null,null,"zvkx01_a505__TY2V01","*=Kostenverzamelstaat!$N$18","","Huisartsen- Inschrijvingen- geaccepteerd","zvkx01","a505","","TY2V01","Euro's",null,"N","",1]
[null,null,null,null,"zvkx01_c506__TY0V01","*=Kostenverzamelstaat!$I$19","","Huisartsen- Consult- incl balans","zvkx01","c506","","TY0V01","Euro's",null,"N","",1]
[null,null,null,null,"zvkx01_a506__TY0V01","*=Kostenverzamelstaat!$J$19","","Huisartsen- Consult- geaccepteerd","zvkx01","a506","","TY0V01","Euro's",null,"N","",1]
[null,null,null,null,"zvkx01_c506__TY1V01","*=Kostenverzamelstaat!$K$19","","Huisartsen- Consult- incl balans","zvkx01","c506","","TY1V01","Euro's",null,"N","",1]
[null,null,null,null,"zvkx01_a506__TY1V01","*=Kostenverzamelstaat!$L$19","","Huisartsen- Consult- geaccepteerd","zvkx01","a506","","TY1V01","Euro's",null,"N","",1]
[null,null,null,null,"zvkx01_c506__TY2V01","*=Kostenverzamelstaat!$M$19","","Huisartsen- Consult- incl balans","zvkx01","c506","","TY2V01","Euro's",null,"N","",1]
[null,null,null,null,"zvkx01_a506__TY2V01","*=Kostenverzamelstaat!$N$19","","Huisartsen- Consult- geaccepteerd","zvkx01","a506","","TY2V01","Euro's",null,"N","",1]
[null,null,null,null,"zvkx01_c507__TY0V01","*=Kostenverzamelstaat!$I$20","","Huisartsen- Overige- incl balans","zvkx01","c507","","TY0V01","Euro's",null,"N","",1]
[null,null,null,null,"zvkx01_a507__TY0V01","*=Kostenverzamelstaat!$J$20","","Huisartsen- Overige- geaccepteerd","zvkx01","a507","","TY0V01","Euro's",null,"N","",1]
[null,null,null,null,"zvkx01_c507__TY1V01","*=Kostenverzamelstaat!$K$20","","Huisartsen- Overige- incl balans","zvkx01","c507","","TY1V01","Euro's",null,"N","",1]
[null,null,null,null,"zvkx01_a507__TY1V01","*=Kostenverzamelstaat!$L$20","","Huisartsen- Overige- geaccepteerd","zvkx01","a507","","TY1V01","Euro's",null,"N","",1]
[null,null,null,null,"zvkx01_c507__TY2V01","*=Kostenverzamelstaat!$M$20","","Huisartsen- Overige- incl balans","zvkx01","c507","","TY2V01","Euro's",null,"N","",1]
[null,null,null,null,"zvkx01_a507__TY2V01","*=Kostenverzamelstaat!$N$20","","Huisartsen- Overige- geaccepteerd","zvkx01","a507","","TY2V01","Euro's",null,"N","",1]
[null,null,null,null,"zvkx01_c510__TY0V01","*=Kostenverzamelstaat!$I$21","","Huisartsen- MDZ- incl balans","zvkx01","c510","","TY0V01","Euro's",null,"N","",1]
[null,null,null,null,"zvkx01_a510__TY0V01","*=Kostenverzamelstaat!$J$21","","Huisartsen- MDZ- geaccepteerd","zvkx01","a510","","TY0V01","Euro's",null,"N","",1]
[null,null,null,null,"zvkx01_c510__TY1V01","*=Kostenverzamelstaat!$K$21","","Huisartsen- MDZ- incl balans","zvkx01","c510","","TY1V01","Euro's",null,"N","",1]
[null,null,null,null,"zvkx01_a510__TY1V01","*=Kostenverzamelstaat!$L$21","","Huisartsen- MDZ- geaccepteerd","zvkx01","a510","","TY1V01","Euro's",null,"N","",1]
[null,null,null,null,"zvkx01_c510__TY2V01","*=Kostenverzamelstaat!$M$21","","Huisartsen- MDZ- incl balans","zvkx01","c510","","TY2V01","Euro's",null,"N","",1]
[null,null,null,null,"zvkx01_a510__TY2V01","*=Kostenverzamelstaat!$N$21","","Huisartsen- MDZ- geaccepteerd","zvkx01","a510","","TY2V01","Euro's",null,"N","",1]
[null,null,null,null,"zvkx01_c515__TY0V01","*=Kostenverzamelstaat!$I$22","","Huisartsen- Resultaatbel. huisartsen- incl balans","zvkx01","c515","","TY0V01","Euro's",null,"N","",1]
[null,null,null,null,"zvkx01_a515__TY0V01","*=Kostenverzamelstaat!$J$22","","Huisartsen- Resultaatbel. huisartsen- geaccepteerd","zvkx01","a515","","TY0V01","Euro's",null,"N","",1]
[null,null,null,null,"zvkx01_c515__TY1V01","*=Kostenverzamelstaat!$K$22","","Huisartsen- Resultaatbel. huisartsen- incl balans","zvkx01","c515","","TY1V01","Euro's",null,"N","",1]
[null,null,null,null,"zvkx01_a515__TY1V01","*=Kostenverzamelstaat!$L$22","","Huisartsen- Resultaatbel. huisartsen- geaccepteerd","zvkx01","a515","","TY1V01","Euro's",null,"N","",1]
[null,null,null,null,"zvkx01_c515__TY2V01","*=Kostenverzamelstaat!$M$22","","Huisartsen- Resultaatbel. huisartsen- incl balans","zvkx01","c515","","TY2V01","Euro's",null,"N","",1]
[null,null,null,null,"zvkx01_a515__TY2V01","*=Kostenverzamelstaat!$N$22","","Huisartsen- Resultaatbel. huisartsen- geaccepteerd","zvkx01","a515","","TY2V01","Euro's",null,"N","",1]
[null,null,null,null,"zvkx01_c516__TY0V01","*=Kostenverzamelstaat!$I$23","","Huisartsen- Resultaatbel. MDZ- incl balans","zvkx01","c516","","TY0V01","Euro's",null,"N","",1]
[null,null,null,null,"zvkx01_a516__TY0V01","*=Kostenverzamelstaat!$J$23","","Huisartsen- Resultaatbel. MDZ- geaccepteerd","zvkx01","a516","","TY0V01","Euro's",null,"N","",1]
[null,null,null,null,"zvkx01_c516__TY1V01","*=Kostenverzamelstaat!$K$23","","Huisartsen- Resultaatbel. MDZ- incl balans","zvkx01","c516","","TY1V01","Euro's",null,"N","",1]
[null,null,null,null,"zvkx01_a516__TY1V01","*=Kostenverzamelstaat!$L$23","","Huisartsen- Resultaatbel. MDZ- geaccepteerd","zvkx01","a516","","TY1V01","Euro's",null,"N","",1]
[null,null,null,null,"zvkx01_c516__TY2V01","*=Kostenverzamelstaat!$M$23","","Huisartsen- Resultaatbel. MDZ- incl balans","zvkx01","c516","","TY2V01","Euro's",null,"N","",1]
[null,null,null,null,"zvkx01_a516__TY2V01","*=Kostenverzamelstaat!$N$23","","Huisartsen- Resultaatbel. MDZ- geaccepteerd","zvkx01","a516","","TY2V01","Euro's",null,"N","",1]
[null,null,null,null,"zvkx01_c821__TY2V01","*=Kostenverzamelstaat!$M$24",null,"Huisartsen- Netto continuïteitsbijdrage Corona (basisverzekering)-  incl balans","zvkx01","c821",null,"TY2V01","Euro's",null,"N","",1]
[null,null,null,null,"zvkx01_a821__TY2V01","*=Kostenverzamelstaat!$N$24",null,"Huisartsen- Netto continuïteitsbijdrage Corona (basisverzekering)- geaccepteerd","zvkx01","a821",null,"TY2V01","Euro's",null,"N","",1]
[null,null,null,null,"zvkx01_c__TY0V01","*=Kostenverzamelstaat!$I$25"]
[null,null,null,null,"zvkx01_a__TY0V01","*=Kostenverzamelstaat!$J$25"]
[null,null,null,null,"zvkx01_c__TY1V01","*=Kostenverzamelstaat!$K$25"]
[null,null,null,null,"zvkx01_a__TY1V01","*=Kostenverzamelstaat!$L$25"]
[null,null,null,null,"zvkx01_c__TY2V01","*=Kostenverzamelstaat!$M$25"]
[null,null,null,null,"zvkx01_a__TY2V01","*=Kostenverzamelstaat!$N$25"]
[null,null,null,null,"zvkx02_c520__TY0V01","*=Kostenverzamelstaat!$I$27","","Farmaceutische hulp- incl balans","zvkx02","c520","","TY0V01","Euro's",null,"N","",1]
[null,null,null,null,"zvkx02_a520__TY0V01","*=Kostenverzamelstaat!$J$27","","Farmaceutische hulp- geaccepteerd","zvkx02","a520","","TY0V01","Euro's",null,"N","",1]
[null,null,null,null,"zvkx02_c520__TY1V01","*=Kostenverzamelstaat!$K$27","","Farmaceutische hulp- incl balans","zvkx02","c520","","TY1V01","Euro's",null,"N","",1]
[null,null,null,null,"zvkx02_a520__TY1V01","*=Kostenverzamelstaat!$L$27","","Farmaceutische hulp- geaccepteerd","zvkx02","a520","","TY1V01","Euro's",null,"N","",1]
[null,null,null,null,"zvkx02_c520__TY2V01","*=Kostenverzamelstaat!$M$27","","Farmaceutische hulp- incl balans","zvkx02","c520","","TY2V01","Euro's",null,"N","",1]
[null,null,null,null,"zvkx02_a520__TY2V01","*=Kostenverzamelstaat!$N$27","","Farmaceutische hulp- geaccepteerd","zvkx02","a520","","TY2V01","Euro's",null,"N","",1]
[null,null,null,null,"zvkx02_c822__TY2V01","*=Kostenverzamelstaat!$M$28",null,"Farmaceutische hulp-  Netto continuïteitsbijdrage Corona (basisverzekering)- incl balans","zvkx02","c822","","TY2V01","Euro's",null,"N","",1]
[null,null,null,null,"zvkx02_a822__TY2V01","*=Kostenverzamelstaat!$N$28",null,"Farmaceutische hulp-  Netto continuïteitsbijdrage Corona (basisverzekering)- geaccepteerd","zvkx02","a822","","TY2V01","Euro's",null,"N","",1]
[null,null,null,null,"zvkx02_c__TY0V01","*=Kostenverzamelstaat!$I$29"]
[null,null,null,null,"zvkx02_a__TY0V01","*=Kostenverzamelstaat!$J$29"]
[null,null,null,null,"zvkx02_c__TY1V01","*=Kostenverzamelstaat!$K$29"]
[null,null,null,null,"zvkx02_a__TY1V01","*=Kostenverzamelstaat!$L$29"]
[null,null,null,null,"zvkx02_c__TY2V01","*=Kostenverzamelstaat!$M$29"]
[null,null,null,null,"zvkx02_a__TY2V01","*=Kostenverzamelstaat!$N$29"]
[null,null,null,null,"zvkx03_c530__TY0V01","*=Kostenverzamelstaat!$I$31","","Verpleging en verzorging- incl balans","zvkx03","c530","","TY0V01","Euro's",null,"N","",1]
[null,null,null,null,"zvkx03_a530__TY0V01","*=Kostenverzamelstaat!$J$31","","Verpleging en verzorging- geaccepteerd","zvkx03","a530","","TY0V01","Euro's",null,"N","",1]
[null,null,null,null,"zvkx03_c530__TY1V01","*=Kostenverzamelstaat!$K$31","","Verpleging en verzorging- incl balans","zvkx03","c530","","TY1V01","Euro's",null,"N","",1]
[null,null,null,null,"zvkx03_a530__TY1V01","*=Kostenverzamelstaat!$L$31","","Verpleging en verzorging- geaccepteerd","zvkx03","a530","","TY1V01","Euro's",null,"N","",1]
[null,null,null,null,"zvkx03_c530__TY2V01","*=Kostenverzamelstaat!$M$31","","Verpleging en verzorging- incl balans","zvkx03","c530","","TY2V01","Euro's",null,"N","",1]
[null,null,null,null,"zvkx03_a530__TY2V01","*=Kostenverzamelstaat!$N$31","","Verpleging en verzorging- geaccepteerd","zvkx03","a530","","TY2V01","Euro's",null,"N","",1]
[null,null,null,null,"zvkx03_c8031__TY1V01","*=Kostenverzamelstaat!$K$32",null,"Verpleging en verzorging- Meerkosten Corona indirect- incl balans","zvkx03","c8031","","TY1V01","Euro's",null,"N","",1]
[null,null,null,null,"zvkx03_a8031__TY1V01","*=Kostenverzamelstaat!$L$32",null,"Verpleging en verzorging- Meerkosten Corona indirect- geaccepteerd","zvkx03","a8031","","TY1V01","Euro's",null,"N","",1]
[null,null,null,null,"zvkx03_c823__TY2V01","*=Kostenverzamelstaat!$M$33",null,"Verpleging en verzorging- Netto continuïteitsbijdrage Corona (basisverzekering)- incl balans","zvkx03","c823","","TY2V01","Euro's",null,"N","",1]
[null,null,null,null,"zvkx03_a823__TY2V01","*=Kostenverzamelstaat!$N$33",null,"Verpleging en verzorging- Netto continuïteitsbijdrage Corona (basisverzekering)- geaccepteerd","zvkx03","a823","","TY2V01","Euro's",null,"N","",1]
[null,null,null,null,"zvkx03_c__TY0V01","*=Kostenverzamelstaat!$I$34"]
[null,null,null,null,"zvkx03_a__TY0V01","*=Kostenverzamelstaat!$J$34"]
[null,null,null,null,"zvkx03_c__TY1V01","*=Kostenverzamelstaat!$K$34"]
[null,null,null,null,"zvkx03_a__TY1V01","*=Kostenverzamelstaat!$L$34"]
[null,null,null,null,"zvkx03_c__TY2V01","*=Kostenverzamelstaat!$M$34"]
[null,null,null,null,"zvkx03_a__TY2V01","*=Kostenverzamelstaat!$N$34"]
[null,null,null,null,"zvkx04_c5601__TY0V01","*=Kostenverzamelstaat!$I$36","","Mondzorg- volwassen verzekerden- incl balans","zvkx04","c5601","","TY0V01","Euro's",null,"N","",1]
[null,null,null,null,"zvkx04_a5601__TY0V01","*=Kostenverzamelstaat!$J$36","","Mondzorg- volwassen verzekerden- geaccepteerd","zvkx04","a5601","","TY0V01","Euro's",null,"N","",1]
[null,null,null,null,"zvkx04_c5601__TY1V01","*=Kostenverzamelstaat!$K$36","","Mondzorg- volwassen verzekerden- incl balans","zvkx04","c5601","","TY1V01","Euro's",null,"N","",1]
[null,null,null,null,"zvkx04_a5601__TY1V01","*=Kostenverzamelstaat!$L$36","","Mondzorg- volwassen verzekerden- geaccepteerd","zvkx04","a5601","","TY1V01","Euro's",null,"N","",1]
[null,null,null,null,"zvkx04_c5601__TY2V01","*=Kostenverzamelstaat!$M$36","","Mondzorg- volwassen verzekerden- incl balans","zvkx04","c5601","","TY2V01","Euro's",null,"N","",1]
[null,null,null,null,"zvkx04_a5601__TY2V01","*=Kostenverzamelstaat!$N$36","","Mondzorg- volwassen verzekerden- geaccepteerd","zvkx04","a5601","","TY2V01","Euro's",null,"N","",1]
[null,null,null,null,"zvkx04_c5602__TY0V01","*=Kostenverzamelstaat!$I$37","","Mondzorg- jeugdige verzekerden- incl balans","zvkx04","c5602","","TY0V01","Euro's",null,"N","",1]
[null,null,null,null,"zvkx04_a5602__TY0V01","*=Kostenverzamelstaat!$J$37","","Mondzorg- jeugdige verzekerden- geaccepteerd","zvkx04","a5602","","TY0V01","Euro's",null,"N","",1]
[null,null,null,null,"zvkx04_c5602__TY1V01","*=Kostenverzamelstaat!$K$37","","Mondzorg- jeugdige verzekerden- incl balans","zvkx04","c5602","","TY1V01","Euro's",null,"N","",1]
[null,null,null,null,"zvkx04_a5602__TY1V01","*=Kostenverzamelstaat!$L$37","","Mondzorg- jeugdige verzekerden- geaccepteerd","zvkx04","a5602","","TY1V01","Euro's",null,"N","",1]
[null,null,null,null,"zvkx04_c5602__TY2V01","*=Kostenverzamelstaat!$M$37","","Mondzorg- jeugdige verzekerden- incl balans","zvkx04","c5602","","TY2V01","Euro's",null,"N","",1]
[null,null,null,null,"zvkx04_a5602__TY2V01","*=Kostenverzamelstaat!$N$37","","Mondzorg- jeugdige verzekerden- geaccepteerd","zvkx04","a5602","","TY2V01","Euro's",null,"N","",1]
[null,null,null,null,"zvkx04_c561__TY0V01","*=Kostenverzamelstaat!$I$38","","Mondzorg- gebitsprothesen- incl balans","zvkx04","c561","","TY0V01","Euro's",null,"N","",1]
[null,null,null,null,"zvkx04_a561__TY0V01","*=Kostenverzamelstaat!$J$38","","Mondzorg- gebitsprothesen- geaccepteerd","zvkx04","a561","","TY0V01","Euro's",null,"N","",1]
[null,null,null,null,"zvkx04_c561__TY1V01","*=Kostenverzamelstaat!$K$38","","Mondzorg- gebitsprothesen- incl balans","zvkx04","c561","","TY1V01","Euro's",null,"N","",1]
[null,null,null,null,"zvkx04_a561__TY1V01","*=Kostenverzamelstaat!$L$38","","Mondzorg- gebitsprothesen- geaccepteerd","zvkx04","a561","","TY1V01","Euro's",null,"N","",1]
[null,null,null,null,"zvkx04_c561__TY2V01","*=Kostenverzamelstaat!$M$38","","Mondzorg- gebitsprothesen- incl balans","zvkx04","c561","","TY2V01","Euro's",null,"N","",1]
[null,null,null,null,"zvkx04_a561__TY2V01","*=Kostenverzamelstaat!$N$38","","Mondzorg- gebitsprothesen- geaccepteerd","zvkx04","a561","","TY2V01","Euro's",null,"N","",1]
[null,null,null,null,"zvkx04_c824__TY2V01","*=Kostenverzamelstaat!$M$39",null,"Mondzorg- Netto continuïteitsbijdrage Corona (basisverzekering)- incl balans","zvkx04","c824",null,"TY2V01","Euro's",null,"N","",1]
[null,null,null,null,"zvkx04_a824__TY2V01","*=Kostenverzamelstaat!$N$39",null,"Mondzorg- Netto continuïteitsbijdrage Corona (basisverzekering)- geaccepteerd","zvkx04","a824",null,"TY2V01","Euro's",null,"N","",1]
[null,null,null,null,"zvkx04_c__TY0V01","*=Kostenverzamelstaat!$I$40"]
[null,null,null,null,"zvkx04_a__TY0V01","*=Kostenverzamelstaat!$J$40"]
[null,null,null,null,"zvkx04_c__TY1V01","*=Kostenverzamelstaat!$K$40"]
[null,null,null,null,"zvkx04_a__TY1V01","*=Kostenverzamelstaat!$L$40"]
[null,null,null,null,"zvkx04_c__TY2V01","*=Kostenverzamelstaat!$M$40"]
[null,null,null,null,"zvkx04_a__TY2V01","*=Kostenverzamelstaat!$N$40"]
[null,null,null,null,"zvkx05_c580__TY0V01","*=Kostenverzamelstaat!$I$42","","Verloskundige hulp- door verloskundigen- incl balans","zvkx05","c580","","TY0V01","Euro's",null,"N","",1]
[null,null,null,null,"zvkx05_a580__TY0V01","*=Kostenverzamelstaat!$J$42","","Verloskundige hulp- door verloskundigen- geaccepteerd","zvkx05","a580","","TY0V01","Euro's",null,"N","",1]
[null,null,null,null,"zvkx05_c580__TY1V01","*=Kostenverzamelstaat!$K$42","","Verloskundige hulp- door verloskundigen- incl balans","zvkx05","c580","","TY1V01","Euro's",null,"N","",1]
[null,null,null,null,"zvkx05_a580__TY1V01","*=Kostenverzamelstaat!$L$42","","Verloskundige hulp- door verloskundigen- geaccepteerd","zvkx05","a580","","TY1V01","Euro's",null,"N","",1]
[null,null,null,null,"zvkx05_c580__TY2V01","*=Kostenverzamelstaat!$M$42","","Verloskundige hulp- door verloskundigen- incl balans","zvkx05","c580","","TY2V01","Euro's",null,"N","",1]
[null,null,null,null,"zvkx05_a580__TY2V01","*=Kostenverzamelstaat!$N$42","","Verloskundige hulp- door verloskundigen- geaccepteerd","zvkx05","a580","","TY2V01","Euro's",null,"N","",1]
[null,null,null,null,"zvkx05_c582__TY0V01","*=Kostenverzamelstaat!$I$43","","Verloskundige hulp- Integrale geboortezorg-  incl balans","zvkx05","a582","","TY0V01","Euro's",null,"N","",1]
[null,null,null,null,"zvkx05_a582__TY0V01","*=Kostenverzamelstaat!$J$43","","Verloskundige hulp- Integrale geboortezorg- geaccepteerd","zvkx05","a582","","TY0V01","Euro's",null,"N","",1]
[null,null,null,null,"zvkx05_c582__TY1V01","*=Kostenverzamelstaat!$K$43","","Verloskundige hulp- Integrale geboortezorg-  incl balans","zvkx05","a582","","TY1V01","Euro's",null,"N","",1]
[null,null,null,null,"zvkx05_a582__TY1V01","*=Kostenverzamelstaat!$L$43","","Verloskundige hulp- Integrale geboortezorg- geaccepteerd","zvkx05","a582","","TY1V01","Euro's",null,"N","",1]
[null,null,null,null,"zvkx05_c582__TY2V01","*=Kostenverzamelstaat!$M$43","","Verloskundige hulp- Integrale geboortezorg-  incl balans","zvkx05","a582","","TY2V01","Euro's",null,"N","",1]
[null,null,null,null,"zvkx05_a582__TY2V01","*=Kostenverzamelstaat!$N$43","","Verloskundige hulp- Integrale geboortezorg- geaccepteerd","zvkx05","a582","","TY2V01","Euro's",null,"N","",1]
[null,null,null,null,"zvkx05_c825__TY2V01","*=Kostenverzamelstaat!$M$44",null,"Verloskundige hulp- Netto continuïteitsbijdrage Corona (basisverzekering)- incl balans","zvkx05","c825",null,"TY2V01","Euro's",null,"N","",1]
[null,null,null,null,"zvkx05_a825__TY2V01","*=Kostenverzamelstaat!$N$44",null,"Verloskundige hulp- Netto continuïteitsbijdrage Corona (basisverzekering)- geaccepteerd","zvkx05","a825",null,"TY2V01","Euro's",null,"N","",1]
[null,null,null,null,"zvkx05_c__TY0V01","*=Kostenverzamelstaat!$I$45"]
[null,null,null,null,"zvkx05_a__TY0V01","*=Kostenverzamelstaat!$J$45"]
[null,null,null,null,"zvkx05_c__TY1V01","*=Kostenverzamelstaat!$K$45"]
[null,null,null,null,"zvkx05_a__TY1V01","*=Kostenverzamelstaat!$L$45"]
[null,null,null,null,"zvkx05_c__TY2V01","*=Kostenverzamelstaat!$M$45"]
[null,null,null,null,"zvkx05_a__TY2V01","*=Kostenverzamelstaat!$N$45"]
[null,null,null,null,"zvkx06_c545__TY0V01","*=Kostenverzamelstaat!$I$59","","Medisch specialistische hulp- mondziekten en kaakchirurgie- incl balans","zvkx06","c545","","TY0V01","Euro's",null,"N","",1]
[null,null,null,null,"zvkx06_a545__TY0V01","*=Kostenverzamelstaat!$J$59","","Medisch specialistische hulp- mondziekten en kaakchirurgie- geaccepteerd","zvkx06","a545","","TY0V01","Euro's",null,"N","",1]
[null,null,null,null,"zvkx06_c545__TY1V01","*=Kostenverzamelstaat!$K$59","","Medisch specialistische hulp- mondziekten en kaakchirurgie- incl balans","zvkx06","c545","","TY1V01","Euro's",null,"N","",1]
[null,null,null,null,"zvkx06_a545__TY1V01","*=Kostenverzamelstaat!$L$59","","Medisch specialistische hulp- mondziekten en kaakchirurgie- geaccepteerd","zvkx06","a545","","TY1V01","Euro's",null,"N","",1]
[null,null,null,null,"zvkx06_c545__TY2V01","*=Kostenverzamelstaat!$M$59","","Medisch specialistische hulp- mondziekten en kaakchirurgie- incl balans","zvkx06","c545","","TY2V01","Euro's",null,"N","",1]
[null,null,null,null,"zvkx06_a545__TY2V01","*=Kostenverzamelstaat!$N$59","","Medisch specialistische hulp- mondziekten en kaakchirurgie- geaccepteerd","zvkx06","a545","","TY2V01","Euro's",null,"N","",1]
[null,null,null,null,"zvkx06_c610__TY0V01","*=Kostenverzamelstaat!$I$60","","Medisch specialistische hulp- Overige ziekenhuiszorg,curatief- incl balans","zvkx06","c610","","TY0V01","Euro's",null,"N","",1]
[null,null,null,null,"zvkx06_a610__TY0V01","*=Kostenverzamelstaat!$J$60","","Medisch specialistische hulp- Overige ziekenhuiszorg,curatief- geaccepteerd","zvkx06","a610","","TY0V01","Euro's",null,"N","",1]
[null,null,null,null,"zvkx06_c610__TY1V01","*=Kostenverzamelstaat!$K$60","","Medisch specialistische hulp- Overige ziekenhuiszorg,curatief- incl balans","zvkx06","c610","","TY1V01","Euro's",null,"N","",1]
[null,null,null,null,"zvkx06_a610__TY1V01","*=Kostenverzamelstaat!$L$60","","Medisch specialistische hulp- Overige ziekenhuiszorg,curatief- geaccepteerd","zvkx06","a610","","TY1V01","Euro's",null,"N","",1]
[null,null,null,null,"zvkx06_c610__TY2V01","*=Kostenverzamelstaat!$M$60","","Medisch specialistische hulp- Overige ziekenhuiszorg,curatief- incl balans","zvkx06","c610","","TY2V01","Euro's",null,"N","",1]
[null,null,null,null,"zvkx06_a610__TY2V01","*=Kostenverzamelstaat!$N$60","","Medisch specialistische hulp- Overige ziekenhuiszorg,curatief- geaccepteerd","zvkx06","a610","","TY2V01","Euro's",null,"N","",1]
[null,null,null,null,"zvkx06_c6101__TY0V01","*=Kostenverzamelstaat!$I$61","","Medisch specialistische hulp- Overige zorg- incl balans","zvkx06","c611","","TY0V01","Euro's",null,"N","",1]
[null,null,null,null,"zvkx06_a6101__TY0V01","*=Kostenverzamelstaat!$J$61","","Medisch specialistische hulp- Overige zorg- geaccepteerd","zvkx06","a611","","TY0V01","Euro's",null,"N","",1]
[null,null,null,null,"zvkx06_c6102__TY0V01","*=Kostenverzamelstaat!$I$62","","Medisch specialistische hulp- add-on's Dure geneesmiddelen- incl balans","zvkx06","c6121","","TY0V01","Euro's",null,"N","",1]
[null,null,null,null,"zvkx06_a6102__TY0V01","*=Kostenverzamelstaat!$J$62","","Medisch specialistische hulp- add-on's Dure geneesmiddelen- geaccepteerd","zvkx06","a6121","","TY0V01","Euro's",null,"N","",1]
[null,null,null,null,"zvkx06_c611__TY1V01","*=Kostenverzamelstaat!$K$63","","Medisch specialistische hulp- Overige zorg- incl balans","zvkx06","c611","","TY1V01","Euro's",null,"N","",1]
[null,null,null,null,"zvkx06_a611__TY1V01","*=Kostenverzamelstaat!$L$63","","Medisch specialistische hulp- Overige zorg- geaccepteerd","zvkx06","a611","","TY1V01","Euro's",null,"N","",1]
[null,null,null,null,"zvkx06_c611__TY2V01","*=Kostenverzamelstaat!$M$63","","Medisch specialistische hulp- Overige zorg- incl balans","zvkx06","c611","","TY2V01","Euro's",null,"N","",1]
[null,null,null,null,"zvkx06_a611__TY2V01","*=Kostenverzamelstaat!$N$63","","Medisch specialistische hulp- Overige zorg- geaccepteerd","zvkx06","a611","","TY2V01","Euro's",null,"N","",1]
[null,null,null,null,"zvkx06_c6121__TY1V01","*=Kostenverzamelstaat!$K$64","","Medisch specialistische hulp- add-on's Dure geneesmiddelen- incl balans","zvkx06","c6121","","TY1V01","Euro's",null,"N","",1]
[null,null,null,null,"zvkx06_a6121__TY1V01","*=Kostenverzamelstaat!$L64","","Medisch specialistische hulp- add-on's Dure geneesmiddelen- geaccepteerd","zvkx06","a6121","","TY1V01","Euro's",null,"N","",1]
[null,null,null,null,"zvkx06_c6121__TY2V01","*=Kostenverzamelstaat!$M$64","","Medisch specialistische hulp- add-on's Dure geneesmiddelen- incl balans","zvkx06","c6121","","TY2V01","Euro's",null,"N","",1]
[null,null,null,null,"zvkx06_a6121__TY2V01","*=Kostenverzamelstaat!$N$64","","Medisch specialistische hulp- add-on's Dure geneesmiddelen- geaccepteerd","zvkx06","a6121","","TY2V01","Euro's",null,"N","",1]
[null,null,null,null,"zvkx06_c6122__TY0V01","*=Kostenverzamelstaat!$I$65","","Medisch specialistische hulp- IC- incl balans","zvkx06","c6122","","TY0V01","Euro's",null,"N","",1]
[null,null,null,null,"zvkx06_a6122__TY0V01","*=Kostenverzamelstaat!$J$65","","Medisch specialistische hulp- IC- geaccepteerd","zvkx06","a6122","","TY0V01","Euro's",null,"N","",1]
[null,null,null,null,"zvkx06_c6122__TY1V01","*=Kostenverzamelstaat!$K$65","","Medisch specialistische hulp- IC- incl balans","zvkx06","c6122","","TY1V01","Euro's",null,"N","",1]
[null,null,null,null,"zvkx06_a6122__TY1V01","*=Kostenverzamelstaat!$L$65","","Medisch specialistische hulp- IC- geaccepteerd","zvkx06","a6122","","TY1V01","Euro's",null,"N","",1]
[null,null,null,null,"zvkx06_c6122__TY2V01","*=Kostenverzamelstaat!$M$65","","Medisch specialistische hulp- IC- incl balans","zvkx06","c6122","","TY2V01","Euro's",null,"N","",1]
[null,null,null,null,"zvkx06_a6122__TY2V01","*=Kostenverzamelstaat!$N$65","","Medisch specialistische hulp- IC- geaccepteerd","zvkx06","a6122","","TY2V01","Euro's",null,"N","",1]
[null,null,null,null,"zvkx06_c6131__TY0V01","*=Kostenverzamelstaat!$I$66","","Medisch specialistische hulp- Integraal DBC-zorgproduct gereguleerd- incl balans","zvkx06","c6131","","TY0V01","Euro's",null,"N","",1]
[null,null,null,null,"zvkx06_a6131__TY0V01","*=Kostenverzamelstaat!$J$66","","Medisch specialistische hulp- Integraal DBC-zorgproduct gereguleerd- geaccepteerd","zvkx06","a6131","","TY0V01","Euro's",null,"N","",1]
[null,null,null,null,"zvkx06_c6131__TY1V01","*=Kostenverzamelstaat!$K$66","","Medisch specialistische hulp- Integraal DBC-zorgproduct gereguleerd- incl balans","zvkx06","c6131","","TY1V01","Euro's",null,"N","",1]
[null,null,null,null,"zvkx06_a6131__TY1V01","*=Kostenverzamelstaat!$L$66","","Medisch specialistische hulp- Integraal DBC-zorgproduct gereguleerd- geaccepteerd","zvkx06","a6131","","TY1V01","Euro's",null,"N","",1]
[null,null,null,null,"zvkx06_c6131__TY2V01","*=Kostenverzamelstaat!$M$66","","Medisch specialistische hulp- Integraal DBC-zorgproduct gereguleerd- incl balans","zvkx06","c6131","","TY2V01","Euro's",null,"N","",1]
[null,null,null,null,"zvkx06_a6131__TY2V01","*=Kostenverzamelstaat!$N$66","","Medisch specialistische hulp- Integraal DBC-zorgproduct gereguleerd- geaccepteerd","zvkx06","a6131","","TY2V01","Euro's",null,"N","",1]
[null,null,null,null,"zvkx06_c6151__TY0V01","*=Kostenverzamelstaat!$I$67","","Medisch specialistische hulp- Integraal DBC-zorgproduct vrije segment- incl balans","zvkx06","c6151","","TY0V01","Euro's",null,"N","",1]
[null,null,null,null,"zvkx06_a6151__TY0V01","*=Kostenverzamelstaat!$J$67","","Medisch specialistische hulp- Integraal DBC-zorgproduct vrije segment- geaccepteerd","zvkx06","a6151","","TY0V01","Euro's",null,"N","",1]
[null,null,null,null,"zvkx06_c6151__TY1V01","*=Kostenverzamelstaat!$K$67","","Medisch specialistische hulp- Integraal DBC-zorgproduct vrije segment- incl balans","zvkx06","c6151","","TY1V01","Euro's",null,"N","",1]
[null,null,null,null,"zvkx06_a6151__TY1V01","*=Kostenverzamelstaat!$L$67","","Medisch specialistische hulp- Integraal DBC-zorgproduct vrije segment- geaccepteerd","zvkx06","a6151","","TY1V01","Euro's",null,"N","",1]
[null,null,null,null,"zvkx06_c6151__TY2V01","*=Kostenverzamelstaat!$M$67","","Medisch specialistische hulp- Integraal DBC-zorgproduct vrije segment- incl balans","zvkx06","c6151","","TY2V01","Euro's",null,"N","",1]
[null,null,null,null,"zvkx06_a6151__TY2V01","*=Kostenverzamelstaat!$N$67","","Medisch specialistische hulp- Integraal DBC-zorgproduct vrije segment- geaccepteerd","zvkx06","a6151","","TY2V01","Euro's",null,"N","",1]
[null,null,null,null,"zvkx06_c619__TY0V01","*=Kostenverzamelstaat!$I$68","","Medisch specialistische hulp- honoraria extramuraal- incl balans","zvkx06","c619","","TY0V01","Euro's",null,"N","",1]
[null,null,null,null,"zvkx06_a619__TY0V01","*=Kostenverzamelstaat!$J$68","","Medisch specialistische hulp- honoraria extramuraal- geaccepteerd","zvkx06","a619","","TY0V01","Euro's",null,"N","",1]
[null,null,null,null,"zvkx06_c619__TY1V01","*=Kostenverzamelstaat!$K$68","","Medisch specialistische hulp- honoraria extramuraal- incl balans","zvkx06","c619","","TY1V01","Euro's",null,"N","",1]
[null,null,null,null,"zvkx06_a619__TY1V01","*=Kostenverzamelstaat!$L$68","","Medisch specialistische hulp- honoraria extramuraal- geaccepteerd","zvkx06","a619","","TY1V01","Euro's",null,"N","",1]
[null,null,null,null,"zvkx06_c619__TY2V01","*=Kostenverzamelstaat!$M$68","","Medisch specialistische hulp- honoraria extramuraal- incl balans","zvkx06","c619","","TY2V01","Euro's",null,"N","",1]
[null,null,null,null,"zvkx06_a619__TY2V01","*=Kostenverzamelstaat!$N$68","","Medisch specialistische hulp- honoraria extramuraal- geaccepteerd","zvkx06","a619","","TY2V01","Euro's",null,"N","",1]
[null,null,null,null,"zvkx06_c8061__TY1V01","*=Kostenverzamelstaat!$K$69",null,"Medisch specialistische hulp- Meerkosten Corona indirect en toeslagen- incl balans","zvkx06","c8061",null,"TY1V01","Euro's",null,"N","",1]
[null,null,null,null,"zvkx06_a8061__TY1V01","*=Kostenverzamelstaat!$L$69",null,"Medisch specialistische hulp- Meerkosten Corona indirect en toeslagen- geaccepteerd","zvkx06","a8061",null,"TY1V01","Euro's",null,"N","",1]
[null,null,null,null,"zvkx06_c8062__TY0V01","*=Kostenverzamelstaat!$I$70",null,"Medisch specialistische hulp- Meerkosten Corona indirect en toeslagen- incl balans","zvkx06","c8062",null,"TY0V01","Euro's",null,"N","",1]
[null,null,null,null,"zvkx06_a8062__TY0V01","*=Kostenverzamelstaat!$J$70",null,"Medisch specialistische hulp- Meerkosten Corona indirect en toeslagen- geaccepteerd","zvkx06","a8062",null,"TY0V01","Euro's",null,"N","",1]
[null,null,null,null,"zvkx06_c8062__TY1V01","*=Kostenverzamelstaat!$K$70",null,"Medisch specialistische hulp- Meerkosten Corona indirect en toeslagen- incl balans","zvkx06","c8062",null,"TY1V01","Euro's",null,"N","",1]
[null,null,null,null,"zvkx06_a8062__TY1V01","*=Kostenverzamelstaat!$L$70",null,"Medisch specialistische hulp- Meerkosten Corona indirect en toeslagen- geaccepteerd","zvkx06","a8062",null,"TY1V01","Euro's",null,"N","",1]
[null,null,null,null,"zvkx06_c826__TY2V01","*=Kostenverzamelstaat!$M$71",null,"Medisch specialistische hulp- Netto continuïteitsbijdrage Corona (basisverzekering)- incl balans","zvkx06","c826",null,"TY2V01","Euro's",null,"N","",1]
[null,null,null,null,"zvkx06_a826__TY2V01","*=Kostenverzamelstaat!$N$71",null,"Medisch specialistische hulp- Netto continuïteitsbijdrage Corona (basisverzekering)- geaccepteerd","zvkx06","a826",null,"TY2V01","Euro's",null,"N","",1]
[null,null,null,null,"zvkx06_c__TY0V01","*=Kostenverzamelstaat!$I$72"]
[null,null,null,null,"zvkx06_a__TY0V01","*=Kostenverzamelstaat!$J$72"]
[null,null,null,null,"zvkx06_c__TY1V01","*=Kostenverzamelstaat!$K$72"]
[null,null,null,null,"zvkx06_a__TY1V01","*=Kostenverzamelstaat!$L$72"]
[null,null,null,null,"zvkx06_c__TY2V01","*=Kostenverzamelstaat!$M$72"]
[null,null,null,null,"zvkx06_a__TY2V01","*=Kostenverzamelstaat!$N$72"]
[null,null,null,null,"zvkx07_c620__TY0V01","*=Kostenverzamelstaat!$I$74","","paramedische hulp- fysiotherapie- incl balans","zvkx07","c620","","TY0V01","Euro's",null,"N","",1]
[null,null,null,null,"zvkx07_a620__TY0V01","*=Kostenverzamelstaat!$J$74","","paramedische hulp- fysiotherapie- geaccepteerd","zvkx07","a620","","TY0V01","Euro's",null,"N","",1]
[null,null,null,null,"zvkx07_c620__TY1V01","*=Kostenverzamelstaat!$K$74","","paramedische hulp- fysiotherapie- incl balans","zvkx07","c620","","TY1V01","Euro's",null,"N","",1]
[null,null,null,null,"zvkx07_a620__TY1V01","*=Kostenverzamelstaat!$L$74","","paramedische hulp- fysiotherapie- geaccepteerd","zvkx07","a620","","TY1V01","Euro's",null,"N","",1]
[null,null,null,null,"zvkx07_c620__TY2V01","*=Kostenverzamelstaat!$M$74","","paramedische hulp- fysiotherapie- incl balans","zvkx07","c620","","TY2V01","Euro's",null,"N","",1]
[null,null,null,null,"zvkx07_a620__TY2V01","*=Kostenverzamelstaat!$N$74","","paramedische hulp- fysiotherapie- geaccepteerd","zvkx07","a620","","TY2V01","Euro's",null,"N","",1]
[null,null,null,null,"zvkx07_c621__TY0V01","*=Kostenverzamelstaat!$I$75","","paramedische hulp- Mensendieck/Cesar- incl balans","zvkx07","c621","","TY0V01","Euro's",null,"N","",1]
[null,null,null,null,"zvkx07_a621__TY0V01","*=Kostenverzamelstaat!$J$75","","paramedische hulp- Mensendieck/Cesar- geaccepteerd","zvkx07","a621","","TY0V01","Euro's",null,"N","",1]
[null,null,null,null,"zvkx07_c621__TY1V01","*=Kostenverzamelstaat!$K$75","","paramedische hulp- Mensendieck/Cesar- incl balans","zvkx07","c621","","TY1V01","Euro's",null,"N","",1]
[null,null,null,null,"zvkx07_a621__TY1V01","*=Kostenverzamelstaat!$L$75","","paramedische hulp- Mensendieck/Cesar- geaccepteerd","zvkx07","a621","","TY1V01","Euro's",null,"N","",1]
[null,null,null,null,"zvkx07_c621__TY2V01","*=Kostenverzamelstaat!$M$75","","paramedische hulp- Mensendieck/Cesar- incl balans","zvkx07","c621","","TY2V01","Euro's",null,"N","",1]
[null,null,null,null,"zvkx07_a621__TY2V01","*=Kostenverzamelstaat!$N$75","","paramedische hulp- Mensendieck/Cesar- geaccepteerd","zvkx07","a621","","TY2V01","Euro's",null,"N","",1]
[null,null,null,null,"zvkx07_c623__TY0V01","*=Kostenverzamelstaat!$I$76","","paramedische hulp- logopedie- incl balans","zvkx07","c623","","TY0V01","Euro's",null,"N","",1]
[null,null,null,null,"zvkx07_a623__TY0V01","*=Kostenverzamelstaat!$J$76","","paramedische hulp- logopedie- geaccepteerd","zvkx07","a623","","TY0V01","Euro's",null,"N","",1]
[null,null,null,null,"zvkx07_c623__TY1V01","*=Kostenverzamelstaat!$K$76","","paramedische hulp- logopedie- incl balans","zvkx07","c623","","TY1V01","Euro's",null,"N","",1]
[null,null,null,null,"zvkx07_a623__TY1V01","*=Kostenverzamelstaat!$L$76","","paramedische hulp- logopedie- geaccepteerd","zvkx07","a623","","TY1V01","Euro's",null,"N","",1]
[null,null,null,null,"zvkx07_c623__TY2V01","*=Kostenverzamelstaat!$M$76","","paramedische hulp- logopedie- incl balans","zvkx07","c623","","TY2V01","Euro's",null,"N","",1]
[null,null,null,null,"zvkx07_a623__TY2V01","*=Kostenverzamelstaat!$N$76","","paramedische hulp- logopedie- geaccepteerd","zvkx07","a623","","TY2V01","Euro's",null,"N","",1]
[null,null,null,null,"zvkx07_c624__TY0V01","*=Kostenverzamelstaat!$I$77","","paramedische hulp- ergotherapie- incl balans","zvkx07","c624","","TY0V01","Euro's",null,"N","",1]
[null,null,null,null,"zvkx07_a624__TY0V01","*=Kostenverzamelstaat!$J$77","","paramedische hulp- ergotherapie- geaccepteerd","zvkx07","a624","","TY0V01","Euro's",null,"N","",1]
[null,null,null,null,"zvkx07_c624__TY1V01","*=Kostenverzamelstaat!$K$77","","paramedische hulp- ergotherapie- incl balans","zvkx07","c624","","TY1V01","Euro's",null,"N","",1]
[null,null,null,null,"zvkx07_a624__TY1V01","*=Kostenverzamelstaat!$L$77","","paramedische hulp- ergotherapie- geaccepteerd","zvkx07","a624","","TY1V01","Euro's",null,"N","",1]
[null,null,null,null,"zvkx07_c624__TY2V01","*=Kostenverzamelstaat!$M$77","","paramedische hulp- ergotherapie- incl balans","zvkx07","c624","","TY2V01","Euro's",null,"N","",1]
[null,null,null,null,"zvkx07_a624__TY2V01","*=Kostenverzamelstaat!$N$77","","paramedische hulp- ergotherapie- geaccepteerd","zvkx07","a624","","TY2V01","Euro's",null,"N","",1]
[null,null,null,null,"zvkx07_c625__TY0V01","*=Kostenverzamelstaat!$I$78","","paramedische hulp- dieetadvisering- incl balans","zvkx07","c625","","TY0V01","Euro's",null,"N","",1]
[null,null,null,null,"zvkx07_a625__TY0V01","*=Kostenverzamelstaat!$J$78","","paramedische hulp- dieetadvisering- geaccepteerd","zvkx07","a625","","TY0V01","Euro's",null,"N","",1]
[null,null,null,null,"zvkx07_c625__TY1V01","*=Kostenverzamelstaat!$K$78","","paramedische hulp- dieetadvisering- incl balans","zvkx07","c625","","TY1V01","Euro's",null,"N","",1]
[null,null,null,null,"zvkx07_a625__TY1V01","*=Kostenverzamelstaat!$L$78","","paramedische hulp- dieetadvisering- geaccepteerd","zvkx07","a625","","TY1V01","Euro's",null,"N","",1]
[null,null,null,null,"zvkx07_c625__TY2V01","*=Kostenverzamelstaat!$M$78","","paramedische hulp- dieetadvisering- incl balans","zvkx07","c625","","TY2V01","Euro's",null,"N","",1]
[null,null,null,null,"zvkx07_a625__TY2V01","*=Kostenverzamelstaat!$N$78","","paramedische hulp- dieetadvisering- geaccepteerd","zvkx07","a625","","TY2V01","Euro's",null,"N","",1]
[null,null,null,null,"zvkx07_c626__TY0V01","*=Kostenverzamelstaat!$I$79","","paramedische hulp- GLI-  incl balans","zvkx07","c626","","TY0V01","Euro's",null,"N","",1]
[null,null,null,null,"zvkx07_a626__TY0V01","*=Kostenverzamelstaat!$J$79","","paramedische hulp- GLI- geaccepteerd","zvkx07","a625","","TY0V01","Euro's",null,"N","",1]
[null,null,null,null,"zvkx07_c626__TY1V01","*=Kostenverzamelstaat!$K$79","","paramedische hulp- GLI-  incl balans","zvkx07","a625","","TY1V01","Euro's",null,"N","",1]
[null,null,null,null,"zvkx07_a626__TY1V01","*=Kostenverzamelstaat!$L$79","","paramedische hulp- GLI- geaccepteerd","zvkx07","a625","","TY1V01","Euro's",null,"N","",1]
[null,null,null,null,"zvkx07_c626__TY2V01","*=Kostenverzamelstaat!$M$79","","paramedische hulp- GLI-  incl balans","zvkx07","a625","","TY2V01","Euro's",null,"N","",1]
[null,null,null,null,"zvkx07_a626__TY2V01","*=Kostenverzamelstaat!$N$79","","paramedische hulp- GLI- geaccepteerd","zvkx07","a625","","TY2V01","Euro's",null,"N","",1]
[null,null,null,null,"zvkx07_c827__TY2V01","*=Kostenverzamelstaat!$M$80",null,"paramedische hulp-Netto continuïteitsbijdrage Corona (basisverzekering)- incl balans","zvkx07","c827",null,"TY2V01","Euro's",null,"N","",1]
[null,null,null,null,"zvkx07_a827__TY2V01","*=Kostenverzamelstaat!$N$80",null,"paramedische hulp-Netto continuïteitsbijdrage Corona (basisverzekering)- geaccepteerd","zvkx07","a827",null,"TY2V01","Euro's",null,"N","",1]
[null,null,null,null,"zvkx07_c__TY0V01","*=Kostenverzamelstaat!$I$81"]
[null,null,null,null,"zvkx07_a__TY0V01","*=Kostenverzamelstaat!$J$81"]
[null,null,null,null,"zvkx07_c__TY1V01","*=Kostenverzamelstaat!$K$81"]
[null,null,null,null,"zvkx07_a__TY1V01","*=Kostenverzamelstaat!$L$81"]
[null,null,null,null,"zvkx07_c__TY2V01","*=Kostenverzamelstaat!$M$81"]
[null,null,null,null,"zvkx07_a__TY2V01","*=Kostenverzamelstaat!$N$81"]
[null,null,null,null,"zvkx08_c640__TY0V01","*=Kostenverzamelstaat!$I$83","","Hulpmiddelen-- incl balans","zvkx08","c640","","TY0V01","Euro's",null,"N","",1]
[null,null,null,null,"zvkx08_a640__TY0V01","*=Kostenverzamelstaat!$J$83","","Hulpmiddelen-- geaccepteerd","zvkx08","a640","","TY0V01","Euro's",null,"N","",1]
[null,null,null,null,"zvkx08_c640__TY1V01","*=Kostenverzamelstaat!$K$83","","Hulpmiddelen-- incl balans","zvkx08","c640","","TY1V01","Euro's",null,"N","",1]
[null,null,null,null,"zvkx08_a640__TY1V01","*=Kostenverzamelstaat!$L$83","","Hulpmiddelen-- geaccepteerd","zvkx08","a640","","TY1V01","Euro's",null,"N","",1]
[null,null,null,null,"zvkx08_c640__TY2V01","*=Kostenverzamelstaat!$M$83","","Hulpmiddelen-- incl balans","zvkx08","c640","","TY2V01","Euro's",null,"N","",1]
[null,null,null,null,"zvkx08_a640__TY2V01","*=Kostenverzamelstaat!$N$83","","Hulpmiddelen-- geaccepteerd","zvkx08","a640","","TY2V01","Euro's",null,"N","",1]
[null,null,null,null,"zvkx08_c828__TY2V01","*=Kostenverzamelstaat!$M$84",null,"Hulpmiddelen- Netto continuïteitsbijdrage Corona (basisverzekering)- incl balans","zvkx08","c828",null,"TY2V01","Euro's",null,"N","",1]
[null,null,null,null,"zvkx08_a828__TY2V01","*=Kostenverzamelstaat!$N$84",null,"Hulpmiddelen- Netto continuïteitsbijdrage Corona (basisverzekering)- geaccepteerd","zvkx08","a828",null,"TY2V01","Euro's",null,"N","",1]
[null,null,null,null,"zvkx08_c__TY0V01","*=Kostenverzamelstaat!$I$85"]
[null,null,null,null,"zvkx08_a__TY0V01","*=Kostenverzamelstaat!$J$85"]
[null,null,null,null,"zvkx08_c__TY1V01","*=Kostenverzamelstaat!$K$85"]
[null,null,null,null,"zvkx08_a__TY1V01","*=Kostenverzamelstaat!$L$85"]
[null,null,null,null,"zvkx08_c__TY2V01","*=Kostenverzamelstaat!$M$85"]
[null,null,null,null,"zvkx08_a__TY2V01","*=Kostenverzamelstaat!$N$85"]
[null,null,null,null,"zvkx09_c650__TY0V01","*=Kostenverzamelstaat!$I$87","","Ziekenvervoer- ambulance/helicopter- incl balans","zvkx09","c650","","TY0V01","Euro's",null,"N","",1]
[null,null,null,null,"zvkx09_a650__TY0V01","*=Kostenverzamelstaat!$J$87","","Ziekenvervoer- ambulance/helicopter- geaccepteerd","zvkx09","a650","","TY0V01","Euro's",null,"N","",1]
[null,null,null,null,"zvkx09_c650__TY1V01","*=Kostenverzamelstaat!$K$87","","Ziekenvervoer- ambulance/helicopter- incl balans","zvkx09","c650","","TY1V01","Euro's",null,"N","",1]
[null,null,null,null,"zvkx09_a650__TY1V01","*=Kostenverzamelstaat!$L$87","","Ziekenvervoer- ambulance/helicopter- geaccepteerd","zvkx09","a650","","TY1V01","Euro's",null,"N","",1]
[null,null,null,null,"zvkx09_c650__TY2V01","*=Kostenverzamelstaat!$M$87","","Ziekenvervoer- ambulance/helicopter- incl balans","zvkx09","c650","","TY2V01","Euro's",null,"N","",1]
[null,null,null,null,"zvkx09_a650__TY2V01","*=Kostenverzamelstaat!$N$87","","Ziekenvervoer- ambulance/helicopter- geaccepteerd","zvkx09","a650","","TY2V01","Euro's",null,"N","",1]
[null,null,null,null,"zvkx09_c6501__TY0V01","*=Kostenverzamelstaat!$I$88","","Ziekenvervoer- regionale ambulance- incl balans","zvkx09","c6501","","TY0V01","Euro's",null,"N","",1]
[null,null,null,null,"zvkx09_a6501__TY0V01","*=Kostenverzamelstaat!$J$88","","Ziekenvervoer- regionale ambulance- geaccepteerd","zvkx09","a6501","","TY0V01","Euro's",null,"N","",1]
[null,null,null,null,"zvkx09_c6501__TY1V01","*=Kostenverzamelstaat!$K$88","","Ziekenvervoer- regionale ambulance- incl balans","zvkx09","c6501","","TY1V01","Euro's",null,"N","",1]
[null,null,null,null,"zvkx09_a6501__TY1V01","*=Kostenverzamelstaat!$L$88","","Ziekenvervoer- regionale ambulance- geaccepteerd","zvkx09","a6501","","TY1V01","Euro's",null,"N","",1]
[null,null,null,null,"zvkx09_c6501__TY2V01","*=Kostenverzamelstaat!$M$88","","Ziekenvervoer- regionale ambulance- incl balans","zvkx09","c6501","","TY2V01","Euro's",null,"N","",1]
[null,null,null,null,"zvkx09_a6501__TY2V01","*=Kostenverzamelstaat!$N$88","","Ziekenvervoer- regionale ambulance- geaccepteerd","zvkx09","a6501","","TY2V01","Euro's",null,"N","",1]
[null,null,null,null,"zvkx09_c651__TY0V01","*=Kostenverzamelstaat!$I$89","","Ziekenvervoer- ov, taxi en eigen auto- incl balans","zvkx09","c651","","TY0V01","Euro's",null,"N","",1]
[null,null,null,null,"zvkx09_a651__TY0V01","*=Kostenverzamelstaat!$J$89","","Ziekenvervoer- ov, taxi en eigen auto- geaccepteerd","zvkx09","a651","","TY0V01","Euro's",null,"N","",1]
[null,null,null,null,"zvkx09_c651__TY1V01","*=Kostenverzamelstaat!$K$89","","Ziekenvervoer- ov, taxi en eigen auto- incl balans","zvkx09","c651","","TY1V01","Euro's",null,"N","",1]
[null,null,null,null,"zvkx09_a651__TY1V01","*=Kostenverzamelstaat!$L$89","","Ziekenvervoer- ov, taxi en eigen auto- geaccepteerd","zvkx09","a651","","TY1V01","Euro's",null,"N","",1]
[null,null,null,null,"zvkx09_c651__TY2V01","*=Kostenverzamelstaat!$M$89","","Ziekenvervoer- ov, taxi en eigen auto- incl balans","zvkx09","c651","","TY2V01","Euro's",null,"N","",1]
[null,null,null,null,"zvkx09_a651__TY2V01","*=Kostenverzamelstaat!$N$89","","Ziekenvervoer- ov, taxi en eigen auto- geaccepteerd","zvkx09","a651","","TY2V01","Euro's",null,"N","",1]
[null,null,null,null,"zvkx09_c829__TY2V01","*=Kostenverzamelstaat!$M$90",null,"Ziekenvervoer- Netto continuïteitsbijdrage Corona (basisverzekering)-  incl balans","zvkx09","c829",null,"TY2V01","Euro's",null,"N","",1]
[null,null,null,null,"zvkx09_a829__TY2V01","*=Kostenverzamelstaat!$N$90",null,"Ziekenvervoer- Netto continuïteitsbijdrage Corona (basisverzekering)- geaccepteerd","zvkx09","a829",null,"TY2V01","Euro's",null,"N","",1]
[null,null,null,null,"zvkx09_c__TY0V01","*=Kostenverzamelstaat!$I$91"]
[null,null,null,null,"zvkx09_a__TY0V01","*=Kostenverzamelstaat!$J$91"]
[null,null,null,null,"zvkx09_c__TY1V01","*=Kostenverzamelstaat!$K$91"]
[null,null,null,null,"zvkx09_a__TY1V01","*=Kostenverzamelstaat!$L$91"]
[null,null,null,null,"zvkx09_c__TY2V01","*=Kostenverzamelstaat!$M$91"]
[null,null,null,null,"zvkx09_a__TY2V01","*=Kostenverzamelstaat!$N$91"]
[null,null,null,null,"zvkx10_c661__TY2V01","*=Kostenverzamelstaat!$M$105","","Geneeskundige GGZ- GGZ met verblijf- incl balans","zvkx10","c661","","TY2V01","Euro's",null,"N","",1]
[null,null,null,null,"zvkx10_a661__TY2V01","*=Kostenverzamelstaat!$N$105","","Geneeskundige GGZ- GGZ met verblijf- geaccepteerd","zvkx10","a661","","TY2V01","Euro's",null,"N","",1]
[null,null,null,null,"zvkx10_c6611__TY2V01","*=Kostenverzamelstaat!$M$106","","Geneeskundige GGZ- GGZ jaar 2 en 3- incl balans","zvkx10","c6611","","TY2V01","Euro's",null,"N","",1]
[null,null,null,null,"zvkx10_a6611__TY2V01","*=Kostenverzamelstaat!$N$106","","Geneeskundige GGZ- GGZ jaar 2 en 3- geaccepteerd","zvkx10","a6611","","TY2V01","Euro's",null,"N","",1]
[null,null,null,null,"zvkx10_c662__TY2V01","*=Kostenverzamelstaat!$M$107","","Geneeskundige GGZ- GGZ zonder verblijf- incl balans","zvkx10","c662","","TY2V01","Euro's",null,"N","",1]
[null,null,null,null,"zvkx10_a662__TY2V01","*=Kostenverzamelstaat!$N$107","","Geneeskundige GGZ- GGZ zonder verblijf- geaccepteerd","zvkx10","a662","","TY2V01","Euro's",null,"N","",1]
[null,null,null,null,"zvkx10_c665__TY2V01","*=Kostenverzamelstaat!$M$108","","Geneeskundige GGZ- basis GGZ- incl balans","zvkx10","c665","","TY2V01","Euro's",null,"N","",1]
[null,null,null,null,"zvkx10_a665__TY2V01","*=Kostenverzamelstaat!$N$108","","Geneeskundige GGZ- basis GGZ- geaccepteerd","zvkx10","a665","","TY2V01","Euro's",null,"N","",1]
[null,null,null,null,"zvkx10_c666__TY0V01","*=Kostenverzamelstaat!$I$109","","Geneeskundige GGZ- consulten GGZ- incl balans","zvkx10","c666","","TY0V01","Euro's",null,"N","",1]
[null,null,null,null,"zvkx10_a666__TY0V01","*=Kostenverzamelstaat!$J$109","","Geneeskundige GGZ- consulten GGZ- geaccepteerd","zvkx10","a666","","TY0V01","Euro's",null,"N","",1]
[null,null,null,null,"zvkx10_c666__TY1V01","*=Kostenverzamelstaat!$K$109","","Geneeskundige GGZ- consulten GGZ- incl balans","zvkx10","c666","","TY1V01","Euro's",null,"N","",1]
[null,null,null,null,"zvkx10_a666__TY1V01","*=Kostenverzamelstaat!$L$109","","Geneeskundige GGZ- consulten GGZ- geaccepteerd","zvkx10","a666","","TY1V01","Euro's",null,"N","",1]
[null,null,null,null,"zvkx10_c667__TY0V01","*=Kostenverzamelstaat!$I$110","","Geneeskundige GGZ- intramuraal verblijf GGZ- incl balans","zvkx10","c667","","TY0V01","Euro's",null,"N","",1]
[null,null,null,null,"zvkx10_a667__TY0V01","*=Kostenverzamelstaat!$J$110","","Geneeskundige GGZ- intramuraal verblijf GGZ- geaccepteerd","zvkx10","a667","","TY0V01","Euro's",null,"N","",1]
[null,null,null,null,"zvkx10_c667__TY1V01","*=Kostenverzamelstaat!$K$110","","Geneeskundige GGZ- intramuraal verblijf GGZ- incl balans","zvkx10","c667","","TY1V01","Euro's",null,"N","",1]
[null,null,null,null,"zvkx10_a667__TY1V01","*=Kostenverzamelstaat!$L$110","","Geneeskundige GGZ- intramuraal verblijf GGZ- geaccepteerd","zvkx10","a667","","TY1V01","Euro's",null,"N","",1]
[null,null,null,null,"zvkx10_c668__TY0V01","*=Kostenverzamelstaat!$I$111","","Geneeskundige GGZ- overige prestaties GGZ- incl balans","zvkx10","c668","","TY0V01","Euro's",null,"N","",1]
[null,null,null,null,"zvkx10_a668__TY0V01","*=Kostenverzamelstaat!$J$111","","Geneeskundige GGZ- overige prestaties GGZ- geaccepteerd","zvkx10","a668","","TY0V01","Euro's",null,"N","",1]
[null,null,null,null,"zvkx10_c668__TY1V01","*=Kostenverzamelstaat!$K$111","","Geneeskundige GGZ- overige prestaties GGZ- incl balans","zvkx10","c668","","TY1V01","Euro's",null,"N","",1]
[null,null,null,null,"zvkx10_a668__TY1V01","*=Kostenverzamelstaat!$L$111","","Geneeskundige GGZ- overige prestaties GGZ- geaccepteerd","zvkx10","a668","","TY1V01","Euro's",null,"N","",1]
[null,null,null,null,"zvkx10_c8101__TY1V01","*=Kostenverzamelstaat!$K$112",null,"Geneeskundige GGZ-  Meerkosten Corona indirect- incl balans","zvkx10","c8101",null,"TY1V01","Euro's",null,"N","",1]
[null,null,null,null,"zvkx10_a8101__TY1V01","*=Kostenverzamelstaat!$L$112",null,"Geneeskundige GGZ-  Meerkosten Corona indirect- geaccepteerd","zvkx10","a8101",null,"TY1V01","Euro's",null,"N","",1]
[null,null,null,null,"zvkx10_c830__TY2V01","*=Kostenverzamelstaat!$M$113",null,"Geneeskundige GGZ- Netto continuïteitsbijdrage Corona (basisverzekering)-  incl balans","zvkx10","c830",null,"TY2V01","Euro's",null,"N","",1]
[null,null,null,null,"zvkx10_a830__TY2V01","*=Kostenverzamelstaat!$N$113",null,"Geneeskundige GGZ- Netto continuïteitsbijdrage Corona (basisverzekering)- geaccepteerd","zvkx10","a830",null,"TY2V01","Euro's",null,"N","",1]
[null,null,null,null,"zvkx10_c__TY0V01","*=Kostenverzamelstaat!$I$114"]
[null,null,null,null,"zvkx10_a__TY0V01","*=Kostenverzamelstaat!$J$114"]
[null,null,null,null,"zvkx10_c__TY1V01","*=Kostenverzamelstaat!$K$114"]
[null,null,null,null,"zvkx10_a__TY1V01","*=Kostenverzamelstaat!$L$114"]
[null,null,null,null,"zvkx10_c__TY2V01","*=Kostenverzamelstaat!$M$114"]
[null,null,null,null,"zvkx10_a__TY2V01","*=Kostenverzamelstaat!$N$114"]
[null,null,null,null,"zvkx11_c670__TY0V01","*=Kostenverzamelstaat!$I$116","","Geriatische revalidatiezorg- GRZ- incl balans","zvkx11","c670","","TY0V01","Euro's",null,"N","",1]
[null,null,null,null,"zvkx11_a670__TY0V01","*=Kostenverzamelstaat!$J$116","","Geriatische revalidatiezorg- GRZ- geaccepteerd","zvkx11","a670","","TY0V01","Euro's",null,"N","",1]
[null,null,null,null,"zvkx11_c670__TY1V01","*=Kostenverzamelstaat!$K$116","","Geriatische revalidatiezorg- GRZ- incl balans","zvkx11","c670","","TY1V01","Euro's",null,"N","",1]
[null,null,null,null,"zvkx11_a670__TY1V01","*=Kostenverzamelstaat!$L$116","","Geriatische revalidatiezorg- GRZ- geaccepteerd","zvkx11","a670","","TY1V01","Euro's",null,"N","",1]
[null,null,null,null,"zvkx11_c670__TY2V01","*=Kostenverzamelstaat!$M$116","","Geriatische revalidatiezorg- GRZ- incl balans","zvkx11","c670","","TY2V01","Euro's",null,"N","",1]
[null,null,null,null,"zvkx11_a670__TY2V01","*=Kostenverzamelstaat!$N$116","","Geriatische revalidatiezorg- GRZ- geaccepteerd","zvkx11","a670","","TY2V01","Euro's",null,"N","",1]
[null,null,null,null,"zvkx11_c8311__TY2V01","*=Kostenverzamelstaat!$M$117",null,"Geriatische revalidatiezorg- GRZ- Netto continuïteitsbijdrage Corona (basisverzekering)- incl balans","zvkx11","c8311",null,"TY2V01","Euro's",null,"N","",1]
[null,null,null,null,"zvkx11_a8311__TY2V01","*=Kostenverzamelstaat!$N$117",null,"Geriatische revalidatiezorg- GRZ- Netto continuïteitsbijdrage Corona (basisverzekering)- geaccepteerd","zvkx11","a8311",null,"TY2V01","Euro's",null,"N","",1]
[null,null,null,null,"zvkx11_c81111__TY1V01","*=Kostenverzamelstaat!$K$118",null,"Geriatische revalidatiezorg- GRZ- Meerkosten COVID-19, indirect- incl balans","zvkx11","c81111",null,"TY1V01","Euro's",null,"N","",1]
[null,null,null,null,"zvkx11_a81111__TY1V01","*=Kostenverzamelstaat!$L$118",null,"Geriatische revalidatiezorg- GRZ- Meerkosten COVID-19, indirect- geaccepteerd","zvkx11","a81111",null,"TY1V01","Euro's",null,"N","",1]
[null,null,null,null,"zvkx11_c671__TY0V01","*=Kostenverzamelstaat!$I$119","","Geriatische revalidatiezorg- Eerstelijnsverblijf- incl balans","zvkx11","c671","","TY0V01","Euro's",null,"N","",1]
[null,null,null,null,"zvkx11_a671__TY0V01","*=Kostenverzamelstaat!$J$119","","Geriatische revalidatiezorg- Eerstelijnsverblijf- geaccepteerd","zvkx11","a671","","TY0V01","Euro's",null,"N","",1]
[null,null,null,null,"zvkx11_c671__TY1V01","*=Kostenverzamelstaat!$K$119","","Geriatische revalidatiezorg- Eerstelijnsverblijf- incl balans","zvkx11","c671","","TY1V01","Euro's",null,"N","",1]
[null,null,null,null,"zvkx11_a671__TY1V01","*=Kostenverzamelstaat!$L$119","","Geriatische revalidatiezorg- Eerstelijnsverblijf- geaccepteerd","zvkx11","a671","","TY1V01","Euro's",null,"N","",1]
[null,null,null,null,"zvkx11_c671__TY2V01","*=Kostenverzamelstaat!$M$119","","Geriatische revalidatiezorg- Eerstelijnsverblijf- incl balans","zvkx11","c671","","TY2V01","Euro's",null,"N","",1]
[null,null,null,null,"zvkx11_a671__TY2V01","*=Kostenverzamelstaat!$N$119","","Geriatische revalidatiezorg- Eerstelijnsverblijf- geaccepteerd","zvkx11","a671","","TY2V01","Euro's",null,"N","",1]
[null,null,null,null,"zvkx11_c8312__TY2V01","*=Kostenverzamelstaat!$M$120",null,"Geriatische revalidatiezorg- Eerstelijnsverblijf- Netto continuïteitsbijdrage Corona (basisverzekering)- incl balans","zvkx11","c8312",null,"TY2V01","Euro's",null,"N","",1]
[null,null,null,null,"zvkx11_a8312__TY2V01","*=Kostenverzamelstaat!$N$120",null,"Geriatische revalidatiezorg- Eerstelijnsverblijf- Netto continuïteitsbijdrage Corona (basisverzekering)-  geaccepteerd","zvkx11","a8312",null,"TY2V01","Euro's",null,"N","",1]
[null,null,null,null,"zvkx11_c81121__TY1V01","*=Kostenverzamelstaat!$K$121",null,"Geriatische revalidatiezorg-  Eerstelijnsverblijf- Meerkosten COVID-19, indirect- incl balans","zvkx11","c81121",null,"TY1V01","Euro's",null,"N","",1]
[null,null,null,null,"zvkx11_a81121__TY1V01","*=Kostenverzamelstaat!$L$121",null,"Geriatische revalidatiezorg-  Eerstelijnsverblijf- Meerkosten COVID-19, indirect- geaccepteerd","zvkx11","a81121",null,"TY1V01","Euro's",null,"N","",1]
[null,null,null,null,"zvkx11_c672__TY0V01","*=Kostenverzamelstaat!$I$122",null,"Geriatische revalidatiezorg- GZSP- incl balans","zvkx11","c672","","TY0V01","Euro's",null,"N","",1]
[null,null,null,null,"zvkx11_a672__TY0V01","*=Kostenverzamelstaat!$J$122",null,"Geriatische revalidatiezorg- GZSP- geaccepteerd","zvkx11","a672","","TY0V01","Euro's",null,"N","",1]
[null,null,null,null,"zvkx11_c672__TY1V01","*=Kostenverzamelstaat!$K$122",null,"Geriatische revalidatiezorg- GZSP- incl balans","zvkx11","a672","","TY1V01","Euro's",null,"N","",1]
[null,null,null,null,"zvkx11_a672__TY1V01","*=Kostenverzamelstaat!$L$122",null,"Geriatische revalidatiezorg- GZSP- geaccepteerd","zvkx11","a672","","TY1V01","Euro's",null,"N","",1]
[null,null,null,null,"zvkx11_c672__TY2V01","*=Kostenverzamelstaat!$M$122",null,"Geriatische revalidatiezorg- GZSP- incl balans","zvkx11","a672","","TY2V01","Euro's",null,"N","",1]
[null,null,null,null,"zvkx11_a672__TY2V01","*=Kostenverzamelstaat!$N$122",null,"Geriatische revalidatiezorg- GZSP- geaccepteerd","zvkx11","a672","","TY2V01","Euro's",null,"N","",1]
[null,null,null,null,"zvkx11_c8313__TY2V01","*=Kostenverzamelstaat!$M$123",null,"Geriatische revalidatiezorg- GZSP- Netto continuïteitsbijdrage Corona (basisverzekering)- incl balans","zvkx11","c8313",null,"TY2V01","Euro's",null,"N","",1]
[null,null,null,null,"zvkx11_a8313__TY2V01","*=Kostenverzamelstaat!$N$123",null,"Geriatische revalidatiezorg- GZSP- Netto continuïteitsbijdrage Corona (basisverzekering)- geaccepteerd","zvkx11","a8313",null,"TY2V01","Euro's",null,"N","",1]
[null,null,null,null,"zvkx11_c81131__TY1V01","*=Kostenverzamelstaat!$K$124",null,"Geriatische revalidatiezorg- GZSP- Meerkosten COVID-19, indirect GZSP- incl balans","zvkx11","c81131",null,"TY1V01","Euro's",null,"N","",1]
[null,null,null,null,"zvkx11_a81131__TY1V01","*=Kostenverzamelstaat!$L$124",null,"Geriatische revalidatiezorg- GZSP- Meerkosten COVID-19, indirect GZSP- geaccepteerd","zvkx11","a81131",null,"TY1V01","Euro's",null,"N","",1]
[null,null,null,null,"zvkx11_c__TY0V01","*=Kostenverzamelstaat!$I$125"]
[null,null,null,null,"zvkx11_a__TY0V01","*=Kostenverzamelstaat!$J$125"]
[null,null,null,null,"zvkx11_c__TY1V01","*=Kostenverzamelstaat!$K$125"]
[null,null,null,null,"zvkx11_a__TY1V01","*=Kostenverzamelstaat!$L$125"]
[null,null,null,null,"zvkx11_c__TY2V01","*=Kostenverzamelstaat!$M$125"]
[null,null,null,null,"zvkx11_a__TY2V01","*=Kostenverzamelstaat!$N$125"]
[null,null,null,null,"zvkx12_c680__TY0V01","*=Kostenverzamelstaat!$I$127","","Kraamzorg-- incl balans","zvkx12","c680","","TY0V01","Euro's",null,"N","",1]
[null,null,null,null,"zvkx12_a680__TY0V01","*=Kostenverzamelstaat!$J$127","","Kraamzorg-- geaccepteerd","zvkx12","a680","","TY0V01","Euro's",null,"N","",1]
[null,null,null,null,"zvkx12_c680__TY1V01","*=Kostenverzamelstaat!$K$127","","Kraamzorg-- incl balans","zvkx12","c680","","TY1V01","Euro's",null,"N","",1]
[null,null,null,null,"zvkx12_a680__TY1V01","*=Kostenverzamelstaat!$L$127","","Kraamzorg-- geaccepteerd","zvkx12","a680","","TY1V01","Euro's",null,"N","",1]
[null,null,null,null,"zvkx12_c680__TY2V01","*=Kostenverzamelstaat!$M$127","","Kraamzorg-- incl balans","zvkx12","c680","","TY2V01","Euro's",null,"N","",1]
[null,null,null,null,"zvkx12_a680__TY2V01","*=Kostenverzamelstaat!$N$127","","Kraamzorg-- geaccepteerd","zvkx12","a680","","TY2V01","Euro's",null,"N","",1]
[null,null,null,null,"zvkx10_c8121__TY1V01","*=Kostenverzamelstaat!$K$128",null,"Kraamzorg--  Meerkosten Corona indirect- incl balans","zvkx12","c8121",null,"TY1V01","Euro's",null,"N","",1]
[null,null,null,null,"zvkx10_a8121__TY1V01","*=Kostenverzamelstaat!$L$128",null,"Kraamzorg--  Meerkosten Corona indirect- geaccepteerd","zvkx12","a8121",null,"TY1V01","Euro's",null,"N","",1]
[null,null,null,null,"zvkx12_c832__TY2V01","*=Kostenverzamelstaat!$M$129",null,"Kraamzorg- Netto continuïteitsbijdrage Corona (basisverzekering)- incl balans","zvkx12","c832",null,"TY2V01","Euro's",null,"N","",1]
[null,null,null,null,"zvkx12_a832__TY2V01","*=Kostenverzamelstaat!$N$129",null,"Kraamzorg- Netto continuïteitsbijdrage Corona (basisverzekering)- geaccepteerd","zvkx12","a832",null,"TY2V01","Euro's",null,"N","",1]
[null,null,null,null,"zvkx12_c__TY0V01","*=Kostenverzamelstaat!$I$130"]
[null,null,null,null,"zvkx12_a__TY0V01","*=Kostenverzamelstaat!$J$130"]
[null,null,null,null,"zvkx12_c__TY1V01","*=Kostenverzamelstaat!$K$130"]
[null,null,null,null,"zvkx12_a__TY1V01","*=Kostenverzamelstaat!$L$130"]
[null,null,null,null,"zvkx12_c__TY2V01","*=Kostenverzamelstaat!$M$130"]
[null,null,null,null,"zvkx12_a__TY2V01","*=Kostenverzamelstaat!$N$130"]
[null,null,null,null,"zvkx13_c700__TY0V01","*=Kostenverzamelstaat!$I$132","","Overige kosten-- incl balans","zvkx13","c700","","TY0V01","Euro's",null,"N","",1]
[null,null,null,null,"zvkx13_a700__TY0V01","*=Kostenverzamelstaat!$J$132","","Overige kosten- geaccepteerd","zvkx13","a700","","TY0V01","Euro's",null,"N","",1]
[null,null,null,null,"zvkx13_c700__TY1V01","*=Kostenverzamelstaat!$K$132","","Overige kosten-- incl balans","zvkx13","c700","","TY1V01","Euro's",null,"N","",1]
[null,null,null,null,"zvkx13_a700__TY1V01","*=Kostenverzamelstaat!$L$132","","Overige kosten-- geaccepteerd","zvkx13","a700","","TY1V01","Euro's",null,"N","",1]
[null,null,null,null,"zvkx13_c700__TY2V01","*=Kostenverzamelstaat!$M$132","","Overige kosten-- incl balans","zvkx13","c700","","TY2V01","Euro's",null,"N","",1]
[null,null,null,null,"zvkx13_a700__TY2V01","*=Kostenverzamelstaat!$N$132","","Overige kosten-- geaccepteerd","zvkx13","a700","","TY2V01","Euro's",null,"N","",1]
[null,null,null,null,"zvkx13_c701__TY0V01","*=Kostenverzamelstaat!$I$133","","Overige kosten- geneeskundige zorg- incl balans","zvkx13","c701","","TY0V01","Euro's",null,"N","",1]
[null,null,null,null,"zvkx13_a701__TY0V01","*=Kostenverzamelstaat!$J$133","","Overige kosten- geneeskundige zorg-geaccepteerd","zvkx13","a701","","TY0V01","Euro's",null,"N","",1]
[null,null,null,null,"zvkx13_c701__TY1V01","*=Kostenverzamelstaat!$K$133","","Overige kosten- geneeskundige zorg- incl balans","zvkx13","c701","","TY1V01","Euro's",null,"N","",1]
[null,null,null,null,"zvkx13_a701__TY1V01","*=Kostenverzamelstaat!$L$133","","Overige kosten- geneeskundige zorg- geaccepteerd","zvkx13","a701","","TY1V01","Euro's",null,"N","",1]
[null,null,null,null,"zvkx13_c701__TY2V01","*=Kostenverzamelstaat!$M$133","","Overige kosten- geneeskundige zorg- incl balans","zvkx13","c701","","TY2V01","Euro's",null,"N","",1]
[null,null,null,null,"zvkx13_a701__TY2V01","*=Kostenverzamelstaat!$N$133","","Overige kosten- geneeskundige zorg- geaccepteerd","zvkx13","a701","","TY2V01","Euro's",null,"N","",1]
[null,null,null,null,"zvkx13_c702__TY0V01","*=Kostenverzamelstaat!$I$134","","Overige kosten- zintuiglijk gehandicapten- incl balans","zvkx13","c702","","TY0V01","Euro's",null,"N","",1]
[null,null,null,null,"zvkx13_a702__TY0V01","*=Kostenverzamelstaat!$J$134","","Overige kosten- zintuiglijk gehandicapten- geaccepteerd","zvkx13","a702","","TY0V01","Euro's",null,"N","",1]
[null,null,null,null,"zvkx13_c702__TY1V01","*=Kostenverzamelstaat!$K$134","","Overige kosten- zintuiglijk gehandicapten- incl balans","zvkx13","c702","","TY1V01","Euro's",null,"N","",1]
[null,null,null,null,"zvkx13_a702__TY1V01","*=Kostenverzamelstaat!$L$134","","Overige kosten- zintuiglijk gehandicapten- geaccepteerd","zvkx13","a702","","TY1V01","Euro's",null,"N","",1]
[null,null,null,null,"zvkx13_c702__TY2V01","*=Kostenverzamelstaat!$M$134","","Overige kosten- zintuiglijk gehandicapten- incl balans","zvkx13","c702","","TY2V01","Euro's",null,"N","",1]
[null,null,null,null,"zvkx13_a702__TY2V01","*=Kostenverzamelstaat!$N$134","","Overige kosten- zintuiglijk gehandicapten- geaccepteerd","zvkx13","a702","","TY2V01","Euro's",null,"N","",1]
[null,null,null,null,"zvkx13_c703__TY0V01","*=Kostenverzamelstaat!$I$135","","Overige kosten- Transformatiemiddelen IZA- incl balans","zvkx13","c703","","TY0V01","Euro's",null,"N","",1]
[null,null,null,null,"zvkx13_a703__TY0V01","*=Kostenverzamelstaat!$J$135","","Overige kosten- Transformatiemiddelen IZA- geaccepteerd","zvkx13","a703","","TY0V01","Euro's",null,"N","",1]
[null,null,null,null,"zvkx10_c8131__TY1V01","*=Kostenverzamelstaat!$K$136",null,"Overige kosten--  Meerkosten Corona indirect- incl balans","zvkx13","c8131",null,"TY1V01","Euro's",null,"N","",1]
[null,null,null,null,"zvkx10_a8131__TY1V01","*=Kostenverzamelstaat!$L$136",null,"Overige kosten--  Meerkosten Corona indirect- geaccepteerd","zvkx13","a8131",null,"TY1V01","Euro's",null,"N","",1]
[null,null,null,null,"zvkx13_c833__TY2V01","*=Kostenverzamelstaat!$M$137",null,"Overige kosten- Netto continuïteitsbijdrage Corona (basisverzekering)- incl balans","zvkx13","c833",null,"TY2V01","Euro's",null,"N","",1]
[null,null,null,null,"zvkx13_a833__TY2V01","*=Kostenverzamelstaat!$N$137",null,"Overige kosten- Netto continuïteitsbijdrage Corona (basisverzekering)- geaccepteerd","zvkx13","a833",null,"TY2V01","Euro's",null,"N","",1]
[null,null,null,null,"zvkx13_c__TY0V01","*=Kostenverzamelstaat!$I$138"]
[null,null,null,null,"zvkx13_a__TY0V01","*=Kostenverzamelstaat!$J$138"]
[null,null,null,null,"zvkx13_c__TY1V01","*=Kostenverzamelstaat!$K$138"]
[null,null,null,null,"zvkx13_a__TY1V01","*=Kostenverzamelstaat!$L$138"]
[null,null,null,null,"zvkx13_c__TY2V01","*=Kostenverzamelstaat!$M$138"]
[null,null,null,null,"zvkx13_a__TY2V01","*=Kostenverzamelstaat!$N$138"]
[null,null,null,null,"zvkx15_c720__TY0V01","*=Kostenverzamelstaat!$I$140","","Grensoverschrijdende zorg- via verzekeraar- incl balans","zvkx15","c720","","TY0V01","Euro's",null,"N","",1]
[null,null,null,null,"zvkx15_a720__TY0V01","*=Kostenverzamelstaat!$J$140","","Grensoverschrijdende zorg- via verzekeraar- geaccepteerd","zvkx15","a720","","TY0V01","Euro's",null,"N","",1]
[null,null,null,null,"zvkx15_c720__TY1V01","*=Kostenverzamelstaat!$K$140","","Grensoverschrijdende zorg- via verzekeraar- incl balans","zvkx15","c720","","TY1V01","Euro's",null,"N","",1]
[null,null,null,null,"zvkx15_a720__TY1V01","*=Kostenverzamelstaat!$L$140","","Grensoverschrijdende zorg- via verzekeraar- geaccepteerd","zvkx15","a720","","TY1V01","Euro's",null,"N","",1]
[null,null,null,null,"zvkx15_c720__TY2V01","*=Kostenverzamelstaat!$M$140","","Grensoverschrijdende zorg- via verzekeraar- incl balans","zvkx15","c720","","TY2V01","Euro's",null,"N","",1]
[null,null,null,null,"zvkx15_a720__TY2V01","*=Kostenverzamelstaat!$N$140","","Grensoverschrijdende zorg- via verzekeraar- geaccepteerd","zvkx15","a720","","TY2V01","Euro's",null,"N","",1]
[null,null,null,null,"zvkx15_c721__TY0V01","*=Kostenverzamelstaat!$I$141","","Grensoverschrijdende zorg- via verbindingsorgaan- incl balans","zvkx15","c721","","TY0V01","Euro's",null,"N","",1]
[null,null,null,null,"zvkx15_a721__TY0V01","*=Kostenverzamelstaat!$J$141","","Grensoverschrijdende zorg- via verbindingsorgaan- geaccepteerd","zvkx15","a721","","TY0V01","Euro's",null,"N","",1]
[null,null,null,null,"zvkx15_c721__TY1V01","*=Kostenverzamelstaat!$K$141","","Grensoverschrijdende zorg- via verbindingsorgaan- incl balans","zvkx15","c721","","TY1V01","Euro's",null,"N","",1]
[null,null,null,null,"zvkx15_a721__TY1V01","*=Kostenverzamelstaat!$L$141","","Grensoverschrijdende zorg- via verbindingsorgaan- geaccepteerd","zvkx15","a721","","TY1V01","Euro's",null,"N","",1]
[null,null,null,null,"zvkx15_c721__TY2V01","*=Kostenverzamelstaat!$M$141","","Grensoverschrijdende zorg- via verbindingsorgaan- incl balans","zvkx15","c721","","TY2V01","Euro's",null,"N","",1]
[null,null,null,null,"zvkx15_a721__TY2V01","*=Kostenverzamelstaat!$N$141","","Grensoverschrijdende zorg- via verbindingsorgaan- geaccepteerd","zvkx15","a721","","TY2V01","Euro's",null,"N","",1]
[null,null,null,null,"zvkx15_c__TY0V01","*=Kostenverzamelstaat!$I$142"]
[null,null,null,null,"zvkx15_a__TY0V01","*=Kostenverzamelstaat!$J$142"]
[null,null,null,null,"zvkx15_c__TY1V01","*=Kostenverzamelstaat!$K$142"]
[null,null,null,null,"zvkx15_a__TY1V01","*=Kostenverzamelstaat!$L$142"]
[null,null,null,null,"zvkx15_c__TY2V01","*=Kostenverzamelstaat!$M$142"]
[null,null,null,null,"zvkx15_a__TY2V01","*=Kostenverzamelstaat!$N$142"]
[null,null,null,null,"zvkx16_c730__TY0V01","*=Kostenverzamelstaat!$I$144","","Kwaliteitsgelden-- incl balans","zvkx16","c730","","TY0V01","Euro's",null,"N","",1]
[null,null,null,null,"zvkx16_a730__TY0V01","*=Kostenverzamelstaat!$J$144","","Kwaliteitsgelden-- geaccepteerd","zvkx16","a730","","TY0V01","Euro's",null,"N","",1]
[null,null,null,null,"zvkx16_c730__TY1V01","*=Kostenverzamelstaat!$K$144","","Kwaliteitsgelden-- incl balans","zvkx16","c730","","TY1V01","Euro's",null,"N","",1]
[null,null,null,null,"zvkx16_a730__TY1V01","*=Kostenverzamelstaat!$L$144","","Kwaliteitsgelden-- geaccepteerd","zvkx16","a730","","TY1V01","Euro's",null,"N","",1]
[null,null,null,null,"zvkx16_c730__TY2V01","*=Kostenverzamelstaat!$M$144","","Kwaliteitsgelden-- incl balans","zvkx16","c730","","TY2V01","Euro's",null,"N","",1]
[null,null,null,null,"zvkx16_a730__TY2V01","*=Kostenverzamelstaat!$N$144","","Kwaliteitsgelden-- geaccepteerd","zvkx16","a730","","TY2V01","Euro's",null,"N","",1]
[null,null,null,null,"zvkx16_c__TY0V01","*=Kostenverzamelstaat!$I$145"]
[null,null,null,null,"zvkx16_a__TY0V01","*=Kostenverzamelstaat!$J$145"]
[null,null,null,null,"zvkx16_c__TY1V01","*=Kostenverzamelstaat!$K$145"]
[null,null,null,null,"zvkx16_a__TY1V01","*=Kostenverzamelstaat!$L$145"]
[null,null,null,null,"zvkx16_c__TY2V01","*=Kostenverzamelstaat!$M$145"]
[null,null,null,null,"zvkx16_a__TY2V01","*=Kostenverzamelstaat!$N$145"]
[null,null,null,null,"zvkx_c__TY0V01","*=Kostenverzamelstaat!$I$146"]
[null,null,null,null,"zvkx_a__TY0V01","*=Kostenverzamelstaat!$J$146"]
[null,null,null,null,"zvkx_c__TY1V01","*=Kostenverzamelstaat!$K$146"]
[null,null,null,null,"zvkx_a__TY1V01","*=Kostenverzamelstaat!$L$146"]
[null,null,null,null,"zvkx_c__TY2V01","*=Kostenverzamelstaat!$M$146"]
[null,null,null,null,"zvkx_a__TY2V01","*=Kostenverzamelstaat!$N$146"]
[null,null,null,null,"zvkx17_c1__TY2V01","*=Kostenverzamelstaat!$M$158",null,"TOTAAL NETTO CONTINUITEITSBIJDRAGE COVID (BASISVERZEKERING), VARIABEL- incl balans","zvkx17","c1",null,"TY3V01","Euro's"]
[null,null,null,null,"zvkx17_a1__TY2V01","*=Kostenverzamelstaat!$N$158",null,"TOTAAL NETTO CONTINUITEITSBIJDRAGE COVID (BASISVERZEKERING), VARIABEL-  geaccepteerd","zvkx17","a1",null,"TY3V01","Euro's"]
[null,null,null,null,"zvkx17_c2__TY2V01","*=Kostenverzamelstaat!$M$158",null,"'TOTAAL NETTO CONTINUITEITSBIJDRAGE COVID (BASISVERZEKERING), GGZ- incl balans","zvkx17","c2",null,"TY3V01","Euro's"]
[null,null,null,null,"zvkx17_a2__TY2V01","*=Kostenverzamelstaat!$N$158",null,"'TOTAAL NETTO CONTINUITEITSBIJDRAGE COVID (BASISVERZEKERING), GGZ-  geaccepteerd","zvkx17","a2",null,"TY3V01","Euro's"]
[null,null,null,null,"zvkxdnb_c8901__TY0V01","*=Kostenverzamelstaat!$I$164","","Verschilposten DNB- Opbrengsten verhaal- incl balans","zvkxdnb","c8901","","TY0V01","Euro's",null,"N","",1]
[null,null,null,null,"zvkxdnb_a8901__TY0V01","*=Kostenverzamelstaat!$J$164","","Verschilposten DNB- Opbrengsten verhaal- geaccepteerd","zvkxdnb","a8901","","TY0V01","Euro's",null,"N","",1]
[null,null,null,null,"zvkxdnb_c8901__TY1V01","*=Kostenverzamelstaat!$K$164","","Verschilposten DNB- Opbrengsten verhaal- incl balans","zvkxdnb","c8901","","TY1V01","Euro's",null,"N","",1]
[null,null,null,null,"zvkxdnb_a8901__TY1V01","*=Kostenverzamelstaat!$L$164","","Verschilposten DNB- Opbrengsten verhaal- geaccepteerd","zvkxdnb","a8901","","TY1V01","Euro's",null,"N","",1]
[null,null,null,null,"zvkxdnb_c8901__TY2V01","*=Kostenverzamelstaat!$M$164","","Verschilposten DNB- Opbrengsten verhaal- incl balans","zvkxdnb","c8901","","TY2V01","Euro's",null,"N","",1]
[null,null,null,null,"zvkxdnb_a8901__TY2V01","*=Kostenverzamelstaat!$N$164","","Verschilposten DNB- Opbrengsten verhaal- geaccepteerd","zvkxdnb","a8901","","TY2V01","Euro's",null,"N","",1]
[null,null,null,null,"zvkxdnb_c910__TY0V01","*=Kostenverzamelstaat!$I$165","","Verschilposten DNB- Schade tlv het vrijwillig eigen risico- incl balans","zvkxdnb","c910","","TY0V01","Euro's",null,"N","",1]
[null,null,null,null,"zvkxdnb_a910__TY0V01","*=Kostenverzamelstaat!$J$165","","Verschilposten DNB- Schade tlv het vrijwillig eigen risico- geaccepteerd","zvkxdnb","a910","","TY0V01","Euro's",null,"N","",1]
[null,null,null,null,"zvkxdnb_c910__TY1V01","*=Kostenverzamelstaat!$K$165","","Verschilposten DNB- Schade tlv het vrijwillig eigen risico- incl balans","zvkxdnb","c910","","TY1V01","Euro's",null,"N","",1]
[null,null,null,null,"zvkxdnb_a910__TY1V01","*=Kostenverzamelstaat!$L$165","","Verschilposten DNB- Schade tlv het vrijwillig eigen risico- geaccepteerd","zvkxdnb","a910","","TY1V01","Euro's",null,"N","",1]
[null,null,null,null,"zvkxdnb_c910__TY2V01","*=Kostenverzamelstaat!$M$165","","Verschilposten DNB- Schade tlv het vrijwillig eigen risico- incl balans","zvkxdnb","c910","","TY2V01","Euro's",null,"N","",1]
[null,null,null,null,"zvkxdnb_a910__TY2V01","*=Kostenverzamelstaat!$N$165","","Verschilposten DNB- Schade tlv het vrijwillig eigen risico- geaccepteerd","zvkxdnb","a910","","TY2V01","Euro's",null,"N","",1]
[null,null,null,null,"zvkxdnb_c915__TY0V01","*=Kostenverzamelstaat!$I$166","","Verschilposten DNB- Schade tlv het verplicht eigen risico- incl balans","zvkxdnb","c915","","TY0V01","Euro's",null,"N","",1]
[null,null,null,null,"zvkxdnb_a915__TY0V01","*=Kostenverzamelstaat!$J$166","","Verschilposten DNB- Schade tlv het verplicht eigen risico- geaccepteerd","zvkxdnb","a915","","TY0V01","Euro's",null,"N","",1]
[null,null,null,null,"zvkxdnb_c915__TY1V01","*=Kostenverzamelstaat!$K$166","","Verschilposten DNB- Schade tlv het verplicht eigen risico- incl balans","zvkxdnb","c915","","TY1V01","Euro's",null,"N","",1]
[null,null,null,null,"zvkxdnb_a915__TY1V01","*=Kostenverzamelstaat!$L$166","","Verschilposten DNB- Schade tlv het verplicht eigen risico- geaccepteerd","zvkxdnb","a915","","TY1V01","Euro's",null,"N","",1]
[null,null,null,null,"zvkxdnb_c915__TY2V01","*=Kostenverzamelstaat!$M$166","","Verschilposten DNB- Schade tlv het verplicht eigen risico- incl balans","zvkxdnb","c915","","TY2V01","Euro's",null,"N","",1]
[null,null,null,null,"zvkxdnb_a915__TY2V01","*=Kostenverzamelstaat!$N$166","","Verschilposten DNB- Schade tlv het verplicht eigen risico- geaccepteerd","zvkxdnb","a915","","TY2V01","Euro's",null,"N","",1]
[null,null,null,null,"zvkxdnb_c940__TY0V01","*=Kostenverzamelstaat!$I$167","","Verschilposten DNB- Netto Premieopbrengsten- incl balans","zvkxdnb","c940","","TY0V01","Euro's",null,"N","",1]
[null,null,null,null,"zvkxdnb_a940__TY0V01","*=Kostenverzamelstaat!$J$167","","Verschilposten DNB- Netto Premieopbrengsten- geaccepteerd","zvkxdnb","a940","","TY0V01","Euro's",null,"N","",1]
[null,null,null,null,"zvkxdnb_c940__TY1V01","*=Kostenverzamelstaat!$K$167","","Verschilposten DNB- Netto Premieopbrengsten- incl balans","zvkxdnb","c940","","TY1V01","Euro's",null,"N","",1]
[null,null,null,null,"zvkxdnb_a940__TY1V01","*=Kostenverzamelstaat!$L$167","","Verschilposten DNB- Netto Premieopbrengsten- geaccepteerd","zvkxdnb","a940","","TY1V01","Euro's",null,"N","",1]
[null,null,null,null,"zvkxdnb_c940__TY2V01","*=Kostenverzamelstaat!$M$167","","Verschilposten DNB- Netto Premieopbrengsten- incl balans","zvkxdnb","c940","","TY2V01","Euro's",null,"N","",1]
[null,null,null,null,"zvkxdnb_a940__TY2V01","*=Kostenverzamelstaat!$N$167","","Verschilposten DNB- Netto Premieopbrengsten- geaccepteerd","zvkxdnb","a940","","TY2V01","Euro's",null,"N","",1]
[null,null,null,null,"zvkx01_cc504__TY2V01","*='Specifieke informatie B'!I15","","Huisartsen- bijz diensttijden- kst Corona- incl balans","zvkx01","cc504","","TY2V01","Euro's",null,"N","",1]
[null,null,null,null,"zvkx01_ac504__TY2V01","*='Specifieke informatie B'!$J$15","","Huisartsen- bijz diensttijden- kst Corona- geaccepteerd","zvkx01","ac504","","TY2V01","Euro's",null,"N","",1]
[null,null,null,null,"zvkx01_cc504__TY3V01","*='Specifieke informatie B'!$K$15","","Huisartsen- bijz diensttijden- kst Corona- incl balans","zvkx01","cc504","","TY3V01","Euro's",null,"N","",1]
[null,null,null,null,"zvkx01_ac504__TY3V01","*='Specifieke informatie B'!$L$15","","Huisartsen- bijz diensttijden- kst Corona- geaccepteerd","zvkx01","ac504","","TY3V01","Euro's",null,"N","",1]
[null,null,null,null,"zvkx01_cc506__TY2V01","*='Specifieke informatie B'!$I$16","","Huisartsen- Consult- kst Corona- incl balans","zvkx01","cc506","","TY2V01","Euro's",null,"N","",1]
[null,null,null,null,"zvkx01_ac506__TY2V01","*='Specifieke informatie B'!$J$16","","Huisartsen- Consult- kst Corona- geaccepteerd","zvkx01","ac506","","TY2V01","Euro's",null,"N","",1]
[null,null,null,null,"zvkx01_cc506__TY3V01","*='Specifieke informatie B'!$K$16","","Huisartsen- Consult- kst Corona- incl balans","zvkx01","cc506","","TY3V01","Euro's",null,"N","",1]
[null,null,null,null,"zvkx01_ac506__TY3V01","*='Specifieke informatie B'!$L$16","","Huisartsen- Consult- kst Corona- geaccepteerd","zvkx01","ac506","","TY3V01","Euro's",null,"N","",1]
[null,null,null,null,"zvkx01_cc507__TY2V01","*='Specifieke informatie B'!$I$17","","Huisartsen- Overige- kst Corona- incl balans","zvkx01","cc507","","TY2V01","Euro's",null,"N","",1]
[null,null,null,null,"zvkx01_ac507__TY2V01","*='Specifieke informatie B'!$J$17","","Huisartsen- Overige- kst Corona- geaccepteerd","zvkx01","ac507","","TY2V01","Euro's",null,"N","",1]
[null,null,null,null,"zvkx01_cc507__TY3V01","*='Specifieke informatie B'!$K$17","","Huisartsen- Overige- kst Corona- incl balans","zvkx01","cc507","","TY3V01","Euro's",null,"N","",1]
[null,null,null,null,"zvkx01_ac507__TY3V01","*='Specifieke informatie B'!$L$17","","Huisartsen- Overige- kst Corona- geaccepteerd","zvkx01","ac507","","TY3V01","Euro's",null,"N","",1]
[null,null,null,null,"zvkx01_cc515__TY2V01","*='Specifieke informatie B'!$I$18","","Huisartsen- Resultaatbel. huisartsen- kst Corona- incl balans","zvkx01","cc515","","TY2V01","Euro's",null,"N","",1]
[null,null,null,null,"zvkx01_ac515__TY2V01","*='Specifieke informatie B'!$J$18","","Huisartsen- Resultaatbel. huisartsen- kst Corona- geaccepteerd","zvkx01","ac515","","TY2V01","Euro's",null,"N","",1]
[null,null,null,null,"zvkx01_cc515__TY3V01","*='Specifieke informatie B'!$K$18","","Huisartsen- Resultaatbel. huisartsen- kst Corona- incl balans","zvkx01","cc515","","TY3V01","Euro's",null,"N","",1]
[null,null,null,null,"zvkx01_ac515__TY3V01","*='Specifieke informatie B'!$L$18","","Huisartsen- Resultaatbel. huisartsen- kst Corona- geaccepteerd","zvkx01","ac515","","TY3V01","Euro's",null,"N","",1]
[null,null,null,null,"zvkx01_cc8011__TY2V01","*='Specifieke informatie B'!$I$19",null,"Huisartsen- Meerkosten COVID-19, indirect- kst Corona- incl balans","zvkx01","cc8011",null,"TY2V01","Euro's",null,"N","",1]
[null,null,null,null,"zvkx01_ac8011__TY2V01","*='Specifieke informatie B'!$J$19",null,"Huisartsen- Meerkosten COVID-19, indirect- kst Corona- geaccepteerd","zvkx01","ac8011",null,"TY2V01","Euro's",null,"N","",1]
[null,null,null,null,"zvkx01_cc8011__TY3V01","*='Specifieke informatie B'!$K$19",null,"Huisartsen- Meerkosten COVID-19, indirect- kst Corona- incl balans","zvkx01","cc8011",null,"TY3V01","Euro's",null,"N","",1]
[null,null,null,null,"zvkx01_ac8011__TY3V01","*='Specifieke informatie B'!$L$19",null,"Huisartsen- Meerkosten COVID-19, indirect- kst Corona- geaccepteerd","zvkx01","ac8011",null,"TY3V01","Euro's",null,"N","",1]
[null,null,null,null,"zvkx01_cc8012__TY2V01","*='Specifieke informatie B'!$I$20",null,"Huisartsen- Meerkosten COVID-19,toeslagen- kst Corona- incl balans","zvkx01","cc8012",null,"TY2V01","Euro's",null,"N","",1]
[null,null,null,null,"zvkx01_ac8012__TY2V01","*='Specifieke informatie B'!$J$20",null,"Huisartsen- Meerkosten COVID-19,toeslagen- kst Corona- geaccepteerd","zvkx01","ac8012",null,"TY2V01","Euro's",null,"N","",1]
[null,null,null,null,"zvkx01_cc8012__TY3V01","*='Specifieke informatie B'!$K$20",null,"Huisartsen- Meerkosten COVID-19,toeslagen- kst Corona- incl balans","zvkx01","cc8012",null,"TY3V01","Euro's",null,"N","",1]
[null,null,null,null,"zvkx01_ac8012__TY3V01","*='Specifieke informatie B'!$L$20",null,"Huisartsen- Meerkosten COVID-19,toeslagen- kst Corona- geaccepteerd","zvkx01","ac8012",null,"TY3V01","Euro's",null,"N","",1]
[null,null,null,null,"zvkx01_cc__TY2V01","*='Specifieke informatie B'!$I$21",""]
[null,null,null,null,"zvkx01_ac__TY2V01","*='Specifieke informatie B'!$J$21",""]
[null,null,null,null,"zvkx01_cc__TY3V01","*='Specifieke informatie B'!$K$21",""]
[null,null,null,null,"zvkx01_ac__TY3V01","*='Specifieke informatie B'!$L$21",""]
[null,null,null,null,"zvkx02_cc8021__TY3V01","*='Specifieke informatie B'!$K$23",null,"Farmaceutische hulp- Meerkosten COVID-19, indirect- kst Corona- incl balans","zvkx02","cc8021",null,"TY3V01","Euro's",null,"N","",1]
[null,null,null,null,"zvkx02_ac8021__TY3V01","*='Specifieke informatie B'!$L$23",null,"Farmaceutische hulp- Meerkosten COVID-19, indirect- kst Corona- geaccepteerd","zvkx02","ac8021",null,"TY3V01","Euro's",null,"N","",1]
[null,null,null,null,"zvkx02_cc__TY3V01","*='Specifieke informatie B'!$K$24",""]
[null,null,null,null,"zvkx02_ac__TY3V01","*='Specifieke informatie B'!$L$24",""]
[null,null,null,null,"zvkx03_cc530__TY2V01","*='Specifieke informatie B'!$I$26","","Huisartsen- Resultaatbel. huisartsen- kst Corona- incl balans","zvkx01","cc515","","TY2V01","Euro's",null,"N","",1]
[null,null,null,null,"zvkx03_ac530__TY2V01","*='Specifieke informatie B'!$J$26","","Huisartsen- Resultaatbel. huisartsen- kst Corona- incl balans","zvkx01","cc515","","TY2V01","Euro's",null,"N","",1]
[null,null,null,null,"zvkx03_cc530__TY3V01","*='Specifieke informatie B'!$K$26","","Huisartsen- Resultaatbel. huisartsen- kst Corona- incl balans","zvkx01","cc515","","TY3V01","Euro's",null,"N","",1]
[null,null,null,null,"zvkx03_ac530__TY3V01","*='Specifieke informatie B'!$L$26","","Huisartsen- Resultaatbel. huisartsen- kst Corona- incl balans","zvkx01","cc515","","TY3V01","Euro's",null,"N","",1]
[null,null,null,null,"zvkx03_cc8031__TY2V01","*='Specifieke informatie B'!$I$27",null,"Verpleging en verzorging- Meerkosten COVID-19, indirect- kst Corona- incl balans","zvkx03","cc8031",null,"TY2V01","Euro's",null,"N","",1]
[null,null,null,null,"zvkx03_ac8031__TY2V01","*='Specifieke informatie B'!$J$27",null,"Verpleging en verzorging- Meerkosten COVID-19, indirect- kst Corona- geaccepteerd","zvkx03","ac8031",null,"TY2V01","Euro's",null,"N","",1]
[null,null,null,null,"zvkx03_cc8031__TY3V01","*='Specifieke informatie B'!$K$27",null,"Verpleging en verzorging- Meerkosten COVID-19, indirect- kst Corona- incl balans","zvkx03","cc8031",null,"TY3V01","Euro's",null,"N","",1]
[null,null,null,null,"zvkx03_ac8031__TY3V01","*='Specifieke informatie B'!$L$27",null,"Verpleging en verzorging- Meerkosten COVID-19, indirect- kst Corona- geaccepteerd","zvkx03","ac8031",null,"TY3V01","Euro's",null,"N","",1]
[null,null,null,null,"zvkx03_cc__TY2V01","*='Specifieke informatie B'!$I$28",""]
[null,null,null,null,"zvkx03_ac__TY2V01","*='Specifieke informatie B'!$J$28",""]
[null,null,null,null,"zvkx03_cc__TY3V01","*='Specifieke informatie B'!$K$28",""]
[null,null,null,null,"zvkx03_ac__TY3V01","*='Specifieke informatie B'!$L$28",""]
[null,null,null,null,"zvkx04_cc8041__TY3V01","*='Specifieke informatie B'!$K$30",null,"Mondzorg- Meerkosten COVID-19, indirect- kst Corona- incl balans","zvkx04","cc8041",null,"TY3V01","Euro's",null,"N","",1]
[null,null,null,null,"zvkx04_ac8041__TY3V01","*='Specifieke informatie B'!$L$30",null,"Mondzorg- Meerkosten COVID-19, indirect- kst Corona- geaccepteerd","zvkx04","ac8041",null,"TY3V01","Euro's",null,"N","",1]
[null,null,null,null,"zvkx04_cc8042__TY3V01","*='Specifieke informatie B'!$K$31",null,"Mondzorg- Meerkosten COVID-19,toeslagen- kst Corona- incl balans","zvkx04","cc8042",null,"TY3V01","Euro's",null,"N","",1]
[null,null,null,null,"zvkx04_ac8042__TY3V01","*='Specifieke informatie B'!$L$31",null,"Mondzorg- Meerkosten COVID-19,toeslagen- kst Corona- geaccepteerd","zvkx04","ac8042",null,"TY3V01","Euro's",null,"N","",1]
[null,null,null,null,"zvkx04_cc__TY3V01","*='Specifieke informatie B'!$K$32",""]
[null,null,null,null,"zvkx04_ac__TY3V01","*='Specifieke informatie B'!$L$32",""]
[null,null,null,null,"zvkx05_cc8051__TY3V01","*='Specifieke informatie B'!$K$34",null,"Verloskundige hulp- Meerkosten COVID-19, indirect- kst Corona- incl balans","zvkx05","cc8051",null,"TY3V01","Euro's",null,"N","",1]
[null,null,null,null,"zvkx05_ac8051__TY3V01","*='Specifieke informatie B'!$L$34",null,"Verloskundige hulp- Meerkosten COVID-19, indirect- kst Corona- geaccepteerd","zvkx05","ac8051",null,"TY3V01","Euro's",null,"N","",1]
[null,null,null,null,"zvkx05_cc__TY3V01","*='Specifieke informatie B'!$K$47",""]
[null,null,null,null,"zvkx05_ac__TY3V01","*='Specifieke informatie B'!$L$47",""]
[null,null,null,null,"zvkx06_cc6122__TY2V01","*='Specifieke informatie B'!$I$48","","Medisch specialistische hulp-IC- kst Corona- incl balans","zvkx06","cc6122","","TY2V01","Euro's",null,"N","",1]
[null,null,null,null,"zvkx06_ac6122__TY2V01","*='Specifieke informatie B'!$J$48","","Medisch specialistische hulp-IC- kst Corona- geaccepteerd","zvkx06","ac6122","","TY2V01","Euro's",null,"N","",1]
[null,null,null,null,"zvkx06_cc6122__TY3V01","*='Specifieke informatie B'!$K$48","","Medisch specialistische hulp-IC- kst Corona- incl balans","zvkx06","cc6122","","TY3V01","Euro's",null,"N","",1]
[null,null,null,null,"zvkx06_ac6122__TY3V01","*='Specifieke informatie B'!$L$48","","Medisch specialistische hulp-IC- kst Corona- geaccepteerd","zvkx06","ac6122","","TY3V01","Euro's",null,"N","",1]
[null,null,null,null,"zvkx06_cc6131__TY2V01","*='Specifieke informatie B'!$I$49","","Medisch specialistische hulp- Integraal DBC-zorgproduct gereguleerd- kst Corona- incl balans","zvkx06","cc6131","","TY2V01","Euro's",null,"N","",1]
[null,null,null,null,"zvkx06_ac6131__TY2V01","*='Specifieke informatie B'!$J$49","","Medisch specialistische hulp- Integraal DBC-zorgproduct gereguleerd- kst Corona- geaccepteerd","zvkx06","ac6131","","TY2V01","Euro's",null,"N","",1]
[null,null,null,null,"zvkx06_cc6131__TY3V01","*='Specifieke informatie B'!$K$49","","Medisch specialistische hulp- Integraal DBC-zorgproduct gereguleerd- kst Corona- incl balans","zvkx06","cc6131","","TY3V01","Euro's",null,"N","",1]
[null,null,null,null,"zvkx06_ac6131__TY3V01","*='Specifieke informatie B'!$L$49","","Medisch specialistische hulp- Integraal DBC-zorgproduct gereguleerd- kst Corona- geaccepteerd","zvkx06","ac6131","","TY3V01","Euro's",null,"N","",1]
[null,null,null,null,"zvkx06_cc6151__TY2V01","*='Specifieke informatie B'!$I$50","","Medisch specialistische hulp- Integraal DBC-zorgproduct vrije segment- kst Corona- incl balans","zvkx06","cc6151","","TY2V01","Euro's",null,"N","",1]
[null,null,null,null,"zvkx06_ac6151__TY2V01","*='Specifieke informatie B'!$J$50","","Medisch specialistische hulp- Integraal DBC-zorgproduct vrije segment- kst Corona- geaccepteerd","zvkx06","ac6151","","TY2V01","Euro's",null,"N","",1]
[null,null,null,null,"zvkx06_cc6151__TY3V01","*='Specifieke informatie B'!$K$50","","Medisch specialistische hulp- Integraal DBC-zorgproduct vrije segment- kst Corona- incl balans","zvkx06","cc6151","","TY3V01","Euro's",null,"N","",1]
[null,null,null,null,"zvkx06_ac6151__TY3V01","*='Specifieke informatie B'!$L$50","","Medisch specialistische hulp- Integraal DBC-zorgproduct vrije segment- kst Corona- geaccepteerd","zvkx06","ac6151","","TY3V01","Euro's",null,"N","",1]
[null,null,null,null,"zvkx06_cc8061__TY2V01","*='Specifieke informatie B'!$I$51",null,"Medisch specialistische hulp- Meerkosten COVID-19, indirect- kst Corona- incl balans","zvkx06","cc8061",null,"TY2V01","Euro's",null,"N","",1]
[null,null,null,null,"zvkx06_ac8061__TY2V01","*='Specifieke informatie B'!$J$51",null,"Medisch specialistische hulp- Meerkosten COVID-19, indirect- kst Corona- geaccepteerd","zvkx06","ac8061",null,"TY2V01","Euro's",null,"N","",1]
[null,null,null,null,"zvkx06_cc8061__TY3V01","*='Specifieke informatie B'!$K$51",null,"Medisch specialistische hulp- Meerkosten COVID-19,toeslagen- kst Corona- incl balans","zvkx06","cc8062",null,"TY3V01","Euro's",null,"N","",1]
[null,null,null,null,"zvkx06_ac8061__TY3V01","*='Specifieke informatie B'!$L$51",null,"Medisch specialistische hulp- Meerkosten COVID-19,toeslagen- kst Corona- geaccepteerd","zvkx06","ac8062",null,"TY3V01","Euro's",null,"N","",1]
[null,null,null,null,"zvkx06_cc8062__TY2V01","*='Specifieke informatie B'!$I$52",null,"Medisch specialistische hulp- Meerkosten COVID-19,toeslagen- kst Corona- incl balans","zvkx06","cc8062",null,"TY3V01","Euro's",null,"N","",1]
[null,null,null,null,"zvkx06_ac8062__TY2V01","*='Specifieke informatie B'!$J$52",null,"Medisch specialistische hulp- Meerkosten COVID-19,toeslagen- kst Corona- geaccepteerd","zvkx06","ac8062",null,"TY3V01","Euro's",null,"N","",1]
[null,null,null,null,"zvkx06_cc__TY2V01","*='Specifieke informatie B'!$I$53",""]
[null,null,null,null,"zvkx06_ac__TY2V01","*='Specifieke informatie B'!$J$53",""]
[null,null,null,null,"zvkx06_cc__TY3V01","*='Specifieke informatie B'!$K$53",""]
[null,null,null,null,"zvkx06_ac__TY3V01","*='Specifieke informatie B'!$L$53",""]
[null,null,null,null,"zvkx07_cc620__TY2V01","*='Specifieke informatie B'!$I$55","","Paramedische hulp- fysiotherapie- kst Corona- incl balans","zvkx07","cc620","","TY2V01","Euro's",null,"N","",1]
[null,null,null,null,"zvkx07_ac620__TY2V01","*='Specifieke informatie B'!$J$55","","Paramedische hulp- fysiotherapie- kst Corona- geaccepteerd","zvkx07","ac620","","TY2V01","Euro's",null,"N","",1]
[null,null,null,null,"zvkx07_cc620__TY3V01","*='Specifieke informatie B'!$K$55","","Paramedische hulp- fysiotherapie- kst Corona- incl balans","zvkx07","cc620","","TY3V01","Euro's",null,"N","",1]
[null,null,null,null,"zvkx07_ac620__TY3V01","*='Specifieke informatie B'!$L$55","","Paramedische hulp- fysiotherapie- kst Corona- geaccepteerd","zvkx07","ac620","","TY3V01","Euro's",null,"N","",1]
[null,null,null,null,"zvkx07_cc621__TY2V01","*='Specifieke informatie B'!$I$56","","Paramedische hulp- Mensendieck/Cesar- kst Corona- incl balans","zvkx07","cc621","","TY2V01","Euro's",null,"N","",1]
[null,null,null,null,"zvkx07_ac621__TY2V01","*='Specifieke informatie B'!$J$56","","Paramedische hulp- Mensendieck/Cesar- kst Corona- geaccepteerd","zvkx07","ac621","","TY2V01","Euro's",null,"N","",1]
[null,null,null,null,"zvkx07_cc621__TY3V01","*='Specifieke informatie B'!$K$56","","Paramedische hulp- Mensendieck/Cesar- kst Corona- incl balans","zvkx07","cc621","","TY3V01","Euro's",null,"N","",1]
[null,null,null,null,"zvkx07_ac621__TY3V01","*='Specifieke informatie B'!$L$56","","Paramedische hulp- Mensendieck/Cesar- kst Corona- geaccepteerd","zvkx07","ac621","","TY3V01","Euro's",null,"N","",1]
[null,null,null,null,"zvkx07_cc623__TY2V01","*='Specifieke informatie B'!$I$57","","Paramedische hulp- logopedie- kst Corona- incl balans","zvkx07","cc623","","TY2V01","Euro's",null,"N","",1]
[null,null,null,null,"zvkx07_ac623__TY2V01","*='Specifieke informatie B'!$J$57","","Paramedische hulp- logopedie- kst Corona- geaccepteerd","zvkx07","ac623","","TY2V01","Euro's",null,"N","",1]
[null,null,null,null,"zvkx07_cc623__TY3V01","*='Specifieke informatie B'!$K$57","","Paramedische hulp- logopedie- kst Corona- incl balans","zvkx07","cc623","","TY3V01","Euro's",null,"N","",1]
[null,null,null,null,"zvkx07_ac623__TY3V01","*='Specifieke informatie B'!$L$57","","Paramedische hulp- logopedie- kst Corona- geaccepteerd","zvkx07","ac623","","TY3V01","Euro's",null,"N","",1]
[null,null,null,null,"zvkx07_cc624__TY2V01","*='Specifieke informatie B'!$I$58","","Paramedische hulp- ergotherapie- kst Corona- incl balans","zvkx07","cc624","","TY2V01","Euro's",null,"N","",1]
[null,null,null,null,"zvkx07_ac624__TY2V01","*='Specifieke informatie B'!$J$58","","Paramedische hulp- ergotherapie- kst Corona- geaccepteerd","zvkx07","ac624","","TY2V01","Euro's",null,"N","",1]
[null,null,null,null,"zvkx07_cc624__TY3V01","*='Specifieke informatie B'!$K$58","","Paramedische hulp- ergotherapie- kst Corona- incl balans","zvkx07","cc624","","TY3V01","Euro's",null,"N","",1]
[null,null,null,null,"zvkx07_ac624__TY3V01","*='Specifieke informatie B'!$L$58","","Paramedische hulp- ergotherapie- kst Corona- geaccepteerd","zvkx07","ac624","","TY3V01","Euro's",null,"N","",1]
[null,null,null,null,"zvkx07_cc625__TY2V01","*='Specifieke informatie B'!$I$59","","Paramedische hulp- dieetadvisering- kst Corona- incl balans","zvkx07","cc625","","TY2V01","Euro's",null,"N","",1]
[null,null,null,null,"zvkx07_ac625__TY2V01","*='Specifieke informatie B'!$J$59","","Paramedische hulp- dieetadvisering- kst Corona- incl balans","zvkx07","ac625","","TY2V01","Euro's",null,"N","",1]
[null,null,null,null,"zvkx07_cc625__TY3V01","*='Specifieke informatie B'!$K$59","","Paramedische hulp- dieetadvisering- kst Corona- geaccepteerd","zvkx07","cc625","","TY3V01","Euro's",null,"N","",1]
[null,null,null,null,"zvkx07_ac625__TY3V01","*='Specifieke informatie B'!$L$59","","Paramedische hulp- dieetadvisering- kst Corona- geaccepteerd","zvkx07","ac625","","TY3V01","Euro's",null,"N","",1]
[null,null,null,null,"zvkx07_cc8071__TY3V01","*='Specifieke informatie B'!$K$60",null,"Paramedische hulp- Meerkosten COVID-19, indirect- kst Corona- incl balans","zvkx07","cc8071",null,"TY2V01","Euro's",null,"N","",1]
[null,null,null,null,"zvkx07_ac8071__TY3V01","*='Specifieke informatie B'!$L$60",null,"Paramedische hulp- Meerkosten COVID-19, indirect- kst Corona- geaccepteerd","zvkx07","ac8071",null,"TY2V01","Euro's",null,"N","",1]
[null,null,null,null,"zvkx07_cc__TY2V01","*='Specifieke informatie B'!$I$61",""]
[null,null,null,null,"zvkx07_ac__TY2V01","*='Specifieke informatie B'!$J$61",""]
[null,null,null,null,"zvkx07_cc__TY3V01","*='Specifieke informatie B'!$K$61",""]
[null,null,null,null,"zvkx07_ac__TY3V01","*='Specifieke informatie B'!$L$61",""]
[null,null,null,null,"zvkx08_cc8081__TY2V01","*='Specifieke informatie B'!$I$63",null,"Hulpmiddelen- Meerkosten COVID-19, indirect- kst Corona- incl balans","zvkx08","cc8081",null,"TY2V01","Euro's",null,"N","",1]
[null,null,null,null,"zvkx08_ac8081__TY2V01","*='Specifieke informatie B'!$J$63",null,"Hulpmiddelen- Meerkosten COVID-19, indirect- kst Corona- geaccepteerd","zvkx08","ac8081",null,"TY2V01","Euro's",null,"N","",1]
[null,null,null,null,"zvkx08_cc8081__TY3V01","*='Specifieke informatie B'!$K$63",null,"Hulpmiddelen- Meerkosten COVID-19, indirect- kst Corona- incl balans","zvkx08","cc8081",null,"TY3V01","Euro's",null,"N","",1]
[null,null,null,null,"zvkx08_ac8081__TY3V01","*='Specifieke informatie B'!$L$63",null,"Hulpmiddelen- Meerkosten COVID-19, indirect- kst Corona- geaccepteerd","zvkx08","ac8081",null,"TY3V01","Euro's",null,"N","",1]
[null,null,null,null,"zvkx08_cc__TY2V01","*='Specifieke informatie B'!$I$64",""]
[null,null,null,null,"zvkx08_ac__TY2V01","*='Specifieke informatie B'!$J$64",""]
[null,null,null,null,"zvkx08_cc__TY3V01","*='Specifieke informatie B'!$K$64",""]
[null,null,null,null,"zvkx08_ac__TY3V01","*='Specifieke informatie B'!$L$64",""]
[null,null,null,null,"zvkx09_cc650__TY2V01","*='Specifieke informatie B'!$I$66",null,"Ziekenvervoer- Meerkosten COVID-19, indirect- kst Corona- incl balans","zvkx09","cc650",null,"TY2V01","Euro's",null,"N"]
[null,null,null,null,"zvkx09_ac650__TY2V01","*='Specifieke informatie B'!$J$66",null,"Ziekenvervoer- Meerkosten COVID-19, indirect- kst Corona- geaccepteerd","zvkx09","ac650",null,"TY2V01","Euro's",null,"N"]
[null,null,null,null,"zvkx09_cc650__TY3V01","*='Specifieke informatie B'!$K$66",null,"Ziekenvervoer- Meerkosten COVID-19, indirect- kst Corona- incl balans","zvkx09","cc650",null,"TY3V01","Euro's",null,"N"]
[null,null,null,null,"zvkx09_ac650__TY3V01","*='Specifieke informatie B'!$L$66",null,"Ziekenvervoer- Meerkosten COVID-19, indirect- kst Corona- geaccepteerd","zvkx09","ac650",null,"TY3V01","Euro's",null,"N"]
[null,null,null,null,"zvkx09_cc8091__TY2V01","*='Specifieke informatie B'!$I$67",null,"Ziekenvervoer- Meerkosten COVID-19, indirect- kst Corona- incl balans","zvkx09","cc8091",null,"TY2V01","Euro's",null,"N","",1]
[null,null,null,null,"zvkx09_ac8091__TY2V01","*='Specifieke informatie B'!$J$67",null,"Ziekenvervoer- Meerkosten COVID-19, indirect- kst Corona- geaccepteerd","zvkx09","ac8091",null,"TY2V01","Euro's",null,"N","",1]
[null,null,null,null,"zvkx09_cc8091__TY3V01","*='Specifieke informatie B'!$K$67",null,"Ziekenvervoer- Meerkosten COVID-19, indirect- kst Corona- incl balans","zvkx09","cc8091",null,"TY3V01","Euro's",null,"N","",1]
[null,null,null,null,"zvkx09_ac8091__TY3V01","*='Specifieke informatie B'!$L$67",null,"Ziekenvervoer- Meerkosten COVID-19, indirect- kst Corona- geaccepteerd","zvkx09","ac8091",null,"TY3V01","Euro's",null,"N","",1]
[null,null,null,null,"zvkx09_cc__TY2V01","*='Specifieke informatie B'!$I$68"]
[null,null,null,null,"zvkx09_ac__TY2V01","*='Specifieke informatie B'!$J$68"]
[null,null,null,null,"zvkx09_cc__TY3V01","*='Specifieke informatie B'!$K$68"]
[null,null,null,null,"zvkx09_ac__TY3V01","*='Specifieke informatie B'!$L$68"]
[null,null,null,null,"zvkx10_cc8101__TY2V01","*='Specifieke informatie B'!$I$81",null,"Geneeskundige GGZ- Meerkosten COVID-19, indirect- kst Corona- incl balans","zvkx10","cc8101",null,"TY2V01","Euro's",null,"N","",1]
[null,null,null,null,"zvkx10_ac8101__TY2V01","*='Specifieke informatie B'!$J$81",null,"Geneeskundige GGZ- Meerkosten COVID-19, indirect- kst Corona- geaccepteerd","zvkx10","ac8101",null,"TY2V01","Euro's",null,"N","",1]
[null,null,null,null,"zvkx10_cc8101__TY3V01","*='Specifieke informatie B'!$K$81",null,"Geneeskundige GGZ- Meerkosten COVID-19, indirect- kst Corona- incl balans","zvkx10","cc8101",null,"TY3V01","Euro's",null,"N","",1]
[null,null,null,null,"zvkx10_ac8101__TY3V01","*='Specifieke informatie B'!$L$81",null,"Geneeskundige GGZ- Meerkosten COVID-19, indirect- kst Corona- geaccepteerd","zvkx10","ac8101",null,"TY3V01","Euro's",null,"N","",1]
[null,null,null,null,"zvkx10_cc__TY2V01","*='Specifieke informatie B'!$I$82"]
[null,null,null,null,"zvkx10_ac__TY2V01","*='Specifieke informatie B'!$J$82"]
[null,null,null,null,"zvkx10_cc__TY3V01","*='Specifieke informatie B'!$K$82"]
[null,null,null,null,"zvkx10_ac__TY3V01","*='Specifieke informatie B'!$L$82"]
[null,null,null,null,"zvkx11_cc670__TY2V01","*='Specifieke informatie B'!$I$84","","Geriatische revalidatiezorg- kst Corona- incl balans","zvkx11","cc670","","TY2V01","Euro's",null,"N","",1]
[null,null,null,null,"zvkx11_ac670__TY2V01","*='Specifieke informatie B'!$J$84","","Geriatische revalidatiezorg- kst Corona- geaccepteerd","zvkx11","ac670","","TY2V01","Euro's",null,"N","",1]
[null,null,null,null,"zvkx11_cc670__TY3V01","*='Specifieke informatie B'!$K$84","","Geriatische revalidatiezorg- kst Corona- incl balans","zvkx11","cc670","","TY3V01","Euro's",null,"N","",1]
[null,null,null,null,"zvkx11_ac670__TY3V01","*='Specifieke informatie B'!$L$84","","Geriatische revalidatiezorg- kst Corona- geaccepteerd","zvkx11","ac670","","TY3V01","Euro's",null,"N","",1]
[null,null,null,null,"zvkx11_cc671__TY2V01","*='Specifieke informatie B'!$I$85","","Geriatische revalidatiezorg- Eerstelijnsverblijf- kst Corona- incl balans","zvkx11","cc671","","TY2V01","Euro's",null,"N","",1]
[null,null,null,null,"zvkx11_ac671__TY2V01","*='Specifieke informatie B'!$J$85","","Geriatische revalidatiezorg- Eerstelijnsverblijf- kst Corona- geaccepteerd","zvkx11","ac671","","TY2V01","Euro's",null,"N","",1]
[null,null,null,null,"zvkx11_cc671__TY3V01","*='Specifieke informatie B'!$K$85","","Geriatische revalidatiezorg- Eerstelijnsverblijf- kst Corona- incl balans","zvkx11","cc671","","TY3V01","Euro's",null,"N","",1]
[null,null,null,null,"zvkx11_ac671__TY3V01","*='Specifieke informatie B'!$L$85","","Geriatische revalidatiezorg- Eerstelijnsverblijf- kst Corona- geaccepteerd","zvkx11","ac671","","TY3V01","Euro's",null,"N","",1]
[null,null,null,null,"zvkx11_cc81121__TY2V01","*='Specifieke informatie B'!$I$86",null,"Geriatische revalidatiezorg- Meerkosten COVID-19, indirect- kst Corona- incl balans","zvkx11","cc81121",null,"TY3V01","Euro's",null,"N","",1]
[null,null,null,null,"zvkx11_ac81121__TY2V01","*='Specifieke informatie B'!$J$86",null,"Geriatische revalidatiezorg- Meerkosten COVID-19, indirect- kst Corona- geaccepteerd","zvkx11","ac81121",null,"TY3V01","Euro's",null,"N","",1]
[null,null,null,null,"zvkx11_cc81121__TY3V01","*='Specifieke informatie B'!$K$86",null,"Geriatische revalidatiezorg- Meerkosten COVID-19, indirect- kst Corona- incl balans","zvkx11","cc81121",null,"TY3V01","Euro's",null,"N","",1]
[null,null,null,null,"zvkx11_ac81121__TY3V01","*='Specifieke informatie B'!$L$86",null,"Geriatische revalidatiezorg- Meerkosten COVID-19, indirect- kst Corona- geaccepteerd","zvkx11","ac81121",null,"TY3V01","Euro's",null,"N","",1]
[null,null,null,null,"zvkx11_cc81131__TY2V01","*='Specifieke informatie B'!$I$87",null,"Geriatische revalidatiezorg- Meerkosten COVID-19, indirect- kst Corona- incl balans","zvkx11","cc81131",null,"TY2V01","Euro's",null,"N","",1]
[null,null,null,null,"zvkx11_ac81131__TY2V01","*='Specifieke informatie B'!$J$87",null,"Geriatische revalidatiezorg- Meerkosten COVID-19, indirect- kst Corona- geaccepteerd","zvkx11","ac81131",null,"TY2V01","Euro's",null,"N","",1]
[null,null,null,null,"zvkx11_cc81131__TY3V01","*='Specifieke informatie B'!$K$87",null,"Geriatische revalidatiezorg- Meerkosten COVID-19, indirect- kst Corona- incl balans","zvkx11","cc81131",null,"TY3V01","Euro's",null,"N","",1]
[null,null,null,null,"zvkx11_ac81131__TY3V01","*='Specifieke informatie B'!$L$87",null,"Geriatische revalidatiezorg- Meerkosten COVID-19, indirect- kst Corona- geaccepteerd","zvkx11","ac81131",null,"TY3V01","Euro's",null,"N","",1]
[null,null,null,null,"zvkx11_cc__TY2V01","*='Specifieke informatie B'!$I$89"]
[null,null,null,null,"zvkx11_ac__TY2V01","*='Specifieke informatie B'!$J$89"]
[null,null,null,null,"zvkx11_cc__TY3V01","*='Specifieke informatie B'!$K$89"]
[null,null,null,null,"zvkx11_ac__TY3V01","*='Specifieke informatie B'!$L$89"]
[null,null,null,null,"zvkx12_cc8121__TY3V01","*='Specifieke informatie B'!$K$91",null,"Kraamzorg- Meerkosten COVID-19, indirect- kst Corona- incl balans","zvkx12","cc8121",null,"TY3V01","Euro's",null,"N","",1]
[null,null,null,null,"zvkx12_ac8121__TY3V01","*='Specifieke informatie B'!$L$91",null,"Kraamzorg- Meerkosten COVID-19, indirect- kst Corona- geaccepteerd","zvkx12","ac8121",null,"TY3V01","Euro's",null,"N","",1]
[null,null,null,null,"zvkx12_cc__TY3V01","*='Specifieke informatie B'!$K$92"]
[null,null,null,null,"zvkx12_ac__TY3V01","*='Specifieke informatie B'!$L$92"]
[null,null,null,null,"zvkx13_cc8131__TY3V01","*='Specifieke informatie B'!$K$94",null,"Overige zorgkosten- Meerkosten COVID-19, indirect- kst Corona- incl balans","zvkx13","cc8131",null,"TY3V01","Euro's",null,"N","",1]
[null,null,null,null,"zvkx13_ac8131__TY3V01","*='Specifieke informatie B'!$L$94",null,"Overige zorgkosten- Meerkosten COVID-19, indirect- kst Corona- geaccepteerd","zvkx13","ac8131",null,"TY3V01","Euro's",null,"N","",1]
[null,null,null,null,"zvkx13_cc__TY3V01","*='Specifieke informatie B'!$K$95"]
[null,null,null,null,"zvkx13_ac__TY3V01","*='Specifieke informatie B'!$L$95"]
[null,null,null,null,"zvkx_cc__TKD_TY2V01","*='Specifieke informatie B'!$I$97",null,"Totaal directe kosten_ Covid-19"]
[null,null,null,null,"zvkx_ac__TKD_TY2V01","*='Specifieke informatie B'!$J$97",null,"Totaal directe kosten_ Covid-20"]
[null,null,null,null,"zvkx_cc__TKD_TY3V01","*='Specifieke informatie B'!$K$97",null,"Totaal directe kosten_ Covid-21"]
[null,null,null,null,"zvkx_ac__TKD_TY3V01","*='Specifieke informatie B'!$L$97",null,"Totaal directe kosten_ Covid-22"]
[null,null,null,null,"zvkx_cc__MKD_TY2V01","*='Specifieke informatie B'!$I$98",null,"Totaal Meerkosten Covid-19- indirect"]
[null,null,null,null,"zvkx_ac__MKD_TY2V01","*='Specifieke informatie B'!$J$98",null,"Totaal Meerkosten Covid-19- indirect"]
[null,null,null,null,"zvkx_cc__MKD_TY3V01","*='Specifieke informatie B'!$K$98",null,"Totaal Meerkosten Covid-19- indirect"]
[null,null,null,null,"zvkx_ac__MKD_TY3V01","*='Specifieke informatie B'!$L$98",null,"Totaal Meerkosten Covid-19- indirect"]
[null,null,null,null,"zvkx_cc__MKI_TY2V01","*='Specifieke informatie B'!$I$99",null,"Totaal Meerkosten Covid-19- toeslagen"]
[null,null,null,null,"zvkx_ac__MKI_TY2V01","*='Specifieke informatie B'!$J$99",null,"Totaal Meerkosten Covid-19- toeslagen"]
[null,null,null,null,"zvkx_cc__MKI_TY3V01","*='Specifieke informatie B'!$K$99",null,"Totaal Meerkosten Covid-19- toeslagen"]
[null,null,null,null,"zvkx_ac__MKI_TY3V01","*='Specifieke informatie B'!$L$99",null,"Totaal Meerkosten Covid-19- toeslagen"]
[null,null,null,null,"zvkx_cc__TY2V01","*='Specifieke informatie B'!$I$100","","Totaal lasten Covid-19"]
[null,null,null,null,"zvkx_ac__TY2V01","*='Specifieke informatie B'!$J$100","","Totaal lasten Covid-20"]
[null,null,null,null,"zvkx_cc__TY3V01","*='Specifieke informatie B'!$K$100","","Totaal lasten Covid-21"]
[null,null,null,null,"zvkx_ac__TY3V01","*='Specifieke informatie B'!$L$100","","Totaal lasten Covid-22"]
[null,null,null,null,"zvkxdnb_cc915__TY2V01","*='Specifieke informatie B'!$K$112","","Verschilposten DNB- Schade tlv het verplicht eigen risico- kst Corona- incl balans","zvkxdnb","cc915","","TY2V01","Euro's",null,"N","",1]
[null,null,null,null,"zvkxdnb_ac915__TY2V01","*='Specifieke informatie B'!$L$112","","Verschilposten DNB- Schade tlv het verplicht eigen risico- kst Corona- geaccepteerd","zvkxdnb","ac915","","TY2V01","Euro's",null,"N","",1]
[null,null,null,null,"zvkxdnb_cc915__TY3V01","*='Specifieke informatie B'!$M$112","","Verschilposten DNB- Schade tlv het verplicht eigen risico- kst Corona- incl balans","zvkxdnb","cc915","","TY3V01","Euro's",null,"N","",1]
[null,null,null,null,"zvkxdnb_ac915__TY3V01","*='Specifieke informatie B'!$N$112","","Verschilposten DNB- Schade tlv het verplicht eigen risico- kst Corona- geaccepteerd","zvkxdnb","ac915","","TY3V01","Euro's",null,"N","",1]
[null,null,null,null,"zvrxsg_c978_dl101_TY0V01","*='Specifieke informatie A'!$K$14","","Kosten naar deelbijdrage- Variabele zorgkosten- incl balans","zvrxsg","c978","dl101","TY0V01"]
[null,null,null,null,"zvrxsg_c978_dl102_TY0V01","*='Specifieke informatie A'!$K$15","","Kosten naar deelbijdrage- Vaste zorgkosten- incl balans","zvrxsg","c978","dl102","TY0V01"]
[null,null,null,null,"zvrxsg_c978_dl152_TY0V01","*='Specifieke informatie A'!$K$16","","Kosten naar deelbijdrage- Geneeskundige GGZ- incl balans","zvrxsg","c978","dl152","TY0V01"]
[null,null,null,null,"zvpxlft_m981_lft01a_m08V01","*='Specifieke informatie A'!$I$59","","Verzekerden risicoklasse- 00 t/m 01- man","zvpxlft","m981","lft01a","m08V01","Verzekerden",null,"N",""]
[null,null,null,null,"zvpxlft_m981_lft01b_m08V01","*='Specifieke informatie A'!$I$60","","Verzekerden risicoklasse- 02 t/m 04- man","zvpxlft","m981","lft01b","m08V01","Verzekerden",null,"N",""]
[null,null,null,null,"zvpxlft_m981_lft02_m08V01","*='Specifieke informatie A'!$I$61","","Verzekerden risicoklasse- 05 t/m 09- man","zvpxlft","m981","lft02","m08V01","Verzekerden",null,"N",""]
[null,null,null,null,"zvpxlft_m981_lft03_m08V01","*='Specifieke informatie A'!$I$62","","Verzekerden risicoklasse- 10 t/m 14- man","zvpxlft","m981","lft03","m08V01","Verzekerden",null,"N",""]
[null,null,null,null,"zvpxlft_m981_lft04_m08V01","*='Specifieke informatie A'!$I$63","","Verzekerden risicoklasse- 15 t/m 19- man","zvpxlft","m981","lft04","m08V01","Verzekerden",null,"N",""]
[null,null,null,null,"zvpxlft_m981_lft05_m08V01","*='Specifieke informatie A'!$I$64","","Verzekerden risicoklasse- 20 t/m 24- man","zvpxlft","m981","lft05","m08V01","Verzekerden",null,"N",""]
[null,null,null,null,"zvpxlft_m981_lft06_m08V01","*='Specifieke informatie A'!$I$65","","Verzekerden risicoklasse- 25 t/m 29- man","zvpxlft","m981","lft06","m08V01","Verzekerden",null,"N",""]
[null,null,null,null,"zvpxlft_m981_lft07_m08V01","*='Specifieke informatie A'!$I$66","","Verzekerden risicoklasse- 30 t/m 34- man","zvpxlft","m981","lft07","m08V01","Verzekerden",null,"N",""]
[null,null,null,null,"zvpxlft_m981_lft08_m08V01","*='Specifieke informatie A'!$I$67","","Verzekerden risicoklasse- 35 t/m 39- man","zvpxlft","m981","lft08","m08V01","Verzekerden",null,"N",""]
[null,null,null,null,"zvpxlft_m981_lft09_m08V01","*='Specifieke informatie A'!$I$68","","Verzekerden risicoklasse- 40 t/m 44- man","zvpxlft","m981","lft09","m08V01","Verzekerden",null,"N",""]
[null,null,null,null,"zvpxlft_m981_lft10_m08V01","*='Specifieke informatie A'!$I$69","","Verzekerden risicoklasse- 45 t/m 49- man","zvpxlft","m981","lft10","m08V01","Verzekerden",null,"N",""]
[null,null,null,null,"zvpxlft_m981_lft11_m08V01","*='Specifieke informatie A'!$I$70","","Verzekerden risicoklasse- 50 t/m 54- man","zvpxlft","m981","lft11","m08V01","Verzekerden",null,"N",""]
[null,null,null,null,"zvpxlft_m981_lft12_m08V01","*='Specifieke informatie A'!$I$71","","Verzekerden risicoklasse- 55 t/m 59- man","zvpxlft","m981","lft12","m08V01","Verzekerden",null,"N",""]
[null,null,null,null,"zvpxlft_m981_lft13_m08V01","*='Specifieke informatie A'!$I$72","","Verzekerden risicoklasse- 60 t/m 64- man","zvpxlft","m981","lft13","m08V01","Verzekerden",null,"N",""]
[null,null,null,null,"zvpxlft_m981_lft14_m08V01","*='Specifieke informatie A'!$I$73","","Verzekerden risicoklasse- 65 t/m 69- man","zvpxlft","m981","lft14","m08V01","Verzekerden",null,"N",""]
[null,null,null,null,"zvpxlft_m981_lft15_m08V01","*='Specifieke informatie A'!$I$74","","Verzekerden risicoklasse- 70 t/m 74- man","zvpxlft","m981","lft15","m08V01","Verzekerden",null,"N",""]
[null,null,null,null,"zvpxlft_m981_lft16_m08V01","*='Specifieke informatie A'!$I$75","","Verzekerden risicoklasse- 75 t/m 79- man","zvpxlft","m981","lft16","m08V01","Verzekerden",null,"N",""]
[null,null,null,null,"zvpxlft_m981_lft17_m08V01","*='Specifieke informatie A'!$I$76","","Verzekerden risicoklasse- 80 t/m 84- man","zvpxlft","m981","lft17","m08V01","Verzekerden",null,"N",""]
[null,null,null,null,"zvpxlft_m981_lft18_m08V01","*='Specifieke informatie A'!$I$77","","Verzekerden risicoklasse- 85 t/m 89- man","zvpxlft","m981","lft18","m08V01","Verzekerden",null,"N",""]
[null,null,null,null,"zvpxlft_m981_lft19_m08V01","*='Specifieke informatie A'!$I$78","","Verzekerden risicoklasse- 90 en ouder- man","zvpxlft","m981","lft19","m08V01","Verzekerden",null,"N",""]
[null,null,null,null,"zvpxlft_v981_lft01a_m08V01","*='Specifieke informatie A'!$J$59","","Verzekerden risicoklasse- 00 t/m 01- vrouw","zvpxlft","v981","lft01a","m08V01","Verzekerden",null,"N",""]
[null,null,null,null,"zvpxlft_v981_lft01b_m08V01","*='Specifieke informatie A'!$J$60","","Verzekerden risicoklasse- 02 t/m 04- vrouw","zvpxlft","v981","lft01b","m08V01","Verzekerden",null,"N",""]
[null,null,null,null,"zvpxlft_v981_lft02_m08V01","*='Specifieke informatie A'!$J$61","","Verzekerden risicoklasse- 05 t/m 09- vrouw","zvpxlft","v981","lft02","m08V01","Verzekerden",null,"N",""]
[null,null,null,null,"zvpxlft_v981_lft03_m08V01","*='Specifieke informatie A'!$J$62","","Verzekerden risicoklasse- 10 t/m 14- vrouw","zvpxlft","v981","lft03","m08V01","Verzekerden",null,"N",""]
[null,null,null,null,"zvpxlft_v981_lft04_m08V01","*='Specifieke informatie A'!$J$63","","Verzekerden risicoklasse- 15 t/m 19- vrouw","zvpxlft","v981","lft04","m08V01","Verzekerden",null,"N",""]
[null,null,null,null,"zvpxlft_v981_lft05_m08V01","*='Specifieke informatie A'!$J$64","","Verzekerden risicoklasse- 20 t/m 24- vrouw","zvpxlft","v981","lft05","m08V01","Verzekerden",null,"N",""]
[null,null,null,null,"zvpxlft_v981_lft06_m08V01","*='Specifieke informatie A'!$J$65","","Verzekerden risicoklasse- 25 t/m 29- vrouw","zvpxlft","v981","lft06","m08V01","Verzekerden",null,"N",""]
[null,null,null,null,"zvpxlft_v981_lft07_m08V01","*='Specifieke informatie A'!$J$66","","Verzekerden risicoklasse- 30 t/m 34- vrouw","zvpxlft","v981","lft07","m08V01","Verzekerden",null,"N",""]
[null,null,null,null,"zvpxlft_v981_lft08_m08V01","*='Specifieke informatie A'!$J$67","","Verzekerden risicoklasse- 35 t/m 39- vrouw","zvpxlft","v981","lft08","m08V01","Verzekerden",null,"N",""]
[null,null,null,null,"zvpxlft_v981_lft09_m08V01","*='Specifieke informatie A'!$J$68","","Verzekerden risicoklasse- 40 t/m 44- vrouw","zvpxlft","v981","lft09","m08V01","Verzekerden",null,"N",""]
[null,null,null,null,"zvpxlft_v981_lft10_m08V01","*='Specifieke informatie A'!$J$69","","Verzekerden risicoklasse- 45 t/m 49- vrouw","zvpxlft","v981","lft10","m08V01","Verzekerden",null,"N",""]
[null,null,null,null,"zvpxlft_v981_lft11_m08V01","*='Specifieke informatie A'!$J$70","","Verzekerden risicoklasse- 50 t/m 54- vrouw","zvpxlft","v981","lft11","m08V01","Verzekerden",null,"N",""]
[null,null,null,null,"zvpxlft_v981_lft12_m08V01","*='Specifieke informatie A'!$J$71","","Verzekerden risicoklasse- 55 t/m 59- vrouw","zvpxlft","v981","lft12","m08V01","Verzekerden",null,"N",""]
[null,null,null,null,"zvpxlft_v981_lft13_m08V01","*='Specifieke informatie A'!$J$72","","Verzekerden risicoklasse- 60 t/m 64- vrouw","zvpxlft","v981","lft13","m08V01","Verzekerden",null,"N",""]
[null,null,null,null,"zvpxlft_v981_lft14_m08V01","*='Specifieke informatie A'!$J$73","","Verzekerden risicoklasse- 65 t/m 69- vrouw","zvpxlft","v981","lft14","m08V01","Verzekerden",null,"N",""]
[null,null,null,null,"zvpxlft_v981_lft15_m08V01","*='Specifieke informatie A'!$J$74","","Verzekerden risicoklasse- 70 t/m 74- vrouw","zvpxlft","v981","lft15","m08V01","Verzekerden",null,"N",""]
[null,null,null,null,"zvpxlft_v981_lft16_m08V01","*='Specifieke informatie A'!$J$75","","Verzekerden risicoklasse- 75 t/m 79- vrouw","zvpxlft","v981","lft16","m08V01","Verzekerden",null,"N",""]
[null,null,null,null,"zvpxlft_v981_lft17_m08V01","*='Specifieke informatie A'!$J$76","","Verzekerden risicoklasse- 80 t/m 84- vrouw","zvpxlft","v981","lft17","m08V01","Verzekerden",null,"N",""]
[null,null,null,null,"zvpxlft_v981_lft18_m08V01","*='Specifieke informatie A'!$J$77","","Verzekerden risicoklasse- 85 t/m 89- vrouw","zvpxlft","v981","lft18","m08V01","Verzekerden",null,"N",""]
[null,null,null,null,"zvpxlft_v981_lft19_m08V01","*='Specifieke informatie A'!$J$78","","Verzekerden risicoklasse- 90 en ouder- vrouw","zvpxlft","v981","lft19","m08V01","Verzekerden",null,"N",""]
[null,null,null,null,"zvpxlft_o981_lft01a_m08V01","*='Specifieke informatie A'!$K$59","","Verzekerden risicoklasse- 00 t/m 01- onbepaald","zvpxlft","v981","lft01a","m08V01","Verzekerden",null,"N",""]
[null,null,null,null,"zvpxlft_o981_lft01b_m08V01","*='Specifieke informatie A'!$K$60","","Verzekerden risicoklasse- 02 t/m 04- onbepaald","zvpxlft","v981","lft01b","m08V01","Verzekerden",null,"N",""]
[null,null,null,null,"zvpxlft_o981_lft02_m08V01","*='Specifieke informatie A'!$K$61","","Verzekerden risicoklasse- 05 t/m 09- onbepaald","zvpxlft","v981","lft02","m08V01","Verzekerden",null,"N",""]
[null,null,null,null,"zvpxlft_o981_lft03_m08V01","*='Specifieke informatie A'!$K$62","","Verzekerden risicoklasse- 10 t/m 14- onbepaald","zvpxlft","v981","lft03","m08V01","Verzekerden",null,"N",""]
[null,null,null,null,"zvpxlft_o981_lft04_m08V01","*='Specifieke informatie A'!$K$63","","Verzekerden risicoklasse- 15 t/m 19- onbepaald","zvpxlft","v981","lft04","m08V01","Verzekerden",null,"N",""]
[null,null,null,null,"zvpxlft_o981_lft05_m08V01","*='Specifieke informatie A'!$K$64","","Verzekerden risicoklasse- 20 t/m 24- onbepaald","zvpxlft","v981","lft05","m08V01","Verzekerden",null,"N",""]
[null,null,null,null,"zvpxlft_o981_lft06_m08V01","*='Specifieke informatie A'!$K$65","","Verzekerden risicoklasse- 25 t/m 29- onbepaald","zvpxlft","v981","lft06","m08V01","Verzekerden",null,"N",""]
[null,null,null,null,"zvpxlft_o981_lft07_m08V01","*='Specifieke informatie A'!$K$66","","Verzekerden risicoklasse- 30 t/m 34- onbepaald","zvpxlft","v981","lft07","m08V01","Verzekerden",null,"N",""]
[null,null,null,null,"zvpxlft_o981_lft08_m08V01","*='Specifieke informatie A'!$K$67","","Verzekerden risicoklasse- 35 t/m 39- onbepaald","zvpxlft","v981","lft08","m08V01","Verzekerden",null,"N",""]
[null,null,null,null,"zvpxlft_o981_lft09_m08V01","*='Specifieke informatie A'!$K$68","","Verzekerden risicoklasse- 40 t/m 44- onbepaald","zvpxlft","v981","lft09","m08V01","Verzekerden",null,"N",""]
[null,null,null,null,"zvpxlft_o981_lft10_m08V01","*='Specifieke informatie A'!$K$69","","Verzekerden risicoklasse- 45 t/m 49- onbepaald","zvpxlft","v981","lft10","m08V01","Verzekerden",null,"N",""]
[null,null,null,null,"zvpxlft_o981_lft11_m08V01","*='Specifieke informatie A'!$K$70","","Verzekerden risicoklasse- 50 t/m 54- onbepaald","zvpxlft","v981","lft11","m08V01","Verzekerden",null,"N",""]
[null,null,null,null,"zvpxlft_o981_lft12_m08V01","*='Specifieke informatie A'!$K$71","","Verzekerden risicoklasse- 55 t/m 59- onbepaald","zvpxlft","v981","lft12","m08V01","Verzekerden",null,"N",""]
[null,null,null,null,"zvpxlft_o981_lft13_m08V01","*='Specifieke informatie A'!$K$72","","Verzekerden risicoklasse- 60 t/m 64- onbepaald","zvpxlft","v981","lft13","m08V01","Verzekerden",null,"N",""]
[null,null,null,null,"zvpxlft_o981_lft14_m08V01","*='Specifieke informatie A'!$K$73","","Verzekerden risicoklasse- 65 t/m 69- onbepaald","zvpxlft","v981","lft14","m08V01","Verzekerden",null,"N",""]
[null,null,null,null,"zvpxlft_o981_lft15_m08V01","*='Specifieke informatie A'!$K$74","","Verzekerden risicoklasse- 70 t/m 74- onbepaald","zvpxlft","v981","lft15","m08V01","Verzekerden",null,"N",""]
[null,null,null,null,"zvpxlft_o981_lft16_m08V01","*='Specifieke informatie A'!$K$75","","Verzekerden risicoklasse- 75 t/m 79- onbepaald","zvpxlft","v981","lft16","m08V01","Verzekerden",null,"N",""]
[null,null,null,null,"zvpxlft_o981_lft17_m08V01","*='Specifieke informatie A'!$K$76","","Verzekerden risicoklasse- 80 t/m 84- onbepaald","zvpxlft","v981","lft17","m08V01","Verzekerden",null,"N",""]
[null,null,null,null,"zvpxlft_o981_lft18_m08V01","*='Specifieke informatie A'!$K$77","","Verzekerden risicoklasse- 85 t/m 89- onbepaald","zvpxlft","v981","lft18","m08V01","Verzekerden",null,"N",""]
[null,null,null,null,"zvpxlft_o981_lft19_m08V01","*='Specifieke informatie A'!$K$78","","Verzekerden risicoklasse- 90 en ouder- onbepaald","zvpxlft","v981","lft19","m08V01","Verzekerden",null,"N",""]
[null,null,null,null,"zvpxprm_s981_nomy_m08V01","*='Specifieke informatie A'!$L$84","","Verzekerden premiekenmerk- met nominale premie ZVW","zvpxprm","s981","nomy","m08V01","Verzekerden",null,"N",""]
[null,null,null,null,"zvpxprm_s981_nomn_m08V01","*='Specifieke informatie A'!$L$85","","Verzekerden premiekenmerk- zonder nominale premie ZVW","zvpxprm","s981","nomn","m08V01","Verzekerden",null,"N",""]
[null,null,null,null,"zvpxlft_m981_lft01a_m09V01","*='Specifieke informatie A'!$I$104","","Verzekerden risicoklasse- 00 t/m 01- man","zvpxlft","m981","lft01a","m09V01","Verzekerden",null,"N",""]
[null,null,null,null,"zvpxlft_m981_lft01b_m09V01","*='Specifieke informatie A'!$I$105","","Verzekerden risicoklasse- 02 t/m 04- man","zvpxlft","m981","lft01b","m09V01","Verzekerden",null,"N",""]
[null,null,null,null,"zvpxlft_m981_lft02_m09V01","*='Specifieke informatie A'!$I$106","","Verzekerden risicoklasse- 05 t/m 09- man","zvpxlft","m981","lft02","m09V01","Verzekerden",null,"N",""]
[null,null,null,null,"zvpxlft_m981_lft03_m09V01","*='Specifieke informatie A'!$I$107","","Verzekerden risicoklasse- 10 t/m 14- man","zvpxlft","m981","lft03","m09V01","Verzekerden",null,"N",""]
[null,null,null,null,"zvpxlft_m981_lft04_m09V01","*='Specifieke informatie A'!$I$108","","Verzekerden risicoklasse- 15 t/m 19- man","zvpxlft","m981","lft04","m09V01","Verzekerden",null,"N",""]
[null,null,null,null,"zvpxlft_m981_lft05_m09V01","*='Specifieke informatie A'!$I$109","","Verzekerden risicoklasse- 20 t/m 24- man","zvpxlft","m981","lft05","m09V01","Verzekerden",null,"N",""]
[null,null,null,null,"zvpxlft_m981_lft06_m09V01","*='Specifieke informatie A'!$I$110","","Verzekerden risicoklasse- 25 t/m 29- man","zvpxlft","m981","lft06","m09V01","Verzekerden",null,"N",""]
[null,null,null,null,"zvpxlft_m981_lft07_m09V01","*='Specifieke informatie A'!$I$111","","Verzekerden risicoklasse- 30 t/m 34- man","zvpxlft","m981","lft07","m09V01","Verzekerden",null,"N",""]
[null,null,null,null,"zvpxlft_m981_lft08_m09V01","*='Specifieke informatie A'!$I$112","","Verzekerden risicoklasse- 35 t/m 39- man","zvpxlft","m981","lft08","m09V01","Verzekerden",null,"N",""]
[null,null,null,null,"zvpxlft_m981_lft09_m09V01","*='Specifieke informatie A'!$I$113","","Verzekerden risicoklasse- 40 t/m 44- man","zvpxlft","m981","lft09","m09V01","Verzekerden",null,"N",""]
[null,null,null,null,"zvpxlft_m981_lft10_m09V01","*='Specifieke informatie A'!$I$114","","Verzekerden risicoklasse- 45 t/m 49- man","zvpxlft","m981","lft10","m09V01","Verzekerden",null,"N",""]
[null,null,null,null,"zvpxlft_m981_lft11_m09V01","*='Specifieke informatie A'!$I$115","","Verzekerden risicoklasse- 50 t/m 54- man","zvpxlft","m981","lft11","m09V01","Verzekerden",null,"N",""]
[null,null,null,null,"zvpxlft_m981_lft12_m09V01","*='Specifieke informatie A'!$I$116","","Verzekerden risicoklasse- 55 t/m 59- man","zvpxlft","m981","lft12","m09V01","Verzekerden",null,"N",""]
[null,null,null,null,"zvpxlft_m981_lft13_m09V01","*='Specifieke informatie A'!$I$117","","Verzekerden risicoklasse- 60 t/m 64- man","zvpxlft","m981","lft13","m09V01","Verzekerden",null,"N",""]
[null,null,null,null,"zvpxlft_m981_lft14_m09V01","*='Specifieke informatie A'!$I$118","","Verzekerden risicoklasse- 65 t/m 69- man","zvpxlft","m981","lft14","m09V01","Verzekerden",null,"N",""]
[null,null,null,null,"zvpxlft_m981_lft15_m09V01","*='Specifieke informatie A'!$I$119","","Verzekerden risicoklasse- 70 t/m 74- man","zvpxlft","m981","lft15","m09V01","Verzekerden",null,"N",""]
[null,null,null,null,"zvpxlft_m981_lft16_m09V01","*='Specifieke informatie A'!$I$120","","Verzekerden risicoklasse- 75 t/m 79- man","zvpxlft","m981","lft16","m09V01","Verzekerden",null,"N",""]
[null,null,null,null,"zvpxlft_m981_lft17_m09V01","*='Specifieke informatie A'!$I$121","","Verzekerden risicoklasse- 80 t/m 84- man","zvpxlft","m981","lft17","m09V01","Verzekerden",null,"N",""]
[null,null,null,null,"zvpxlft_m981_lft18_m09V01","*='Specifieke informatie A'!$I$122","","Verzekerden risicoklasse- 85 t/m 89- man","zvpxlft","m981","lft18","m09V01","Verzekerden",null,"N",""]
[null,null,null,null,"zvpxlft_m981_lft19_m09V01","*='Specifieke informatie A'!$I$123","","Verzekerden risicoklasse- 90 en ouder- man","zvpxlft","m981","lft19","m09V01","Verzekerden",null,"N",""]
[null,null,null,null,"zvpxlft_v981_lft01a_m09V01","*='Specifieke informatie A'!$J$104","","Verzekerden risicoklasse- 00 t/m 01- vrouw","zvpxlft","v981","lft01a","m09V01","Verzekerden",null,"N",""]
[null,null,null,null,"zvpxlft_v981_lft01b_m09V01","*='Specifieke informatie A'!$J$105","","Verzekerden risicoklasse- 02 t/m 04- vrouw","zvpxlft","v981","lft01b","m09V01","Verzekerden",null,"N",""]
[null,null,null,null,"zvpxlft_v981_lft02_m09V01","*='Specifieke informatie A'!$J$106","","Verzekerden risicoklasse- 05 t/m 09- vrouw","zvpxlft","v981","lft02","m09V01","Verzekerden",null,"N",""]
[null,null,null,null,"zvpxlft_v981_lft03_m09V01","*='Specifieke informatie A'!$J$107","","Verzekerden risicoklasse- 10 t/m 14- vrouw","zvpxlft","v981","lft03","m09V01","Verzekerden",null,"N",""]
[null,null,null,null,"zvpxlft_v981_lft04_m09V01","*='Specifieke informatie A'!$J$108","","Verzekerden risicoklasse- 15 t/m 19- vrouw","zvpxlft","v981","lft04","m09V01","Verzekerden",null,"N",""]
[null,null,null,null,"zvpxlft_v981_lft05_m09V01","*='Specifieke informatie A'!$J$109","","Verzekerden risicoklasse- 20 t/m 24- vrouw","zvpxlft","v981","lft05","m09V01","Verzekerden",null,"N",""]
[null,null,null,null,"zvpxlft_v981_lft06_m09V01","*='Specifieke informatie A'!$J$110","","Verzekerden risicoklasse- 25 t/m 29- vrouw","zvpxlft","v981","lft06","m09V01","Verzekerden",null,"N",""]
[null,null,null,null,"zvpxlft_v981_lft07_m09V01","*='Specifieke informatie A'!$J$111","","Verzekerden risicoklasse- 30 t/m 34- vrouw","zvpxlft","v981","lft07","m09V01","Verzekerden",null,"N",""]
[null,null,null,null,"zvpxlft_v981_lft08_m09V01","*='Specifieke informatie A'!$J$112","","Verzekerden risicoklasse- 35 t/m 39- vrouw","zvpxlft","v981","lft08","m09V01","Verzekerden",null,"N",""]
[null,null,null,null,"zvpxlft_v981_lft09_m09V01","*='Specifieke informatie A'!$J$113","","Verzekerden risicoklasse- 40 t/m 44- vrouw","zvpxlft","v981","lft09","m09V01","Verzekerden",null,"N",""]
[null,null,null,null,"zvpxlft_v981_lft10_m09V01","*='Specifieke informatie A'!$J$114","","Verzekerden risicoklasse- 45 t/m 49- vrouw","zvpxlft","v981","lft10","m09V01","Verzekerden",null,"N",""]
[null,null,null,null,"zvpxlft_v981_lft11_m09V01","*='Specifieke informatie A'!$J$115","","Verzekerden risicoklasse- 50 t/m 54- vrouw","zvpxlft","v981","lft11","m09V01","Verzekerden",null,"N",""]
[null,null,null,null,"zvpxlft_v981_lft12_m09V01","*='Specifieke informatie A'!$J$116","","Verzekerden risicoklasse- 55 t/m 59- vrouw","zvpxlft","v981","lft12","m09V01","Verzekerden",null,"N",""]
[null,null,null,null,"zvpxlft_v981_lft13_m09V01","*='Specifieke informatie A'!$J$117","","Verzekerden risicoklasse- 60 t/m 64- vrouw","zvpxlft","v981","lft13","m09V01","Verzekerden",null,"N",""]
[null,null,null,null,"zvpxlft_v981_lft14_m09V01","*='Specifieke informatie A'!$J$118","","Verzekerden risicoklasse- 65 t/m 69- vrouw","zvpxlft","v981","lft14","m09V01","Verzekerden",null,"N",""]
[null,null,null,null,"zvpxlft_v981_lft15_m09V01","*='Specifieke informatie A'!$J$119","","Verzekerden risicoklasse- 70 t/m 74- vrouw","zvpxlft","v981","lft15","m09V01","Verzekerden",null,"N",""]
[null,null,null,null,"zvpxlft_v981_lft16_m09V01","*='Specifieke informatie A'!$J$120","","Verzekerden risicoklasse- 75 t/m 79- vrouw","zvpxlft","v981","lft16","m09V01","Verzekerden",null,"N",""]
[null,null,null,null,"zvpxlft_v981_lft17_m09V01","*='Specifieke informatie A'!$J$121","","Verzekerden risicoklasse- 80 t/m 84- vrouw","zvpxlft","v981","lft17","m09V01","Verzekerden",null,"N",""]
[null,null,null,null,"zvpxlft_v981_lft18_m09V01","*='Specifieke informatie A'!$J$122","","Verzekerden risicoklasse- 85 t/m 89- vrouw","zvpxlft","v981","lft18","m09V01","Verzekerden",null,"N",""]
[null,null,null,null,"zvpxlft_v981_lft19_m09V01","*='Specifieke informatie A'!$J$123","","Verzekerden risicoklasse- 90 en ouder- vrouw","zvpxlft","v981","lft19","m09V01","Verzekerden",null,"N",""]
[null,null,null,null,"zvpxlft_o981_lft01a_m09V01","*='Specifieke informatie A'!$K$104","","Verzekerden risicoklasse- 00 t/m 01- onbepaald","zvpxlft","v981","lft01a","m09V01","Verzekerden",null,"N",""]
[null,null,null,null,"zvpxlft_o981_lft01b_m09V01","*='Specifieke informatie A'!$K$105","","Verzekerden risicoklasse- 02 t/m 04- onbepaald","zvpxlft","v981","lft01b","m09V01","Verzekerden",null,"N",""]
[null,null,null,null,"zvpxlft_o981_lft02_m09V01","*='Specifieke informatie A'!$K$106","","Verzekerden risicoklasse- 05 t/m 09- onbepaald","zvpxlft","v981","lft02","m09V01","Verzekerden",null,"N",""]
[null,null,null,null,"zvpxlft_o981_lft03_m09V01","*='Specifieke informatie A'!$K$107","","Verzekerden risicoklasse- 10 t/m 14- onbepaald","zvpxlft","v981","lft03","m09V01","Verzekerden",null,"N",""]
[null,null,null,null,"zvpxlft_o981_lft04_m09V01","*='Specifieke informatie A'!$K$108","","Verzekerden risicoklasse- 15 t/m 19- onbepaald","zvpxlft","v981","lft04","m09V01","Verzekerden",null,"N",""]
[null,null,null,null,"zvpxlft_o981_lft05_m09V01","*='Specifieke informatie A'!$K$109","","Verzekerden risicoklasse- 20 t/m 24- onbepaald","zvpxlft","v981","lft05","m09V01","Verzekerden",null,"N",""]
[null,null,null,null,"zvpxlft_o981_lft06_m09V01","*='Specifieke informatie A'!$K$110","","Verzekerden risicoklasse- 25 t/m 29- onbepaald","zvpxlft","v981","lft06","m09V01","Verzekerden",null,"N",""]
[null,null,null,null,"zvpxlft_o981_lft07_m09V01","*='Specifieke informatie A'!$K$111","","Verzekerden risicoklasse- 30 t/m 34- onbepaald","zvpxlft","v981","lft07","m09V01","Verzekerden",null,"N",""]
[null,null,null,null,"zvpxlft_o981_lft08_m09V01","*='Specifieke informatie A'!$K$112","","Verzekerden risicoklasse- 35 t/m 39- onbepaald","zvpxlft","v981","lft08","m09V01","Verzekerden",null,"N",""]
[null,null,null,null,"zvpxlft_o981_lft09_m09V01","*='Specifieke informatie A'!$K$113","","Verzekerden risicoklasse- 40 t/m 44- onbepaald","zvpxlft","v981","lft09","m09V01","Verzekerden",null,"N",""]
[null,null,null,null,"zvpxlft_o981_lft10_m09V01","*='Specifieke informatie A'!$K$114","","Verzekerden risicoklasse- 45 t/m 49- onbepaald","zvpxlft","v981","lft10","m09V01","Verzekerden",null,"N",""]
[null,null,null,null,"zvpxlft_o981_lft11_m09V01","*='Specifieke informatie A'!$K$115","","Verzekerden risicoklasse- 50 t/m 54- onbepaald","zvpxlft","v981","lft11","m09V01","Verzekerden",null,"N",""]
[null,null,null,null,"zvpxlft_o981_lft12_m09V01","*='Specifieke informatie A'!$K$116","","Verzekerden risicoklasse- 55 t/m 59- onbepaald","zvpxlft","v981","lft12","m09V01","Verzekerden",null,"N",""]
[null,null,null,null,"zvpxlft_o981_lft13_m09V01","*='Specifieke informatie A'!$K$117","","Verzekerden risicoklasse- 60 t/m 64- onbepaald","zvpxlft","v981","lft13","m09V01","Verzekerden",null,"N",""]
[null,null,null,null,"zvpxlft_o981_lft14_m09V01","*='Specifieke informatie A'!$K$118","","Verzekerden risicoklasse- 65 t/m 69- onbepaald","zvpxlft","v981","lft14","m09V01","Verzekerden",null,"N",""]
[null,null,null,null,"zvpxlft_o981_lft15_m09V01","*='Specifieke informatie A'!$K$119","","Verzekerden risicoklasse- 70 t/m 74- onbepaald","zvpxlft","v981","lft15","m09V01","Verzekerden",null,"N",""]
[null,null,null,null,"zvpxlft_o981_lft16_m09V01","*='Specifieke informatie A'!$K$120","","Verzekerden risicoklasse- 75 t/m 79- onbepaald","zvpxlft","v981","lft16","m09V01","Verzekerden",null,"N",""]
[null,null,null,null,"zvpxlft_o981_lft17_m09V01","*='Specifieke informatie A'!$K$121","","Verzekerden risicoklasse- 80 t/m 84- onbepaald","zvpxlft","v981","lft17","m09V01","Verzekerden",null,"N",""]
[null,null,null,null,"zvpxlft_o981_lft18_m09V01","*='Specifieke informatie A'!$K$122","","Verzekerden risicoklasse- 85 t/m 89- onbepaald","zvpxlft","v981","lft18","m09V01","Verzekerden",null,"N",""]
[null,null,null,null,"zvpxlft_o981_lft19_m09V01","*='Specifieke informatie A'!$K$123","","Verzekerden risicoklasse- 90 en ouder- onbepaald","zvpxlft","v981","lft19","m09V01","Verzekerden",null,"N",""]
[null,null,null,null,"zvpxprm_s981_nomy_m09V01","*='Specifieke informatie A'!$L$129","","Verzekerden premiekenmerk- met nominale premie ZVW","zvpxprm","s981","nomy","m09V01","Verzekerden",null,"N",""]
[null,null,null,null,"zvpxprm_s981_nomn_m09V01","*='Specifieke informatie A'!$L$130","","Verzekerden premiekenmerk- zonder nominale premie ZVW","zvpxprm","s981","nomn","m09V01","Verzekerden",null,"N",""]
[null,null,null,null,"zvpxlft_m981_lft01a_m10V01","*='Specifieke informatie A'!$I$149","","Verzekerden risicoklasse- 00 t/m 01- man","zvpxlft","m981","lft01a","m10V01","Verzekerden",null,"N",""]
[null,null,null,null,"zvpxlft_m981_lft01b_m10V01","*='Specifieke informatie A'!$I$150","","Verzekerden risicoklasse- 02 t/m 04- man","zvpxlft","m981","lft01b","m10V01","Verzekerden",null,"N",""]
[null,null,null,null,"zvpxlft_m981_lft02_m10V01","*='Specifieke informatie A'!$I$151","","Verzekerden risicoklasse- 05 t/m 09- man","zvpxlft","m981","lft02","m10V01","Verzekerden",null,"N",""]
[null,null,null,null,"zvpxlft_m981_lft03_m10V01","*='Specifieke informatie A'!$I$152","","Verzekerden risicoklasse- 10 t/m 14- man","zvpxlft","m981","lft03","m10V01","Verzekerden",null,"N",""]
[null,null,null,null,"zvpxlft_m981_lft04_m10V01","*='Specifieke informatie A'!$I$153","","Verzekerden risicoklasse- 15 t/m 19- man","zvpxlft","m981","lft04","m10V01","Verzekerden",null,"N",""]
[null,null,null,null,"zvpxlft_m981_lft05_m10V01","*='Specifieke informatie A'!$I$154","","Verzekerden risicoklasse- 20 t/m 24- man","zvpxlft","m981","lft05","m10V01","Verzekerden",null,"N",""]
[null,null,null,null,"zvpxlft_m981_lft06_m10V01","*='Specifieke informatie A'!$I$155","","Verzekerden risicoklasse- 25 t/m 29- man","zvpxlft","m981","lft06","m10V01","Verzekerden",null,"N",""]
[null,null,null,null,"zvpxlft_m981_lft07_m10V01","*='Specifieke informatie A'!$I$156","","Verzekerden risicoklasse- 30 t/m 34- man","zvpxlft","m981","lft07","m10V01","Verzekerden",null,"N",""]
[null,null,null,null,"zvpxlft_m981_lft08_m10V01","*='Specifieke informatie A'!$I$157","","Verzekerden risicoklasse- 35 t/m 39- man","zvpxlft","m981","lft08","m10V01","Verzekerden",null,"N",""]
[null,null,null,null,"zvpxlft_m981_lft09_m10V01","*='Specifieke informatie A'!$I$158","","Verzekerden risicoklasse- 40 t/m 44- man","zvpxlft","m981","lft09","m10V01","Verzekerden",null,"N",""]
[null,null,null,null,"zvpxlft_m981_lft10_m10V01","*='Specifieke informatie A'!$I$159","","Verzekerden risicoklasse- 45 t/m 49- man","zvpxlft","m981","lft10","m10V01","Verzekerden",null,"N",""]
[null,null,null,null,"zvpxlft_m981_lft11_m10V01","*='Specifieke informatie A'!$I$160","","Verzekerden risicoklasse- 50 t/m 54- man","zvpxlft","m981","lft11","m10V01","Verzekerden",null,"N",""]
[null,null,null,null,"zvpxlft_m981_lft12_m10V01","*='Specifieke informatie A'!$I$161","","Verzekerden risicoklasse- 55 t/m 59- man","zvpxlft","m981","lft12","m10V01","Verzekerden",null,"N",""]
[null,null,null,null,"zvpxlft_m981_lft13_m10V01","*='Specifieke informatie A'!$I$162","","Verzekerden risicoklasse- 60 t/m 64- man","zvpxlft","m981","lft13","m10V01","Verzekerden",null,"N",""]
[null,null,null,null,"zvpxlft_m981_lft14_m10V01","*='Specifieke informatie A'!$I$163","","Verzekerden risicoklasse- 65 t/m 69- man","zvpxlft","m981","lft14","m10V01","Verzekerden",null,"N",""]
[null,null,null,null,"zvpxlft_m981_lft15_m10V01","*='Specifieke informatie A'!$I$164","","Verzekerden risicoklasse- 70 t/m 74- man","zvpxlft","m981","lft15","m10V01","Verzekerden",null,"N",""]
[null,null,null,null,"zvpxlft_m981_lft16_m10V01","*='Specifieke informatie A'!$I$165","","Verzekerden risicoklasse- 75 t/m 79- man","zvpxlft","m981","lft16","m10V01","Verzekerden",null,"N",""]
[null,null,null,null,"zvpxlft_m981_lft17_m10V01","*='Specifieke informatie A'!$I$166","","Verzekerden risicoklasse- 80 t/m 84- man","zvpxlft","m981","lft17","m10V01","Verzekerden",null,"N",""]
[null,null,null,null,"zvpxlft_m981_lft18_m10V01","*='Specifieke informatie A'!$I$167","","Verzekerden risicoklasse- 85 t/m 89- man","zvpxlft","m981","lft18","m10V01","Verzekerden",null,"N",""]
[null,null,null,null,"zvpxlft_m981_lft19_m10V01","*='Specifieke informatie A'!$I$168","","Verzekerden risicoklasse- 90 en ouder- man","zvpxlft","m981","lft19","m10V01","Verzekerden",null,"N",""]
[null,null,null,null,"zvpxlft_v981_lft01a_m10V01","*='Specifieke informatie A'!$J$149","","Verzekerden risicoklasse- 00 t/m 01- vrouw","zvpxlft","v981","lft01a","m10V01","Verzekerden",null,"N",""]
[null,null,null,null,"zvpxlft_v981_lft01b_m10V01","*='Specifieke informatie A'!$J$150","","Verzekerden risicoklasse- 02 t/m 04- vrouw","zvpxlft","v981","lft01b","m10V01","Verzekerden",null,"N",""]
[null,null,null,null,"zvpxlft_v981_lft02_m10V01","*='Specifieke informatie A'!$J$151","","Verzekerden risicoklasse- 05 t/m 09- vrouw","zvpxlft","v981","lft02","m10V01","Verzekerden",null,"N",""]
[null,null,null,null,"zvpxlft_v981_lft03_m10V01","*='Specifieke informatie A'!$J$152","","Verzekerden risicoklasse- 10 t/m 14- vrouw","zvpxlft","v981","lft03","m10V01","Verzekerden",null,"N",""]
[null,null,null,null,"zvpxlft_v981_lft04_m10V01","*='Specifieke informatie A'!$J$153","","Verzekerden risicoklasse- 15 t/m 19- vrouw","zvpxlft","v981","lft04","m10V01","Verzekerden",null,"N",""]
[null,null,null,null,"zvpxlft_v981_lft05_m10V01","*='Specifieke informatie A'!$J$154","","Verzekerden risicoklasse- 20 t/m 24- vrouw","zvpxlft","v981","lft05","m10V01","Verzekerden",null,"N",""]
[null,null,null,null,"zvpxlft_v981_lft06_m10V01","*='Specifieke informatie A'!$J$155","","Verzekerden risicoklasse- 25 t/m 29- vrouw","zvpxlft","v981","lft06","m10V01","Verzekerden",null,"N",""]
[null,null,null,null,"zvpxlft_v981_lft07_m10V01","*='Specifieke informatie A'!$J$156","","Verzekerden risicoklasse- 30 t/m 34- vrouw","zvpxlft","v981","lft07","m10V01","Verzekerden",null,"N",""]
[null,null,null,null,"zvpxlft_v981_lft08_m10V01","*='Specifieke informatie A'!$J$157","","Verzekerden risicoklasse- 35 t/m 39- vrouw","zvpxlft","v981","lft08","m10V01","Verzekerden",null,"N",""]
[null,null,null,null,"zvpxlft_v981_lft09_m10V01","*='Specifieke informatie A'!$J$158","","Verzekerden risicoklasse- 40 t/m 44- vrouw","zvpxlft","v981","lft09","m10V01","Verzekerden",null,"N",""]
[null,null,null,null,"zvpxlft_v981_lft10_m10V01","*='Specifieke informatie A'!$J$159","","Verzekerden risicoklasse- 45 t/m 49- vrouw","zvpxlft","v981","lft10","m10V01","Verzekerden",null,"N",""]
[null,null,null,null,"zvpxlft_v981_lft11_m10V01","*='Specifieke informatie A'!$J$160","","Verzekerden risicoklasse- 50 t/m 54- vrouw","zvpxlft","v981","lft11","m10V01","Verzekerden",null,"N",""]
[null,null,null,null,"zvpxlft_v981_lft12_m10V01","*='Specifieke informatie A'!$J$161","","Verzekerden risicoklasse- 55 t/m 59- vrouw","zvpxlft","v981","lft12","m10V01","Verzekerden",null,"N",""]
[null,null,null,null,"zvpxlft_v981_lft13_m10V01","*='Specifieke informatie A'!$J$162","","Verzekerden risicoklasse- 60 t/m 64- vrouw","zvpxlft","v981","lft13","m10V01","Verzekerden",null,"N",""]
[null,null,null,null,"zvpxlft_v981_lft14_m10V01","*='Specifieke informatie A'!$J$163","","Verzekerden risicoklasse- 65 t/m 69- vrouw","zvpxlft","v981","lft14","m10V01","Verzekerden",null,"N",""]
[null,null,null,null,"zvpxlft_v981_lft15_m10V01","*='Specifieke informatie A'!$J$164","","Verzekerden risicoklasse- 70 t/m 74- vrouw","zvpxlft","v981","lft15","m10V01","Verzekerden",null,"N",""]
[null,null,null,null,"zvpxlft_v981_lft16_m10V01","*='Specifieke informatie A'!$J$165","","Verzekerden risicoklasse- 75 t/m 79- vrouw","zvpxlft","v981","lft16","m10V01","Verzekerden",null,"N",""]
[null,null,null,null,"zvpxlft_v981_lft17_m10V01","*='Specifieke informatie A'!$J$166","","Verzekerden risicoklasse- 80 t/m 84- vrouw","zvpxlft","v981","lft17","m10V01","Verzekerden",null,"N",""]
[null,null,null,null,"zvpxlft_v981_lft18_m10V01","*='Specifieke informatie A'!$J$167","","Verzekerden risicoklasse- 85 t/m 89- vrouw","zvpxlft","v981","lft18","m10V01","Verzekerden",null,"N",""]
[null,null,null,null,"zvpxlft_v981_lft19_m10V01","*='Specifieke informatie A'!$J$168","","Verzekerden risicoklasse- 90 en ouder- vrouw","zvpxlft","v981","lft19","m10V01","Verzekerden",null,"N",""]
[null,null,null,null,"zvpxlft_o981_lft01a_m10V01","*='Specifieke informatie A'!$K$149","","Verzekerden risicoklasse- 00 t/m 01- onbepaald","zvpxlft","v981","lft01a","m10V01","Verzekerden",null,"N",""]
[null,null,null,null,"zvpxlft_o981_lft01b_m10V01","*='Specifieke informatie A'!$K$150","","Verzekerden risicoklasse- 02 t/m 04- onbepaald","zvpxlft","v981","lft01b","m10V01","Verzekerden",null,"N",""]
[null,null,null,null,"zvpxlft_o981_lft02_m10V01","*='Specifieke informatie A'!$K$151","","Verzekerden risicoklasse- 05 t/m 09- onbepaald","zvpxlft","v981","lft02","m10V01","Verzekerden",null,"N",""]
[null,null,null,null,"zvpxlft_o981_lft03_m10V01","*='Specifieke informatie A'!$K$152","","Verzekerden risicoklasse- 10 t/m 14- onbepaald","zvpxlft","v981","lft03","m10V01","Verzekerden",null,"N",""]
[null,null,null,null,"zvpxlft_o981_lft04_m10V01","*='Specifieke informatie A'!$K$153","","Verzekerden risicoklasse- 15 t/m 19- onbepaald","zvpxlft","v981","lft04","m10V01","Verzekerden",null,"N",""]
[null,null,null,null,"zvpxlft_o981_lft05_m10V01","*='Specifieke informatie A'!$K$154","","Verzekerden risicoklasse- 20 t/m 24- onbepaald","zvpxlft","v981","lft05","m10V01","Verzekerden",null,"N",""]
[null,null,null,null,"zvpxlft_o981_lft06_m10V01","*='Specifieke informatie A'!$K$155","","Verzekerden risicoklasse- 25 t/m 29- onbepaald","zvpxlft","v981","lft06","m10V01","Verzekerden",null,"N",""]
[null,null,null,null,"zvpxlft_o981_lft07_m10V01","*='Specifieke informatie A'!$K$156","","Verzekerden risicoklasse- 30 t/m 34- onbepaald","zvpxlft","v981","lft07","m10V01","Verzekerden",null,"N",""]
[null,null,null,null,"zvpxlft_o981_lft08_m10V01","*='Specifieke informatie A'!$K$157","","Verzekerden risicoklasse- 35 t/m 39- onbepaald","zvpxlft","v981","lft08","m10V01","Verzekerden",null,"N",""]
[null,null,null,null,"zvpxlft_o981_lft09_m10V01","*='Specifieke informatie A'!$K$158","","Verzekerden risicoklasse- 40 t/m 44- onbepaald","zvpxlft","v981","lft09","m10V01","Verzekerden",null,"N",""]
[null,null,null,null,"zvpxlft_o981_lft10_m10V01","*='Specifieke informatie A'!$K$159","","Verzekerden risicoklasse- 45 t/m 49- onbepaald","zvpxlft","v981","lft10","m10V01","Verzekerden",null,"N",""]
[null,null,null,null,"zvpxlft_o981_lft11_m10V01","*='Specifieke informatie A'!$K$160","","Verzekerden risicoklasse- 50 t/m 54- onbepaald","zvpxlft","v981","lft11","m10V01","Verzekerden",null,"N",""]
[null,null,null,null,"zvpxlft_o981_lft12_m10V01","*='Specifieke informatie A'!$K$161","","Verzekerden risicoklasse- 55 t/m 59- onbepaald","zvpxlft","v981","lft12","m10V01","Verzekerden",null,"N",""]
[null,null,null,null,"zvpxlft_o981_lft13_m10V01","*='Specifieke informatie A'!$K$162","","Verzekerden risicoklasse- 60 t/m 64- onbepaald","zvpxlft","v981","lft13","m10V01","Verzekerden",null,"N",""]
[null,null,null,null,"zvpxlft_o981_lft14_m10V01","*='Specifieke informatie A'!$K$163","","Verzekerden risicoklasse- 65 t/m 69- onbepaald","zvpxlft","v981","lft14","m10V01","Verzekerden",null,"N",""]
[null,null,null,null,"zvpxlft_o981_lft15_m10V01","*='Specifieke informatie A'!$K$164","","Verzekerden risicoklasse- 70 t/m 74- onbepaald","zvpxlft","v981","lft15","m10V01","Verzekerden",null,"N",""]
[null,null,null,null,"zvpxlft_o981_lft16_m10V01","*='Specifieke informatie A'!$K$165","","Verzekerden risicoklasse- 75 t/m 79- onbepaald","zvpxlft","v981","lft16","m10V01","Verzekerden",null,"N",""]
[null,null,null,null,"zvpxlft_o981_lft17_m10V01","*='Specifieke informatie A'!$K$166","","Verzekerden risicoklasse- 80 t/m 84- onbepaald","zvpxlft","v981","lft17","m10V01","Verzekerden",null,"N",""]
[null,null,null,null,"zvpxlft_o981_lft18_m10V01","*='Specifieke informatie A'!$K$167","","Verzekerden risicoklasse- 85 t/m 89- onbepaald","zvpxlft","v981","lft18","m10V01","Verzekerden",null,"N",""]
[null,null,null,null,"zvpxlft_o981_lft19_m10V01","*='Specifieke informatie A'!$K$168","","Verzekerden risicoklasse- 90 en ouder- onbepaald","zvpxlft","v981","lft19","m10V01","Verzekerden",null,"N",""]
[null,null,null,null,"zvpxprm_s981_nomy_m10V01","*='Specifieke informatie A'!$L$174","","Verzekerden premiekenmerk- met nominale premie ZVW","zvpxprm","s981","nomy","m10V01","Verzekerden",null,"N",""]
[null,null,null,null,"zvpxprm_s981_nomn_m10V01","*='Specifieke informatie A'!$L$130","","Verzekerden premiekenmerk- zonder nominale premie ZVW","zvpxprm","s981","nomn","m10V01","Verzekerden",null,"N",""]
[null,null,null,null,"zvsx06k_a610_d1l_TY0V01","*='Specifieke informatie C'!$H$15","","C610 Overige kosten ziekenhuiszorg en curatieve zorg- eerstelijnsdiagnostiek eerstelijnszorgaanbieders - huisartslab- geaccepteerd","zvsx06k","a610","d1l","TY0V01"]
[null,null,null,null,"zvsx06k_c610_d1l_TY1V01","*='Specifieke informatie C'!$I$15","","C610 Overige kosten ziekenhuiszorg en curatieve zorg- eerstelijnsdiagnostiek eerstelijnszorgaanbieders - huisartslab- incl balans","zvsx06k","c610","d1l","TY1V01"]
[null,null,null,null,"zvsx06k_a610_d1l_TY1V01","*='Specifieke informatie C'!$J$15","","C610 Overige kosten ziekenhuiszorg en curatieve zorg- eerstelijnsdiagnostiek eerstelijnszorgaanbieders - huisartslab- geaccepteerd","zvsx06k","a610","d1l","TY1V01"]
[null,null,null,null,"zvsx06k_c610_d1l_TY2V01","*='Specifieke informatie C'!$K$15","","C610 Overige kosten ziekenhuiszorg en curatieve zorg- eerstelijnsdiagnostiek eerstelijnszorgaanbieders - huisartslab- incl balans","zvsx06k","c610","d1l","TY2V01"]
[null,null,null,null,"zvsx06k_a610_d1l_TY2V01","*='Specifieke informatie C'!$L$15","","C610 Overige kosten ziekenhuiszorg en curatieve zorg- eerstelijnsdiagnostiek eerstelijnszorgaanbieders - huisartslab- geaccepteerd","zvsx06k","a610","d1l","TY2V01"]
[null,null,null,null,"zvsx06k_c610_trmb_TY1V01","*='Specifieke informatie C'!$I$16","","C610 Overige kosten ziekenhuiszorg en curatieve zorg- Trombosediensten- incl balans","zvsx06k","c610","trmb","TY1V01"]
[null,null,null,null,"zvsx06k_a610_trmb_TY1V01","*='Specifieke informatie C'!$J$16","","C610 Overige kosten ziekenhuiszorg en curatieve zorg- Trombosediensten- geaccepteerd","zvsx06k","a610","trmb","TY1V01"]
[null,null,null,null,"zvsx06k_c610_trmb_TY2V01","*='Specifieke informatie C'!$K$16","","C610 Overige kosten ziekenhuiszorg en curatieve zorg- Trombosediensten- incl balans","zvsx06k","c610","trmb","TY2V01"]
[null,null,null,null,"zvsx06k_a610_trmb_TY2V01","*='Specifieke informatie C'!$L$16","","C610 Overige kosten ziekenhuiszorg en curatieve zorg- Trombosediensten- geaccepteerd","zvsx06k","a610","trmb","TY2V01"]
[null,null,null,null,"zvsx06k_c610_sknt_TY1V01","*='Specifieke informatie C'!$I$17","","C610 Overige kosten ziekenhuiszorg en curatieve zorg- SKION en NTS- incl balans","zvsx06k","c610","sknt","TY1V01"]
[null,null,null,null,"zvsx06k_a610_sknt_TY1V01","*='Specifieke informatie C'!$J$17","","C610 Overige kosten ziekenhuiszorg en curatieve zorg- SKION en NTS- geaccepteerd","zvsx06k","a610","sknt","TY1V01"]
[null,null,null,null,"zvsx06k_c610_sknt_TY2V01","*='Specifieke informatie C'!$K$17","","C610 Overige kosten ziekenhuiszorg en curatieve zorg- SKION en NTS- incl balans","zvsx06k","c610","sknt","TY2V01"]
[null,null,null,null,"zvsx06k_a610_sknt_TY2V01","*='Specifieke informatie C'!$L$17","","C610 Overige kosten ziekenhuiszorg en curatieve zorg- SKION en NTS- geaccepteerd","zvsx06k","a610","sknt","TY2V01"]
[null,null,null,null,"zvsx06k_c6102_d1l_TY0V01","*='Specifieke informatie C'!$G$24","","C6102 Overige kosten ziekenhuiszorg en curatieve zorg- eerstelijnsdiagnostiek eerstelijnszorgaanbieders - huisartslab- incl balans","zvsx06k","c6102","d1l","TY0V01"]
[null,null,null,null,"zvsx06k_a6102_d1l_TY0V01","*='Specifieke informatie C'!$H$24","","C6102 Overige kosten ziekenhuiszorg en curatieve zorg- eerstelijnsdiagnostiek eerstelijnszorgaanbieders - huisartslab- geaccepteerd","zvsx06k","a6102","d1l","TY0V01"]
[null,null,null,null,"zvsx06k_c6102_trmb_TY0V01","*='Specifieke informatie C'!$G$25","","C6102 Overige kosten ziekenhuiszorg en curatieve zorg- Trombosediensten incl balans","zvsx06k","c6102","trmb","TY0V01"]
[null,null,null,null,"zvsx06k_a6102_trmb_TY0V01","*='Specifieke informatie C'!$H$25","","C6102 Overige kosten ziekenhuiszorg en curatieve zorg- Trombosediensten- geaccepteerd","zvsx06k","a6102","trmb","TY0V01"]
[null,null,null,null,"zvsx06k_c611_az_TY0V01","*='Specifieke informatie C'!$G$31","","C611 Naar Instelling- Academische ziekenhuizen- incl balans","zvsx06k","c611","az","TY0V01"]
[null,null,null,null,"zvsx06k_a611_az_TY0V01","*='Specifieke informatie C'!$H$31","","C611 Naar Instelling- Academische ziekenhuizen- geaccepteerd","zvsx06k","a611","az","TY0V01"]
[null,null,null,null,"zvsx06k_c611_az_TY1V01","*='Specifieke informatie C'!$I$31","","C611 Naar Instelling- Academische ziekenhuizen- incl balans","zvsx06k","c611","az","TY1V01"]
[null,null,null,null,"zvsx06k_a611_az_TY1V01","*='Specifieke informatie C'!$J$31","","C611 Naar Instelling- Academische ziekenhuizen- geaccepteerd","zvsx06k","a611","az","TY1V01"]
[null,null,null,null,"zvsx06k_c611_az_TY2V01","*='Specifieke informatie C'!$K$31","","C611 Naar Instelling- Academische ziekenhuizen- incl balans","zvsx06k","c611","az","TY2V01"]
[null,null,null,null,"zvsx06k_a611_az_TY2V01","*='Specifieke informatie C'!$L$31","","C611 Naar Instelling- Academische ziekenhuizen- geaccepteerd","zvsx06k","a611","az","TY2V01"]
[null,null,null,null,"zvsx06k_c611_sz_TY0V01","*='Specifieke informatie C'!$G$32","","C611 Naar Instelling- Algemene ziekenhuizen- incl balans","zvsx06k","c611","sz","TY0V01"]
[null,null,null,null,"zvsx06k_a611_sz_TY0V01","*='Specifieke informatie C'!$H$32","","C611 Naar Instelling- Algemene ziekenhuizen- geaccepteerd","zvsx06k","a611","sz","TY0V01"]
[null,null,null,null,"zvsx06k_c611_sz_TY1V01","*='Specifieke informatie C'!$I$32","","C611 Naar Instelling- Algemene ziekenhuizen- incl balans","zvsx06k","c611","sz","TY1V01"]
[null,null,null,null,"zvsx06k_a611_sz_TY1V01","*='Specifieke informatie C'!$J$32","","C611 Naar Instelling- Algemene ziekenhuizen- geaccepteerd","zvsx06k","a611","sz","TY1V01"]
[null,null,null,null,"zvsx06k_c611_sz_TY2V01","*='Specifieke informatie C'!$K$32","","C611 Naar Instelling- Algemene ziekenhuizen- incl balans","zvsx06k","c611","sz","TY2V01"]
[null,null,null,null,"zvsx06k_a611_sz_TY2V01","*='Specifieke informatie C'!$L$32","","C611 Naar Instelling- Algemene ziekenhuizen- geaccepteerd","zvsx06k","a611","sz","TY2V01"]
[null,null,null,null,"zvsx06k_c611_zb_TY0V01","*='Specifieke informatie C'!$G$33","","C611 Naar Instelling- Zelfstandige behandelcentra- incl balans","zvsx06k","c611","zb","TY0V01"]
[null,null,null,null,"zvsx06k_a611_zb_TY0V01","*='Specifieke informatie C'!$H$33","","C611 Naar Instelling- Zelfstandige behandelcentra- geaccepteerd","zvsx06k","a611","zb","TY0V01"]
[null,null,null,null,"zvsx06k_c611_zb_TY1V01","*='Specifieke informatie C'!$I$33","","C611 Naar Instelling- Zelfstandige behandelcentra- incl balans","zvsx06k","c611","zb","TY1V01"]
[null,null,null,null,"zvsx06k_a611_zb_TY1V01","*='Specifieke informatie C'!$J$33","","C611 Naar Instelling- Zelfstandige behandelcentra- geaccepteerd","zvsx06k","a611","zb","TY1V01"]
[null,null,null,null,"zvsx06k_c611_zb_TY2V01","*='Specifieke informatie C'!$K$33","","C611 Naar Instelling- Zelfstandige behandelcentra- incl balans","zvsx06k","c611","zb","TY2V01"]
[null,null,null,null,"zvsx06k_a611_zb_TY2V01","*='Specifieke informatie C'!$L$33","","C611 Naar Instelling- Zelfstandige behandelcentra- geaccepteerd","zvsx06k","a611","zb","TY2V01"]
[null,null,null,null,"zvsx06k_c611_ov_TY0V01","*='Specifieke informatie C'!$G$34","","C611 Naar Instelling- Overige zorgaanbieders- incl balans","zvsx06k","c611","ov","TY0V01"]
[null,null,null,null,"zvsx06k_a611_ov_TY0V01","*='Specifieke informatie C'!$H$34","","C611 Naar Instelling- Overige zorgaanbieders- geaccepteerd","zvsx06k","a611","ov","TY0V01"]
[null,null,null,null,"zvsx06k_c611_ov_TY1V01","*='Specifieke informatie C'!$I$34","","C611 Naar Instelling- Overige zorgaanbieders- incl balans","zvsx06k","c611","ov","TY1V01"]
[null,null,null,null,"zvsx06k_a611_ov_TY1V01","*='Specifieke informatie C'!$J$34","","C611 Naar Instelling- Overige zorgaanbieders- geaccepteerd","zvsx06k","a611","ov","TY1V01"]
[null,null,null,null,"zvsx06k_c611_ov_TY2V01","*='Specifieke informatie C'!$K$34","","C611 Naar Instelling- Overige zorgaanbieders- incl balans","zvsx06k","c611","ov","TY2V01"]
[null,null,null,null,"zvsx06k_a611_ov_TY2V01","*='Specifieke informatie C'!$L$34","","C611 Naar Instelling- Overige zorgaanbieders- geaccepteerd","zvsx06k","a611","ov","TY2V01"]
[null,null,null,null,"zvsx06k_c6121_az_TY0V01","*='Specifieke informatie C'!$G$40","","C612.1 Kosten add-ons dure geneesmiddelen naar instelling- Academische ziekenhuizen- incl balans","zvsx06k","c6121","az","TY0V01"]
[null,null,null,null,"zvsx06k_a6121_az_TY0V01","*='Specifieke informatie C'!$H$40","","C612.1 Kosten add-ons dure geneesmiddelen naar instelling- Academische ziekenhuizen- geaccepteerd","zvsx06k","a6121","az","TY0V01"]
[null,null,null,null,"zvsx06k_c6121_az_TY1V01","*='Specifieke informatie C'!$I$40","","C612.1 Kosten add-ons dure geneesmiddelen naar instelling- Academische ziekenhuizen- incl balans","zvsx06k","c6121","az","TY1V01"]
[null,null,null,null,"zvsx06k_a6121_az_TY1V01","*='Specifieke informatie C'!$J$40","","C612.1 Kosten add-ons dure geneesmiddelen naar instelling- Academische ziekenhuizen- geaccepteerd","zvsx06k","a6121","az","TY1V01"]
[null,null,null,null,"zvsx06k_c6121_az_TY2V01","*='Specifieke informatie C'!$K$40","","C612.1 Kosten add-ons dure geneesmiddelen naar instelling- Academische ziekenhuizen- incl balans","zvsx06k","c6121","az","TY2V01"]
[null,null,null,null,"zvsx06k_a6121_az_TY2V01","*='Specifieke informatie C'!$L$40","","C612.1 Kosten add-ons dure geneesmiddelen naar instelling- Academische ziekenhuizen- geaccepteerd","zvsx06k","a6121","az","TY2V01"]
[null,null,null,null,"zvsx06k_c6121_sz_TY0V01","*='Specifieke informatie C'!$G$41","","C612.1 Kosten add-ons dure geneesmiddelen naar instelling- Algemene ziekenhuizen- incl balans","zvsx06k","c6121","sz","TY0V01"]
[null,null,null,null,"zvsx06k_a6121_sz_TY0V01","*='Specifieke informatie C'!$H$41","","C612.1 Kosten add-ons dure geneesmiddelen naar instelling- Algemene ziekenhuizen- geaccepteerd","zvsx06k","a6121","sz","TY0V01"]
[null,null,null,null,"zvsx06k_c6121_sz_TY1V01","*='Specifieke informatie C'!$I$41","","C612.1 Kosten add-ons dure geneesmiddelen naar instelling- Algemene ziekenhuizen- incl balans","zvsx06k","c6121","sz","TY1V01"]
[null,null,null,null,"zvsx06k_a6121_sz_TY1V01","*='Specifieke informatie C'!$J$41","","C612.1 Kosten add-ons dure geneesmiddelen naar instelling- Algemene ziekenhuizen- geaccepteerd","zvsx06k","a6121","sz","TY1V01"]
[null,null,null,null,"zvsx06k_c6121_sz_TY2V01","*='Specifieke informatie C'!$K$41","","C612.1 Kosten add-ons dure geneesmiddelen naar instelling- Algemene ziekenhuizen- incl balans","zvsx06k","c6121","sz","TY2V01"]
[null,null,null,null,"zvsx06k_a6121_sz_TY2V01","*='Specifieke informatie C'!$L$41","","C612.1 Kosten add-ons dure geneesmiddelen naar instelling- Algemene ziekenhuizen- geaccepteerd","zvsx06k","a6121","sz","TY2V01"]
[null,null,null,null,"zvsx06k_c6121_zb_TY0V01","*='Specifieke informatie C'!$G$42","","C612.1 Kosten add-ons dure geneesmiddelen naar instelling- Zelfstandige behandelcentra- incl balans","zvsx06k","c6121","zb","TY0V01"]
[null,null,null,null,"zvsx06k_a6121_zb_TY0V01","*='Specifieke informatie C'!$H$42","","C612.1 Kosten add-ons dure geneesmiddelen naar instelling- Zelfstandige behandelcentra- geaccepteerd","zvsx06k","a6121","zb","TY0V01"]
[null,null,null,null,"zvsx06k_c6121_zb_TY1V01","*='Specifieke informatie C'!$I$42","","C612.1 Kosten add-ons dure geneesmiddelen naar instelling- Zelfstandige behandelcentra- incl balans","zvsx06k","c6121","zb","TY1V01"]
[null,null,null,null,"zvsx06k_a6121_zb_TY1V01","*='Specifieke informatie C'!$J$42","","C612.1 Kosten add-ons dure geneesmiddelen naar instelling- Zelfstandige behandelcentra- geaccepteerd","zvsx06k","a6121","zb","TY1V01"]
[null,null,null,null,"zvsx06k_c6121_zb_TY2V01","*='Specifieke informatie C'!$K$42","","C612.1 Kosten add-ons dure geneesmiddelen naar instelling- Zelfstandige behandelcentra- incl balans","zvsx06k","c6121","zb","TY2V01"]
[null,null,null,null,"zvsx06k_a6121_zb_TY2V01","*='Specifieke informatie C'!$L$42","","C612.1 Kosten add-ons dure geneesmiddelen naar instelling- Zelfstandige behandelcentra- geaccepteerd","zvsx06k","a6121","zb","TY2V01"]
[null,null,null,null,"zvsx06k_c6121_ov_TY0V01","*='Specifieke informatie C'!$G$43","","C612.1 Kosten add-ons dure geneesmiddelen naar instelling- Overige zorgaanbieders- incl balans","zvsx06k","c6121","ov","TY0V01"]
[null,null,null,null,"zvsx06k_a6121_ov_TY0V01","*='Specifieke informatie C'!$H$43","","C612.1 Kosten add-ons dure geneesmiddelen naar instelling- Overige zorgaanbieders- geaccepteerd","zvsx06k","a6121","ov","TY0V01"]
[null,null,null,null,"zvsx06k_c6121_ov_TY1V01","*='Specifieke informatie C'!$I$43","","C612.1 Kosten add-ons dure geneesmiddelen naar instelling- Overige zorgaanbieders- incl balans","zvsx06k","c6121","ov","TY1V01"]
[null,null,null,null,"zvsx06k_a6121_ov_TY1V01","*='Specifieke informatie C'!$J$43","","C612.1 Kosten add-ons dure geneesmiddelen naar instelling- Overige zorgaanbieders- geaccepteerd","zvsx06k","a6121","ov","TY1V01"]
[null,null,null,null,"zvsx06k_c6121_ov_TY2V01","*='Specifieke informatie C'!$K$43","","C612.1 Kosten add-ons dure geneesmiddelen naar instelling- Overige zorgaanbieders- incl balans","zvsx06k","c6121","ov","TY2V01"]
[null,null,null,null,"zvsx06k_a6121_ov_TY2V01","*='Specifieke informatie C'!$L$43","","C612.1 Kosten add-ons dure geneesmiddelen naar instelling- Overige zorgaanbieders- geaccepteerd","zvsx06k","a6121","ov","TY2V01"]
[null,null,null,null,"zvsx06k_c6122_az_TY0V01","*='Specifieke informatie C'!$G$57","","C612.2 Kosten add-ons IC naar instelling- Academische ziekenhuizen- incl balans","zvsx06k","c6122","az","TY0V01"]
[null,null,null,null,"zvsx06k_a6122_az_TY0V01","*='Specifieke informatie C'!$H$57","","C612.2 Kosten add-ons IC naar instelling- Academische ziekenhuizen- geaccepteerd","zvsx06k","a6122","az","TY0V01"]
[null,null,null,null,"zvsx06k_c6122_az_TY1V01","*='Specifieke informatie C'!$I$57","","C612.2 Kosten add-ons IC naar instelling- Academische ziekenhuizen- incl balans","zvsx06k","c6122","az","TY1V01"]
[null,null,null,null,"zvsx06k_a6122_az_TY1V01","*='Specifieke informatie C'!$J$57","","C612.2 Kosten add-ons IC naar instelling- Academische ziekenhuizen- geaccepteerd","zvsx06k","a6122","az","TY1V01"]
[null,null,null,null,"zvsx06k_c6122_az_TY2V01","*='Specifieke informatie C'!$K$57","","C612.2 Kosten add-ons IC naar instelling- Academische ziekenhuizen- incl balans","zvsx06k","c6122","az","TY2V01"]
[null,null,null,null,"zvsx06k_a6122_az_TY2V01","*='Specifieke informatie C'!$L$57","","C612.2 Kosten add-ons IC naar instelling- Academische ziekenhuizen- geaccepteerd","zvsx06k","a6122","az","TY2V01"]
[null,null,null,null,"zvsx06k_c6122_sz_TY0V01","*='Specifieke informatie C'!$G$58","","C612.2 Kosten add-ons IC naar instelling- Algemene ziekenhuizen- incl balans","zvsx06k","c6122","sz","TY0V01"]
[null,null,null,null,"zvsx06k_a6122_sz_TY0V01","*='Specifieke informatie C'!$H$58","","C612.2 Kosten add-ons IC naar instelling- Algemene ziekenhuizen- geaccepteerd","zvsx06k","a6122","sz","TY0V01"]
[null,null,null,null,"zvsx06k_c6122_sz_TY1V01","*='Specifieke informatie C'!$I$58","","C612.2 Kosten add-ons IC naar instelling- Algemene ziekenhuizen- incl balans","zvsx06k","c6122","sz","TY1V01"]
[null,null,null,null,"zvsx06k_a6122_sz_TY1V01","*='Specifieke informatie C'!$J$58","","C612.2 Kosten add-ons IC naar instelling- Algemene ziekenhuizen- geaccepteerd","zvsx06k","a6122","sz","TY1V01"]
[null,null,null,null,"zvsx06k_c6122_sz_TY2V01","*='Specifieke informatie C'!$K$58","","C612.2 Kosten add-ons IC naar instelling- Algemene ziekenhuizen- incl balans","zvsx06k","c6122","sz","TY2V01"]
[null,null,null,null,"zvsx06k_a6122_sz_TY2V01","*='Specifieke informatie C'!$L$58","","C612.2 Kosten add-ons IC naar instelling- Algemene ziekenhuizen- geaccepteerd","zvsx06k","a6122","sz","TY2V01"]
[null,null,null,null,"zvsx06k_c6122_zb_TY0V01","*='Specifieke informatie C'!$G$59","","C612.2 Kosten add-ons IC naar instelling- Zelfstandige behandelcentra- incl balans","zvsx06k","c6122","zb","TY0V01"]
[null,null,null,null,"zvsx06k_a6122_zb_TY0V01","*='Specifieke informatie C'!$H$59","","C612.2 Kosten add-ons IC naar instelling- Zelfstandige behandelcentra- geaccepteerd","zvsx06k","a6122","zb","TY0V01"]
[null,null,null,null,"zvsx06k_c6122_zb_TY1V01","*='Specifieke informatie C'!$I$59","","C612.2 Kosten add-ons IC naar instelling- Zelfstandige behandelcentra- incl balans","zvsx06k","c6122","zb","TY1V01"]
[null,null,null,null,"zvsx06k_a6122_zb_TY1V01","*='Specifieke informatie C'!$J$59","","C612.2 Kosten add-ons IC naar instelling- Zelfstandige behandelcentra- geaccepteerd","zvsx06k","a6122","zb","TY1V01"]
[null,null,null,null,"zvsx06k_c6122_zb_TY2V01","*='Specifieke informatie C'!$K$59","","C612.2 Kosten add-ons IC naar instelling- Zelfstandige behandelcentra- incl balans","zvsx06k","c6122","zb","TY2V01"]
[null,null,null,null,"zvsx06k_a6122_zb_TY2V01","*='Specifieke informatie C'!$L$59","","C612.2 Kosten add-ons IC naar instelling- Zelfstandige behandelcentra- geaccepteerd","zvsx06k","a6122","zb","TY2V01"]
[null,null,null,null,"zvsx06k_c6122_ov_TY0V01","*='Specifieke informatie C'!$G$60","","C612.2 Kosten add-ons IC naar instelling- Overige zorgaanbieders- incl balans","zvsx06k","c6122","ov","TY0V01"]
[null,null,null,null,"zvsx06k_a6122_ov_TY0V01","*='Specifieke informatie C'!$H$60","","C612.2 Kosten add-ons IC naar instelling- Overige zorgaanbieders- geaccepteerd","zvsx06k","a6122","ov","TY0V01"]
[null,null,null,null,"zvsx06k_c6122_ov_TY1V01","*='Specifieke informatie C'!$I$60","","C612.2 Kosten add-ons IC naar instelling- Overige zorgaanbieders- incl balans","zvsx06k","c6122","ov","TY1V01"]
[null,null,null,null,"zvsx06k_a6122_ov_TY1V01","*='Specifieke informatie C'!$J$60","","C612.2 Kosten add-ons IC naar instelling- Overige zorgaanbieders- geaccepteerd","zvsx06k","a6122","ov","TY1V01"]
[null,null,null,null,"zvsx06k_c6122_ov_TY2V01","*='Specifieke informatie C'!$K$60","","C612.2 Kosten add-ons IC naar instelling- Overige zorgaanbieders- incl balans","zvsx06k","c6122","ov","TY2V01"]
[null,null,null,null,"zvsx06k_a6122_ov_TY2V01","*='Specifieke informatie C'!$L$60","","C612.2 Kosten add-ons IC naar instelling- Overige zorgaanbieders- geaccepteerd","zvsx06k","a6122","ov","TY2V01"]
[null,null,null,null,"zvsx06k_c6131_az_TY0V01","*='Specifieke informatie C'!$G$66","","C613.1 Integrale kosten DBC-zorgproducten gereguleerde segment- Academische ziekenhuizen- incl balans","zvsx06k","c6131","az","TY0V01"]
[null,null,null,null,"zvsx06k_a6131_az_TY0V01","*='Specifieke informatie C'!$H$66","","C613.1 Integrale kosten DBC-zorgproducten gereguleerde segment- Academische ziekenhuizen- geaccepteerd","zvsx06k","a6131","az","TY0V01"]
[null,null,null,null,"zvsx06k_c6131_az_TY1V01","*='Specifieke informatie C'!$I$66","","C613.1 Integrale kosten DBC-zorgproducten gereguleerde segment- Academische ziekenhuizen- incl balans","zvsx06k","c6131","az","TY1V01"]
[null,null,null,null,"zvsx06k_a6131_az_TY1V01","*='Specifieke informatie C'!$J$66","","C613.1 Integrale kosten DBC-zorgproducten gereguleerde segment- Academische ziekenhuizen- geaccepteerd","zvsx06k","a6131","az","TY1V01"]
[null,null,null,null,"zvsx06k_c6131_az_TY2V01","*='Specifieke informatie C'!$K$66","","C613.1 Integrale kosten DBC-zorgproducten gereguleerde segment- Academische ziekenhuizen- incl balans","zvsx06k","c6131","az","TY2V01"]
[null,null,null,null,"zvsx06k_a6131_az_TY2V01","*='Specifieke informatie C'!$L$66","","C613.1 Integrale kosten DBC-zorgproducten gereguleerde segment- Academische ziekenhuizen- geaccepteerd","zvsx06k","a6131","az","TY2V01"]
[null,null,null,null,"zvsx06k_c6131_sz_TY0V01","*='Specifieke informatie C'!$G$67","","C613.1 Integrale kosten DBC-zorgproducten gereguleerde segment- Algemene ziekenhuizen- incl balans","zvsx06k","c6131","sz","TY0V01"]
[null,null,null,null,"zvsx06k_a6131_sz_TY0V01","*='Specifieke informatie C'!$H$67","","C613.1 Integrale kosten DBC-zorgproducten gereguleerde segment- Algemene ziekenhuizen- geaccepteerd","zvsx06k","a6131","sz","TY0V01"]
[null,null,null,null,"zvsx06k_c6131_sz_TY1V01","*='Specifieke informatie C'!$I$67","","C613.1 Integrale kosten DBC-zorgproducten gereguleerde segment- Algemene ziekenhuizen- incl balans","zvsx06k","c6131","sz","TY1V01"]
[null,null,null,null,"zvsx06k_a6131_sz_TY1V01","*='Specifieke informatie C'!$J$67","","C613.1 Integrale kosten DBC-zorgproducten gereguleerde segment- Algemene ziekenhuizen- geaccepteerd","zvsx06k","a6131","sz","TY1V01"]
[null,null,null,null,"zvsx06k_c6131_sz_TY2V01","*='Specifieke informatie C'!$K$67","","C613.1 Integrale kosten DBC-zorgproducten gereguleerde segment- Algemene ziekenhuizen- incl balans","zvsx06k","c6131","sz","TY2V01"]
[null,null,null,null,"zvsx06k_a6131_sz_TY2V01","*='Specifieke informatie C'!$L$67","","C613.1 Integrale kosten DBC-zorgproducten gereguleerde segment- Algemene ziekenhuizen- geaccepteerd","zvsx06k","a6131","sz","TY2V01"]
[null,null,null,null,"zvsx06k_c6131_zb_TY0V01","*='Specifieke informatie C'!$G$68","","C613.1 Integrale kosten DBC-zorgproducten gereguleerde segment- Zelfstandige behandelcentra- incl balans","zvsx06k","c6131","zb","TY0V01"]
[null,null,null,null,"zvsx06k_a6131_zb_TY0V01","*='Specifieke informatie C'!$H$68","","C613.1 Integrale kosten DBC-zorgproducten gereguleerde segment- Zelfstandige behandelcentra- geaccepteerd","zvsx06k","a6131","zb","TY0V01"]
[null,null,null,null,"zvsx06k_c6131_zb_TY1V01","*='Specifieke informatie C'!$I$68","","C613.1 Integrale kosten DBC-zorgproducten gereguleerde segment- Zelfstandige behandelcentra- incl balans","zvsx06k","c6131","zb","TY1V01"]
[null,null,null,null,"zvsx06k_a6131_zb_TY1V01","*='Specifieke informatie C'!$J$68","","C613.1 Integrale kosten DBC-zorgproducten gereguleerde segment- Zelfstandige behandelcentra- geaccepteerd","zvsx06k","a6131","zb","TY1V01"]
[null,null,null,null,"zvsx06k_c6131_zb_TY2V01","*='Specifieke informatie C'!$K$68","","C613.1 Integrale kosten DBC-zorgproducten gereguleerde segment- Zelfstandige behandelcentra- incl balans","zvsx06k","c6131","zb","TY2V01"]
[null,null,null,null,"zvsx06k_a6131_zb_TY2V01","*='Specifieke informatie C'!$L$68","","C613.1 Integrale kosten DBC-zorgproducten gereguleerde segment- Zelfstandige behandelcentra- geaccepteerd","zvsx06k","a6131","zb","TY2V01"]
[null,null,null,null,"zvsx06k_c6131_ov_TY0V01","*='Specifieke informatie C'!$G$69","","C613.1 Integrale kosten DBC-zorgproducten gereguleerde segment- Overige zorgaanbieders- incl balans","zvsx06k","c6131","ov","TY0V01"]
[null,null,null,null,"zvsx06k_a6131_ov_TY0V01","*='Specifieke informatie C'!$H$69","","C613.1 Integrale kosten DBC-zorgproducten gereguleerde segment- Overige zorgaanbieders- geaccepteerd","zvsx06k","a6131","ov","TY0V01"]
[null,null,null,null,"zvsx06k_c6131_ov_TY1V01","*='Specifieke informatie C'!$I$69","","C613.1 Integrale kosten DBC-zorgproducten gereguleerde segment- Overige zorgaanbieders- incl balans","zvsx06k","c6131","ov","TY1V01"]
[null,null,null,null,"zvsx06k_a6131_ov_TY1V01","*='Specifieke informatie C'!$J$69","","C613.1 Integrale kosten DBC-zorgproducten gereguleerde segment- Overige zorgaanbieders- geaccepteerd","zvsx06k","a6131","ov","TY1V01"]
[null,null,null,null,"zvsx06k_c6131_ov_TY2V01","*='Specifieke informatie C'!$K$69","","C613.1 Integrale kosten DBC-zorgproducten gereguleerde segment- Overige zorgaanbieders- incl balans","zvsx06k","c6131","ov","TY2V01"]
[null,null,null,null,"zvsx06k_a6131_ov_TY2V01","*='Specifieke informatie C'!$L$69","","C613.1 Integrale kosten DBC-zorgproducten gereguleerde segment- Overige zorgaanbieders- geaccepteerd","zvsx06k","a6131","ov","TY2V01"]
[null,null,null,null,"zvsx06k_c6151_az_TY0V01","*='Specifieke informatie C'!$G$75","","C615.1 Integrale kosten DBC-zorgproduct vrije segment- Academische ziekenhuizen- incl balans","zvsx06k","c6151","az","TY0V01"]
[null,null,null,null,"zvsx06k_a6151_az_TY0V01","*='Specifieke informatie C'!$H$75","","C615.1 Integrale kosten DBC-zorgproduct vrije segment- Academische ziekenhuizen- geaccepteerd","zvsx06k","a6151","az","TY0V01"]
[null,null,null,null,"zvsx06k_c6151_az_TY1V01","*='Specifieke informatie C'!$I$75","","C615.1 Integrale kosten DBC-zorgproduct vrije segment- Academische ziekenhuizen- incl balans","zvsx06k","c6151","az","TY1V01"]
[null,null,null,null,"zvsx06k_a6151_az_TY1V01","*='Specifieke informatie C'!$J$75","","C615.1 Integrale kosten DBC-zorgproduct vrije segment- Academische ziekenhuizen- geaccepteerd","zvsx06k","a6151","az","TY1V01"]
[null,null,null,null,"zvsx06k_c6151_az_TY2V01","*='Specifieke informatie C'!$K$75","","C615.1 Integrale kosten DBC-zorgproduct vrije segment- Academische ziekenhuizen- incl balans","zvsx06k","c6151","az","TY2V01"]
[null,null,null,null,"zvsx06k_a6151_az_TY2V01","*='Specifieke informatie C'!$L$75","","C615.1 Integrale kosten DBC-zorgproduct vrije segment- Academische ziekenhuizen- geaccepteerd","zvsx06k","a6151","az","TY2V01"]
[null,null,null,null,"zvsx06k_c6151_sz_TY0V01","*='Specifieke informatie C'!$G$76","","C615.1 Integrale kosten DBC-zorgproduct vrije segment- Algemene ziekenhuizen- incl balans","zvsx06k","c6151","sz","TY0V01"]
[null,null,null,null,"zvsx06k_a6151_sz_TY0V01","*='Specifieke informatie C'!$H$76","","C615.1 Integrale kosten DBC-zorgproduct vrije segment- Algemene ziekenhuizen- geaccepteerd","zvsx06k","a6151","sz","TY0V01"]
[null,null,null,null,"zvsx06k_c6151_sz_TY1V01","*='Specifieke informatie C'!$I$76","","C615.1 Integrale kosten DBC-zorgproduct vrije segment- Algemene ziekenhuizen- incl balans","zvsx06k","c6151","sz","TY1V01"]
[null,null,null,null,"zvsx06k_a6151_sz_TY1V01","*='Specifieke informatie C'!$J$76","","C615.1 Integrale kosten DBC-zorgproduct vrije segment- Algemene ziekenhuizen- geaccepteerd","zvsx06k","a6151","sz","TY1V01"]
[null,null,null,null,"zvsx06k_c6151_sz_TY2V01","*='Specifieke informatie C'!$K$76","","C615.1 Integrale kosten DBC-zorgproduct vrije segment- Algemene ziekenhuizen- incl balans","zvsx06k","c6151","sz","TY2V01"]
[null,null,null,null,"zvsx06k_a6151_sz_TY2V01","*='Specifieke informatie C'!$L$76","","C615.1 Integrale kosten DBC-zorgproduct vrije segment- Algemene ziekenhuizen- geaccepteerd","zvsx06k","a6151","sz","TY2V01"]
[null,null,null,null,"zvsx06k_a6151_zb_TY0V01","*='Specifieke informatie C'!$H$77","","C615.1 Integrale kosten DBC-zorgproduct vrije segment- Zelfstandige behandelcentra- geaccepteerd","zvsx06k","a6151","zb","TY0V01"]
[null,null,null,null,"zvsx06k_c6151_zb_TY0V01","*='Specifieke informatie C'!$G$77","","C615.1 Integrale kosten DBC-zorgproduct vrije segment- Zelfstandige behandelcentra- incl balans","zvsx06k","c6151","zb","TY0V01"]
[null,null,null,null,"zvsx06k_c6151_zb_TY1V01","*='Specifieke informatie C'!$I$77","","C615.1 Integrale kosten DBC-zorgproduct vrije segment- Zelfstandige behandelcentra- incl balans","zvsx06k","c6151","zb","TY1V01"]
[null,null,null,null,"zvsx06k_a6151_zb_TY1V01","*='Specifieke informatie C'!$J$77","","C615.1 Integrale kosten DBC-zorgproduct vrije segment- Zelfstandige behandelcentra- geaccepteerd","zvsx06k","a6151","zb","TY1V01"]
[null,null,null,null,"zvsx06k_c6151_zb_TY2V01","*='Specifieke informatie C'!$K$77","","C615.1 Integrale kosten DBC-zorgproduct vrije segment- Zelfstandige behandelcentra- incl balans","zvsx06k","c6151","zb","TY2V01"]
[null,null,null,null,"zvsx06k_a6151_zb_TY2V01","*='Specifieke informatie C'!$L$77","","C615.1 Integrale kosten DBC-zorgproduct vrije segment- Zelfstandige behandelcentra- geaccepteerd","zvsx06k","a6151","zb","TY2V01"]
[null,null,null,null,"zvsx06k_c6151_ov_TY0V01","*='Specifieke informatie C'!$G$78","","C615.1 Integrale kosten DBC-zorgproduct vrije segment- Overige zorgaanbieders- incl balans","zvsx06k","c6151","ov","TY0V01"]
[null,null,null,null,"zvsx06k_a6151_ov_TY0V01","*='Specifieke informatie C'!$H$78","","C615.1 Integrale kosten DBC-zorgproduct vrije segment- Overige zorgaanbieders- geaccepteerd","zvsx06k","a6151","ov","TY0V01"]
[null,null,null,null,"zvsx06k_c6151_ov_TY1V01","*='Specifieke informatie C'!$I$78","","C615.1 Integrale kosten DBC-zorgproduct vrije segment- Overige zorgaanbieders- incl balans","zvsx06k","c6151","ov","TY1V01"]
[null,null,null,null,"zvsx06k_a6151_ov_TY1V01","*='Specifieke informatie C'!$J$78","","C615.1 Integrale kosten DBC-zorgproduct vrije segment- Overige zorgaanbieders- geaccepteerd","zvsx06k","a6151","ov","TY1V01"]
[null,null,null,null,"zvsx06k_c6151_ov_TY2V01","*='Specifieke informatie C'!$K$78","","C615.1 Integrale kosten DBC-zorgproduct vrije segment- Overige zorgaanbieders- incl balans","zvsx06k","c6151","ov","TY2V01"]
[null,null,null,null,"zvsx06k_a6151_ov_TY2V01","*='Specifieke informatie C'!$L$78","","C615.1 Integrale kosten DBC-zorgproduct vrije segment- Overige zorgaanbieders- geaccepteerd","zvsx06k","a6151","ov","TY2V01"]
[null,null,null,null,"zvsx13k_a701_g21_TY0V01","*='Specifieke informatie C'!L83","","C701 Overige geneeskundige zorg- Kort- geaccepteerd","zvsx13k","a701","g21","TY0V01"]
[null,null,null,null,"zvsx13k_a701_g22_TY0V01","*='Specifieke informatie C'!L84","","C701 Overige geneeskundige zorg- Huidtherapie- geaccepteerd","zvsx13k","a701","g22","TY0V01"]
[null,null,null,null,"zvsx13k_a701_g23_TY0V01","*='Specifieke informatie C'!L85","","C701 Overige geneeskundige zorg- Orthoptie- geaccepteerd","zvsx13k","a701","g23","TY0V01"]
[null,null,null,null,"zvsx13k_a701_g24_TY0V01","*='Specifieke informatie C'!L86","","C701 Overige geneeskundige zorg- Optometrie- geaccepteerd","zvsx13k","a701","g24","TY0V01"]
[null,null,null,null,"zvsx13k_a701_g25_TY0V01","*='Specifieke informatie C'!L87","","C701 Overige geneeskundige zorg- voetzorg bij Diabetes Mellitus type 2- geaccepteerd","zvsx13k","a701","g25","TY0V01"]
[null,null,null,null,"zvsx13k_a701_g26_TY0V01","*='Specifieke informatie C'!L88","","C701 Overige geneeskundige zorg- Koemelkallergietest (niet horend bij Multidisciplinaire Zorg)- geaccepteerd","zvsx13k","a701","g26","TY0V01"]
[null,null,null,null,"zvsx13k_a701_g27_TY0V01","*='Specifieke informatie C'!L89","","C701 Overige geneeskundige zorg- Regiefunctie complexe wondzorgt- geaccepteerd","zvsx13k","a701","g27","TY0V01"]
[null,null,null,null,"zvsx13k_a702_g01_TY0V01","*='Specifieke informatie C'!L94","","C702 Zintuiglijk gehandicapten- visuele beperking- geaccepteerd","zvsx13k","a702","g01","TY0V01"]
[null,null,null,null,"zvsx13k_a702_g02_TY0V01","*='Specifieke informatie C'!$L$95","","C702 Zintuiglijk gehandicapten- auditieve en comunicatieve beperking- geaccepteerd","zvsx13k","a702","g02","TY0V01"]
[null,null,null,null,"zvox01_c97101_o01trf_TY0V01","*=Contractinformatie!$K$12","","Huisartsenzorg en Multidisciplinaire zorg, (code 503,504,505,506,507,515)- Gecontracteerd 503,504,505,506,507,515- incl balans","zvox01","c97101","o01trf","TY0V01"]
[null,null,null,null,"zvox01_c97101_o31trf_TY0V01","*=Contractinformatie!$K$13",null,"Huisartsenzorg en Multidisciplinaire zorg, (code 503,504,505,506,507,515)- Lopende onderhandelingen 503,504,505,506,507,515- incl balans","zvox01","c97101","o31trf","TY0V01"]
[null,null,null,null,"zvox01_c97101_o52trf_TY0V01","*=Contractinformatie!$K$14","","Huisartsenzorg en Multidisciplinaire zorg, (code 503,504,505,506,507,515)- Niet gecontracteerd 503,504,505,506,507,515- incl balans","zvox01","c97101","o52trf","TY0V01"]
[null,null,null,null,"zvox01_c97101_o01mdz_TY0V01","*=Contractinformatie!$K$17","","Huisartsenzorg en Multidisciplinaire zorg, (code 510 en 516)- Gecontracteerd 510,516- incl balans","zvox01","c97101","o01mdz","TY0V01"]
[null,null,null,null,"zvox01_c97101_o31mdz_TY0V01","*=Contractinformatie!$K$18",null,"Huisartsenzorg en Multidisciplinaire zorg, (code 510 en 516)- Lopende onderhandelingen 510,516- incl balans","zvox01","c97101","o31mdz","TY0V01"]
[null,null,null,null,"zvox01_c97101_o52mdz_TY0V01","*=Contractinformatie!$K$19","","Huisartsenzorg en Multidisciplinaire zorg, (code 510 en 516)- Niet gecontracteerd  510,516- incl balans","zvox01","c97101","o52mdz","TY0V01"]
[null,null,null,null,"zvox03_c97103_o01_TY0V01","*=Contractinformatie!$K$26","","Contractinformatie Verpleging en Verzorging- Gecontracteerd- incl balans","zvox03","c97103","o01","TY0V01"]
[null,null,null,null,"zvox03_c97103_o31_TY0V01","*=Contractinformatie!$K$27",null,"Contractinformatie Verpleging en Verzorging- Lopende onderhandelingen- incl balans","zvox03","c97103","o31","TY0V01"]
[null,null,null,null,"zvox03_c97103_o52_TY0V01","*=Contractinformatie!$K$28","","Contractinformatie Verpleging en Verzorging- Niet gecontracteerd- incl balans","zvox03","c97103","o52","TY0V01"]
[null,null,null,null,"zvox03_c97103_o08_TY0V01","*=Contractinformatie!$K$29",null,"Contractinformatie Verpleging en Verzorging- PGB- incl balans","zvox03","c97103","o08","TY0V01"]
[null,null,null,null,"zvox06_c97106_o02_TY0V01","*=Contractinformatie!$K$34","","Medisch Specialistische Zorg- aanneemsom- incl balans","zvox06","c97106","o02","TY0V01"]
[null,null,null,null,"zvox06_c97106_o03_TY0V01","*=Contractinformatie!$K$35","","Medisch Specialistische Zorg- plafond- incl balans","zvox06","c97106","o03","TY0V01"]
[null,null,null,null,"zvox06_c97106_o04_TY0V01","*=Contractinformatie!$K$36","","Medisch Specialistische Zorg- nacalculatie- incl balans","zvox06","c97106","o04","TY0V01"]
[null,null,null,null,"zvox06_c97106_o05_TY0V01","*=Contractinformatie!$K$37","","Medisch Specialistische Zorg- open einde contract- incl balans","zvox06","c97106","o05","TY0V01"]
[null,null,null,null,"zvox06_c97106_o31_TY0V01","*=Contractinformatie!$K$39",null,"Medisch Specialistische Zorg- Lopende onderhandelingen- incl balans","zvox06","c97106","o31","TY0V01"]
[null,null,null,null,"zvox06_c97106_o52_TY0V01","*=Contractinformatie!$K$40","","Medisch Specialistische Zorg- Niet gecontracteerd- incl balans","zvox06","c97106","o52","TY0V01"]
[null,null,null,null,"zvox06_c97106_o91_TY0V01","*=Contractinformatie!$K$44",null,"Medisch Specialistische Zorg- Totaal afgesproken maximum omzet plafondcontracten- incl balans","zvox06","c97106","o91","TY0V01"]
[null,null,null,null,"zvox10_c97110_o02_TY0V01","*=Contractinformatie!$K$55","","Geneeskundige GGZ- aanneemsom- incl balans","zvox10","c97110","o02","TY0V01"]
[null,null,null,null,"zvox10_c97110_o03_TY0V01","*=Contractinformatie!$K$56","","Geneeskundige GGZ- plafond- incl balans","zvox10","c97110","o03","TY0V01"]
[null,null,null,null,"zvox10_c97110_o04_TY0V01","*=Contractinformatie!$K$57","","Geneeskundige GGZ- nacalculatie- incl balans","zvox10","c97110","o04","TY0V01"]
[null,null,null,null,"zvox10_c97110_o05_TY0V01","*=Contractinformatie!$K$58","","Geneeskundige GGZ- open einde contract- incl balans","zvox10","c97110","o05","TY0V01"]
[null,null,null,null,"zvox10_c97110_o31_TY0V01","*=Contractinformatie!$K$60",null,"Geneeskundige GGZ- Lopende onderhandelingen- incl balans","zvox10","c97110","o31","TY0V01"]
[null,null,null,null,"zvox10_c97110_o52_TY0V01","*=Contractinformatie!$K$61","","Geneeskundige GGZ- Niet gecontracteerd- incl balans","zvox10","c97110","o52","TY0V01"]
[null,null,null,null,"zvox10_c97110_o91_TY0V01","*=Contractinformatie!$K$65",null,"Geneeskundige GGZ- Totaal afgesproken maximum omzet plafondcontracten- incl balans","zvox10","c97110","o91","TY0V01"]
[null,null,null,null,"zvox13_c97113_bo01_TY0V01","*=Contractinformatie!$K$69","","Zintuiglijk gehandicapten- Gecontracteerd- incl balans","zvox13","c97113","bo01","TY0V01"]
[null,null,null,null,"zvox13_c97113_bo31_TY0V01","*=Contractinformatie!$K$70",null,"Zintuiglijk gehandicapten- Lopende onderhandelingen- incl balans","zvox13","c97113","bo31","TY0V01"]
[null,null,null,null,"zvox13_c97113_bo52_TY0V01","*=Contractinformatie!$K$71","","Zintuiglijk gehandicapten- Niet gecontracteerd- incl balans","zvox13","c97113","bo52","TY0V01"]
[null,null,null,null,"zvox11_c97111_o01rvl_TY0V01","*=Contractinformatie!$K$77","","Geriatrische Revalidatiezorg 670 en Eerstelijnsverblijf 671,  Geneeskundige Zorg Specifieke Patiëntgroepen (code 672)- Gecontracteerd  670- incl balans","zvox11","c97111","o01rvl","TY0V01"]
[null,null,null,null,"zvox11_c97111_o31rvl_TY0V01","*=Contractinformatie!$K$78",null,"Geriatrische Revalidatiezorg 670 en Eerstelijnsverblijf 671,  Geneeskundige Zorg Specifieke Patiëntgroepen (code 670)- Lopende onderhandelingen 670- incl balans","zvox11","c97111","o31rvl","TY0V01"]
[null,null,null,null,"zvox11_c97111_o52rvl_TY0V01","*=Contractinformatie!$K$79","","Geriatrische Revalidatiezorg 670 en Eerstelijnsverblijf 671,  Geneeskundige Zorg Specifieke Patiëntgroepen (code 672)- Niet gecontracteerd 670- incl balans","zvox11","c97111","o52rvl","TY0V01"]
[null,null,null,null,"zvox11_c97111_o01ln1_TY0V01","*=Contractinformatie!$K$82","","Geriatrische Revalidatiezorg 670 en Eerstelijnsverblijf 671,  Geneeskundige Zorg Specifieke Patiëntgroepen (code 672)- Gecontracteerd 671- incl balans","zvox11","c97111","o01ln1","TY0V01"]
[null,null,null,null,"zvox11_c97111_o31ln1_TY0V01","*=Contractinformatie!$K$83",null,"Geriatrische Revalidatiezorg 670 en Eerstelijnsverblijf 671,  Geneeskundige Zorg Specifieke Patiëntgroepen (code 671)- Lopende onderhandelingen 671- incl balans","zvox11","c97111","o31ln1","TY0V01"]
[null,null,null,null,"zvox11_c97111_o52ln1_TY0V01","*=Contractinformatie!$K$84","","Geriatrische Revalidatiezorg 670 en Eerstelijnsverblijf 671,  Geneeskundige Zorg Specifieke Patiëntgroepen (code 672)- Niet gecontracteerd 671- incl balans","zvox11","c97111","o52ln1","TY0V01"]
[null,null,null,null,"zvox11_c97111_o01gp_TY0V01","*=Contractinformatie!$K$87",null,"Geriatrische Revalidatiezorg 670 en Eerstelijnsverblijf 671,  Geneeskundige Zorg Specifieke Patiëntgroepen (code 672)- Gecontracteerd 672- incl balans","zvox11","c97111","o01gp","TY0V01"]
[null,null,null,null,"zvox11_c97111_o31gp_TY0V01","*=Contractinformatie!$K$88",null,"Geriatrische Revalidatiezorg 670 en Eerstelijnsverblijf 671,  Geneeskundige Zorg Specifieke Patiëntgroepen (code 672)- Lopende onderhandelingen 672- incl balans","zvox11","c97111","o31gp","TY0V01"]
[null,null,null,null,"zvox11_c97111_o52gp_TY0V01","*=Contractinformatie!$K$89",null,"Geriatrische Revalidatiezorg 670 en Eerstelijnsverblijf 671, Geneeskundige Zorg Specifieke Patiëntgroepen (code 672)- Niet gecontracteerd 672- incl balans","zvox11","c97111","o52gp","TY0V01"]
[null,null,null,null,"zvpxwnb_s982_d2m_m07V01","*=Wanbetalers!$I$12","","Wanbetalers- achterstand 2 of 3 maanden","zvpxwnb","s982","d2m","m07V01","Wanbetalers",null,"N",""]
[null,null,null,null,"zvpxwnb_s982_d2m_m08V01","*=Wanbetalers!$J$12","","Wanbetalers- achterstand 2 of 3 maanden","zvpxwnb","s982","d2m","m08V01","Wanbetalers",null,"N",""]
[null,null,null,null,"zvpxwnb_s982_d2m_m09V01","*=Wanbetalers!$K$12","","Wanbetalers- achterstand 2 of 3 maanden","zvpxwnb","s982","d2m","m09V01","Wanbetalers",null,"N",""]
[null,null,null,null,"zvpxwnb_s982_d4m_m07V01","*=Wanbetalers!$I$13","","Wanbetalers- achterstand 4 of 5 maanden","zvpxwnb","s982","d4m","m07V01","Wanbetalers",null,"N",""]
[null,null,null,null,"zvpxwnb_s982_d4m_m08V01","*=Wanbetalers!$J$13","","Wanbetalers- achterstand 4 of 5 maanden","zvpxwnb","s982","d4m","m08V01","Wanbetalers",null,"N",""]
[null,null,null,null,"zvpxwnb_s982_d4m_m09V01","*=Wanbetalers!$K$13","","Wanbetalers- achterstand 4 of 5 maanden","zvpxwnb","s982","d4m","m09V01","Wanbetalers",null,"N",""]
[null,null,null,null,"zvpxwnb_s982_d6m_m07V01","*=Wanbetalers!$I$14","","Wanbetalers- achterstand 6 of meer maanden","zvpxwnb","s982","d6m","m07V01","Wanbetalers",null,"N",""]
[null,null,null,null,"zvpxwnb_s982_d6m_m08V01","*=Wanbetalers!$J$14","","Wanbetalers- achterstand 6 of meer maanden","zvpxwnb","s982","d6m","m08V01","Wanbetalers",null,"N",""]
[null,null,null,null,"zvpxwnb_s982_d6m_m09V01","*=Wanbetalers!$K$14","","Wanbetalers- achterstand 6 of meer maanden","zvpxwnb","s982","d6m","m09V01","Wanbetalers",null,"N",""]
[null,null,null,null,"zvpxwnb_s982_dm2b_m07V01","*=Wanbetalers!$I$17","","Wanbetalers- tweedemaandsbrieven","zvpxwnb","s982","dm2b","m07V01","Wanbetalers",null,"N",""]
[null,null,null,null,"zvpxwnb_s982_dm2b_m08V01","*=Wanbetalers!$J$17","","Wanbetalers- tweedemaandsbrieven","zvpxwnb","s982","dm2b","m08V01","Wanbetalers",null,"N",""]
[null,null,null,null,"zvpxwnb_s982_dm2b_m09V01","*=Wanbetalers!$K$17","","Wanbetalers- tweedemaandsbrieven","zvpxwnb","s982","dm2b","m09V01","Wanbetalers",null,"N",""]
[null,null,null,null,"zvpxwnb_s982_dm4b_m07V01","*=Wanbetalers!$I$18","","Wanbetalers- vierdemaandsbrieven","zvpxwnb","s982","dm4b","m07V01","Wanbetalers",null,"N",""]
[null,null,null,null,"zvpxwnb_s982_dm4b_m08V01","*=Wanbetalers!$J$18","","Wanbetalers- vierdemaandsbrieven","zvpxwnb","s982","dm4b","m08V01","Wanbetalers",null,"N",""]
[null,null,null,null,"zvpxwnb_s982_dm4b_m09V01","*=Wanbetalers!$K$18","","Wanbetalers- vierdemaandsbrieven","zvpxwnb","s982","dm4b","m09V01","Wanbetalers",null,"N",""]
[null,null,null,null,"zvpxwnb_s982_dr0i_m07V01","*=Wanbetalers!$I$21","","Wanbetalers- interne betalingsregeling","zvpxwnb","s982","dr0i","m07V01","Wanbetalers",null,"N",""]
[null,null,null,null,"zvpxwnb_s982_dr0i_m08V01","*=Wanbetalers!$J$21","","Wanbetalers- interne betalingsregeling","zvpxwnb","s982","dr0i","m08V01","Wanbetalers",null,"N",""]
[null,null,null,null,"zvpxwnb_s982_dr0i_m09V01","*=Wanbetalers!$K$21","","Wanbetalers- interne betalingsregeling","zvpxwnb","s982","dr0i","m09V01","Wanbetalers",null,"N",""]
[null,null,null,null,"zvpxwnb_s982_dr0e_m07V01","*=Wanbetalers!$I$22","","Wanbetalers- externe betalingsregeling","zvpxwnb","s982","dr0e","m07V01","Wanbetalers",null,"N",""]
[null,null,null,null,"zvpxwnb_s982_dr0e_m08V01","*=Wanbetalers!$J$22","","Wanbetalers- externe betalingsregeling","zvpxwnb","s982","dr0e","m08V01","Wanbetalers",null,"N",""]
[null,null,null,null,"zvpxwnb_s982_dr0e_m09V01","*=Wanbetalers!$K$22","","Wanbetalers- externe betalingsregeling","zvpxwnb","s982","dr0e","m09V01","Wanbetalers",null,"N",""]
[null,null,null,null,"zvpxwnb_s982_dr0s_m07V01","*=Wanbetalers!$I$23","","Wanbetalers- stabilisatieovereenkomst","zvpxwnb","s982","dr0s","m07V01","Wanbetalers",null,"N",""]
[null,null,null,null,"zvpxwnb_s982_dr0s_m08V01","*=Wanbetalers!$J$23","","Wanbetalers- stabilisatieovereenkomst","zvpxwnb","s982","dr0s","m08V01","Wanbetalers",null,"N",""]
[null,null,null,null,"zvpxwnb_s982_dr0s_m09V01","*=Wanbetalers!$K$23","","Wanbetalers- stabilisatieovereenkomst","zvpxwnb","s982","dr0s","m09V01","Wanbetalers",null,"N",""]
[null,null,null,null,"zvpxwnb_s982_dr81_m07V01","*=Wanbetalers!$I$26","","Wanbetalers- cak bdr < 250","zvpxwnb","s982","dr81","m07V01","Wanbetalers",null,"N",""]
[null,null,null,null,"zvpxwnb_s982_dr81_m08V01","*=Wanbetalers!$J$26","","Wanbetalers- cak bdr < 250","zvpxwnb","s982","dr81","m08V01","Wanbetalers",null,"N",""]
[null,null,null,null,"zvpxwnb_s982_dr81_m09V01","*=Wanbetalers!$K$26","","Wanbetalers- cak bdr < 250","zvpxwnb","s982","dr81","m09V01","Wanbetalers",null,"N",""]
[null,null,null,null,"zvpxwnb_s982_dr82_m07V01","*=Wanbetalers!$I$27","","Wanbetalers- cak 250 < bdr < 750","zvpxwnb","s982","dr82","m07V01","Wanbetalers",null,"N",""]
[null,null,null,null,"zvpxwnb_s982_dr82_m08V01","*=Wanbetalers!$J$27","","Wanbetalers- cak 250 < bdr < 750","zvpxwnb","s982","dr82","m08V01","Wanbetalers",null,"N",""]
[null,null,null,null,"zvpxwnb_s982_dr82_m09V01","*=Wanbetalers!$K$27","","Wanbetalers- cak 250 < bdr < 750","zvpxwnb","s982","dr82","m09V01","Wanbetalers",null,"N",""]
[null,null,null,null,"zvpxwnb_s982_dr83_m07V01","*=Wanbetalers!$I$28","","Wanbetalers- cak 750 < bdr","zvpxwnb","s982","dr83","m07V01","Wanbetalers",null,"N",""]
[null,null,null,null,"zvpxwnb_s982_dr83_m08V01","*=Wanbetalers!$J$28","","Wanbetalers- cak 750 < bdr","zvpxwnb","s982","dr83","m08V01","Wanbetalers",null,"N",""]
[null,null,null,null,"zvpxwnb_s982_dr83_m09V01","*=Wanbetalers!$K$28","","Wanbetalers- cak 750 < bdr","zvpxwnb","s982","dr83","m09V01","Wanbetalers",null,"N",""]
[null,null,null,null,"zvpxwnb_s982_dr82_m08V01","*=Wanbetalers!$J$27","","Wanbetalers- cak 250 < bdr < 750","zvpxwnb","s982","dr82","m08V01","Wanbetalers",null,"N",""]
[null,null,null,null,"zvpxwnb_s982_dr82_m09V01","*=Wanbetalers!$K$27","","Wanbetalers- cak 250 < bdr < 750","zvpxwnb","s982","dr82","m09V01","Wanbetalers",null,"N",""]
[null,null,null,null,"zvpxwnb_s982_dr83_m07V01","*=Wanbetalers!$I$28","","Wanbetalers- cak 750 < bdr","zvpxwnb","s982","dr83","m07V01","Wanbetalers",null,"N",""]
[null,null,null,null,"zvpxwnb_s982_dr83_m08V01","*=Wanbetalers!$J$28","","Wanbetalers- cak 750 < bdr","zvpxwnb","s982","dr83","m08V01","Wanbetalers",null,"N",""]
[null,null,null,null,"zvpxwnb_s982_dr83_m09V01","*=Wanbetalers!$K$28","","Wanbetalers- cak 750 < bdr","zvpxwnb","s982","dr83","m09V01","Wanbetalers",null,"N",""]

{"sheet":"Parameters","index":13,"n_rows":34,"n_cols":7,"rows_kept":34,"cut":false,"hidden":true,"merged":[[1,4,1,5]]}
[]
[null,"Kwartaal:",2,null,"HASHTOTALEN"]
[null,"Jaar:",2023,null,"Alle waarden tabblad specifieke informatie A",{"$f":"ROUND(SUM(alle_cellen_info_a),0)","v":{"$error":"#REF!"}},"Opm: kolom I..L"]
[null,"Wet:","ZVW",null,"Alle waarden tabblad specifieke informatie B",{"$f":"ROUND(SUM(alle_cellen_info_c),0)","v":{"$error":"#REF!"}},"Opm: kolom I..L"]
[null,"Document:",{"$f":"CONCATENATE(\"KS\",jaar_id,wet_id,\".\",kwartaal_id)","v":"KS2023ZVW.2"},null,"Alle waarden tabbladen specifieke informatie A en C",{"$f":"SUM(F3:F4)","v":{"$error":"#REF!"}},"Opm: kolom I..L"]
[null,"Revisie:","C"]
[null,"Revisiedatum:","2022-11-01"]
[null,"Versie:",{"$f":"CONCATENATE(document_id,revisie_id)","v":"KS2023ZVW.2C"}]
[]
[]
[]
[null,"NUMMER_UO","NAAM_UO","FORMAT_UO1"]
[null,"0000","KIES UW UZOVI-NUMMER",{"$f":"CONCATENATE(B13,\" \",C13)","v":"0000 KIES UW UZOVI-NUMMER"}]
[null,"0101","UNIVÉ ZORG","0101 UNIVÉ ZORG"]
[null,"0104","CENTRALE ZORGVERZEKERINGEN NZV N.V.","0104 CENTRALE ZORGVERZEKERINGEN NZV N.V."]
[null,"0201","OHRA ZORGVERZEKERINGEN N.V.","0201 OHRA ZORGVERZEKERINGEN N.V."]
[null,"0403","ASR ","0403 ASR "]
[null,"0699","IZA","0699 IZA"]
[null,"0736","UMC","0736 UMC"]
[null,"3311","ZILVEREN KRUIS","3311 ZILVEREN KRUIS"]
[null,"3313","INTERPOLIS","3313 INTERPOLIS"]
[null,"3332","MENZIS","3332 MENZIS"]
[null,"3333","ANDERZORG","3333 ANDERZORG"]
[null,"3343","ONVZ",{"$f":"CONCATENATE(B24,\" \",C24)","v":"3343 ONVZ"}]
[null,"3347","SALLAND ZORGVERZEKERAAR N.V.",{"$f":"CONCATENATE(B25,\" \",C25)","v":"3347 SALLAND ZORGVERZEKERAAR N.V."}]
[null,"3351","FBTO",{"$f":"CONCATENATE(B26,\" \",C26)","v":"3351 FBTO"}]
[null,"3352","IPTIQ",{"$f":"CONCATENATE(B27,\" \",C27)","v":"3352 IPTIQ"}]
[null,"3358","DE FRIESLAND",{"$f":"CONCATENATE(B28,\" \",C28)","v":"3358 DE FRIESLAND"}]
[null,"3359","EUCARE INSURANCE PCC LTD",{"$f":"CONCATENATE(B29,\" \",C29)","v":"3359 EUCARE INSURANCE PCC LTD"}]
[null,"7029","DSW","7029 DSW"]
[null,"7037","STAD HOLLAND",{"$f":"CONCATENATE(B31,\" \",C31)","v":"7037 STAD HOLLAND"}]
[null,"7085","ZORG EN ZEKERHEID","7085 ZORG EN ZEKERHEID"]
[null,"7095","VGZ ZORGVERZEKERAAR","7095 VGZ ZORGVERZEKERAAR"]
[null,"7119","CZ ZORGVERZEKERINGEN N.V.","7119 CZ ZORGVERZEKERINGEN N.V."]